Workbook

Sheet Sorular
B1: Sorular | C1: Kriter | D1: İlişkili Olduğu Güvenilirlik Düzeyi | E1: Ait Olduğu Hipotez
A2: 1. | B2: Belge yönetim sistemine geçerken kurum aşağıdaki prosedürlerden hangilerini gerçekleştirmiştir? | D2: Kurum | E2: E-imzalı belgelerin güvenilirliğinin korunması için belge yönetimi konusunda politika ve prosedürlere ihtiyaç duyulmaktadır. Bunların yeteri kadar bulunmadığı kurumlarda belgelerin delil değerinin zayıflayacağı düşünülmektedir. (Kurumsal Politika ve Prosedürler)
A3: 1.1. | B3: Kurumun e-belge yönetimi politikasını belirleme | C3: Zorunlu
A4: 1.2. | B4: Kurumun e-arşiv yönetimi politikasını belirleme | C4: Zorunlu
A5: 1.3. | B5: Fonksiyonlar ve iş süreçleri tanımlama ve belgelerle ilişkilendirme | C5: Zorunlu
A6: 1.4. | B6: İş süreçlerine dair dokümantasyon oluşturma | C6: Seçmeli
A7: 1.5. | B7: Form ve şablon oluşturma | C7: Zorunlu
A8: 1.6. | B8: Belge türüne göre oluşturulan şablonlar için bir kontrol numarası verme | C8: Seçmeli
A9: 1.7. | B9: Spesifik üstveri şemaları çıkarma | C9: Zorunlu
A10: 1.8. | B10: Belge profilindeki form özelliklerini (belgedeki kişiler, antet, format, teknolojik özellikler, belgeye işlem safhasında yapılan açıklamalar gibi) tanımlama | C10: Seçmeli
A11: 1.9. | B11: Belgeler ve dosyalar için dosya tasnif planı ve saklama planı hazırlama | C11: Zorunlu
A12: 1.10. | B12: Dosya planına uygun dosyalama sistemi geliştirme | C12: Zorunlu
A13: 1.11. | B13: Kontrollü terminoloji oluşturma | C13: Seçmeli
A14: 1.12. | B14: Felaket kurtarma planı ve yedekleme planı oluşturma | C14: Zorunlu
A16: 2. | B16: Belgenin aşağıdaki form özelliklerinden hangilerini üstverilerde kullanıyorsunuz? | D16: Belge | E16: E-imzalı belgelerin güvenilirliğinin korunması için arşivsel bağın kurulmasına ihtiyaç duyulmaktadır. Bu bağın başarılı bir şekilde kurulamadığı örgütlerde belgelerin delil değerinin zayıflayacağı düşünülmektedir. (Arşivsel Bağ)
A17: 2.1. | B17: Sorumlu (Belgeyi üreten kurum) | C17: Zorunlu
A18: 2.2. | B18: Düzenleyen (Belgedeki irade beyanının sahibi) | C18: Zorunlu
A19: 2.3. | B19: Muhatap/Alıcı | C19: Zorunlu
A20: 2.4. | B20: Konu | C20: Zorunlu
A21: 2.5. | B21: Format | C21: Zorunlu
A22: 2.6. | B22: Üretim tarihi | C22: Zorunlu
A23: 2.7. | B23: Gönderim/Alma tarihi (KEP) | C23: Zorunlu
A24: 2.8. | B24: Belge tarihi (Son imzalayıcının imza attığı tarih) | C24: Zorunlu
A26: 3. | B26: Belge profilinde aşağıdaki üstverilerden hangileri bulunmaktadır? | D26: Belge | E26: Arşivsel Bağ
A27: 3.1. | B27: Belgenin dosyasına kaldırıldığı zaman | C27: Zorunlu
A28: 3.2. | B28: Belgedeki işlemden sorumlu kişi ve birim | C28: Zorunlu
A29: 3.3. | B29: Ait olduğu işlem-dosya-seri-birim | C29: Zorunlu
A30: 3.4. | B30: Dosya kodu | C30: Zorunlu
A31: 3.5. | B31: Belge referans numarası | C31: Zorunlu
A32: 3.6. | B32: Belgeye erişmek için asgari gereksinimler | C32: Zorunlu
A33: 3.7. | B33: Belgenin üretildiği EBYS yazılımı ve versiyon numarası | C33: Zorunlu
A34: 3.8. | B34: Belge yönetimi için kullanılacak algoritmalar (kullanılan EBYS yazılımı algoritmaları ve belgeyi tekrardan üretmek ya da şifreli belgeleri açabilmek için gerekli olan algoritmalar gibi) | C34: Zorunlu
A35: 3.9. | B35: Belge bileşenleri (Üstveri, belgenin ekleri, form elemanları, kontekst (bağlam), içerik, belgenin oluşumunu sağlayan veriler, iş akışları gibi) | C35: Zorunlu
A36: 3.10. | B36: E-imza ve zaman damgası | C36: Zorunlu
A37: 3.11. | B37: Saklama süresi | C37: Zorunlu
A38: 3.12. | B38: Belgeye erişim profilleri | C38: Zorunlu
A39: 3.13. | B39: Belgelerin lokasyonu (Directory) | C39: Seçmeli
A40: 3.14. | B40: Belgeye yapılan açıklama notları (İşlem safhasında (ivedilik durumu, iletim zamanı, tarih, yer, ekler gibi), kullanım safhasında (belgenin alındığı tarih, belgeyi kullanan birim, gerçekleştirilen işlem, yapılan muamele gibi ) ve yönetim safhasında (belgenin arşive devir tarihi, versiyon numarası, belge referans numarası, dosya kodu, belgeyi düzenleyen ve oluşturan kişi/birim gibi)) | C40: Zorunlu
A41: 3.15. | B41: Teknolojik göç ettirme ile ilgili yapılan işlemler | C41: Zorunlu
A42: 3.16. | B42: Konu | C42: Zorunlu
A43: 3.17. | B43: Belgenin sayısı | C43: Zorunlu
A44: 3.18. | B44: Belgenin gizlilik derecesi (Tasnif dışı, hizmete özel, özel, gizli, çok gizli, kişiye özel gibi) | C44: Zorunlu
A45: 3.19. | B45: Dağıtım listesi | C45: Zorunlu
A46: 3.20. | B46: İlgilerin referans numarası | C46: Zorunlu
A47: 3.21. | B47: Belgenin özet değeri | C47: Zorunlu
A48: 3.22. | B48: Şifreleme bilgisi | C48: Zorunlu
A49: 3.23. | B49: Eklerin referans numaraları | C49: Zorunlu
A51: 4. | B51: Belge bileşenleriyle ilgili aşağıdaki üstverilerden hangileri kurumunuzda kullanılmaktadır? | D51: Belge | E51: Arşivsel Bağ
A52: 4.1. | B52: Referans numarası | C52: Zorunlu
A53: 4.2. | B53: Format | C53: Zorunlu
A54: 4.3. | B54: Bileşeni üreten yazılım ve o yazılımda kullanılan algoritmalar | C54: Seçmeli
A55: 4.4. | B55: Bileşene erişmek için asgari gereksinimler | C55: Zorunlu
A57: 5. | B57: Log kayıtlarında aşağıdaki bilgilerden hangileri bulunmaktadır? | D57: Teknolojik Koşullar | E57: E-imzalı belgelerin güvenilirliğinin korunması için doğru teknolojik koşulların varlığına ihtiyaç duyulmaktadır. Bu koşulların yeteri kadar mevcut olmadığı kurumlarda belgelerin delil değerinin zayıflayacağı düşünülmektedir. (Teknolojik Koşullar)
A58: 5.1. | B58: Dokümanın belgeye dönüşme tarih ve zamanı | C58: Zorunlu
A59: 5.2. | B59: Belgeye erişim istekleri | C59: Zorunlu
A60: 5.3. | B60: Belgenin iletim geçmişi | C60: Zorunlu
A61: 5.4. | B61: Belgeye yapılan açıklamalar | C61: Zorunlu
A62: 5.5. | B62: Belgede yapılan işlemler ve bu işlemleri yapan kullanıcılar | C62: Zorunlu
A63: 5.6. | B63: Üstverilerde yapılan değişiklikler | C63: Zorunlu
A64: 5.7. | B64: Saklama planı ve saklama sürelerinde yapılan değişiklikler | C64: Zorunlu
A65: 5.8. | B65: Belgede yaşanan teknolojik değişimler | C65: Zorunlu
A66: 5.9. | B66: Sistem arıza ve bakımları | C66: Zorunlu
A67: 5.10. | B67: Paraf bilgileri ve paraflayanın yaptığı işlemler | C67: Zorunlu
A69: 6. | B69: Dosyalama pratikleriyle ilgili aşağıdakilerden hangileri kurumunuz için geçerlidir? | D69: Belge | E69: Arşivsel Bağ
A70: 6.1. | B70: Belgelerin hangi işlem, dosya, seri ve birime ait olduğunu seçme | C70: Zorunlu
A71: 6.2. | B71: Dosya türü ayrımı yapılması (Konu, Vaka, Gölge dosya, Vaka hazırlık dosyası, melez/hibrit dosya gibi) | C71: Zorunlu
A72: 6.3. | B72: Konu dosyalarının periyodik olarak kapanması | C72: Seçmeli
A73: 6.4. | B73: Vaka dosyasına giren bir belgenin aynı zamanda bir konu dosyasıyla da ilişkiliyse çoğaltılmadan çapraz referans yapılması | C73: Seçmeli
A74: 6.5. | B74: Belgeler ve dosyalar için dosya konu kodunun yanı sıra gerektiğinde özel kodların kullanılması | C74: Seçmeli
A75: 6.6 | B75: Belgeye, birim belge yöneticisi tarafından da dosya kodu verilmesi | C75: Seçmeli
A76: 6.7. | B76: Birim belge yöneticisinin belgeyi ait olduğunu düşündüğü dosyaya gönderebilmesi | C76: Seçmeli
A77: 6.8. | B77: Dosyaların üstverilerinde ait olduğu seri ve birimin belirtilmesi | C77: Zorunlu
A78: 6.9. | B78: Dosyaların, ait oldukları seriden farklı bir seriye taşınabilmesi | C78: Zorunlu
A79: 6.10. | B79: Sistemde aynı dosyanın parçası olup kâğıt ortamında saklanan belgelerin yerinin belirtilmesi | C79: Zorunlu
A80: 6.11. | B80: Belgenin ve dosyanın dosya kodu değişmiş ise eski ve yeninin birlikte gösterilmesi | C80: Seçmeli
A82: 7. | B82: Belge yönetimiyle ilgili kurumsal prosedürler aşağıdakilerden hangilerini içermektedir? | D82: Kurum | E82: Kurumsal Politika ve Prosedürler
A83: 7.1. | B83: Belgenin üretilme kuralları | C83: Zorunlu
A84: 7.2. | B84: Belgenin iletilme kuralları | C84: Zorunlu
A85: 7.3. | B85: Dışarıdan gelen belgelerin sisteme kaydedilme kuralları | C85: Zorunlu
A86: 7.4. | B86: Belgeyi dosyasına kaldırma kuralları | C86: Zorunlu
A87: 7.5. | B87: Belgenin tanımlanmasına ilişkin kurallar | C87: Zorunlu
A88: 7.6. | B88: Belgeyi arşive devretme kuralları | C88: Zorunlu
A89: 7.7. | B89: Belgelerin teknolojik göçü ve bu göçün geçerliliğine yönelik tasdik prosedürleri | C89: Zorunlu
A90: 7.8. | B90: Log kayıtları | C90: Zorunlu
A91: 7.9. | B91: Denetim günlükleri | C91: Seçmeli
A92: 7.10. | B92: Donanımların çalışma şartları (sıcaklık ve nem gibi) | C92: Seçmeli
A93: 7.11. | B93: Bilgi güvenliği | C93: Zorunlu
A95: 8. | B95: Saklama süreli dosya planınız için aşağıdakilerden hangileri geçerlidir? | D95: Belge | E95: Arşivsel Bağ
A96: 8.1. | B96: Fonksiyon analizi yapılarak belge hiyerarşisinin oluşturulması | C96: Zorunlu
A97: 8.2. | B97: Dosya ve seri kodlarının oluşturulması | C97: Zorunlu
A98: 8.3. | B98: Saklama süresi sonunda yapılacak tasfiye işlemlerinin kararlaştırılması | C98: Seçmeli
A99: 8.4. | B99: Standart Dosya Planının, herhangi bir kod ekleme/çıkarması yapılmadan kullanılması | C99: Seçmeli
A101: 9. | B101: Teknolojik göçle ilgili aşağıdakilerden hangileri geçerlidir? | D101: Teknolojik Koşullar | E101: Teknolojik Koşullar
A102: 9.1. | B102: Belgelerin taşıyıcı ortamının değiştirilip değiştirilmemesi hususunda düzenli aralıklarla incelemelerin yapılması | C102: Seçmeli
A103: 9.2. | B103: Teknolojik göç sonrası belgelerin erişilebilirliği ve okunabilirliğinin kontrol edilmesi | C103: Zorunlu
A104: 9.3. | B104: Yeni taşıyıcı ortam ve göçün gerçekleştiği tarihin belge profiline eklenmesi | C104: Zorunlu
A105: 9.4. | B105: Risk analizinin yapılması | C105: Zorunlu
A107: 10. | B107: Yedeklemelerle ilgili aşağıdakilerden hangileri geçerlidir? | D107: Teknolojik Koşullar | E107: Teknolojik Koşullar
A108: 10.1. | B108: Yedeklemelere sadece yetkili personelin erişmesi | C108: Seçmeli
A109: 10.2. | B109: Belgeler, belge profilleri ve üstverilerin düzenli aralıklarla yedeklenmesi | C109: Zorunlu
A110: 10.3. | B110: Son yedeklemeden bu yana belgelere yapılan açıklamalar ve işlemlerin denetim günlüklerine kaydedilmesi | C110: Zorunlu
A111: 10.4. | B111: Sistem yedeklemesinin yapılması | C111: Zorunlu
A112: 10.5. | B112: Son üç yedeklemenin kopyalarının muhafaza edilmesi | C112: Seçmeli
A113: 10.6. | B113: Denetim günlüklerine yedeklemenin başarılı gerçekleşip gerçekleşmediğinin eklenmesi | C113: Seçmeli
A114: 10.7. | B114: Herhangi bir sorun karşısında bir önceki yedeklemenin devreye alınabilmesi | C114: Zorunlu
A116: 11. | B116: Yedekleme ile ilgili aşağıdaki üstverilerden hangileri sisteminizde mevcuttur? | D116: Teknolojik Koşullar | E116: Teknolojik Koşullar
A117: 11.1. | B117: Yedeklemenin tarihi ve zamanı | C117: Zorunlu
A118: 11.2. | B118: Yedeklemeyi onaylayan | C118: Zorunlu
A119: 11.3. | B119: Yedeklemenin konumu | C119: Seçmeli
A120: 11.4. | B120: Yedekleme referans numarası | C120: Zorunlu
A122: 12. | B122: Arşive devredilecek belgelerle ilgili mevcut üstverilerin dışında onların delil değerini ilgilendirecek aşağıdaki üstverilerden hangilerinin kullanılması düşünülmektedir? | D122: Belge | E122: Arşivsel Bağ
A123: 12.1. | B123: Devir zamanı | C123: Zorunlu
A124: 12.2. | B124: Belgelerin özgünlüğünü onaylayan teknikler (iz değeri kontrolü, e-imza sertifikalarının kontrolü, belgedeki kişi ile imzanın uyumu vb.) | C124: Zorunlu
A125: 12.3. | B125: Belgelerin özgünlüğünü onaylayan kişiler | C125: Zorunlu
A126: 12.4. | B126: Özgünlük değerlendirme raporu | C126: Seçmeli
A127: 12.5. | B127: Belgenin tanımlama bilgileri | C127: Seçmeli
A129: 13. | B129: Belgelerin özgünlüğünün tasdik edilmesi için aşağıdaki adımlardan hangileri geçerlidir? | D129: Belge | E129: Arşivsel Bağ
A130: 13.1. | B130: Belgenin, doğduğu fonksiyonun işlemlerinden en az birini gösterecek nitelikte olması | C130: Zorunlu
A131: 13.2. | B131: Türüne göre belgenin, sahip olması gereken kimlik tespiti araçlarını (tasdik yöntemi) barındırması | C131: Zorunlu
A132: 13.3. | B132: Belge arşive devredildiğinde, onun özniteliklerinin korunduğunu gösteren bir elektronik kurumsal mührün kullanılması | C132: Seçmeli
A133: 13.4. | B133: Belgenin tanımlama bilgilerinin incelenmesi | C133: Seçmeli
A134: 13.5. | B134: Dosya sistemindeki (file system) belge ile veri tabanında tutulan kayıtların ilişkilendirilmesi ve bu ilişkinin kopmaması için gerekli tedbirlerin alınması | C134: Zorunlu
A135: 13.6. | B135: Belge üzerindeki imzaların geçerliliği bitmeden EYP'nin zaman damgası ile damgalanması | C135: Zorunlu
A136: 13.7. | B136: Belgedeki imzaların arşiv imzası tipine dönüştürülmesi | C136: Zorunlu
A137: 13.8. | B137: Bütünlük analizinin düzenli kontrol edilmesi | C137: Zorunlu
A138: 13.9. | B138: Bütünlük bozulması riskine karşı risk değerlendirmesi ve riskten kaçınma raporunun hazırlanması | C138: Seçmeli
A142: 14. | B142: Belgelerin tasfiyesine ilişkin aşağıdaki adımlardan hangileri geçerlidir? | D142: Belge | E142: Arşivsel Bağ
A143: 14.1. | B143: Belgeler oluşmadan önce belgelere bir saklama süresi tayin edilmesi | C143: Zorunlu
A144: 14.2. | B144: Belgelerin saklama süreleri tamamlandıktan sonra ait oldukları dosyalarla birlikte arşive devredilmesi | C144: Zorunlu
A145: 14.3. | B145: Saklama süresi aşımının gerekçesi | C145: Zorunlu
A146: 14.4. | B146: Belgenin, belge profili ve üstverileriyle birlikte arşive devredilmesi | C146: Zorunlu
A147: 14.5. | B147: Belge tasfiye edilirken belge profili ve üstverisinin de tasfiye edilmesi | C147: Zorunlu
A148: 14.6. | B148: Belge, ister arşive devredilsin ister imha edilsin referans numarasının sistemde tutulması ve belgenin akıbeti hakkında bir bilgi notunun bulunması | C148: Zorunlu
A149: 14.7. | B149: Arşive devredilen belgelerin dosyalarıyla birlikte belge yönetim sisteminden kaldırılıp arşiv yönetim sistemine aktarılması | C149: Zorunlu
A151: 15. | B151: Belge yönetimi kapasitesinin geliştirilmesi için aşağıdakilerden hangileri geçerlidir? | D151: Kurum | E151: Kurumsal Politika ve Prosedürler
A152: 15.1. | B152: Kurumsal belge yönetimi politikasının oluşturulması | C152: Zorunlu
A153: 15.2. | B153: Bilgi ve belge yönetimi mezunu kişilerin belge yönetimiyle ilgili birimde istihdam edilmesi | C153: Seçmeli
A154: 15.3. | B154: Belge yönetimiyle ilgilenen personelin eğitim programının bulunması (eğitmen eğitimi) | C154: Seçmeli
A155: 15.4. | B155: Kurum çalışanlarının belge yönetimi birimi tarafından eğitilmesi | C155: Seçmeli
A156: 15.5. | B156: TSE 13298 Kurumsal sertifikasyon alınması yönünde girişimler yapılması | C156: Zorunlu
A158: 16. | B158: Arşivlenen belgelerin tanımlanması için bir standardın kullanılması düşünülmekte midir? Lütfen belirtiniz. | D158: Belge | E158: Arşivsel Bağ
A159: 16.1. | B159: Evet/Hayır | C159: Seçmeli
A161: 17. | B161: Elektronik belge yönetiminde belgenin delil değerini korumak için aşağıdaki teknolojilerden hangilerinin kullanılması düşünülmektedir? | D161: Teknolojik Koşullar | E161: Teknolojik Koşullar
A162: 17.1. | B162: Blokzincir | C162: Seçmeli
A163: 17.2. | B163: Yapay zekâ | C163: Seçmeli
A164: 17.3. | B164: Derin öğrenme/Makine öğrenmesi | C164: Seçmeli
A165: 17.4. | B165: Elektronik delil elde etme (Digital forensics-Öykünme, teknolojik göç) | C165: Seçmeli
A167: 18. | B167: Yazılım ve donanımla ilgili aşağıdaki ifadelerden hangileri geçerlidir? | D167: Teknolojik Koşullar | E167: Teknolojik Koşullar
A168: 18.1. | B168: Yazılım algoritması ve kaynak kodlarının kurum tarafından saklanması | C168: Zorunlu
A169: 18.2 | B169: Veri tabanının arşivlenebilir bir formatta yapılandırılması | C169: Seçmeli
A170: 18.3 | B170: Belgelerin bir kez yazılabilir ortamlarda saklanması | C170: Seçmeli
A171: 18.4. | B171: Belge bileşenlerinin de belgeyle birlikte bütüncül olarak korunması | C171: Zorunlu
A172: 18.5. | B172: Yazılım değiştirildiğinde de belgelere erişilebilmesi | C172: Zorunlu
A173: 18.6. | B173: Güncel belgelerle arşivlenen belgelerin saklanma konumları arasında bir ayrım yapılması | C173: Seçmeli
A174: 18.7. | B174: Donanımların üreticilerin tavsiye ettiği kullanım ömrü dolduktan sonra kullanılmaması | C174: Seçmeli
A175: 18.8. | B175: Belgelerin üretildiği araçlardaki donanım ve yazılım özelliklerinin kayıt altına alınması | C175: Zorunlu
A176: 18.9. | B176: 27001 Sertifikası alınması yönünde girişimlerin yapılması | C176: Zorunlu
A177: 18.10. | B177: Yazılımın TSE 13298 Sertifikasına uygun olması yönünde girişimlerin yapılması | C177: Zorunlu
A178: 18.11. | B178: Log kayıtlarının zaman damgası ile damgalanması | C178: Zorunlu
A180: 19. | B180: Üstveriler için aşağıdakilerden hangileri geçerlidir? | D180: Teknolojik Koşullar | E180: Teknolojik Koşullar
A181: 19.1. | B181: Üstverilerin belgeden ayrı olarak XML ya da JSON olarak saklanması | C181: Zorunlu
A182: 19.2. | B182: Üstveriler, belge ile birlikte hareket etmektedir. (Belgenin konumu değiştirildiğinde üstverilerin de beraberinde taşınması) | C182: Zorunlu
A183: 19.3. | B183: Yöneticilerin yaptığı değişiklikler sonucunda yeni bir üstveri kaydının oluşması ve daha önceki üstveri kaydının muhafaza edilmesi | C183: Zorunlu
A184: 19.4. | B184: Üstveri dosyasının ait olduğu belgenin referans numarasına sahip olması | C184: Zorunlu
A186: 20. | B186: Denetim günlükleri için aşağıdakilerden hangileri geçerlidir? | D186: Teknolojik Koşullar | E186: Teknolojik Koşullar
A187: 20.1. | B187: Tüm belgeler için denetim günlüklerinin oluşturulması | C187: Seçmeli
A188: 20.2. | B188: Denetim günlükleri oluşturulmasına karar verilen belgeler için, bunların otomatik olarak oluşması | C188: Zorunlu
A189: 20.3. | B189: Denetim günlüklerinin yapılan işlemlerin tarih ve saatini içermesi | C189: Zorunlu
A190: 20.4. | B190: Denetim günlüklerine erişim sırasında bir sorun yaşanıp yaşanmadığının düzenli aralıklarla otomatik olarak kontrol edilmesi | C190: Zorunlu
A191: 20.5. | B191: Denetim günlüklerinin bir kere yazılması ve üzerinde hiç değişiklik yapılmaması | C191: Zorunlu
A193: 21. | B193: Kurumda üretilen ve dışarıdan gelen belgelerin form özellikleri, formatı ve içeriğinin değiştirilmemesine yönelik aşağıdaki hangi yaklaşımları benimsiyorsunuz? | D193: Belge | E193: Arşivsel Bağ
A194: 21.1. | B194: İz değeri kontrolü | C194: Zorunlu
A195: 21.2. | B195: Dosya tanımlayıcı kullanımı (JHOVE, DROID gibi) | C195: Zorunlu
A196: 21.3. | B196: Adli bilişim (Digital forensics) yöntemleri | C196: Seçmeli
A197: 21.4. | B197: Log kayıtlarının kontrolü | C197: Zorunlu
A198: 21.5. | B198: Döngüsel artıklık denetimi (CRC) | C198: Seçmeli
B200: Kullandığınız Kaçıncı EBYS?
B201: Sistemi kendiniz mi geliştirdiniz?
B202: Kaç yıldır EBYS kullanıyorsunuz?
B203: Yazılımın TSE uygunluk sertifikası var mı?
B204: KEP kullanıyor musunuz?
B205: UETS kullanıyor musunuz?
B206: EYP kullanıyor musunuz?
B210: Kısaltmalar
B211: EBYS: Elektronik Belge Yönetim Sistemi
B212: KEP: Kayıtlı Elektronik Posta
B213: TSE: Türk Standartları Enstitüsü
B214: UETS: Ulusal Elektronik Tebligat Sistemi
B215: EYP: Elektronik Yazışma Paketi
B216: XML: Extensible Markup Language
B217: JSON: JavaScript Object Notation
B218: JHOVE: JSTOR/Harvard Object Validation Environment
B219: DROID: Digital Record Object Identification

Sheet Zorunlu-Seçmeli Soru Sayısı
A1: Kurum | F1: Teknolojik Koşullar | K1: Belge
A2: Soru | B2: Toplam Soru Sayısı | C2: Zorunlu | D2: Seçmeli | F2: Soru | G2: Toplam Soru Sayısı | H2: Zorunlu | I2: Seçmeli | K2: Soru | L2: Toplam Soru Sayısı | M2: Zorunlu | N2: Seçmeli
A3: 1 | B3: 12 | C3: 8 | D3: 4 | F3: 5 | G3: 10 | H3: 10 | I3: 0 | K3: 2 | L3: 8 | M3: 8 | N3: 0
A4: 7 | B4: 11 | C4: 9 | D4: 2 | F4: 9 | G4: 4 | H4: 3 | I4: 1 | K4: 3 | L4: 23 | M4: 22 | N4: 1
A5: 15 | B5: 5 | C5: 2 | D5: 3 | F5: 10 | G5: 7 | H5: 4 | I5: 3 | K5: 4 | L5: 4 | M5: 3 | N5: 1
A6: Toplam | B6: 28 | C6: 19 | D6: 9 | F6: 11 | G6: 4 | H6: 3 | I6: 1 | K6: 6 | L6: 11 | M6: 5 | N6: 6
F7: 17 | G7: 4 | H7: 0 | I7: 4 | K7: 8 | L7: 4 | M7: 2 | N7: 2
F8: 18 | G8: 11 | H8: 7 | I8: 4 | K8: 12 | L8: 5 | M8: 3 | N8: 2
F9: 19 | G9: 4 | H9: 4 | I9: 0 | K9: 13 | L9: 9 | M9: 6 | N9: 3
F10: 20 | G10: 5 | H10: 4 | I10: 1 | K10: 14 | L10: 7 | M10: 7 | N10: 0
F11: Toplam | G11: 49 | H11: 35 | I11: 14 | K11: 16 | L11: 1 | M11: 0 | N11: 1
K12: 21 | L12: 5 | M12: 3 | N12: 2
K13: Toplam | L13: 77 | M13: 59 | N13: 18

Sheet Formül
A1: Güvenilirlik Düzeyi Formülü** = Taban Puan* + Kurum Puanı*** + Teknolojik Koşullar Puanı**** + Belge Puanı*****
A3: Kurum=(Zkk.19)+(Skk.9)***
A5: Teknolojik koşullar=(Ztk.35)+(Stk.14)****
A7: Belge=(Zbk.59)+(Sbk.18)*****
A9: *: Taban Puan=25
A11: **: Kurum, teknolojik koşullar, belge puanları azami 25'er puan olabilir.
A13: Zorunlu kriterler 20 puan, seçmeli kriterler 5 puan.
A15: ***: (Zkk= 20/19=1,052)+(Skk=5/9=0,555) =25
A17: ****: (Ztk=20/35=0,571)+(Stk=5/14=0,357) =25
A19: *****: (Zbk=20/59=0,339)+(Sbk=5/18=0,277) =25
A22: 0-25 = Değerlendirme dışı
A23: 26-40 = Başarısız
A24: 41-55 = Zayıf
A25: 56-69 = Orta
A26: 70-84 = Başarılı
A27: 85-100 = Çok başarılı
A30: Kritik Zorunlular
A32: Belge: 14 kritik zorunlu, 45 zorunlu, 18 seçmeli
A33: Teknolojik koşullar: 9 kritik zorunlu, 26 zorunlu, 14 seçmeli
A34: Kurum: 6 kritik zorunlu, 13 zorunlu, 9 seçmeli
A36: Kritik Zorunlu Sorunun Katsayısını Hesaplama Formulü = [İlgili Sorudan Alınabilecek Azami Puan-(Zorunlu ve seçmeli soruların katsayıları toplamı)*0.4]/Kritik Zorunlu Soru Sayısı

Sheet Kritik Zorunlu Hesaplama Yöntem
B1: Sorular | C1: Kriter | D1: Ait Olduğu Hipotez | E1: Kritiklik Durumu
A2: 1. | B2: Belge yönetim sistemine geçerken kurum aşağıdaki prosedürlerden hangilerini gerçekleştirmiştir? | D2: Kurumsal Politika ve Prosedürler | E2: Bu sorudan elde edilebilecek puan 10.636 (Zkk*8+Skk*4). Kritik zorunlu sorular çıkarıldığında diğer soruların alabileceği puan 5.376 (Zkk*3+Skk*4). Bu soruların başarıya oranı %40 olacağı için buradan gelen puan 2.1504. Geriye 5 kritik zorunlu soruya ait 8.4856 puan kalıyor. Kritik zorunlu soruların katsayısı 1.6971 oluyor.
A3: 1.1. | B3: Kurumun e-belge yönetimi politikasını belirleme | C3: Kritik Zorunlu | D3: Kurumsal Politika ve Prosedürler
A4: 1.2. | B4: Kurumun e-arşiv yönetimi politikasını belirleme | C4: Kritik Zorunlu | D4: Kurumsal Politika ve Prosedürler
A5: 1.3. | B5: Fonksiyonlar ve iş süreçleri tanımlama ve belgelerle ilişkilendirme | C5: Kritik Zorunlu | D5: Kurumsal Politika ve Prosedürler
A6: 1.4. | B6: İş süreçlerine dair dokümantasyon oluşturma | C6: Seçmeli | D6: Kurumsal Politika ve Prosedürler
A7: 1.5. | B7: Form ve şablon oluşturma | C7: Kritik Zorunlu | D7: Kurumsal Politika ve Prosedürler
A8: 1.6. | B8: Belge türüne göre oluşturulan şablonlar için bir kontrol numarası verme | C8: Seçmeli | D8: Kurumsal Politika ve Prosedürler
A9: 1.7. | B9: Spesifik üstveri şemaları çıkarma | C9: Zorunlu | D9: Kurumsal Politika ve Prosedürler
A10: 1.8. | B10: Belge profilindeki form özelliklerini (belgedeki kişiler, antet, format, teknolojik özellikler, belgeye işlem safhasında yapılan açıklamalar gibi) tanımlama | C10: Seçmeli | D10: Kurumsal Politika ve Prosedürler
A11: 1.9. | B11: Belgeler ve dosyalar için dosya tasnif planı ve saklama planı hazırlama | C11: Kritik Zorunlu | D11: Kurumsal Politika ve Prosedürler
A12: 1.10. | B12: Dosya planına uygun dosyalama sistemi geliştirme | C12: Zorunlu | D12: Kurumsal Politika ve Prosedürler
A13: 1.11. | B13: Kontrollü terminoloji oluşturma | C13: Seçmeli | D13: Kurumsal Politika ve Prosedürler
A14: 1.12. | B14: Felaket kurtarma planı ve yedekleme planı oluşturma | C14: Zorunlu | D14: Kurumsal Politika ve Prosedürler
A16: 2. | B16: Belgenin aşağıdaki form özelliklerinden hangilerini üstverilerde kullanıyorsunuz? | D16: Arşivsel Bağ
A17: 2.1. | B17: Sorumlu (Belgeyi üreten kurum) | C17: Zorunlu | D17: Arşivsel Bağ
A18: 2.2. | B18: Düzenleyen (Belgedeki irade beyanının sahibi) | C18: Zorunlu | D18: Arşivsel Bağ
A19: 2.3. | B19: Muhatap/Alıcı | C19: Zorunlu | D19: Arşivsel Bağ
A20: 2.4. | B20: Konu | C20: Zorunlu | D20: Arşivsel Bağ
A21: 2.5. | B21: Format | C21: Zorunlu | D21: Arşivsel Bağ
A22: 2.6. | B22: Üretim tarihi | C22: Zorunlu | D22: Arşivsel Bağ
A23: 2.7. | B23: Gönderim/Alma tarihi (KEP) | C23: Zorunlu | D23: Arşivsel Bağ
A24: 2.8. | B24: Belge tarihi (Son imzalayıcının imza attığı tarih) | C24: Zorunlu | D24: Arşivsel Bağ
A26: 3. | B26: Belge profilinde aşağıdaki üstverilerden hangileri bulunmaktadır? | D26: Arşivsel Bağ | E26: Bu sorudan elde edilebilecek puan 7.735 (Zbk*22+Sbk). Kritik zorunlu sorular çıkarıldığında diğer soruların alabileceği puan 6.718 (Zbk*19+Sbk). Bu soruların başarıya oranı %40 olacağı için buradan gelen puan 2.6872. Geriye 3 kritik zorunlu soruya ait 5.0478 puan kalıyor. Kritik zorunlu soruların katsayısı 1.6826 oluyor.
A27: 3.1. | B27: Belgenin dosyasına kaldırıldığı zaman | C27: Zorunlu | D27: Arşivsel Bağ
A28: 3.2. | B28: Belgedeki işlemden sorumlu kişi ve birim | C28: Zorunlu | D28: Arşivsel Bağ
A29: 3.3. | B29: Ait olduğu işlem-dosya-seri-birim | C29: Kritik Zorunlu | D29: Arşivsel Bağ
A30: 3.4. | B30: Dosya kodu | C30: Zorunlu | D30: Arşivsel Bağ
A31: 3.5. | B31: Belge referans numarası | C31: Zorunlu | D31: Arşivsel Bağ
A32: 3.6. | B32: Belgeye erişmek için asgari gereksinimler | C32: Zorunlu | D32: Arşivsel Bağ
A33: 3.7. | B33: Belgenin üretildiği EBYS yazılımı ve versiyon numarası | C33: Zorunlu | D33: Arşivsel Bağ
A34: 3.8. | B34: Belge yönetimi için kullanılacak algoritmalar (kullanılan EBYS yazılımı algoritmaları ve belgeyi tekrardan üretmek ya da şifreli belgeleri açabilmek için gerekli olan algoritmalar gibi) | C34: Kritik Zorunlu | D34: Arşivsel Bağ
A35: 3.9. | B35: Belge bileşenleri (Üstveri, belgenin ekleri, form elemanları, kontekst (bağlam), içerik, belgenin oluşumunu sağlayan veriler, iş akışları gibi) | C35: Zorunlu | D35: Arşivsel Bağ
A36: 3.10. | B36: E-imza ve zaman damgası | C36: Zorunlu | D36: Arşivsel Bağ
A37: 3.11. | B37: Saklama süresi | C37: Zorunlu | D37: Arşivsel Bağ
A38: 3.12. | B38: Belgeye erişim profilleri | C38: Zorunlu | D38: Arşivsel Bağ
A39: 3.13. | B39: Belgelerin lokasyonu (Directory) | C39: Seçmeli | D39: Arşivsel Bağ
A40: 3.14. | B40: Belgeye yapılan açıklama notları (İşlem safhasında (ivedilik durumu, iletim zamanı, tarih, yer, ekler gibi), kullanım safhasında (belgenin alındığı tarih, belgeyi kullanan birim, gerçekleştirilen işlem, yapılan muamele gibi ) ve yönetim safhasında (belgenin arşive devir tarihi, versiyon numarası, belge referans numarası, dosya kodu, belgeyi düzenleyen ve oluşturan kişi/birim gibi)) | C40: Zorunlu | D40: Arşivsel Bağ
A41: 3.15. | B41: Teknolojik göç ettirme ile ilgili yapılan işlemler | C41: Kritik Zorunlu | D41: Arşivsel Bağ
A42: 3.16. | B42: Konu | C42: Zorunlu | D42: Arşivsel Bağ
A43: 3.17. | B43: Belgenin sayısı | C43: Zorunlu | D43: Arşivsel Bağ
A44: 3.18. | B44: Belgenin gizlilik derecesi (Tasnif dışı, hizmete özel, özel, gizli, çok gizli, kişiye özel gibi) | C44: Zorunlu | D44: Arşivsel Bağ
A45: 3.19. | B45: Dağıtım listesi | C45: Zorunlu | D45: Arşivsel Bağ
A46: 3.20. | B46: İlgilerin referans numarası | C46: Zorunlu | D46: Arşivsel Bağ
A47: 3.21. | B47: Belgenin özet değeri | C47: Zorunlu | D47: Arşivsel Bağ
A48: 3.22. | B48: Şifreleme bilgisi | C48: Zorunlu | D48: Arşivsel Bağ
A49: 3.23. | B49: Eklerin referans numaraları | C49: Zorunlu | D49: Arşivsel Bağ
A51: 4. | B51: Belge bileşenleriyle ilgili aşağıdaki üstverilerden hangileri kurumunuzda kullanılmaktadır? | D51: Arşivsel Bağ
A52: 4.1. | B52: Referans numarası | C52: Zorunlu | D52: Arşivsel Bağ
A53: 4.2. | B53: Format | C53: Zorunlu | D53: Arşivsel Bağ
A54: 4.3. | B54: Bileşeni üreten yazılım ve o yazılımda kullanılan algoritmalar | C54: Seçmeli | D54: Arşivsel Bağ
A55: 4.4. | B55: Bileşene erişmek için asgari gereksinimler | C55: Zorunlu | D55: Arşivsel Bağ
A57: 5. | B57: Log kayıtlarında aşağıdaki bilgilerden hangileri bulunmaktadır? | D57: Teknolojik Koşullar
A58: 5.1. | B58: Dokümanın belgeye dönüşme tarih ve zamanı | C58: Zorunlu | D58: Teknolojik Koşullar
A59: 5.2. | B59: Belgeye erişim istekleri | C59: Zorunlu | D59: Teknolojik Koşullar
A60: 5.3. | B60: Belgenin iletim geçmişi | C60: Zorunlu | D60: Teknolojik Koşullar
A61: 5.4. | B61: Belgeye yapılan açıklamalar | C61: Zorunlu | D61: Teknolojik Koşullar
A62: 5.5. | B62: Belgede yapılan işlemler ve bu işlemleri yapan kullanıcılar | C62: Zorunlu | D62: Teknolojik Koşullar
A63: 5.6. | B63: Üstverilerde yapılan değişiklikler | C63: Zorunlu | D63: Teknolojik Koşullar
A64: 5.7. | B64: Saklama planı ve saklama sürelerinde yapılan değişiklikler | C64: Zorunlu | D64: Teknolojik Koşullar
A65: 5.8. | B65: Belgede yaşanan teknolojik değişimler | C65: Zorunlu | D65: Teknolojik Koşullar
A66: 5.9. | B66: Sistem arıza ve bakımları | C66: Zorunlu | D66: Teknolojik Koşullar
A67: 5.10. | B67: Paraf bilgileri ve paraflayanın yaptığı işlemler | C67: Zorunlu | D67: Teknolojik Koşullar
A69: 6. | B69: Dosyalama pratikleriyle ilgili aşağıdakilerden hangileri kurumunuz için geçerlidir? | D69: Arşivsel Bağ | E69: Bu sorulan elde edilebilecek puan 3.357 (Zbk*5+Sbk*6). Kritik zorunlu sorular çıkarıldığında diğer soruların alabileceği puan 2.679 (Zbk*3+Sbk*6). Bu soruların başarıya oranı %40 olacağı için buradan gelen puan 1.0716 ediyor. Geriye 2 kritik zorunlu soruya ait 2.282 puan kalıyor. Kritik zorunlu soruların katsayısı 1.1427 oluyor.
A70: 6.1. | B70: Belgelerin hangi işlem, dosya, seri ve birime ait olduğunu seçme | C70: Kritik Zorunlu | D70: Arşivsel Bağ
A71: 6.2. | B71: Dosya türü ayrımı yapılması (Konu, Vaka, Gölge dosya, Vaka hazırlık dosyası, melez/hibrit dosya gibi) | C71: Kritik Zorunlu | D71: Arşivsel Bağ
A72: 6.3. | B72: Konu dosyalarının periyodik olarak kapanması | C72: Seçmeli | D72: Arşivsel Bağ
A73: 6.4. | B73: Vaka dosyasına giren bir belgenin aynı zamanda bir konu dosyasıyla da ilişkiliyse çoğaltılmadan çapraz referans yapılması | C73: Seçmeli | D73: Arşivsel Bağ
A74: 6.5. | B74: Belgeler ve dosyalar için dosya konu kodunun yanı sıra gerektiğinde özel kodların kullanılması | C74: Seçmeli | D74: Arşivsel Bağ
A75: 6.6 | B75: Belgeye, birim belge yöneticisi tarafından da dosya kodu verilmesi | C75: Seçmeli | D75: Arşivsel Bağ
A76: 6.7. | B76: Birim belge yöneticisinin belgeyi ait olduğunu düşündüğü dosyaya gönderebilmesi | C76: Seçmeli | D76: Arşivsel Bağ
A77: 6.8. | B77: Dosyaların üstverilerinde ait olduğu seri ve birimin belirtilmesi | C77: Zorunlu | D77: Arşivsel Bağ
A78: 6.9. | B78: Dosyaların, ait oldukları seriden farklı bir seriye taşınabilmesi | C78: Zorunlu | D78: Arşivsel Bağ
A79: 6.10. | B79: Sistemde aynı dosyanın parçası olup kâğıt ortamında saklanan belgelerin yerinin belirtilmesi | C79: Zorunlu | D79: Arşivsel Bağ
A80: 6.11. | B80: Belgenin ve dosyanın dosya kodu değişmiş ise eski ve yeninin birlikte gösterilmesi | C80: Seçmeli | D80: Arşivsel Bağ
A82: 7. | B82: Belge yönetimiyle ilgili kurumsal prosedürler aşağıdakilerden hangilerini içermektedir? | D82: Kurumsal Politika ve Prosedürler
A83: 7.1. | B83: Belgenin üretilme kuralları | C83: Zorunlu | D83: Kurumsal Politika ve Prosedürler
A84: 7.2. | B84: Belgenin iletilme kuralları | C84: Zorunlu | D84: Kurumsal Politika ve Prosedürler
A85: 7.3. | B85: Dışarıdan gelen belgelerin sisteme kaydedilme kuralları | C85: Zorunlu | D85: Kurumsal Politika ve Prosedürler
A86: 7.4. | B86: Belgeyi dosyasına kaldırma kuralları | C86: Zorunlu | D86: Kurumsal Politika ve Prosedürler
A87: 7.5. | B87: Belgenin tanımlanmasına ilişkin kurallar | C87: Zorunlu | D87: Kurumsal Politika ve Prosedürler
A88: 7.6. | B88: Belgeyi arşive devretme kuralları | C88: Zorunlu | D88: Kurumsal Politika ve Prosedürler
A89: 7.7. | B89: Belgelerin teknolojik göçü ve bu göçün geçerliliğine yönelik tasdik prosedürleri | C89: Zorunlu | D89: Kurumsal Politika ve Prosedürler
A90: 7.8. | B90: Log kayıtları | C90: Zorunlu | D90: Kurumsal Politika ve Prosedürler
A91: 7.9. | B91: Denetim günlükleri | C91: Seçmeli | D91: Kurumsal Politika ve Prosedürler
A92: 7.10. | B92: Donanımların çalışma şartları (sıcaklık ve nem gibi) | C92: Seçmeli | D92: Kurumsal Politika ve Prosedürler
A93: 7.11. | B93: Bilgi güvenliği | C93: Zorunlu | D93: Kurumsal Politika ve Prosedürler
A95: 8. | B95: Saklama süreli dosya planınız için aşağıdakilerden hangileri geçerlidir? | D95: Arşivsel Bağ | E95: Bu sorudan elde edilebilecek puan 1.232 (Zbk*2+Sbk*2). Kritik zorunlu soru çıkarıldığında diğer soruların alabileceği puan 0.893 (Zbk+Sbk*3). Bu soruların başarıya oranı %40 olacağı için buradan gelen puan 0.3572 ediyor. Geriye 1 kritik zorunlu soruya ait 0.8748 puan kalıyor. Kritik zorunlu sorunun katsayısı 0.8748 oluyor.
A96: 8.1. | B96: Fonksiyon analizi yapılarak belge hiyerarşisinin oluşturulması | C96: Kritik Zorunlu | D96: Arşivsel Bağ
A97: 8.2. | B97: Dosya ve seri kodlarının oluşturulması | C97: Zorunlu | D97: Arşivsel Bağ
A98: 8.3. | B98: Saklama süresi sonunda yapılacak tasfiye işlemlerinin kararlaştırılması | C98: Seçmeli | D98: Arşivsel Bağ
A99: 8.4. | B99: Standart Dosya Planının, herhangi bir kod ekleme/çıkarması yapılarak kullanılması | C99: Seçmeli | D99: Arşivsel Bağ
A101: 9. | B101: Teknolojik göçle ilgili aşağıdakilerden hangileri geçerlidir? | D101: Teknolojik Koşullar | E101: Bu sorudan elde edilebilecek puan 2.07 (Ztk*3+Stk). Kritik zorunlu sorular çıkarıldığında diğer soruların alabileceği puan 0.928 (Ztk+Stk). Bu soruların başarıya oranı %40 olacağı için buradan gelen puan 0.3712 ediyor. Geriye 2 kritik zorunlu soruya ait 1.6988 puan kalıyor. Kritik zorunlu soruların katsayısı 0.8494 oluyor.
A102: 9.1. | B102: Belgelerin taşıyıcı ortamının değiştirilip değiştirilmemesi hususunda düzenli aralıklarla incelemelerin yapılması | C102: Seçmeli | D102: Teknolojik Koşullar
A103: 9.2. | B103: Teknolojik göç sonrası belgelerin erişilebilirliği ve okunabilirliğinin kontrol edilmesi | C103: Kritik Zorunlu | D103: Teknolojik Koşullar
A104: 9.3. | B104: Yeni taşıyıcı ortam ve göçün gerçekleştiği tarihin belge profiline eklenmesi | C104: Kritik Zorunlu | D104: Teknolojik Koşullar
A105: 9.4. | B105: Risk analizinin yapılması | C105: Zorunlu | D105: Teknolojik Koşullar
A107: 10. | B107: Yedeklemelerle ilgili aşağıdakilerden hangileri geçerlidir? | D107: Teknolojik Koşullar | E107: Bu sorudan elde edilebilecek puan 3.355 (Ztk*4+Stk*3). Kritik zorunlu sorular çıkarıldığında diğer soruların alabileceği puan 2.213 (Ztk*2+Stk*3). Bu soruların başarıya oranı %40 olacağı için buradan gelen puan 0.8852 ediyor. Geriye 2 kritik zorunlu soruya ait 2.4698 puan kalıyor. Kritik zorunlu soruların katsayısı 1.2349 oluyor.
A108: 10.1. | B108: Yedeklemelere sadece yetkili personelin erişmesi | C108: Seçmeli | D108: Teknolojik Koşullar
A109: 10.2. | B109: Belgeler, belge profilleri ve üstverilerin düzenli aralıklarla yedeklenmesi | C109: Kritik Zorunlu | D109: Teknolojik Koşullar
A110: 10.3. | B110: Son yedeklemeden bu yana belgelere yapılan açıklamalar ve işlemlerin denetim günlüklerine kaydedilmesi | C110: Zorunlu | D110: Teknolojik Koşullar
A111: 10.4. | B111: Sistem yedeklemesinin yapılması | C111: Kritik Zorunlu | D111: Teknolojik Koşullar
A112: 10.5. | B112: Son üç yedeklemenin kopyalarının muhafaza edilmesi | C112: Seçmeli | D112: Teknolojik Koşullar
A113: 10.6. | B113: Denetim günlüklerine yedeklemenin başarılı gerçekleşip gerçekleşmediğinin eklenmesi | C113: Seçmeli | D113: Teknolojik Koşullar
A114: 10.7. | B114: Herhangi bir sorun karşısında bir önceki yedeklemenin devreye alınabilmesi | C114: Zorunlu | D114: Teknolojik Koşullar
A116: 11. | B116: Yedekleme ile ilgili aşağıdaki üstverilerden hangileri sisteminizde mevcuttur? | D116: Teknolojik Koşullar | E116: Bu sorudan elde edilebilecek puan 2.07 (Ztk*3+Stk). Kritik zorunlu soru çıkarıldığında diğer soruların alabileceği puan 1.499 (Ztk*2+Stk). Bu soruların başarıya oranı %40 olacağı için buradan gelen puan 0.5996. Geriye 1 kritik zorunlu soruya ait 1.4704 puan kalıyor. Kritik zorunlu soruların katsayısı 1.4704 oluyor.
A117: 11.1. | B117: Yedeklemenin tarihi ve zamanı | C117: Zorunlu | D117: Teknolojik Koşullar
A118: 11.2. | B118: Yedeklemeyi onaylayan | C118: Kritik Zorunlu | D118: Teknolojik Koşullar
A119: 11.3. | B119: Yedeklemenin konumu | C119: Seçmeli | D119: Teknolojik Koşullar
A120: 11.4. | B120: Yedekleme referans numarası | C120: Zorunlu | D120: Teknolojik Koşullar
A122: 12. | B122: Arşive devredilecek belgelerle ilgili mevcut üstverilerin dışında onların delil değerini ilgilendirecek aşağıdaki üstverilerden hangilerinin kullanılması düşünülmektedir? | D122: Arşivsel Bağ | E122: Bu sorudan elde edilebilecek puan 1.571 (Zbk*3+Sbk*2). Kritik zorunlu sorular çıkarıldığında diğer soruların alabileceği puan 0.893 (Zbk+Sbk*2). Bu soruların başarıya oranı %40 olacağı için buradan gelen puan 0.3572. Geriye 2 kritik zorunlu soruya ait 1.2138 puan kalıyor. Kritik zorunlu soruların katsayısı 0.6069 oluyor.
A123: 12.1. | B123: Devir zamanı | C123: Zorunlu | D123: Arşivsel Bağ | E123: 0
A124: 12.2. | B124: Belgelerin özgünlüğünü onaylayan teknikler (iz değeri kontrolü, e-imza sertifikalarının kontrolü, belgedeki kişi ile imzanın uyumu vb.) | C124: Kritik Zorunlu | D124: Arşivsel Bağ | E124: 0
A125: 12.3. | B125: Belgelerin özgünlüğünü onaylayan kişiler | C125: Kritik Zorunlu | D125: Arşivsel Bağ | E125: 0
A126: 12.4. | B126: Özgünlük değerlendirme raporu | C126: Seçmeli | D126: Arşivsel Bağ | E126: 0
A127: 12.5. | B127: Belgenin tanımlama bilgileri | C127: Seçmeli | D127: Arşivsel Bağ | E127: 0
A129: 13. | B129: Belgelerin özgünlüğünün tasdik edilmesi için aşağıdaki adımlardan hangileri geçerlidir? | D129: Arşivsel Bağ | E129: Bu sorudan elde edilebilecek puan 2.865 (Zbk*6+Sbk*3). Kritik zorunlu sorular çıkarıldığında diğer soruların alabileceği puan 2.187 (Zbk*4+Sbk*3). Bu soruların başarıya oranı %40 olacağı için buradan gelen puan 0.8748. Geriye 2 kritik zorunlu soruya ait 1.9902 puan kalıyor. Kritik zorunlu soruların katsayısı 0.9951 oluyor.
A130: 13.1. | B130: Belgenin, doğduğu fonksiyonun işlemlerinden en az birini gösterecek nitelikte olması | C130: Zorunlu | D130: Arşivsel Bağ
A131: 13.2. | B131: Türüne göre belgenin, sahip olması gereken kimlik tespiti araçlarını (tasdik yöntemi) barındırması | C131: Zorunlu | D131: Arşivsel Bağ
A132: 13.3. | B132: Belge arşive devredildiğinde, onun özniteliklerinin korunduğunu gösteren bir elektronik kurumsal mührün kullanılması | C132: Seçmeli | D132: Arşivsel Bağ
A133: 13.4. | B133: Belgenin tanımlama bilgilerinin incelenmesi | C133: Seçmeli | D133: Arşivsel Bağ
A134: 13.5. | B134: Dosya sistemindeki (file system) belge ile veri tabanında tutulan kayıtların ilişkilendirilmesi ve bu ilişkinin kopmaması için gerekli tedbirlerin alınması | C134: Zorunlu | D134: Arşivsel Bağ
A135: 13.6. | B135: Belge üzerindeki imzaların geçerliliği bitmeden EYP'nin zaman damgası ile damgalanması | C135: Zorunlu | D135: Arşivsel Bağ
A136: 13.7. | B136: Belgedeki imzaların arşiv imzası tipine dönüştürülmesi | C136: Kritik Zorunlu | D136: Arşivsel Bağ
A137: 13.8. | B137: Bütünlük analizinin düzenli kontrol edilmesi | C137: Kritik Zorunlu | D137: Arşivsel Bağ
A138: 13.9. | B138: Bütünlük bozulması riskine karşı risk değerlendirmesi ve riskten kaçınma raporunun hazırlanması | C138: Seçmeli | D138: Arşivsel Bağ
A140: 14. | B140: Belgelerin tasfiyesine ilişkin aşağıdaki adımlardan hangileri geçerlidir? | D140: Arşivsel Bağ | E140: Bu sorudan elde edilebilecek puan 2.373 (Zbk*7). Kritik zorunlu sorular çıkarıldığında diğer soruların alabileceği puan 1.356 (Zbk*4). Bu soruların başarıya oranı %40 olacağı için buradan gelen puan 0.5424. Geriye 3 kritik zorunlu soruya ait 1.8306 puan kalıyor. Kritik zorunlu soruların katsayısı 0.6102 oluyor.
A141: 14.1. | B141: Belgeler oluşmadan önce belgelere bir saklama süresi tayin edilmesi | C141: Zorunlu | D141: Arşivsel Bağ
A142: 14.2. | B142: Belgelerin saklama süreleri tamamlandıktan sonra ait oldukları dosyalarla birlikte arşive devredilmesi | C142: Kritik Zorunlu | D142: Arşivsel Bağ
A143: 14.3. | B143: Saklama süresi aşımının gerekçesi | C143: Zorunlu | D143: Arşivsel Bağ
A144: 14.4. | B144: Belgenin, belge profili ve üstverileriyle birlikte arşive devredilmesi | C144: Kritik Zorunlu | D144: Arşivsel Bağ
A145: 14.5. | B145: Belge tasfiye edilirken belge profili ve üstverisinin de tasfiye edilmesi | C145: Zorunlu | D145: Arşivsel Bağ
A146: 14.6. | B146: Belge, ister arşive devredilsin ister imha edilsin referans numarasının sistemde tutulması ve belgenin akıbeti hakkında bir bilgi notunun bulunması | C146: Kritik Zorunlu | D146: Arşivsel Bağ
A147: 14.7. | B147: Arşive devredilen belgelerin dosyalarıyla birlikte belge yönetim sisteminden kaldırılıp arşiv yönetim sistemine aktarılması | C147: Zorunlu | D147: Arşivsel Bağ
A149: 15. | B149: Belge yönetimi kapasitesinin geliştirilmesi için aşağıdakilerden hangileri geçerlidir? | D149: Kurumsal Politika ve Prosedürler | E149: Bu sorudan elde edilebilecek puan 3.769 (Zkk*2+Skk*3). Kritik zorunlu soru çıkarıldığında diğer soruların alabileceği puan 2.717 (Zkk+Skk*3). Bu soruların başarıya oranı %40 olacağı için buradan gelen puan 1.0868. Geriye 1 kritik zorunlu soruya ait 2.6822 puan kalıyor. Kritik zorunlu sorunun katsayısı 2.6822 oluyor.
A150: 15.1. | B150: Kurumsal belge yönetimi politikasının oluşturulması | C150: Kritik Zorunlu | D150: Kurumsal Politika ve Prosedürler
A151: 15.2. | B151: Bilgi ve belge yönetimi mezunu kişilerin belge yönetimiyle ilgili birimde istihdam edilmesi | C151: Seçmeli | D151: Kurumsal Politika ve Prosedürler
A152: 15.3. | B152: Belge yönetimiyle ilgilenen personelin eğitim programının bulunması (eğitmen eğitimi) | C152: Seçmeli | D152: Kurumsal Politika ve Prosedürler
A153: 15.4. | B153: Kurum çalışanlarının belge yönetimi birimi tarafından eğitilmesi | C153: Seçmeli | D153: Kurumsal Politika ve Prosedürler
A154: 15.5. | B154: TSE 13298 Kurumsal sertifikasyon alınması yönünde girişimler yapılması | C154: Zorunlu | D154: Kurumsal Politika ve Prosedürler
A156: 16. | B156: Arşivlenen belgelerin tanımlanması için bir standardın kullanılması düşünülmekte midir? Lütfen belirtiniz. | D156: Arşivsel Bağ
A157: 16.1. | B157: Evet/Hayır | C157: Seçmeli | D157: Arşivsel Bağ
A159: 17. | B159: Elektronik belge yönetiminde belgenin delil değerini korumak için aşağıdaki teknolojilerden hangilerinin kullanılması düşünülmektedir? | D159: Teknolojik Koşullar
A160: 17.1. | B160: Blokzincir | C160: Seçmeli | D160: Teknolojik Koşullar
A161: 17.2. | B161: Yapay zekâ | C161: Seçmeli | D161: Teknolojik Koşullar
A162: 17.3. | B162: Derin öğrenme/Makine öğrenmesi | C162: Seçmeli | D162: Teknolojik Koşullar
A163: 17.4. | B163: Elektronik delil elde etme (Digital forensics-Öykünme, teknolojik göç) | C163: Seçmeli | D163: Teknolojik Koşullar
A165: 18. | B165: Yazılım ve donanımla ilgili aşağıdaki ifadelerden hangileri geçerlidir? | D165: Teknolojik Koşullar | E165: Bu sorudan elde edilebilecek puan 5.425 (Ztk*7+Stk*4). Kritik zorunlu sorular çıkarıldığında diğer soruların alabileceği puan 3.712 (Ztk*4+Stk*4). Bu soruların başarıya oranı %40 olacağı için buradan gelen puan 1.4848. Geriye 3 kritik zorunlu soruya ait 3.9402 puan kalıyor. Kritik zorunlu soruların katsayısı 1.3134 oluyor.
A166: 18.1. | B166: Yazılım algoritması ve kaynak kodlarının kurum tarafından saklanması | C166: Kritik Zorunlu | D166: Teknolojik Koşullar
A167: 18.2 | B167: Veri tabanının arşivlenebilir bir formatta yapılandırılması | C167: Seçmeli | D167: Teknolojik Koşullar
A168: 18.3 | B168: Belgelerin bir kez yazılabilir ortamlarda saklanması | C168: Seçmeli | D168: Teknolojik Koşullar
A169: 18.4. | B169: Belge bileşenlerinin de belgeyle birlikte bütüncül olarak korunması | C169: Zorunlu | D169: Teknolojik Koşullar
A170: 18.5. | B170: Yazılım değiştirildiğinde de belgelere erişilebilmesi | C170: Kritik Zorunlu | D170: Teknolojik Koşullar
A171: 18.6. | B171: Güncel belgelerle arşivlenen belgelerin saklanma konumları arasında bir ayrım yapılması | C171: Seçmeli | D171: Teknolojik Koşullar
A172: 18.7. | B172: Donanımların üreticilerin tavsiye ettiği kullanım ömrü dolduktan sonra kullanılmaması | C172: Seçmeli | D172: Teknolojik Koşullar
A173: 18.8. | B173: Belgelerin üretildiği araçlardaki donanım ve yazılım özelliklerinin kayıt altına alınması | C173: Zorunlu | D173: Teknolojik Koşullar
A174: 18.9. | B174: 27001 Sertifikası alınması yönünde girişimlerin yapılması | C174: Zorunlu | D174: Teknolojik Koşullar
A175: 18.10. | B175: Yazılımın TSE 13298 Sertifikasına uygun olması yönünde girişimlerin yapılması | C175: Zorunlu | D175: Teknolojik Koşullar
A176: 18.11. | B176: Log kayıtlarının zaman damgası ile damgalanması | C176: Kritik Zorunlu | D176: Teknolojik Koşullar
A178: 19. | B178: Üstveriler için aşağıdakilerden hangileri geçerlidir? | D178: Teknolojik Koşullar | E178: Bu sorudan elde edilebilecek puan 2.284 (Ztk*4). Kritik zorunlu soru çıkarıldığında diğer soruların alabileceği puan 1.713 (Ztk*3). Bu soruların başarıya oranı %40 olacağı için buradan gelen puan 0.6852. Geriye 1 kritik zorunlu soruya ait 3.9402 puan kalıyor. Kritik zorunlu sorunun katsayısı 1.5988 oluyor.
A179: 19.1. | B179: Üstverilerin belgeden ayrı olarak XML ya da JSON olarak saklanması | C179: Zorunlu | D179: Teknolojik Koşullar
A180: 19.2. | B180: Üstveriler, belge ile birlikte hareket etmektedir. (Belgenin konumu değiştirildiğinde üstverilerin de beraberinde taşınması) | C180: Kritik Zorunlu | D180: Teknolojik Koşullar
A181: 19.3. | B181: Yöneticilerin yaptığı değişiklikler sonucunda yeni bir üstveri kaydının oluşması ve daha önceki üstveri kaydının muhafaza edilmesi | C181: Zorunlu | D181: Teknolojik Koşullar
A182: 19.4. | B182: Üstveri dosyasının ait olduğu belgenin referans numarasına sahip olması | C182: Zorunlu | D182: Teknolojik Koşullar
A184: 20. | B184: Denetim günlükleri için aşağıdakilerden hangileri geçerlidir? | D184: Teknolojik Koşullar
A185: 20.1. | B185: Tüm belgeler için denetim günlüklerinin oluşturulması | C185: Seçmeli | D185: Teknolojik Koşullar
A186: 20.2. | B186: Denetim günlükleri oluşturulmasına karar verilen belgeler için, bunların otomatik olarak oluşması | C186: Zorunlu | D186: Teknolojik Koşullar
A187: 20.3. | B187: Denetim günlüklerinin yapılan işlemlerin tarih ve saatini içermesi | C187: Zorunlu | D187: Teknolojik Koşullar
A188: 20.4. | B188: Denetim günlüklerine erişim sırasında bir sorun yaşanıp yaşanmadığının düzenli aralıklarla otomatik olarak kontrol edilmesi | C188: Zorunlu | D188: Teknolojik Koşullar
A189: 20.5. | B189: Denetim günlüklerinin bir kere yazılması ve üzerinde hiç değişiklik yapılmaması | C189: Zorunlu | D189: Teknolojik Koşullar
A191: 21. | B191: Kurumda üretilen ve dışarıdan gelen belgelerin form özellikleri, formatı ve içeriğinin değiştirilmemesine yönelik aşağıdaki hangi yaklaşımları benimsiyorsunuz? | D191: Arşivsel Bağ | E191: Bu sorudan elde edebilecek puan 1.571 (Zbk*3+Sbk*2). Kritik zorunlu soru çıkarıldığında diğer soruların alabileceği puan 1.232 (Zbk*2+Sbk*2). Bu soruların başarıya oranı %40 olacağı için buradan gelen puan 0.4928. Geriye 1 kritik zorunlu soruya ait 1.0782 puan kalıyor. Kritik zorunlu sorunun katsayısı 1.0782 oluyor.
A192: 21.1. | B192: İz değeri kontrolü | C192: Zorunlu | D192: Arşivsel Bağ
A193: 21.2. | B193: Dosya tanımlayıcı kullanımı (JHOVE, DROID gibi) | C193: Kritik Zorunlu | D193: Arşivsel Bağ
A194: 21.3. | B194: Adli bilişim (Digital forensics) yöntemleri | C194: Seçmeli | D194: Arşivsel Bağ
A195: 21.4. | B195: Log kayıtlarının kontrolü | C195: Zorunlu | D195: Arşivsel Bağ
A196: 21.5. | B196: Döngüsel artıklık denetimi (CRC) | C196: Seçmeli | D196: Arşivsel Bağ
B198: Kullandığınız Kaçıncı EBYS?
B199: Sistemi kendiniz mi geliştirdiniz?
B200: Kaç yıldır EBYS kullanıyorsunuz?
B201: Yazılımın TSE uygunluk sertifikası var mı?
B202: KEP kullanıyor musunuz?
B203: UETS kullanıyor musunuz?
B204: EYP kullanıyor musunuz?

Sheet 1
B1: Sorular | C1: Kriter | D1: Ait Olduğu Hipotez | E1: Cevap | F1: Puan
A2: 1. | B2: Belge yönetim sistemine geçerken kurum aşağıdaki prosedürlerden hangilerini gerçekleştirmiştir? | D2: Kurumsal Politika ve Prosedürler
A3: 1.1. | B3: Kurumun e-belge yönetimi politikasını belirleme | C3: Kritik Zorunlu | D3: Kurumsal Politika ve Prosedürler | E3: Hayır | F3: =IF(E3="Evet",1.6971,0) -> 0
A4: 1.2. | B4: Kurumun e-arşiv yönetimi politikasını belirleme | C4: Kritik Zorunlu | D4: Kurumsal Politika ve Prosedürler | E4: Hayır | F4: =IF(E4="Evet",1.6971,0) -> 0
A5: 1.3. | B5: Fonksiyonlar ve iş süreçleri tanımlama ve belgelerle ilişkilendirme | C5: Kritik Zorunlu | D5: Kurumsal Politika ve Prosedürler | E5: Evet | F5: =IF(E5="Evet",1.6971,0) -> 1.6971
A6: 1.4. | B6: İş süreçlerine dair dokümantasyon oluşturma | C6: Seçmeli | D6: Kurumsal Politika ve Prosedürler | E6: Evet | F6: =IF(E6="Evet",0.222,0) -> 0.222
A7: 1.5. | B7: Form ve şablon oluşturma | C7: Kritik Zorunlu | D7: Kurumsal Politika ve Prosedürler | E7: Evet | F7: =IF(E7="Evet",1.6971,0) -> 1.6971
A8: 1.6. | B8: Belge türüne göre oluşturulan şablonlar için bir kontrol numarası verme | C8: Seçmeli | D8: Kurumsal Politika ve Prosedürler | E8: Hayır | F8: =IF(E8="Evet",0.222,0) -> 0
A9: 1.7. | B9: Spesifik üstveri şemaları çıkarma | C9: Zorunlu | D9: Kurumsal Politika ve Prosedürler | E9: Evet | F9: =IF(E9="Evet",0.4208,0) -> 0.4208
A10: 1.8. | B10: Belge profilindeki form özelliklerini (belgedeki kişiler, antet, format, teknolojik özellikler, belgeye işlem safhasında yapılan açıklamalar gibi) tanımlama | C10: Seçmeli | D10: Kurumsal Politika ve Prosedürler | E10: Evet | F10: =IF(E10="Evet",0.222,0) -> 0.222
A11: 1.9. | B11: Belgeler ve dosyalar için dosya tasnif planı ve saklama planı hazırlama | C11: Kritik Zorunlu | D11: Kurumsal Politika ve Prosedürler | E11: Evet | F11: =IF(E11="Evet",1.6971,0) -> 1.6971
A12: 1.10. | B12: Dosya planına uygun dosyalama sistemi geliştirme | C12: Zorunlu | D12: Kurumsal Politika ve Prosedürler | E12: Evet | F12: =IF(E12="Evet",0.4208,0) -> 0.4208
A13: 1.11. | B13: Kontrollü terminoloji oluşturma | C13: Seçmeli | D13: Kurumsal Politika ve Prosedürler | E13: Hayır | F13: =IF(E13="Evet",0.222,0) -> 0
A14: 1.12. | B14: Felaket kurtarma planı ve yedekleme planı oluşturma | C14: Zorunlu | D14: Kurumsal Politika ve Prosedürler | E14: Evet | F14: =IF(E14="Evet",0.4208,0) -> 0.4208
A16: 2. | B16: Belgenin aşağıdaki form özelliklerinden hangilerini üstverilerde kullanıyorsunuz? | D16: Arşivsel Bağ
A17: 2.1. | B17: Sorumlu (Belgeyi üreten kurum) | C17: Zorunlu | D17: Arşivsel Bağ | E17: Evet | F17: =IF(E17="Evet",0.339,0) -> 0.339
A18: 2.2. | B18: Düzenleyen (Belgedeki irade beyanının sahibi) | C18: Zorunlu | D18: Arşivsel Bağ | E18: Evet | F18: =IF(E18="Evet",0.339,0) -> 0.339
A19: 2.3. | B19: Muhatap/Alıcı | C19: Zorunlu | D19: Arşivsel Bağ | E19: Evet | F19: 0.339
A20: 2.4. | B20: Konu | C20: Zorunlu | D20: Arşivsel Bağ | E20: Evet | F20: 0.339
A21: 2.5. | B21: Format | C21: Zorunlu | D21: Arşivsel Bağ | E21: Hayır | F21: 0
A22: 2.6. | B22: Üretim tarihi | C22: Zorunlu | D22: Arşivsel Bağ | E22: Evet | F22: 0.339
A23: 2.7. | B23: Gönderim/Alma tarihi (KEP) | C23: Zorunlu | D23: Arşivsel Bağ | E23: Evet | F23: 0.339
A24: 2.8. | B24: Belge tarihi (Son imzalayıcının imza attığı tarih) | C24: Zorunlu | D24: Arşivsel Bağ | E24: Evet | F24: 0.339
A26: 3. | B26: Belge profilinde aşağıdaki üstverilerden hangileri bulunmaktadır? | D26: Arşivsel Bağ
A27: 3.1. | B27: Belgenin dosyasına kaldırıldığı zaman | C27: Zorunlu | D27: Arşivsel Bağ | E27: Evet | F27: =IF(E27="Evet",0.1356,0) -> 0.1356
A28: 3.2. | B28: Belgedeki işlemden sorumlu kişi ve birim | C28: Zorunlu | D28: Arşivsel Bağ | E28: Evet | F28: =IF(E28="Evet",0.1356,0) -> 0.1356
A29: 3.3. | B29: Ait olduğu işlem-dosya-seri-birim | C29: Kritik Zorunlu | D29: Arşivsel Bağ | E29: Hayır | F29: =IF(E29="Evet",1.6826,0) -> 0
A30: 3.4. | B30: Dosya kodu | C30: Zorunlu | D30: Arşivsel Bağ | E30: Evet | F30: =IF(E30="Evet",0.1356,0) -> 0.1356
A31: 3.5. | B31: Belge referans numarası | C31: Zorunlu | D31: Arşivsel Bağ | E31: Evet | F31: =IF(E31="Evet",0.1356,0) -> 0.1356
A32: 3.6. | B32: Belgeye erişmek için asgari gereksinimler | C32: Zorunlu | D32: Arşivsel Bağ | E32: Hayır | F32: =IF(E32="Evet",0.1352,0) -> 0
A33: 3.7. | B33: Belgenin üretildiği EBYS yazılımı ve versiyon numarası | C33: Zorunlu | D33: Arşivsel Bağ | E33: Evet | F33: =IF(E33="Evet",0.1356,0) -> 0.1356
A34: 3.8. | B34: Belge yönetimi için kullanılacak algoritmalar (kullanılan EBYS yazılımı algoritmaları ve belgeyi tekrardan üretmek ya da şifreli belgeleri açabilmek için gerekli olan algoritmalar gibi) | C34: Kritik Zorunlu | D34: Arşivsel Bağ | E34: Hayır | F34: =IF(E34="Evet",1.6826,0) -> 0
A35: 3.9. | B35: Belge bileşenleri (Üstveri, belgenin ekleri, form elemanları, kontekst (bağlam), içerik, belgenin oluşumunu sağlayan veriler, iş akışları gibi) | C35: Zorunlu | D35: Arşivsel Bağ | E35: Evet | F35: =IF(E35="Evet",0.1356,0) -> 0.1356
A36: 3.10. | B36: E-imza ve zaman damgası | C36: Zorunlu | D36: Arşivsel Bağ | E36: Evet | F36: =IF(E36="Evet",0.1356,0) -> 0.1356
A37: 3.11. | B37: Saklama süresi | C37: Zorunlu | D37: Arşivsel Bağ | E37: Hayır | F37: =IF(E37="Evet",0.1356,0) -> 0
A38: 3.12. | B38: Belgeye erişim profilleri | C38: Zorunlu | D38: Arşivsel Bağ | E38: Evet | F38: =IF(E38="Evet",0.1356,0) -> 0.1356
A39: 3.13. | B39: Belgelerin lokasyonu (Directory) | C39: Seçmeli | D39: Arşivsel Bağ | E39: Hayır | F39: =IF(E39="Evet",0.1108,0) -> 0
A40: 3.14. | B40: Belgeye yapılan açıklama notları (İşlem safhasında (ivedilik durumu, iletim zamanı, tarih, yer, ekler gibi), kullanım safhasında (belgenin alındığı tarih, belgeyi kullanan birim, gerçekleştirilen işlem, yapılan muamele gibi ) ve yönetim safhasında (belgenin arşive devir tarihi, versiyon numarası, belge referans numarası, dosya kodu, belgeyi düzenleyen ve oluşturan kişi/birim gibi)) | C40: Zorunlu | D40: Arşivsel Bağ | E40: Evet | F40: =IF(E40="Evet",0.1356,0) -> 0.1356
A41: 3.15. | B41: Teknolojik göç ettirme ile ilgili yapılan işlemler | C41: Kritik Zorunlu | D41: Arşivsel Bağ | E41: Hayır | F41: =IF(E41="Evet",1.6826,0) -> 0
A42: 3.16. | B42: Konu | C42: Zorunlu | D42: Arşivsel Bağ | E42: Evet | F42: =IF(E42="Evet",0.1356,0) -> 0.1356
A43: 3.17. | B43: Belgenin sayısı | C43: Zorunlu | D43: Arşivsel Bağ | E43: Evet | F43: 0.1356
A44: 3.18. | B44: Belgenin gizlilik derecesi (Tasnif dışı, hizmete özel, özel, gizli, çok gizli, kişiye özel gibi) | C44: Zorunlu | D44: Arşivsel Bağ | E44: Evet | F44: 0.1356
A45: 3.19. | B45: Dağıtım listesi | C45: Zorunlu | D45: Arşivsel Bağ | E45: Evet | F45: 0.1356
A46: 3.20. | B46: İlgilerin referans numarası | C46: Zorunlu | D46: Arşivsel Bağ | E46: Hayır | F46: 0
A47: 3.21. | B47: Belgenin özet değeri | C47: Zorunlu | D47: Arşivsel Bağ | E47: Hayır | F47: 0
A48: 3.22. | B48: Şifreleme bilgisi | C48: Zorunlu | D48: Arşivsel Bağ | E48: Hayır | F48: 0
A49: 3.23. | B49: Eklerin referans numaraları | C49: Zorunlu | D49: Arşivsel Bağ | E49: Hayır | F49: 0
A51: 4. | B51: Belge bileşenleriyle ilgili aşağıdaki üstverilerden hangileri kurumunuzda kullanılmaktadır? | D51: Arşivsel Bağ
A52: 4.1. | B52: Referans numarası | C52: Zorunlu | D52: Arşivsel Bağ | E52: Evet | F52: =IF(E52="Evet",0.339,0) -> 0.339
A53: 4.2. | B53: Format | C53: Zorunlu | D53: Arşivsel Bağ | E53: Evet | F53: =IF(E53="Evet",0.339,0) -> 0.339
A54: 4.3. | B54: Bileşeni üreten yazılım ve o yazılımda kullanılan algoritmalar | C54: Seçmeli | D54: Arşivsel Bağ | E54: Hayır | F54: =IF(E54="Evet",0.277,0) -> 0
A55: 4.4. | B55: Bileşene erişmek için asgari gereksinimler | C55: Zorunlu | D55: Arşivsel Bağ | E55: Hayır | F55: =IF(E55="Evet",0.339,0) -> 0
A57: 5. | B57: Log kayıtlarında aşağıdaki bilgilerden hangileri bulunmaktadır? | D57: Teknolojik Koşullar
A58: 5.1. | B58: Dokümanın belgeye dönüşme tarih ve zamanı | C58: Zorunlu | D58: Teknolojik Koşullar | E58: Evet | F58: =IF(E58="Evet",0.571,0) -> 0.571
A59: 5.2. | B59: Belgeye erişim istekleri | C59: Zorunlu | D59: Teknolojik Koşullar | E59: Evet | F59: =IF(E59="Evet",0.571,0) -> 0.571
A60: 5.3. | B60: Belgenin iletim geçmişi | C60: Zorunlu | D60: Teknolojik Koşullar | E60: Evet | F60: 0.571
A61: 5.4. | B61: Belgeye yapılan açıklamalar | C61: Zorunlu | D61: Teknolojik Koşullar | E61: Evet | F61: 0.571
A62: 5.5. | B62: Belgede yapılan işlemler ve bu işlemleri yapan kullanıcılar | C62: Zorunlu | D62: Teknolojik Koşullar | E62: Evet | F62: 0.571
A63: 5.6. | B63: Üstverilerde yapılan değişiklikler | C63: Zorunlu | D63: Teknolojik Koşullar | E63: Evet | F63: 0.571
A64: 5.7. | B64: Saklama planı ve saklama sürelerinde yapılan değişiklikler | C64: Zorunlu | D64: Teknolojik Koşullar | E64: Evet | F64: 0.571
A65: 5.8. | B65: Belgede yaşanan teknolojik değişimler | C65: Zorunlu | D65: Teknolojik Koşullar | E65: Hayır | F65: 0
A66: 5.9. | B66: Sistem arıza ve bakımları | C66: Zorunlu | D66: Teknolojik Koşullar | E66: Evet | F66: 0.571
A67: 5.10. | B67: Paraf bilgileri ve paraflayanın yaptığı işlemler | C67: Zorunlu | D67: Teknolojik Koşullar | E67: Evet | F67: 0.571
A69: 6. | B69: Dosyalama pratikleriyle ilgili aşağıdakilerden hangileri kurumunuz için geçerlidir? | D69: Arşivsel Bağ
A70: 6.1. | B70: Belgelerin hangi işlem, dosya, seri ve birime ait olduğunu seçme | C70: Kritik Zorunlu | D70: Arşivsel Bağ | E70: Hayır | F70: =IF(E70="Evet",1.1427,0) -> 0
A71: 6.2. | B71: Dosya türü ayrımı yapılması (Konu, Vaka, Gölge dosya, Vaka hazırlık dosyası, melez/hibrit dosya gibi) | C71: Kritik Zorunlu | D71: Arşivsel Bağ | E71: Evet | F71: =IF(E71="Evet",1.1427,0) -> 1.1427
A72: 6.3. | B72: Konu dosyalarının periyodik olarak kapanması | C72: Seçmeli | D72: Arşivsel Bağ | E72: Evet | F72: =IF(E72="Evet",0.1108,0) -> 0.1108
A73: 6.4. | B73: Vaka dosyasına giren bir belgenin aynı zamanda bir konu dosyasıyla da ilişkiliyse çoğaltılmadan çapraz referans yapılması | C73: Seçmeli | D73: Arşivsel Bağ | E73: Evet | F73: =IF(E73="Evet",0.1108,0) -> 0.1108
A74: 6.5. | B74: Belgeler ve dosyalar için dosya konu kodunun yanı sıra gerektiğinde özel kodların kullanılması | C74: Seçmeli | D74: Arşivsel Bağ | E74: Evet | F74: =IF(E74="Evet",0.1108,0) -> 0.1108
A75: 6.6 | B75: Belgeye, birim belge yöneticisi tarafından da dosya kodu verilmesi | C75: Seçmeli | D75: Arşivsel Bağ | E75: Evet | F75: =IF(E75="Evet",0.1108,0) -> 0.1108
A76: 6.7. | B76: Birim belge yöneticisinin belgeyi ait olduğunu düşündüğü dosyaya gönderebilmesi | C76: Seçmeli | D76: Arşivsel Bağ | E76: Evet | F76: =IF(E76="Evet",0.1108,0) -> 0.1108
A77: 6.8. | B77: Dosyaların üstverilerinde ait olduğu seri ve birimin belirtilmesi | C77: Zorunlu | D77: Arşivsel Bağ | E77: Evet | F77: =IF(E77="Evet",0.1356,0) -> 0.1356
A78: 6.9. | B78: Dosyaların, ait oldukları seriden farklı bir seriye taşınabilmesi | C78: Zorunlu | D78: Arşivsel Bağ | E78: Evet | F78: =IF(E78="Evet",0.1356,0) -> 0.1356
A79: 6.10. | B79: Sistemde aynı dosyanın parçası olup kâğıt ortamında saklanan belgelerin yerinin belirtilmesi | C79: Zorunlu | D79: Arşivsel Bağ | E79: Evet | F79: =IF(E79="Evet",0.1356,0) -> 0.1356
A80: 6.11. | B80: Belgenin ve dosyanın dosya kodu değişmiş ise eski ve yeninin birlikte gösterilmesi | C80: Seçmeli | D80: Arşivsel Bağ | E80: Evet | F80: =IF(E80="Evet",0.1108,0) -> 0.1108
A82: 7. | B82: Belge yönetimiyle ilgili kurumsal prosedürler aşağıdakilerden hangilerini içermektedir? | D82: Kurumsal Politika ve Prosedürler
A83: 7.1. | B83: Belgenin üretilme kuralları | C83: Zorunlu | D83: Kurumsal Politika ve Prosedürler | E83: Evet | F83: =IF(E83="Evet",1.052,0) -> 1.052
A84: 7.2. | B84: Belgenin iletilme kuralları | C84: Zorunlu | D84: Kurumsal Politika ve Prosedürler | E84: Evet | F84: 1.052
A85: 7.3. | B85: Dışarıdan gelen belgelerin sisteme kaydedilme kuralları | C85: Zorunlu | D85: Kurumsal Politika ve Prosedürler | E85: Evet | F85: 1.052
A86: 7.4. | B86: Belgeyi dosyasına kaldırma kuralları | C86: Zorunlu | D86: Kurumsal Politika ve Prosedürler | E86: Evet | F86: 1.052
A87: 7.5. | B87: Belgenin tanımlanmasına ilişkin kurallar | C87: Zorunlu | D87: Kurumsal Politika ve Prosedürler | E87: Hayır | F87: 0
A88: 7.6. | B88: Belgeyi arşive devretme kuralları | C88: Zorunlu | D88: Kurumsal Politika ve Prosedürler | E88: Evet | F88: 1.052
A89: 7.7. | B89: Belgelerin teknolojik göçü ve bu göçün geçerliliğine yönelik tasdik prosedürleri | C89: Zorunlu | D89: Kurumsal Politika ve Prosedürler | E89: Hayır | F89: 0
A90: 7.8. | B90: Log kayıtları | C90: Zorunlu | D90: Kurumsal Politika ve Prosedürler | E90: Evet | F90: 1.052
A91: 7.9. | B91: Denetim günlükleri | C91: Seçmeli | D91: Kurumsal Politika ve Prosedürler | E91: Evet | F91: =IF(E91="Evet",0.555,0) -> 0.555
A92: 7.10. | B92: Donanımların çalışma şartları (sıcaklık ve nem gibi) | C92: Seçmeli | D92: Kurumsal Politika ve Prosedürler | E92: Evet | F92: =IF(E92="Evet",0.555,0) -> 0.555
A93: 7.11. | B93: Bilgi güvenliği | C93: Zorunlu | D93: Kurumsal Politika ve Prosedürler | E93: Evet | F93: =IF(E93="Evet",1.052,0) -> 1.052
A95: 8. | B95: Saklama süreli dosya planınız için aşağıdakilerden hangileri geçerlidir? | D95: Arşivsel Bağ
A96: 8.1. | B96: Fonksiyon analizi yapılarak belge hiyerarşisinin oluşturulması | C96: Kritik Zorunlu | D96: Arşivsel Bağ | E96: Evet | F96: =IF(E96="Evet",0.8748,0) -> 0.8748
A97: 8.2. | B97: Dosya ve seri kodlarının oluşturulması | C97: Zorunlu | D97: Arşivsel Bağ | E97: Evet | F97: =IF(E97="Evet",0.1356,0) -> 0.1356
A98: 8.3. | B98: Saklama süresi sonunda yapılacak tasfiye işlemlerinin kararlaştırılması | C98: Seçmeli | D98: Arşivsel Bağ | E98: Evet | F98: =IF(E98="Evet",0.1108,0) -> 0.1108
A99: 8.4. | B99: Standart Dosya Planının, herhangi bir kod ekleme/çıkarması yapılarak kullanılması | C99: Seçmeli | D99: Arşivsel Bağ | E99: Evet | F99: =IF(E99="Evet",0.1108,0) -> 0.1108
A101: 9. | B101: Teknolojik göçle ilgili aşağıdakilerden hangileri geçerlidir? | D101: Teknolojik Koşullar
A102: 9.1. | B102: Belgelerin taşıyıcı ortamının değiştirilip değiştirilmemesi hususunda düzenli aralıklarla incelemelerin yapılması | C102: Seçmeli | D102: Teknolojik Koşullar | E102: Hayır | F102: =IF(E102="Evet",0.1428,0) -> 0
A103: 9.2. | B103: Teknolojik göç sonrası belgelerin erişilebilirliği ve okunabilirliğinin kontrol edilmesi | C103: Kritik Zorunlu | D103: Teknolojik Koşullar | E103: Hayır | F103: =IF(E103="Evet",0.8494,0) -> 0
A104: 9.3. | B104: Yeni taşıyıcı ortam ve göçün gerçekleştiği tarihin belge profiline eklenmesi | C104: Kritik Zorunlu | D104: Teknolojik Koşullar | E104: Hayır | F104: =IF(E104="Evet",0.8494,0) -> 0
A105: 9.4. | B105: Risk analizinin yapılması | C105: Zorunlu | D105: Teknolojik Koşullar | E105: Hayır | F105: =IF(E105="Evet",0.2284,0) -> 0
A107: 10. | B107: Yedeklemelerle ilgili aşağıdakilerden hangileri geçerlidir? | D107: Teknolojik Koşullar
A108: 10.1. | B108: Yedeklemelere sadece yetkili personelin erişmesi | C108: Seçmeli | D108: Teknolojik Koşullar | E108: Evet | F108: pu
A109: 10.2. | B109: Belgeler, belge profilleri ve üstverilerin düzenli aralıklarla yedeklenmesi | C109: Kritik Zorunlu | D109: Teknolojik Koşullar | E109: Evet | F109: =IF(E109="Evet",1.2349,0) -> 1.2349
A110: 10.3. | B110: Son yedeklemeden bu yana belgelere yapılan açıklamalar ve işlemlerin denetim günlüklerine kaydedilmesi | C110: Zorunlu | D110: Teknolojik Koşullar | E110: Evet | F110: =IF(E110="Evet",0.2284,0) -> 0.2284
A111: 10.4. | B111: Sistem yedeklemesinin yapılması | C111: Kritik Zorunlu | D111: Teknolojik Koşullar | E111: Evet | F111: =IF(E111="Evet",1.2349,0) -> 1.2349
A112: 10.5. | B112: Son üç yedeklemenin kopyalarının muhafaza edilmesi | C112: Seçmeli | D112: Teknolojik Koşullar | E112: Evet | F112: =IF(E112="Evet",0.1428,0) -> 0.1428
A113: 10.6. | B113: Denetim günlüklerine yedeklemenin başarılı gerçekleşip gerçekleşmediğinin eklenmesi | C113: Seçmeli | D113: Teknolojik Koşullar | E113: Evet | F113: =IF(E113="Evet",0.1428,0) -> 0.1428
A114: 10.7. | B114: Herhangi bir sorun karşısında bir önceki yedeklemenin devreye alınabilmesi | C114: Zorunlu | D114: Teknolojik Koşullar | E114: Evet | F114: =IF(E114="Evet",0.2284,0) -> 0.2284
A116: 11. | B116: Yedekleme ile ilgili aşağıdaki üstverilerden hangileri sisteminizde mevcuttur? | D116: Teknolojik Koşullar
A117: 11.1. | B117: Yedeklemenin tarihi ve zamanı | C117: Zorunlu | D117: Teknolojik Koşullar | E117: Evet | F117: =IF(E117="Evet",0.2284,0) -> 0.2284
A118: 11.2. | B118: Yedeklemeyi onaylayan | C118: Kritik Zorunlu | D118: Teknolojik Koşullar | E118: Evet | F118: =IF(E118="Evet",1.4704,0) -> 1.4704
A119: 11.3. | B119: Yedeklemenin konumu | C119: Seçmeli | D119: Teknolojik Koşullar | E119: Evet | F119: =IF(E119="Evet",0.1428,0) -> 0.1428
A120: 11.4. | B120: Yedekleme referans numarası | C120: Zorunlu | D120: Teknolojik Koşullar | E120: Evet | F120: =IF(E120="Evet",0.2284,0) -> 0.2284
A122: 12. | B122: Arşive devredilecek belgelerle ilgili mevcut üstverilerin dışında onların delil değerini ilgilendirecek aşağıdaki üstverilerden hangilerinin kullanılması düşünülmektedir? | D122: Arşivsel Bağ
A123: 12.1. | B123: Devir zamanı | C123: Zorunlu | D123: Arşivsel Bağ | E123: Hayır | F123: =IF(E123="Evet",0.1356,0) -> 0
A124: 12.2. | B124: Belgelerin özgünlüğünü onaylayan teknikler (iz değeri kontrolü, e-imza sertifikalarının kontrolü, belgedeki kişi ile imzanın uyumu vb.) | C124: Kritik Zorunlu | D124: Arşivsel Bağ | E124: Hayır | F124: =IF(E124="Evet",0.6069,0) -> 0
A125: 12.3. | B125: Belgelerin özgünlüğünü onaylayan kişiler | C125: Kritik Zorunlu | D125: Arşivsel Bağ | E125: Hayır | F125: =IF(E125="Evet",0.6069,0) -> 0
A126: 12.4. | B126: Özgünlük değerlendirme raporu | C126: Seçmeli | D126: Arşivsel Bağ | E126: Hayır | F126: =IF(E126="Evet",0.1108,0) -> 0
A127: 12.5. | B127: Belgenin tanımlama bilgileri | C127: Seçmeli | D127: Arşivsel Bağ | E127: Hayır | F127: =IF(E127="Evet",0.1108,0) -> 0
A129: 13. | B129: Belgelerin özgünlüğünün tasdik edilmesi için aşağıdaki adımlardan hangileri geçerlidir? | D129: Arşivsel Bağ
A130: 13.1. | B130: Belgenin, doğduğu fonksiyonun işlemlerinden en az birini gösterecek nitelikte olması | C130: Zorunlu | D130: Arşivsel Bağ | E130: Hayır | F130: =IF(E130="Evet",0.1356,0) -> 0
A131: 13.2. | B131: Türüne göre belgenin, sahip olması gereken kimlik tespiti araçlarını (tasdik yöntemi) barındırması | C131: Zorunlu | D131: Arşivsel Bağ | E131: Hayır | F131: =IF(E131="Evet",0.1356,0) -> 0
A132: 13.3. | B132: Belge arşive devredildiğinde, onun özniteliklerinin korunduğunu gösteren bir elektronik kurumsal mührün kullanılması | C132: Seçmeli | D132: Arşivsel Bağ | E132: Hayır | F132: =IF(E132="Evet",0.1108,0) -> 0
A133: 13.4. | B133: Belgenin tanımlama bilgilerinin incelenmesi | C133: Seçmeli | D133: Arşivsel Bağ | E133: Hayır | F133: =IF(E133="Evet",0.1108,0) -> 0
A134: 13.5. | B134: Dosya sistemindeki (file system) belge ile veri tabanında tutulan kayıtların ilişkilendirilmesi ve bu ilişkinin kopmaması için gerekli tedbirlerin alınması | C134: Zorunlu | D134: Arşivsel Bağ | E134: Evet | F134: =IF(E134="Evet",0.1356,0) -> 0.1356
A135: 13.6. | B135: Belge üzerindeki imzaların geçerliliği bitmeden EYP'nin zaman damgası ile damgalanması | C135: Zorunlu | D135: Arşivsel Bağ | E135: Evet | F135: =IF(E135="Evet",0.1356,0) -> 0.1356
A136: 13.7. | B136: Belgedeki imzaların arşiv imzası tipine dönüştürülmesi | C136: Kritik Zorunlu | D136: Arşivsel Bağ | E136: Evet | F136: =IF(E136="Evet",0.9951,0) -> 0.9951
A137: 13.8. | B137: Bütünlük analizinin düzenli kontrol edilmesi | C137: Kritik Zorunlu | D137: Arşivsel Bağ | E137: Hayır | F137: =IF(E137="Evet",0.9951,0) -> 0
A138: 13.9. | B138: Bütünlük bozulması riskine karşı risk değerlendirmesi ve riskten kaçınma raporunun hazırlanması | C138: Seçmeli | D138: Arşivsel Bağ | E138: Hayır | F138: =IF(E138="Evet",0.1108,0) -> 0
A140: 14. | B140: Belgelerin tasfiyesine ilişkin aşağıdaki adımlardan hangileri geçerlidir? | D140: Arşivsel Bağ
A141: 14.1. | B141: Belgeler oluşmadan önce belgelere bir saklama süresi tayin edilmesi | C141: Zorunlu | D141: Arşivsel Bağ | E141: Evet | F141: =IF(E141="Evet",0.1356,0) -> 0.1356
A142: 14.2. | B142: Belgelerin saklama süreleri tamamlandıktan sonra ait oldukları dosyalarla birlikte arşive devredilmesi | C142: Kritik Zorunlu | D142: Arşivsel Bağ | E142: Hayır | F142: =IF(E142="Evet",0.6102,0) -> 0
A143: 14.3. | B143: Saklama süresi aşımının gerekçesi | C143: Zorunlu | D143: Arşivsel Bağ | E143: Evet | F143: =IF(E143="Evet",0.1356,0) -> 0.1356
A144: 14.4. | B144: Belgenin, belge profili ve üstverileriyle birlikte arşive devredilmesi | C144: Kritik Zorunlu | D144: Arşivsel Bağ | E144: Evet | F144: =IF(E144="Evet",0.6102,0) -> 0.6102
A145: 14.5. | B145: Belge tasfiye edilirken belge profili ve üstverisinin de tasfiye edilmesi | C145: Zorunlu | D145: Arşivsel Bağ | E145: Evet | F145: =IF(E145="Evet",0.1356,0) -> 0.1356
A146: 14.6. | B146: Belge, ister arşive devredilsin ister imha edilsin referans numarasının sistemde tutulması ve belgenin akıbeti hakkında bir bilgi notunun bulunması | C146: Kritik Zorunlu | D146: Arşivsel Bağ | E146: Evet | F146: =IF(E146="Evet",0.6102,0) -> 0.6102
A147: 14.7. | B147: Arşive devredilen belgelerin dosyalarıyla birlikte belge yönetim sisteminden kaldırılıp arşiv yönetim sistemine aktarılması | C147: Zorunlu | D147: Arşivsel Bağ | E147: Evet | F147: =IF(E147="Evet",0.1356,0) -> 0.1356
A149: 15. | B149: Belge yönetimi kapasitesinin geliştirilmesi için aşağıdakilerden hangileri geçerlidir? | D149: Kurumsal Politika ve Prosedürler
A150: 15.1. | B150: Kurumsal belge yönetimi politikasının oluşturulması | C150: Kritik Zorunlu | D150: Kurumsal Politika ve Prosedürler | E150: Evet | F150: =IF(E150="Evet",2.6822,0) -> 2.6822
A151: 15.2. | B151: Bilgi ve belge yönetimi mezunu kişilerin belge yönetimiyle ilgili birimde istihdam edilmesi | C151: Seçmeli | D151: Kurumsal Politika ve Prosedürler | E151: Evet | F151: =IF(E151="Evet",0.222,0) -> 0.222
A152: 15.3. | B152: Belge yönetimiyle ilgilenen personelin eğitim programının bulunması (eğitmen eğitimi) | C152: Seçmeli | D152: Kurumsal Politika ve Prosedürler | E152: Evet | F152: =IF(E152="Evet",0.222,0) -> 0.222
A153: 15.4. | B153: Kurum çalışanlarının belge yönetimi birimi tarafından eğitilmesi | C153: Seçmeli | D153: Kurumsal Politika ve Prosedürler | E153: Evet | F153: =IF(E153="Evet",0.222,0) -> 0.222
A154: 15.5. | B154: TSE 13298 Kurumsal sertifikasyon alınması yönünde girişimler yapılması | C154: Zorunlu | D154: Kurumsal Politika ve Prosedürler | E154: Hayır | F154: =IF(E154="Evet",0.4208,0) -> 0
A156: 16. | B156: Arşivlenen belgelerin tanımlanması için bir standardın kullanılması düşünülmekte midir? Lütfen belirtiniz. | D156: Arşivsel Bağ
A157: 16.1. | B157: Evet/Hayır | C157: Seçmeli | D157: Arşivsel Bağ | E157: Hayır | F157: =IF(E157="Evet",0.277,0) -> 0
A159: 17. | B159: Elektronik belge yönetiminde belgenin delil değerini korumak için aşağıdaki teknolojilerden hangilerinin kullanılması düşünülmektedir? | D159: Teknolojik Koşullar
A160: 17.1. | B160: Blokzincir | C160: Seçmeli | D160: Teknolojik Koşullar | E160: Hayır | F160: =IF(E160="Evet",0.357,0) -> 0
A161: 17.2. | B161: Yapay zekâ | C161: Seçmeli | D161: Teknolojik Koşullar | E161: Hayır | F161: =IF(E161="Evet",0.357,0) -> 0
A162: 17.3. | B162: Derin öğrenme/Makine öğrenmesi | C162: Seçmeli | D162: Teknolojik Koşullar | E162: Hayır | F162: 0
A163: 17.4. | B163: Elektronik delil elde etme (Digital forensics-Öykünme, teknolojik göç) | C163: Seçmeli | D163: Teknolojik Koşullar | E163: Hayır | F163: 0
A165: 18. | B165: Yazılım ve donanımla ilgili aşağıdaki ifadelerden hangileri geçerlidir? | D165: Teknolojik Koşullar
A166: 18.1. | B166: Yazılım algoritması ve kaynak kodlarının kurum tarafından saklanması | C166: Kritik Zorunlu | D166: Teknolojik Koşullar | E166: Hayır | F166: =IF(E166="Evet",1.3134,0) -> 0
A167: 18.2 | B167: Veri tabanının arşivlenebilir bir formatta yapılandırılması | C167: Seçmeli | D167: Teknolojik Koşullar | E167: Evet | F167: =IF(E167="Evet",0.1428,0) -> 0.1428
A168: 18.3 | B168: Belgelerin bir kez yazılabilir ortamlarda saklanması | C168: Seçmeli | D168: Teknolojik Koşullar | E168: Hayır | F168: =IF(E168="Evet",0.1428,0) -> 0
A169: 18.4. | B169: Belge bileşenlerinin de belgeyle birlikte bütüncül olarak korunması | C169: Zorunlu | D169: Teknolojik Koşullar | E169: Evet | F169: =IF(E169="Evet",0.2284,0) -> 0.2284
A170: 18.5. | B170: Yazılım değiştirildiğinde de belgelere erişilebilmesi | C170: Kritik Zorunlu | D170: Teknolojik Koşullar | E170: Evet | F170: =IF(E170="Evet",1.3134,0) -> 1.3134
A171: 18.6. | B171: Güncel belgelerle arşivlenen belgelerin saklanma konumları arasında bir ayrım yapılması | C171: Seçmeli | D171: Teknolojik Koşullar | E171: Hayır | F171: =IF(E171="Evet",0.1428,0) -> 0
A172: 18.7. | B172: Donanımların üreticilerin tavsiye ettiği kullanım ömrü dolduktan sonra kullanılmaması | C172: Seçmeli | D172: Teknolojik Koşullar | E172: Evet | F172: =IF(E172="Evet",0.1428,0) -> 0.1428
A173: 18.8. | B173: Belgelerin üretildiği araçlardaki donanım ve yazılım özelliklerinin kayıt altına alınması | C173: Zorunlu | D173: Teknolojik Koşullar | E173: Evet | F173: =IF(E173="Evet",0.2284,0) -> 0.2284
A174: 18.9. | B174: 27001 Sertifikası alınması yönünde girişimlerin yapılması | C174: Zorunlu | D174: Teknolojik Koşullar | E174: Hayır | F174: =IF(E174="Evet",0.2284,0) -> 0
A175: 18.10. | B175: Yazılımın TSE 13298 Sertifikasına uygun olması yönünde girişimlerin yapılması | C175: Zorunlu | D175: Teknolojik Koşullar | E175: Evet | F175: =IF(E175="Evet",0.2284,0) -> 0.2284
A176: 18.11. | B176: Log kayıtlarının zaman damgası ile damgalanması | C176: Kritik Zorunlu | D176: Teknolojik Koşullar | E176: Evet | F176: =IF(E176="Evet",1.3134,0) -> 1.3134
A178: 19. | B178: Üstveriler için aşağıdakilerden hangileri geçerlidir? | D178: Teknolojik Koşullar
A179: 19.1. | B179: Üstverilerin belgeden ayrı olarak XML ya da JSON olarak saklanması | C179: Zorunlu | D179: Teknolojik Koşullar | E179: Evet | F179: =IF(E179="Evet",0.2284,0) -> 0.2284
A180: 19.2. | B180: Üstveriler, belge ile birlikte hareket etmektedir. (Belgenin konumu değiştirildiğinde üstverilerin de beraberinde taşınması) | C180: Kritik Zorunlu | D180: Teknolojik Koşullar | E180: Evet | F180: =IF(E180="Evet",1.5988,0) -> 1.5988
A181: 19.3. | B181: Yöneticilerin yaptığı değişiklikler sonucunda yeni bir üstveri kaydının oluşması ve daha önceki üstveri kaydının muhafaza edilmesi | C181: Zorunlu | D181: Teknolojik Koşullar | E181: Evet | F181: =IF(E181="Evet",0.2284,0) -> 0.2284
A182: 19.4. | B182: Üstveri dosyasının ait olduğu belgenin referans numarasına sahip olması | C182: Zorunlu | D182: Teknolojik Koşullar | E182: Hayır | F182: =IF(E182="Evet",0.2284,0) -> 0
A184: 20. | B184: Denetim günlükleri için aşağıdakilerden hangileri geçerlidir? | D184: Teknolojik Koşullar
A185: 20.1. | B185: Tüm belgeler için denetim günlüklerinin oluşturulması | C185: Seçmeli | D185: Teknolojik Koşullar | E185: Evet | F185: =IF(E185="Evet",0.357,0) -> 0.357
A186: 20.2. | B186: Denetim günlükleri oluşturulmasına karar verilen belgeler için, bunların otomatik olarak oluşması | C186: Zorunlu | D186: Teknolojik Koşullar | E186: Evet | F186: =IF(E186="Evet",0.571,0) -> 0.571
A187: 20.3. | B187: Denetim günlüklerinin yapılan işlemlerin tarih ve saatini içermesi | C187: Zorunlu | D187: Teknolojik Koşullar | E187: Evet | F187: =IF(E187="Evet",0.571,0) -> 0.571
A188: 20.4. | B188: Denetim günlüklerine erişim sırasında bir sorun yaşanıp yaşanmadığının düzenli aralıklarla otomatik olarak kontrol edilmesi | C188: Zorunlu | D188: Teknolojik Koşullar | E188: Hayır | F188: =IF(E188="Evet",0.571,0) -> 0
A189: 20.5. | B189: Denetim günlüklerinin bir kere yazılması ve üzerinde hiç değişiklik yapılmaması | C189: Zorunlu | D189: Teknolojik Koşullar | E189: Evet | F189: =IF(E189="Evet",0.571,0) -> 0.571
A191: 21. | B191: Kurumda üretilen ve dışarıdan gelen belgelerin form özellikleri, formatı ve içeriğinin değiştirilmemesine yönelik aşağıdaki hangi yaklaşımları benimsiyorsunuz? | D191: Arşivsel Bağ
A192: 21.1. | B192: İz değeri kontrolü | C192: Zorunlu | D192: Arşivsel Bağ | E192: Evet | F192: =IF(E192="Evet",0.1356,0) -> 0.1356
A193: 21.2. | B193: Dosya tanımlayıcı kullanımı (JHOVE, DROID gibi) | C193: Kritik Zorunlu | D193: Arşivsel Bağ | E193: Hayır | F193: =IF(E193="Evet",1.0782,0) -> 0
A194: 21.3. | B194: Adli bilişim (Digital forensics) yöntemleri | C194: Seçmeli | D194: Arşivsel Bağ | E194: Hayır | F194: =IF(E194="Evet",0.1108,0) -> 0
A195: 21.4. | B195: Log kayıtlarının kontrolü | C195: Zorunlu | D195: Arşivsel Bağ | E195: Evet | F195: =IF(E195="Evet",0.1356,0) -> 0.1356
A196: 21.5. | B196: Döngüsel artıklık denetimi (CRC) | C196: Seçmeli | D196: Arşivsel Bağ | E196: Hayır | F196: =IF(E196="Evet",0.1108,0) -> 0
B198: Kullandığınız Kaçıncı EBYS? | E198: 2 | F198: =SUM(F1:F197) -> 48.3247
B199: Sistemi kendiniz mi geliştirdiniz? | E199: Hayır
B200: Kaç yıldır EBYS kullanıyorsunuz? | E200: 2016'dan beri
B201: Yazılımın TSE uygunluk sertifikası var mı? | E201: Var
B202: KEP kullanıyor musunuz? | E202: Var
B203: UETS kullanıyor musunuz? | E203: Var
B204: EYP kullanıyor musunuz? | E204: Var

Sheet 2
B1: Sorular | C1: Kriter | D1: Ait Olduğu Hipotez | E1: Cevap | F1: Puan
A2: 1. | B2: Belge yönetim sistemine geçerken kurum aşağıdaki prosedürlerden hangilerini gerçekleştirmiştir? | D2: Kurumsal Politika ve Prosedürler
A3: 1.1. | B3: Kurumun e-belge yönetimi politikasını belirleme | C3: Kritik Zorunlu | D3: Kurumsal Politika ve Prosedürler | E3: Evet | F3: =IF(E3="Evet",1.6971,0) -> 1.6971
A4: 1.2. | B4: Kurumun e-arşiv yönetimi politikasını belirleme | C4: Kritik Zorunlu | D4: Kurumsal Politika ve Prosedürler | E4: Hayır | F4: =IF(E4="Evet",0.16971,0) -> 0
A5: 1.3. | B5: Fonksiyonlar ve iş süreçleri tanımlama ve belgelerle ilişkilendirme | C5: Kritik Zorunlu | D5: Kurumsal Politika ve Prosedürler | E5: Hayır | F5: =IF(E5="Evet",1.6971,0) -> 0
A6: 1.4. | B6: İş süreçlerine dair dokümantasyon oluşturma | C6: Seçmeli | D6: Kurumsal Politika ve Prosedürler | E6: Hayır | F6: =IF(E6="Evet",0.222,0) -> 0
A7: 1.5. | B7: Form ve şablon oluşturma | C7: Kritik Zorunlu | D7: Kurumsal Politika ve Prosedürler | E7: Evet | F7: =IF(E7="Evet",1.6971,0) -> 1.6971
A8: 1.6. | B8: Belge türüne göre oluşturulan şablonlar için bir kontrol numarası verme | C8: Seçmeli | D8: Kurumsal Politika ve Prosedürler | E8: Evet | F8: =IF(E8="Evet",0.222,0) -> 0.222
A9: 1.7. | B9: Spesifik üstveri şemaları çıkarma | C9: Zorunlu | D9: Kurumsal Politika ve Prosedürler | E9: Hayır | F9: =IF(E9="Evet",0.4208,0) -> 0
A10: 1.8. | B10: Belge profilindeki form özelliklerini (belgedeki kişiler, antet, format, teknolojik özellikler, belgeye işlem safhasında yapılan açıklamalar gibi) tanımlama | C10: Seçmeli | D10: Kurumsal Politika ve Prosedürler | E10: Evet | F10: =IF(E10="Evet",0.222,0) -> 0.222
A11: 1.9. | B11: Belgeler ve dosyalar için dosya tasnif planı ve saklama planı hazırlama | C11: Kritik Zorunlu | D11: Kurumsal Politika ve Prosedürler | E11: Evet | F11: =IF(E11="Evet",1.6971,0) -> 1.6971
A12: 1.10. | B12: Dosya planına uygun dosyalama sistemi geliştirme | C12: Zorunlu | D12: Kurumsal Politika ve Prosedürler | E12: Hayır | F12: =IF(E12="Evet",0.4208,0) -> 0
A13: 1.11. | B13: Kontrollü terminoloji oluşturma | C13: Seçmeli | D13: Kurumsal Politika ve Prosedürler | E13: Hayır | F13: =IF(E13="Evet",0.222,0) -> 0
A14: 1.12. | B14: Felaket kurtarma planı ve yedekleme planı oluşturma | C14: Zorunlu | D14: Kurumsal Politika ve Prosedürler | E14: Evet | F14: =IF(E14="Evet",0.4208,0) -> 0.4208
A16: 2. | B16: Belgenin aşağıdaki form özelliklerinden hangilerini üstverilerde kullanıyorsunuz? | D16: Arşivsel Bağ
A17: 2.1. | B17: Sorumlu (Belgeyi üreten kurum) | C17: Zorunlu | D17: Arşivsel Bağ | E17: Evet | F17: =IF(E17="Evet",0.339,0) -> 0.339
A18: 2.2. | B18: Düzenleyen (Belgedeki irade beyanının sahibi) | C18: Zorunlu | D18: Arşivsel Bağ | E18: Evet | F18: =IF(E18="Evet",0.339,0) -> 0.339
A19: 2.3. | B19: Muhatap/Alıcı | C19: Zorunlu | D19: Arşivsel Bağ | E19: Evet | F19: 0.339
A20: 2.4. | B20: Konu | C20: Zorunlu | D20: Arşivsel Bağ | E20: Evet | F20: 0.339
A21: 2.5. | B21: Format | C21: Zorunlu | D21: Arşivsel Bağ | E21: Hayır | F21: 0
A22: 2.6. | B22: Üretim tarihi | C22: Zorunlu | D22: Arşivsel Bağ | E22: Evet | F22: 0.339
A23: 2.7. | B23: Gönderim/Alma tarihi (KEP) | C23: Zorunlu | D23: Arşivsel Bağ | E23: Evet | F23: 0.339
A24: 2.8. | B24: Belge tarihi (Son imzalayıcının imza attığı tarih) | C24: Zorunlu | D24: Arşivsel Bağ | E24: Evet | F24: 0.339
A26: 3. | B26: Belge profilinde aşağıdaki üstverilerden hangileri bulunmaktadır? | D26: Arşivsel Bağ
A27: 3.1. | B27: Belgenin dosyasına kaldırıldığı zaman | C27: Zorunlu | D27: Arşivsel Bağ | E27: Evet | F27: =IF(E27="Evet",0.1356,0) -> 0.1356
A28: 3.2. | B28: Belgedeki işlemden sorumlu kişi ve birim | C28: Zorunlu | D28: Arşivsel Bağ | E28: Evet | F28: =IF(E28="Evet",0.1356,0) -> 0.1356
A29: 3.3. | B29: Ait olduğu işlem-dosya-seri-birim | C29: Kritik Zorunlu | D29: Arşivsel Bağ | E29: Hayır | F29: =IF(E29="Evet",1.6826,0) -> 0
A30: 3.4. | B30: Dosya kodu | C30: Zorunlu | D30: Arşivsel Bağ | E30: Evet | F30: =IF(E30="Evet",0.1356,0) -> 0.1356
A31: 3.5. | B31: Belge referans numarası | C31: Zorunlu | D31: Arşivsel Bağ | E31: Evet | F31: =IF(E31="Evet",0.1356,0) -> 0.1356
A32: 3.6. | B32: Belgeye erişmek için asgari gereksinimler | C32: Zorunlu | D32: Arşivsel Bağ | E32: Hayır | F32: =IF(E32="Evet",0.1352,0) -> 0
A33: 3.7. | B33: Belgenin üretildiği EBYS yazılımı ve versiyon numarası | C33: Zorunlu | D33: Arşivsel Bağ | E33: Evet | F33: =IF(E33="Evet",0.1356,0) -> 0.1356
A34: 3.8. | B34: Belge yönetimi için kullanılacak algoritmalar (kullanılan EBYS yazılımı algoritmaları ve belgeyi tekrardan üretmek ya da şifreli belgeleri açabilmek için gerekli olan algoritmalar gibi) | C34: Kritik Zorunlu | D34: Arşivsel Bağ | E34: Hayır | F34: =IF(E34="Evet",1.6826,0) -> 0
A35: 3.9. | B35: Belge bileşenleri (Üstveri, belgenin ekleri, form elemanları, kontekst (bağlam), içerik, belgenin oluşumunu sağlayan veriler, iş akışları gibi) | C35: Zorunlu | D35: Arşivsel Bağ | E35: Evet | F35: =IF(E35="Evet",0.1356,0) -> 0.1356
A36: 3.10. | B36: E-imza ve zaman damgası | C36: Zorunlu | D36: Arşivsel Bağ | E36: Evet | F36: =IF(E36="Evet",0.1356,0) -> 0.1356
A37: 3.11. | B37: Saklama süresi | C37: Zorunlu | D37: Arşivsel Bağ | E37: Hayır | F37: =IF(E37="Evet",0.1356,0) -> 0
A38: 3.12. | B38: Belgeye erişim profilleri | C38: Zorunlu | D38: Arşivsel Bağ | E38: Evet | F38: =IF(E38="Evet",0.1356,0) -> 0.1356
A39: 3.13. | B39: Belgelerin lokasyonu (Directory) | C39: Seçmeli | D39: Arşivsel Bağ | E39: Hayır | F39: =IF(E39="Evet",0.1108,0) -> 0
A40: 3.14. | B40: Belgeye yapılan açıklama notları (İşlem safhasında (ivedilik durumu, iletim zamanı, tarih, yer, ekler gibi), kullanım safhasında (belgenin alındığı tarih, belgeyi kullanan birim, gerçekleştirilen işlem, yapılan muamele gibi ) ve yönetim safhasında (belgenin arşive devir tarihi, versiyon numarası, belge referans numarası, dosya kodu, belgeyi düzenleyen ve oluşturan kişi/birim gibi)) | C40: Zorunlu | D40: Arşivsel Bağ | E40: Evet | F40: =IF(E40="Evet",0.1356,0) -> 0.1356
A41: 3.15. | B41: Teknolojik göç ettirme ile ilgili yapılan işlemler | C41: Kritik Zorunlu | D41: Arşivsel Bağ | E41: Hayır | F41: =IF(E41="Evet",1.6826,0) -> 0
A42: 3.16. | B42: Konu | C42: Zorunlu | D42: Arşivsel Bağ | E42: Evet | F42: =IF(E42="Evet",0.1356,0) -> 0.1356
A43: 3.17. | B43: Belgenin sayısı | C43: Zorunlu | D43: Arşivsel Bağ | E43: Evet | F43: 0.1356
A44: 3.18. | B44: Belgenin gizlilik derecesi (Tasnif dışı, hizmete özel, özel, gizli, çok gizli, kişiye özel gibi) | C44: Zorunlu | D44: Arşivsel Bağ | E44: Evet | F44: 0.1356
A45: 3.19. | B45: Dağıtım listesi | C45: Zorunlu | D45: Arşivsel Bağ | E45: Evet | F45: 0.1356
A46: 3.20. | B46: İlgilerin referans numarası | C46: Zorunlu | D46: Arşivsel Bağ | E46: Hayır | F46: 0
A47: 3.21. | B47: Belgenin özet değeri | C47: Zorunlu | D47: Arşivsel Bağ | E47: Hayır | F47: 0
A48: 3.22. | B48: Şifreleme bilgisi | C48: Zorunlu | D48: Arşivsel Bağ | E48: Hayır | F48: 0
A49: 3.23. | B49: Eklerin referans numaraları | C49: Zorunlu | D49: Arşivsel Bağ | E49: Hayır | F49: 0
A51: 4. | B51: Belge bileşenleriyle ilgili aşağıdaki üstverilerden hangileri kurumunuzda kullanılmaktadır? | D51: Arşivsel Bağ
A52: 4.1. | B52: Referans numarası | C52: Zorunlu | D52: Arşivsel Bağ | E52: Evet | F52: =IF(E52="Evet",0.339,0) -> 0.339
A53: 4.2. | B53: Format | C53: Zorunlu | D53: Arşivsel Bağ | E53: Evet | F53: =IF(E53="Evet",0.339,0) -> 0.339
A54: 4.3. | B54: Bileşeni üreten yazılım ve o yazılımda kullanılan algoritmalar | C54: Seçmeli | D54: Arşivsel Bağ | E54: Hayır | F54: =IF(E54="Evet",0.277,0) -> 0
A55: 4.4. | B55: Bileşene erişmek için asgari gereksinimler | C55: Zorunlu | D55: Arşivsel Bağ | E55: Hayır | F55: =IF(E55="Evet",0.339,0) -> 0
A57: 5. | B57: Log kayıtlarında aşağıdaki bilgilerden hangileri bulunmaktadır? | D57: Teknolojik Koşullar
A58: 5.1. | B58: Dokümanın belgeye dönüşme tarih ve zamanı | C58: Zorunlu | D58: Teknolojik Koşullar | E58: Evet | F58: =IF(E58="Evet",0.571,0) -> 0.571
A59: 5.2. | B59: Belgeye erişim istekleri | C59: Zorunlu | D59: Teknolojik Koşullar | E59: Evet | F59: =IF(E59="Evet",0.571,0) -> 0.571
A60: 5.3. | B60: Belgenin iletim geçmişi | C60: Zorunlu | D60: Teknolojik Koşullar | E60: Evet | F60: 0.571
A61: 5.4. | B61: Belgeye yapılan açıklamalar | C61: Zorunlu | D61: Teknolojik Koşullar | E61: Evet | F61: 0.571
A62: 5.5. | B62: Belgede yapılan işlemler ve bu işlemleri yapan kullanıcılar | C62: Zorunlu | D62: Teknolojik Koşullar | E62: Evet | F62: 0.571
A63: 5.6. | B63: Üstverilerde yapılan değişiklikler | C63: Zorunlu | D63: Teknolojik Koşullar | E63: Evet | F63: 0.571
A64: 5.7. | B64: Saklama planı ve saklama sürelerinde yapılan değişiklikler | C64: Zorunlu | D64: Teknolojik Koşullar | E64: Evet | F64: 0.571
A65: 5.8. | B65: Belgede yaşanan teknolojik değişimler | C65: Zorunlu | D65: Teknolojik Koşullar | E65: Hayır | F65: 0
A66: 5.9. | B66: Sistem arıza ve bakımları | C66: Zorunlu | D66: Teknolojik Koşullar | E66: Evet | F66: 0.571
A67: 5.10. | B67: Paraf bilgileri ve paraflayanın yaptığı işlemler | C67: Zorunlu | D67: Teknolojik Koşullar | E67: Evet | F67: 0.571
A69: 6. | B69: Dosyalama pratikleriyle ilgili aşağıdakilerden hangileri kurumunuz için geçerlidir? | D69: Arşivsel Bağ
A70: 6.1. | B70: Belgelerin hangi işlem, dosya, seri ve birime ait olduğunu seçme | C70: Kritik Zorunlu | D70: Arşivsel Bağ | E70: Hayır | F70: =IF(E70="Evet",1.1427,0) -> 0
A71: 6.2. | B71: Dosya türü ayrımı yapılması (Konu, Vaka, Gölge dosya, Vaka hazırlık dosyası, melez/hibrit dosya gibi) | C71: Kritik Zorunlu | D71: Arşivsel Bağ | E71: Evet | F71: =IF(E71="Evet",1.1427,0) -> 1.1427
A72: 6.3. | B72: Konu dosyalarının periyodik olarak kapanması | C72: Seçmeli | D72: Arşivsel Bağ | E72: Evet | F72: =IF(E72="Evet",0.1108,0) -> 0.1108
A73: 6.4. | B73: Vaka dosyasına giren bir belgenin aynı zamanda bir konu dosyasıyla da ilişkiliyse çoğaltılmadan çapraz referans yapılması | C73: Seçmeli | D73: Arşivsel Bağ | E73: Evet | F73: =IF(E73="Evet",0.1108,0) -> 0.1108
A74: 6.5. | B74: Belgeler ve dosyalar için dosya konu kodunun yanı sıra gerektiğinde özel kodların kullanılması | C74: Seçmeli | D74: Arşivsel Bağ | E74: Evet | F74: =IF(E74="Evet",0.1108,0) -> 0.1108
A75: 6.6 | B75: Belgeye, birim belge yöneticisi tarafından da dosya kodu verilmesi | C75: Seçmeli | D75: Arşivsel Bağ | E75: Evet | F75: =IF(E75="Evet",0.1108,0) -> 0.1108
A76: 6.7. | B76: Birim belge yöneticisinin belgeyi ait olduğunu düşündüğü dosyaya gönderebilmesi | C76: Seçmeli | D76: Arşivsel Bağ | E76: Evet | F76: =IF(E76="Evet",0.1108,0) -> 0.1108
A77: 6.8. | B77: Dosyaların üstverilerinde ait olduğu seri ve birimin belirtilmesi | C77: Zorunlu | D77: Arşivsel Bağ | E77: Evet | F77: =IF(E77="Evet",0.1356,0) -> 0.1356
A78: 6.9. | B78: Dosyaların, ait oldukları seriden farklı bir seriye taşınabilmesi | C78: Zorunlu | D78: Arşivsel Bağ | E78: Evet | F78: =IF(E78="Evet",0.1356,0) -> 0.1356
A79: 6.10. | B79: Sistemde aynı dosyanın parçası olup kâğıt ortamında saklanan belgelerin yerinin belirtilmesi | C79: Zorunlu | D79: Arşivsel Bağ | E79: Evet | F79: =IF(E79="Evet",0.1356,0) -> 0.1356
A80: 6.11. | B80: Belgenin ve dosyanın dosya kodu değişmiş ise eski ve yeninin birlikte gösterilmesi | C80: Seçmeli | D80: Arşivsel Bağ | E80: Evet | F80: =IF(E80="Evet",0.1108,0) -> 0.1108
A82: 7. | B82: Belge yönetimiyle ilgili kurumsal prosedürler aşağıdakilerden hangilerini içermektedir? | D82: Kurumsal Politika ve Prosedürler
A83: 7.1. | B83: Belgenin üretilme kuralları | C83: Zorunlu | D83: Kurumsal Politika ve Prosedürler | E83: Evet | F83: =IF(E83="Evet",1.052,0) -> 1.052
A84: 7.2. | B84: Belgenin iletilme kuralları | C84: Zorunlu | D84: Kurumsal Politika ve Prosedürler | E84: Evet | F84: 1.052
A85: 7.3. | B85: Dışarıdan gelen belgelerin sisteme kaydedilme kuralları | C85: Zorunlu | D85: Kurumsal Politika ve Prosedürler | E85: Evet | F85: 1.052
A86: 7.4. | B86: Belgeyi dosyasına kaldırma kuralları | C86: Zorunlu | D86: Kurumsal Politika ve Prosedürler | E86: Evet | F86: 1.052
A87: 7.5. | B87: Belgenin tanımlanmasına ilişkin kurallar | C87: Zorunlu | D87: Kurumsal Politika ve Prosedürler | E87: Hayır | F87: 0
A88: 7.6. | B88: Belgeyi arşive devretme kuralları | C88: Zorunlu | D88: Kurumsal Politika ve Prosedürler | E88: Hayır | F88: 0
A89: 7.7. | B89: Belgelerin teknolojik göçü ve bu göçün geçerliliğine yönelik tasdik prosedürleri | C89: Zorunlu | D89: Kurumsal Politika ve Prosedürler | E89: Hayır | F89: 0
A90: 7.8. | B90: Log kayıtları | C90: Zorunlu | D90: Kurumsal Politika ve Prosedürler | E90: Evet | F90: 1.052
A91: 7.9. | B91: Denetim günlükleri | C91: Seçmeli | D91: Kurumsal Politika ve Prosedürler | E91: Evet | F91: =IF(E91="Evet",0.555,0) -> 0.555
A92: 7.10. | B92: Donanımların çalışma şartları (sıcaklık ve nem gibi) | C92: Seçmeli | D92: Kurumsal Politika ve Prosedürler | E92: Hayır | F92: =IF(E92="Evet",0.555,0) -> 0
A93: 7.11. | B93: Bilgi güvenliği | C93: Zorunlu | D93: Kurumsal Politika ve Prosedürler | E93: Evet | F93: =IF(E93="Evet",1.052,0) -> 1.052
A95: 8. | B95: Saklama süreli dosya planınız için aşağıdakilerden hangileri geçerlidir? | D95: Arşivsel Bağ
A96: 8.1. | B96: Fonksiyon analizi yapılarak belge hiyerarşisinin oluşturulması | C96: Kritik Zorunlu | D96: Arşivsel Bağ | E96: Hayır | F96: =IF(E96="Evet",0.8748,0) -> 0
A97: 8.2. | B97: Dosya ve seri kodlarının oluşturulması | C97: Zorunlu | D97: Arşivsel Bağ | E97: Evet | F97: =IF(E97="Evet",0.1356,0) -> 0.1356
A98: 8.3. | B98: Saklama süresi sonunda yapılacak tasfiye işlemlerinin kararlaştırılması | C98: Seçmeli | D98: Arşivsel Bağ | E98: Evet | F98: =IF(E98="Evet",0.1108,0) -> 0.1108
A99: 8.4. | B99: Standart Dosya Planının, herhangi bir kod ekleme/çıkarması yapılarak kullanılması | C99: Seçmeli | D99: Arşivsel Bağ | E99: Evet | F99: =IF(E99="Evet",0.1108,0) -> 0.1108
A101: 9. | B101: Teknolojik göçle ilgili aşağıdakilerden hangileri geçerlidir? | D101: Teknolojik Koşullar
A102: 9.1. | B102: Belgelerin taşıyıcı ortamının değiştirilip değiştirilmemesi hususunda düzenli aralıklarla incelemelerin yapılması | C102: Seçmeli | D102: Teknolojik Koşullar | E102: Hayır | F102: =IF(E102="Evet",0.1428,0) -> 0
A103: 9.2. | B103: Teknolojik göç sonrası belgelerin erişilebilirliği ve okunabilirliğinin kontrol edilmesi | C103: Kritik Zorunlu | D103: Teknolojik Koşullar | E103: Hayır | F103: =IF(E103="Evet",0.8494,0) -> 0
A104: 9.3. | B104: Yeni taşıyıcı ortam ve göçün gerçekleştiği tarihin belge profiline eklenmesi | C104: Kritik Zorunlu | D104: Teknolojik Koşullar | E104: Hayır | F104: =IF(E104="Evet",0.8494,0) -> 0
A105: 9.4. | B105: Risk analizinin yapılması | C105: Zorunlu | D105: Teknolojik Koşullar | E105: Hayır | F105: =IF(E105="Evet",0.2284,0) -> 0
A107: 10. | B107: Yedeklemelerle ilgili aşağıdakilerden hangileri geçerlidir? | D107: Teknolojik Koşullar
A108: 10.1. | B108: Yedeklemelere sadece yetkili personelin erişmesi | C108: Seçmeli | D108: Teknolojik Koşullar | E108: Evet | F108: =IF(E108="Evet",0.1428,0) -> 0.1428
A109: 10.2. | B109: Belgeler, belge profilleri ve üstverilerin düzenli aralıklarla yedeklenmesi | C109: Kritik Zorunlu | D109: Teknolojik Koşullar | E109: Evet | F109: =IF(E109="Evet",1.2349,0) -> 1.2349
A110: 10.3. | B110: Son yedeklemeden bu yana belgelere yapılan açıklamalar ve işlemlerin denetim günlüklerine kaydedilmesi | C110: Zorunlu | D110: Teknolojik Koşullar | E110: Evet | F110: =IF(E110="Evet",0.2284,0) -> 0.2284
A111: 10.4. | B111: Sistem yedeklemesinin yapılması | C111: Kritik Zorunlu | D111: Teknolojik Koşullar | E111: Evet | F111: =IF(E111="Evet",1.2349,0) -> 1.2349
A112: 10.5. | B112: Son üç yedeklemenin kopyalarının muhafaza edilmesi | C112: Seçmeli | D112: Teknolojik Koşullar | E112: Hayır | F112: =IF(E112="Evet",0.1428,0) -> 0
A113: 10.6. | B113: Denetim günlüklerine yedeklemenin başarılı gerçekleşip gerçekleşmediğinin eklenmesi | C113: Seçmeli | D113: Teknolojik Koşullar | E113: Hayır | F113: =IF(E113="Evet",0.1428,0) -> 0
A114: 10.7. | B114: Herhangi bir sorun karşısında bir önceki yedeklemenin devreye alınabilmesi | C114: Zorunlu | D114: Teknolojik Koşullar | E114: Evet | F114: =IF(E114="Evet",0.2284,0) -> 0.2284
A116: 11. | B116: Yedekleme ile ilgili aşağıdaki üstverilerden hangileri sisteminizde mevcuttur? | D116: Teknolojik Koşullar
A117: 11.1. | B117: Yedeklemenin tarihi ve zamanı | C117: Zorunlu | D117: Teknolojik Koşullar | E117: Evet | F117: =IF(E117="Evet",0.2284,0) -> 0.2284
A118: 11.2. | B118: Yedeklemeyi onaylayan | C118: Kritik Zorunlu | D118: Teknolojik Koşullar | E118: Hayır | F118: =IF(E118="Evet",1.4704,0) -> 0
A119: 11.3. | B119: Yedeklemenin konumu | C119: Seçmeli | D119: Teknolojik Koşullar | E119: Evet | F119: =IF(E119="Evet",0.1428,0) -> 0.1428
A120: 11.4. | B120: Yedekleme referans numarası | C120: Zorunlu | D120: Teknolojik Koşullar | E120: Evet | F120: =IF(E120="Evet",0.2284,0) -> 0.2284
A122: 12. | B122: Arşive devredilecek belgelerle ilgili mevcut üstverilerin dışında onların delil değerini ilgilendirecek aşağıdaki üstverilerden hangilerinin kullanılması düşünülmektedir? | D122: Arşivsel Bağ
A123: 12.1. | B123: Devir zamanı | C123: Zorunlu | D123: Arşivsel Bağ | E123: Hayır | F123: =IF(E123="Evet",0.1356,0) -> 0
A124: 12.2. | B124: Belgelerin özgünlüğünü onaylayan teknikler (iz değeri kontrolü, e-imza sertifikalarının kontrolü, belgedeki kişi ile imzanın uyumu vb.) | C124: Kritik Zorunlu | D124: Arşivsel Bağ | E124: Hayır | F124: =IF(E124="Evet",0.6069,0) -> 0
A125: 12.3. | B125: Belgelerin özgünlüğünü onaylayan kişiler | C125: Kritik Zorunlu | D125: Arşivsel Bağ | E125: Hayır | F125: =IF(E125="Evet",0.6069,0) -> 0
A126: 12.4. | B126: Özgünlük değerlendirme raporu | C126: Seçmeli | D126: Arşivsel Bağ | E126: Hayır | F126: =IF(E126="Evet",0.1108,0) -> 0
A127: 12.5. | B127: Belgenin tanımlama bilgileri | C127: Seçmeli | D127: Arşivsel Bağ | E127: Hayır | F127: =IF(E127="Evet",0.1108,0) -> 0
A129: 13. | B129: Belgelerin özgünlüğünün tasdik edilmesi için aşağıdaki adımlardan hangileri geçerlidir? | D129: Arşivsel Bağ
A130: 13.1. | B130: Belgenin, doğduğu fonksiyonun işlemlerinden en az birini gösterecek nitelikte olması | C130: Zorunlu | D130: Arşivsel Bağ | E130: Evet | F130: =IF(E130="Evet",0.1356,0) -> 0.1356
A131: 13.2. | B131: Türüne göre belgenin, sahip olması gereken kimlik tespiti araçlarını (tasdik yöntemi) barındırması | C131: Zorunlu | D131: Arşivsel Bağ | E131: Evet | F131: =IF(E131="Evet",0.1356,0) -> 0.1356
A132: 13.3. | B132: Belge arşive devredildiğinde, onun özniteliklerinin korunduğunu gösteren bir elektronik kurumsal mührün kullanılması | C132: Seçmeli | D132: Arşivsel Bağ | E132: Hayır | F132: =IF(E132="Evet",0.1108,0) -> 0
A133: 13.4. | B133: Belgenin tanımlama bilgilerinin incelenmesi | C133: Seçmeli | D133: Arşivsel Bağ | E133: Evet | F133: =IF(E133="Evet",0.1108,0) -> 0.1108
A134: 13.5. | B134: Dosya sistemindeki (file system) belge ile veri tabanında tutulan kayıtların ilişkilendirilmesi ve bu ilişkinin kopmaması için gerekli tedbirlerin alınması | C134: Zorunlu | D134: Arşivsel Bağ | E134: Hayır | F134: =IF(E134="Evet",0.1356,0) -> 0
A135: 13.6. | B135: Belge üzerindeki imzaların geçerliliği bitmeden EYP'nin zaman damgası ile damgalanması | C135: Zorunlu | D135: Arşivsel Bağ | E135: Hayır | F135: =IF(E135="Evet",0.1356,0) -> 0
A136: 13.7. | B136: Belgedeki imzaların arşiv imzası tipine dönüştürülmesi | C136: Kritik Zorunlu | D136: Arşivsel Bağ | E136: Hayır | F136: =IF(E136="Evet",0.9951,0) -> 0
A137: 13.8. | B137: Bütünlük analizinin düzenli kontrol edilmesi | C137: Kritik Zorunlu | D137: Arşivsel Bağ | E137: Hayır | F137: =IF(E137="Evet",0.9951,0) -> 0
A138: 13.9. | B138: Bütünlük bozulması riskine karşı risk değerlendirmesi ve riskten kaçınma raporunun hazırlanması | C138: Seçmeli | D138: Arşivsel Bağ | E138: Hayır | F138: =IF(E138="Evet",0.1108,0) -> 0
A140: 14. | B140: Belgelerin tasfiyesine ilişkin aşağıdaki adımlardan hangileri geçerlidir? | D140: Arşivsel Bağ
A141: 14.1. | B141: Belgeler oluşmadan önce belgelere bir saklama süresi tayin edilmesi | C141: Zorunlu | D141: Arşivsel Bağ | E141: Evet | F141: =IF(E141="Evet",0.1356,0) -> 0.1356
A142: 14.2. | B142: Belgelerin saklama süreleri tamamlandıktan sonra ait oldukları dosyalarla birlikte arşive devredilmesi | C142: Kritik Zorunlu | D142: Arşivsel Bağ | E142: Hayır | F142: =IF(E142="Evet",0.6102,0) -> 0
A143: 14.3. | B143: Saklama süresi aşımının gerekçesi | C143: Zorunlu | D143: Arşivsel Bağ | E143: Hayır | F143: =IF(E143="Evet",0.1356,0) -> 0
A144: 14.4. | B144: Belgenin, belge profili ve üstverileriyle birlikte arşive devredilmesi | C144: Kritik Zorunlu | D144: Arşivsel Bağ | E144: Evet | F144: =IF(E144="Evet",0.6102,0) -> 0.6102
A145: 14.5. | B145: Belge tasfiye edilirken belge profili ve üstverisinin de tasfiye edilmesi | C145: Zorunlu | D145: Arşivsel Bağ | E145: Evet | F145: =IF(E145="Evet",0.1356,0) -> 0.1356
A146: 14.6. | B146: Belge, ister arşive devredilsin ister imha edilsin referans numarasının sistemde tutulması ve belgenin akıbeti hakkında bir bilgi notunun bulunması | C146: Kritik Zorunlu | D146: Arşivsel Bağ | E146: Hayır | F146: =IF(E146="Evet",0.6102,0) -> 0
A147: 14.7. | B147: Arşive devredilen belgelerin dosyalarıyla birlikte belge yönetim sisteminden kaldırılıp arşiv yönetim sistemine aktarılması | C147: Zorunlu | D147: Arşivsel Bağ | E147: Evet | F147: =IF(E147="Evet",0.1356,0) -> 0.1356
A149: 15. | B149: Belge yönetimi kapasitesinin geliştirilmesi için aşağıdakilerden hangileri geçerlidir? | D149: Kurumsal Politika ve Prosedürler
A150: 15.1. | B150: Kurumsal belge yönetimi politikasının oluşturulması | C150: Kritik Zorunlu | D150: Kurumsal Politika ve Prosedürler | E150: Evet | F150: =IF(E150="Evet",2.6822,0) -> 2.6822
A151: 15.2. | B151: Bilgi ve belge yönetimi mezunu kişilerin belge yönetimiyle ilgili birimde istihdam edilmesi | C151: Seçmeli | D151: Kurumsal Politika ve Prosedürler | E151: Hayır | F151: =IF(E151="Evet",0.222,0) -> 0
A152: 15.3. | B152: Belge yönetimiyle ilgilenen personelin eğitim programının bulunması (eğitmen eğitimi) | C152: Seçmeli | D152: Kurumsal Politika ve Prosedürler | E152: Evet | F152: =IF(E152="Evet",0.222,0) -> 0.222
A153: 15.4. | B153: Kurum çalışanlarının belge yönetimi birimi tarafından eğitilmesi | C153: Seçmeli | D153: Kurumsal Politika ve Prosedürler | E153: Evet | F153: =IF(E153="Evet",0.222,0) -> 0.222
A154: 15.5. | B154: TSE 13298 Kurumsal sertifikasyon alınması yönünde girişimler yapılması | C154: Zorunlu | D154: Kurumsal Politika ve Prosedürler | E154: Hayır | F154: =IF(E154="Evet",0.1356,0) -> 0
A156: 16. | B156: Arşivlenen belgelerin tanımlanması için bir standardın kullanılması düşünülmekte midir? Lütfen belirtiniz. | D156: Arşivsel Bağ
A157: 16.1. | B157: Evet/Hayır | C157: Seçmeli | D157: Arşivsel Bağ | E157: Hayır | F157: =IF(E157="Evet",0.277,0) -> 0
A159: 17. | B159: Elektronik belge yönetiminde belgenin delil değerini korumak için aşağıdaki teknolojilerden hangilerinin kullanılması düşünülmektedir? | D159: Teknolojik Koşullar
A160: 17.1. | B160: Blokzincir | C160: Seçmeli | D160: Teknolojik Koşullar | E160: Hayır | F160: =IF(E160="Evet",0.357,0) -> 0
A161: 17.2. | B161: Yapay zekâ | C161: Seçmeli | D161: Teknolojik Koşullar | E161: Hayır | F161: =IF(E161="Evet",0.357,0) -> 0
A162: 17.3. | B162: Derin öğrenme/Makine öğrenmesi | C162: Seçmeli | D162: Teknolojik Koşullar | E162: Hayır | F162: 0
A163: 17.4. | B163: Elektronik delil elde etme (Digital forensics-Öykünme, teknolojik göç) | C163: Seçmeli | D163: Teknolojik Koşullar | E163: Hayır | F163: 0
A165: 18. | B165: Yazılım ve donanımla ilgili aşağıdaki ifadelerden hangileri geçerlidir? | D165: Teknolojik Koşullar
A166: 18.1. | B166: Yazılım algoritması ve kaynak kodlarının kurum tarafından saklanması | C166: Kritik Zorunlu | D166: Teknolojik Koşullar | E166: Hayır | F166: =IF(E166="Evet",1.3134,0) -> 0
A167: 18.2 | B167: Veri tabanının arşivlenebilir bir formatta yapılandırılması | C167: Seçmeli | D167: Teknolojik Koşullar | E167: Evet | F167: =IF(E167="Evet",0.1428,0) -> 0.1428
A168: 18.3 | B168: Belgelerin bir kez yazılabilir ortamlarda saklanması | C168: Seçmeli | D168: Teknolojik Koşullar | E168: Hayır | F168: =IF(E168="Evet",0.1428,0) -> 0
A169: 18.4. | B169: Belge bileşenlerinin de belgeyle birlikte bütüncül olarak korunması | C169: Zorunlu | D169: Teknolojik Koşullar | E169: Evet | F169: =IF(E169="Evet",0.2284,0) -> 0.2284
A170: 18.5. | B170: Yazılım değiştirildiğinde de belgelere erişilebilmesi | C170: Kritik Zorunlu | D170: Teknolojik Koşullar | E170: Evet | F170: =IF(E170="Evet",1.3134,0) -> 1.3134
A171: 18.6. | B171: Güncel belgelerle arşivlenen belgelerin saklanma konumları arasında bir ayrım yapılması | C171: Seçmeli | D171: Teknolojik Koşullar | E171: Hayır | F171: =IF(E171="Evet",0.1428,0) -> 0
A172: 18.7. | B172: Donanımların üreticilerin tavsiye ettiği kullanım ömrü dolduktan sonra kullanılmaması | C172: Seçmeli | D172: Teknolojik Koşullar | E172: Hayır | F172: =IF(E172="Evet",0.1428,0) -> 0
A173: 18.8. | B173: Belgelerin üretildiği araçlardaki donanım ve yazılım özelliklerinin kayıt altına alınması | C173: Zorunlu | D173: Teknolojik Koşullar | E173: Evet | F173: =IF(E173="Evet",0.2284,0) -> 0.2284
A174: 18.9. | B174: 27001 Sertifikası alınması yönünde girişimlerin yapılması | C174: Zorunlu | D174: Teknolojik Koşullar | E174: Evet | F174: =IF(E174="Evet",0.2284,0) -> 0.2284
A175: 18.10. | B175: Yazılımın TSE 13298 Sertifikasına uygun olması yönünde girişimlerin yapılması | C175: Zorunlu | D175: Teknolojik Koşullar | E175: Evet | F175: =IF(E175="Evet",0.2284,0) -> 0.2284
A176: 18.11. | B176: Log kayıtlarının zaman damgası ile damgalanması | C176: Kritik Zorunlu | D176: Teknolojik Koşullar | E176: Hayır | F176: =IF(E176="Evet",1.3134,0) -> 0
A178: 19. | B178: Üstveriler için aşağıdakilerden hangileri geçerlidir? | D178: Teknolojik Koşullar
A179: 19.1. | B179: Üstverilerin belgeden ayrı olarak XML ya da JSON olarak saklanması | C179: Zorunlu | D179: Teknolojik Koşullar | E179: Evet | F179: =IF(E179="Evet",0.2284,0) -> 0.2284
A180: 19.2. | B180: Üstveriler, belge ile birlikte hareket etmektedir. (Belgenin konumu değiştirildiğinde üstverilerin de beraberinde taşınması) | C180: Kritik Zorunlu | D180: Teknolojik Koşullar | E180: Evet | F180: =IF(E180="Evet",1.5988,0) -> 1.5988
A181: 19.3. | B181: Yöneticilerin yaptığı değişiklikler sonucunda yeni bir üstveri kaydının oluşması ve daha önceki üstveri kaydının muhafaza edilmesi | C181: Zorunlu | D181: Teknolojik Koşullar | E181: Hayır | F181: =IF(E181="Evet",0.2284,0) -> 0
A182: 19.4. | B182: Üstveri dosyasının ait olduğu belgenin referans numarasına sahip olması | C182: Zorunlu | D182: Teknolojik Koşullar | E182: Hayır | F182: =IF(E182="Evet",0.2284,0) -> 0
A184: 20. | B184: Denetim günlükleri için aşağıdakilerden hangileri geçerlidir? | D184: Teknolojik Koşullar
A185: 20.1. | B185: Tüm belgeler için denetim günlüklerinin oluşturulması | C185: Seçmeli | D185: Teknolojik Koşullar | E185: Hayır | F185: =IF(E185="Evet",0.357,0) -> 0
A186: 20.2. | B186: Denetim günlükleri oluşturulmasına karar verilen belgeler için, bunların otomatik olarak oluşması | C186: Zorunlu | D186: Teknolojik Koşullar | E186: Evet | F186: =IF(E186="Evet",0.571,0) -> 0.571
A187: 20.3. | B187: Denetim günlüklerinin yapılan işlemlerin tarih ve saatini içermesi | C187: Zorunlu | D187: Teknolojik Koşullar | E187: Evet | F187: =IF(E187="Evet",0.571,0) -> 0.571
A188: 20.4. | B188: Denetim günlüklerine erişim sırasında bir sorun yaşanıp yaşanmadığının düzenli aralıklarla otomatik olarak kontrol edilmesi | C188: Zorunlu | D188: Teknolojik Koşullar | E188: Hayır | F188: =IF(E188="Evet",0.571,0) -> 0
A189: 20.5. | B189: Denetim günlüklerinin bir kere yazılması ve üzerinde hiç değişiklik yapılmaması | C189: Zorunlu | D189: Teknolojik Koşullar | E189: Evet | F189: =IF(E189="Evet",0.571,0) -> 0.571
A191: 21. | B191: Kurumda üretilen ve dışarıdan gelen belgelerin form özellikleri, formatı ve içeriğinin değiştirilmemesine yönelik aşağıdaki hangi yaklaşımları benimsiyorsunuz? | D191: Arşivsel Bağ
A192: 21.1. | B192: İz değeri kontrolü | C192: Zorunlu | D192: Arşivsel Bağ | E192: Hayır | F192: =IF(E192="Evet",0.1356,0) -> 0
A193: 21.2. | B193: Dosya tanımlayıcı kullanımı (JHOVE, DROID gibi) | C193: Kritik Zorunlu | D193: Arşivsel Bağ | E193: Hayır | F193: =IF(E193="Evet",1.0782,0) -> 0
A194: 21.3. | B194: Adli bilişim (Digital forensics) yöntemleri | C194: Seçmeli | D194: Arşivsel Bağ | E194: Hayır | F194: =IF(E194="Evet",0.1108,0) -> 0
A195: 21.4. | B195: Log kayıtlarının kontrolü | C195: Zorunlu | D195: Arşivsel Bağ | E195: Hayır | F195: =IF(E195="Evet",0.1356,0) -> 0
A196: 21.5. | B196: Döngüsel artıklık denetimi (CRC) | C196: Seçmeli | D196: Arşivsel Bağ | E196: Hayır | F196: =IF(E196="Evet",0.1108,0) -> 0
B198: Kullandığınız Kaçıncı EBYS? | E198: 2 | F198: =SUM(F1:F197) -> 39.4516
B199: Sistemi kendiniz mi geliştirdiniz? | E199: Hayır
B200: Kaç yıldır EBYS kullanıyorsunuz? | E200: 8
B201: Yazılımın TSE uygunluk sertifikası var mı? | E201: Evet
B202: KEP kullanıyor musunuz? | E202: Evet
B203: UETS kullanıyor musunuz? | E203: Evet
B204: EYP kullanıyor musunuz? | E204: Evet
B208: Kısaltmalar
B209: EBYS: Elektronik Belge Yönetim Sistemi
B210: KEP: Kayıtlı Elektronik Posta
B211: TSE: Türk Standartları Enstitüsü
B212: UETS: Ulusal Elektronik Tebligat Sistemi
B213: EYP: Elektronik Yazışma Paketi
B214: XML: Extensible Markup Language
B215: JSON: JavaScript Object Notation
B216: JHOVE: JSTOR/Harvard Object Validation Environment
B217: DROID: Digital Record Object Identification

Sheet 3
B1: Sorular | C1: Kriter | D1: Ait Olduğu Hipotez | E1: Cevap | F1: Puan
A2: 1. | B2: Belge yönetim sistemine geçerken kurum aşağıdaki prosedürlerden hangilerini gerçekleştirmiştir? | D2: Kurumsal Politika ve Prosedürler
A3: 1.1. | B3: Kurumun e-belge yönetimi politikasını belirleme | C3: Kritik Zorunlu | D3: Kurumsal Politika ve Prosedürler | E3: Evet | F3: =IF(E3="Evet",1.6971,0) -> 1.6971
A4: 1.2. | B4: Kurumun e-arşiv yönetimi politikasını belirleme | C4: Kritik Zorunlu | D4: Kurumsal Politika ve Prosedürler | E4: Hayır | F4: =IF(E4="Evet",1.6971,0) -> 0
A5: 1.3. | B5: Fonksiyonlar ve iş süreçleri tanımlama ve belgelerle ilişkilendirme | C5: Kritik Zorunlu | D5: Kurumsal Politika ve Prosedürler | E5: Hayır | F5: =IF(E5="Evet",1.6971,0) -> 0
A6: 1.4. | B6: İş süreçlerine dair dokümantasyon oluşturma | C6: Seçmeli | D6: Kurumsal Politika ve Prosedürler | E6: Hayır | F6: =IF(E6="Evet",0.222,0) -> 0
A7: 1.5. | B7: Form ve şablon oluşturma | C7: Kritik Zorunlu | D7: Kurumsal Politika ve Prosedürler | E7: Evet | F7: =IF(E7="Evet",1.6971,0) -> 1.6971
A8: 1.6. | B8: Belge türüne göre oluşturulan şablonlar için bir kontrol numarası verme | C8: Seçmeli | D8: Kurumsal Politika ve Prosedürler | E8: Evet | F8: =IF(E8="Evet",0.222,0) -> 0.222
A9: 1.7. | B9: Spesifik üstveri şemaları çıkarma | C9: Zorunlu | D9: Kurumsal Politika ve Prosedürler | E9: Evet | F9: =IF(E9="Evet",0.4208,0) -> 0.4208
A10: 1.8. | B10: Belge profilindeki form özelliklerini (belgedeki kişiler, antet, format, teknolojik özellikler, belgeye işlem safhasında yapılan açıklamalar gibi) tanımlama | C10: Seçmeli | D10: Kurumsal Politika ve Prosedürler | E10: Evet | F10: =IF(E10="Evet",0.222,0) -> 0.222
A11: 1.9. | B11: Belgeler ve dosyalar için dosya tasnif planı ve saklama planı hazırlama | C11: Kritik Zorunlu | D11: Kurumsal Politika ve Prosedürler | E11: Evet | F11: =IF(E11="Evet",1.6971,0) -> 1.6971
A12: 1.10. | B12: Dosya planına uygun dosyalama sistemi geliştirme | C12: Zorunlu | D12: Kurumsal Politika ve Prosedürler | E12: Evet | F12: =IF(E12="Evet",0.4208,0) -> 0.4208
A13: 1.11. | B13: Kontrollü terminoloji oluşturma | C13: Seçmeli | D13: Kurumsal Politika ve Prosedürler | E13: Evet | F13: =IF(E13="Evet",0.222,0) -> 0.222
A14: 1.12. | B14: Felaket kurtarma planı ve yedekleme planı oluşturma | C14: Zorunlu | D14: Kurumsal Politika ve Prosedürler | E14: Evet | F14: =IF(E14="Evet",0.4208,0) -> 0.4208
A16: 2. | B16: Belgenin aşağıdaki form özelliklerinden hangilerini üstverilerde kullanıyorsunuz? | D16: Arşivsel Bağ
A17: 2.1. | B17: Sorumlu (Belgeyi üreten kurum) | C17: Zorunlu | D17: Arşivsel Bağ | E17: Evet | F17: =IF(E17="Evet",0.339,0) -> 0.339
A18: 2.2. | B18: Düzenleyen (Belgedeki irade beyanının sahibi) | C18: Zorunlu | D18: Arşivsel Bağ | E18: Evet | F18: =IF(E18="Evet",0.339,0) -> 0.339
A19: 2.3. | B19: Muhatap/Alıcı | C19: Zorunlu | D19: Arşivsel Bağ | E19: Evet | F19: 0.339
A20: 2.4. | B20: Konu | C20: Zorunlu | D20: Arşivsel Bağ | E20: Evet | F20: 0.339
A21: 2.5. | B21: Format | C21: Zorunlu | D21: Arşivsel Bağ | E21: Hayır | F21: 0
A22: 2.6. | B22: Üretim tarihi | C22: Zorunlu | D22: Arşivsel Bağ | E22: Evet | F22: 0.339
A23: 2.7. | B23: Gönderim/Alma tarihi (KEP) | C23: Zorunlu | D23: Arşivsel Bağ | E23: Evet | F23: 0.339
A24: 2.8. | B24: Belge tarihi (Son imzalayıcının imza attığı tarih) | C24: Zorunlu | D24: Arşivsel Bağ | E24: Evet | F24: 0.339
A26: 3. | B26: Belge profilinde aşağıdaki üstverilerden hangileri bulunmaktadır? | D26: Arşivsel Bağ
A27: 3.1. | B27: Belgenin dosyasına kaldırıldığı zaman | C27: Zorunlu | D27: Arşivsel Bağ | E27: Evet | F27: =IF(E27="Evet",0.1356,0) -> 0.1356
A28: 3.2. | B28: Belgedeki işlemden sorumlu kişi ve birim | C28: Zorunlu | D28: Arşivsel Bağ | E28: Evet | F28: =IF(E28="Evet",0.1356,0) -> 0.1356
A29: 3.3. | B29: Ait olduğu işlem-dosya-seri-birim | C29: Kritik Zorunlu | D29: Arşivsel Bağ | E29: Hayır | F29: =IF(E29="Evet",1.6826,0) -> 0
A30: 3.4. | B30: Dosya kodu | C30: Zorunlu | D30: Arşivsel Bağ | E30: Evet | F30: =IF(E30="Evet",0.1356,0) -> 0.1356
A31: 3.5. | B31: Belge referans numarası | C31: Zorunlu | D31: Arşivsel Bağ | E31: Evet | F31: =IF(E31="Evet",0.1356,0) -> 0.1356
A32: 3.6. | B32: Belgeye erişmek için asgari gereksinimler | C32: Zorunlu | D32: Arşivsel Bağ | E32: Hayır | F32: =IF(E32="Evet",0.1352,0) -> 0
A33: 3.7. | B33: Belgenin üretildiği EBYS yazılımı ve versiyon numarası | C33: Zorunlu | D33: Arşivsel Bağ | E33: Evet | F33: =IF(E33="Evet",0.1356,0) -> 0.1356
A34: 3.8. | B34: Belge yönetimi için kullanılacak algoritmalar (kullanılan EBYS yazılımı algoritmaları ve belgeyi tekrardan üretmek ya da şifreli belgeleri açabilmek için gerekli olan algoritmalar gibi) | C34: Kritik Zorunlu | D34: Arşivsel Bağ | E34: Hayır | F34: =IF(E34="Evet",1.6826,0) -> 0
A35: 3.9. | B35: Belge bileşenleri (Üstveri, belgenin ekleri, form elemanları, kontekst (bağlam), içerik, belgenin oluşumunu sağlayan veriler, iş akışları gibi) | C35: Zorunlu | D35: Arşivsel Bağ | E35: Evet | F35: =IF(E35="Evet",0.1356,0) -> 0.1356
A36: 3.10. | B36: E-imza ve zaman damgası | C36: Zorunlu | D36: Arşivsel Bağ | E36: Evet | F36: =IF(E36="Evet",0.1356,0) -> 0.1356
A37: 3.11. | B37: Saklama süresi | C37: Zorunlu | D37: Arşivsel Bağ | E37: Hayır | F37: =IF(E37="Evet",0.1356,0) -> 0
A38: 3.12. | B38: Belgeye erişim profilleri | C38: Zorunlu | D38: Arşivsel Bağ | E38: Evet | F38: =IF(E38="Evet",0.1356,0) -> 0.1356
A39: 3.13. | B39: Belgelerin lokasyonu (Directory) | C39: Seçmeli | D39: Arşivsel Bağ | E39: Hayır | F39: =IF(E39="Evet",0.1108,0) -> 0
A40: 3.14. | B40: Belgeye yapılan açıklama notları (İşlem safhasında (ivedilik durumu, iletim zamanı, tarih, yer, ekler gibi), kullanım safhasında (belgenin alındığı tarih, belgeyi kullanan birim, gerçekleştirilen işlem, yapılan muamele gibi ) ve yönetim safhasında (belgenin arşive devir tarihi, versiyon numarası, belge referans numarası, dosya kodu, belgeyi düzenleyen ve oluşturan kişi/birim gibi)) | C40: Zorunlu | D40: Arşivsel Bağ | E40: Evet | F40: =IF(E40="Evet",0.1356,0) -> 0.1356
A41: 3.15. | B41: Teknolojik göç ettirme ile ilgili yapılan işlemler | C41: Kritik Zorunlu | D41: Arşivsel Bağ | E41: Hayır | F41: =IF(E41="Evet",1.6826,0) -> 0
A42: 3.16. | B42: Konu | C42: Zorunlu | D42: Arşivsel Bağ | E42: Evet | F42: =IF(E42="Evet",0.1356,0) -> 0.1356
A43: 3.17. | B43: Belgenin sayısı | C43: Zorunlu | D43: Arşivsel Bağ | E43: Evet | F43: 0.1356
A44: 3.18. | B44: Belgenin gizlilik derecesi (Tasnif dışı, hizmete özel, özel, gizli, çok gizli, kişiye özel gibi) | C44: Zorunlu | D44: Arşivsel Bağ | E44: Evet | F44: 0.1356
A45: 3.19. | B45: Dağıtım listesi | C45: Zorunlu | D45: Arşivsel Bağ | E45: Evet | F45: 0.1356
A46: 3.20. | B46: İlgilerin referans numarası | C46: Zorunlu | D46: Arşivsel Bağ | E46: Hayır | F46: 0
A47: 3.21. | B47: Belgenin özet değeri | C47: Zorunlu | D47: Arşivsel Bağ | E47: Hayır | F47: 0
A48: 3.22. | B48: Şifreleme bilgisi | C48: Zorunlu | D48: Arşivsel Bağ | E48: Hayır | F48: 0
A49: 3.23. | B49: Eklerin referans numaraları | C49: Zorunlu | D49: Arşivsel Bağ | E49: Hayır | F49: 0
A51: 4. | B51: Belge bileşenleriyle ilgili aşağıdaki üstverilerden hangileri kurumunuzda kullanılmaktadır? | D51: Arşivsel Bağ
A52: 4.1. | B52: Referans numarası | C52: Zorunlu | D52: Arşivsel Bağ | E52: Evet | F52: =IF(E52="Evet",0.339,0) -> 0.339
A53: 4.2. | B53: Format | C53: Zorunlu | D53: Arşivsel Bağ | E53: Evet | F53: =IF(E53="Evet",0.339,0) -> 0.339
A54: 4.3. | B54: Bileşeni üreten yazılım ve o yazılımda kullanılan algoritmalar | C54: Seçmeli | D54: Arşivsel Bağ | E54: Hayır | F54: =IF(E54="Evet",0.277,0) -> 0
A55: 4.4. | B55: Bileşene erişmek için asgari gereksinimler | C55: Zorunlu | D55: Arşivsel Bağ | E55: Hayır | F55: =IF(E55="Evet",0.339,0) -> 0
A57: 5. | B57: Log kayıtlarında aşağıdaki bilgilerden hangileri bulunmaktadır? | D57: Teknolojik Koşullar
A58: 5.1. | B58: Dokümanın belgeye dönüşme tarih ve zamanı | C58: Zorunlu | D58: Teknolojik Koşullar | E58: Evet | F58: =IF(E58="Evet",0.571,0) -> 0.571
A59: 5.2. | B59: Belgeye erişim istekleri | C59: Zorunlu | D59: Teknolojik Koşullar | E59: Evet | F59: =IF(E59="Evet",0.571,0) -> 0.571
A60: 5.3. | B60: Belgenin iletim geçmişi | C60: Zorunlu | D60: Teknolojik Koşullar | E60: Evet | F60: 0.571
A61: 5.4. | B61: Belgeye yapılan açıklamalar | C61: Zorunlu | D61: Teknolojik Koşullar | E61: Hayır | F61: 0
A62: 5.5. | B62: Belgede yapılan işlemler ve bu işlemleri yapan kullanıcılar | C62: Zorunlu | D62: Teknolojik Koşullar | E62: Evet | F62: 0.571
A63: 5.6. | B63: Üstverilerde yapılan değişiklikler | C63: Zorunlu | D63: Teknolojik Koşullar | E63: Hayır | F63: 0
A64: 5.7. | B64: Saklama planı ve saklama sürelerinde yapılan değişiklikler | C64: Zorunlu | D64: Teknolojik Koşullar | E64: Hayır | F64: 0
A65: 5.8. | B65: Belgede yaşanan teknolojik değişimler | C65: Zorunlu | D65: Teknolojik Koşullar | E65: Hayır | F65: 0
A66: 5.9. | B66: Sistem arıza ve bakımları | C66: Zorunlu | D66: Teknolojik Koşullar | E66: Evet | F66: 0.571
A67: 5.10. | B67: Paraf bilgileri ve paraflayanın yaptığı işlemler | C67: Zorunlu | D67: Teknolojik Koşullar | E67: Evet | F67: 0.571
A69: 6. | B69: Dosyalama pratikleriyle ilgili aşağıdakilerden hangileri kurumunuz için geçerlidir? | D69: Arşivsel Bağ
A70: 6.1. | B70: Belgelerin hangi işlem, dosya, seri ve birime ait olduğunu seçme | C70: Kritik Zorunlu | D70: Arşivsel Bağ | E70: Hayır | F70: =IF(E70="Evet",1.1427,0) -> 0
A71: 6.2. | B71: Dosya türü ayrımı yapılması (Konu, Vaka, Gölge dosya, Vaka hazırlık dosyası, melez/hibrit dosya gibi) | C71: Kritik Zorunlu | D71: Arşivsel Bağ | E71: Evet | F71: =IF(E71="Evet",1.1427,0) -> 1.1427
A72: 6.3. | B72: Konu dosyalarının periyodik olarak kapanması | C72: Seçmeli | D72: Arşivsel Bağ | E72: Evet | F72: =IF(E72="Evet",0.1108,0) -> 0.1108
A73: 6.4. | B73: Vaka dosyasına giren bir belgenin aynı zamanda bir konu dosyasıyla da ilişkiliyse çoğaltılmadan çapraz referans yapılması | C73: Seçmeli | D73: Arşivsel Bağ | E73: Evet | F73: =IF(E73="Evet",0.1108,0) -> 0.1108
A74: 6.5. | B74: Belgeler ve dosyalar için dosya konu kodunun yanı sıra gerektiğinde özel kodların kullanılması | C74: Seçmeli | D74: Arşivsel Bağ | E74: Evet | F74: =IF(E74="Evet",0.1108,0) -> 0.1108
A75: 6.6 | B75: Belgeye, birim belge yöneticisi tarafından da dosya kodu verilmesi | C75: Seçmeli | D75: Arşivsel Bağ | E75: Evet | F75: =IF(E75="Evet",0.1108,0) -> 0.1108
A76: 6.7. | B76: Birim belge yöneticisinin belgeyi ait olduğunu düşündüğü dosyaya gönderebilmesi | C76: Seçmeli | D76: Arşivsel Bağ | E76: Evet | F76: =IF(E76="Evet",0.1108,0) -> 0.1108
A77: 6.8. | B77: Dosyaların üstverilerinde ait olduğu seri ve birimin belirtilmesi | C77: Zorunlu | D77: Arşivsel Bağ | E77: Evet | F77: =IF(E77="Evet",0.1356,0) -> 0.1356
A78: 6.9. | B78: Dosyaların, ait oldukları seriden farklı bir seriye taşınabilmesi | C78: Zorunlu | D78: Arşivsel Bağ | E78: Evet | F78: =IF(E78="Evet",0.1356,0) -> 0.1356
A79: 6.10. | B79: Sistemde aynı dosyanın parçası olup kâğıt ortamında saklanan belgelerin yerinin belirtilmesi | C79: Zorunlu | D79: Arşivsel Bağ | E79: Evet | F79: =IF(E79="Evet",0.1356,0) -> 0.1356
A80: 6.11. | B80: Belgenin ve dosyanın dosya kodu değişmiş ise eski ve yeninin birlikte gösterilmesi | C80: Seçmeli | D80: Arşivsel Bağ | E80: Evet | F80: =IF(E80="Evet",0.1108,0) -> 0.1108
A82: 7. | B82: Belge yönetimiyle ilgili kurumsal prosedürler aşağıdakilerden hangilerini içermektedir? | D82: Kurumsal Politika ve Prosedürler
A83: 7.1. | B83: Belgenin üretilme kuralları | C83: Zorunlu | D83: Kurumsal Politika ve Prosedürler | E83: Evet | F83: =IF(E83="Evet",1.052,0) -> 1.052
A84: 7.2. | B84: Belgenin iletilme kuralları | C84: Zorunlu | D84: Kurumsal Politika ve Prosedürler | E84: Evet | F84: 1.052
A85: 7.3. | B85: Dışarıdan gelen belgelerin sisteme kaydedilme kuralları | C85: Zorunlu | D85: Kurumsal Politika ve Prosedürler | E85: Evet | F85: 1.052
A86: 7.4. | B86: Belgeyi dosyasına kaldırma kuralları | C86: Zorunlu | D86: Kurumsal Politika ve Prosedürler | E86: Hayır | F86: 0
A87: 7.5. | B87: Belgenin tanımlanmasına ilişkin kurallar | C87: Zorunlu | D87: Kurumsal Politika ve Prosedürler | E87: Hayır | F87: 0
A88: 7.6. | B88: Belgeyi arşive devretme kuralları | C88: Zorunlu | D88: Kurumsal Politika ve Prosedürler | E88: Hayır | F88: 0
A89: 7.7. | B89: Belgelerin teknolojik göçü ve bu göçün geçerliliğine yönelik tasdik prosedürleri | C89: Zorunlu | D89: Kurumsal Politika ve Prosedürler | E89: Hayır | F89: 0
A90: 7.8. | B90: Log kayıtları | C90: Zorunlu | D90: Kurumsal Politika ve Prosedürler | E90: Hayır | F90: 0
A91: 7.9. | B91: Denetim günlükleri | C91: Seçmeli | D91: Kurumsal Politika ve Prosedürler | E91: Hayır | F91: =IF(E91="Evet",0.555,0) -> 0
A92: 7.10. | B92: Donanımların çalışma şartları (sıcaklık ve nem gibi) | C92: Seçmeli | D92: Kurumsal Politika ve Prosedürler | E92: Hayır | F92: =IF(E92="Evet",0.555,0) -> 0
A93: 7.11. | B93: Bilgi güvenliği | C93: Zorunlu | D93: Kurumsal Politika ve Prosedürler | E93: Evet | F93: =IF(E93="Evet",1.052,0) -> 1.052
A95: 8. | B95: Saklama süreli dosya planınız için aşağıdakilerden hangileri geçerlidir? | D95: Arşivsel Bağ
A96: 8.1. | B96: Fonksiyon analizi yapılarak belge hiyerarşisinin oluşturulması | C96: Kritik Zorunlu | D96: Arşivsel Bağ | E96: Hayır | F96: =IF(E96="Evet",0.8748,0) -> 0
A97: 8.2. | B97: Dosya ve seri kodlarının oluşturulması | C97: Zorunlu | D97: Arşivsel Bağ | E97: Evet | F97: =IF(E97="Evet",0.1356,0) -> 0.1356
A98: 8.3. | B98: Saklama süresi sonunda yapılacak tasfiye işlemlerinin kararlaştırılması | C98: Seçmeli | D98: Arşivsel Bağ | E98: Evet | F98: =IF(E98="Evet",0.1108,0) -> 0.1108
A99: 8.4. | B99: Standart Dosya Planının, herhangi bir kod ekleme/çıkarması yapılarak kullanılması | C99: Seçmeli | D99: Arşivsel Bağ | E99: Evet | F99: =IF(E99="Evet",0.1108,0) -> 0.1108
A101: 9. | B101: Teknolojik göçle ilgili aşağıdakilerden hangileri geçerlidir? | D101: Teknolojik Koşullar
A102: 9.1. | B102: Belgelerin taşıyıcı ortamının değiştirilip değiştirilmemesi hususunda düzenli aralıklarla incelemelerin yapılması | C102: Seçmeli | D102: Teknolojik Koşullar | E102: Hayır | F102: =IF(E102="Evet",0.1428,0) -> 0
A103: 9.2. | B103: Teknolojik göç sonrası belgelerin erişilebilirliği ve okunabilirliğinin kontrol edilmesi | C103: Kritik Zorunlu | D103: Teknolojik Koşullar | E103: Evet | F103: =IF(E103="Evet",0.8494,0) -> 0.8494
A104: 9.3. | B104: Yeni taşıyıcı ortam ve göçün gerçekleştiği tarihin belge profiline eklenmesi | C104: Kritik Zorunlu | D104: Teknolojik Koşullar | E104: Evet | F104: =IF(E104="Evet",0.8494,0) -> 0.8494
A105: 9.4. | B105: Risk analizinin yapılması | C105: Zorunlu | D105: Teknolojik Koşullar | E105: Evet | F105: =IF(E105="Evet",0.2284,0) -> 0.2284
A107: 10. | B107: Yedeklemelerle ilgili aşağıdakilerden hangileri geçerlidir? | D107: Teknolojik Koşullar
A108: 10.1. | B108: Yedeklemelere sadece yetkili personelin erişmesi | C108: Seçmeli | D108: Teknolojik Koşullar | E108: Evet | F108: =IF(E108="Evet",0.1428,0) -> 0.1428
A109: 10.2. | B109: Belgeler, belge profilleri ve üstverilerin düzenli aralıklarla yedeklenmesi | C109: Kritik Zorunlu | D109: Teknolojik Koşullar | E109: Evet | F109: =IF(E109="Evet",1.2349,0) -> 1.2349
A110: 10.3. | B110: Son yedeklemeden bu yana belgelere yapılan açıklamalar ve işlemlerin denetim günlüklerine kaydedilmesi | C110: Zorunlu | D110: Teknolojik Koşullar | E110: Evet | F110: =IF(E110="Evet",0.2284,0) -> 0.2284
A111: 10.4. | B111: Sistem yedeklemesinin yapılması | C111: Kritik Zorunlu | D111: Teknolojik Koşullar | E111: Evet | F111: =IF(E111="Evet",1.2349,0) -> 1.2349
A112: 10.5. | B112: Son üç yedeklemenin kopyalarının muhafaza edilmesi | C112: Seçmeli | D112: Teknolojik Koşullar | E112: Evet | F112: =IF(E112="Evet",0.1428,0) -> 0.1428
A113: 10.6. | B113: Denetim günlüklerine yedeklemenin başarılı gerçekleşip gerçekleşmediğinin eklenmesi | C113: Seçmeli | D113: Teknolojik Koşullar | E113: Hayır | F113: =IF(E113="Evet",0.1428,0) -> 0
A114: 10.7. | B114: Herhangi bir sorun karşısında bir önceki yedeklemenin devreye alınabilmesi | C114: Zorunlu | D114: Teknolojik Koşullar | E114: Evet | F114: =IF(E114="Evet",0.2284,0) -> 0.2284
A116: 11. | B116: Yedekleme ile ilgili aşağıdaki üstverilerden hangileri sisteminizde mevcuttur? | D116: Teknolojik Koşullar
A117: 11.1. | B117: Yedeklemenin tarihi ve zamanı | C117: Zorunlu | D117: Teknolojik Koşullar | E117: Evet | F117: =IF(E117="Evet",0.2284,0) -> 0.2284
A118: 11.2. | B118: Yedeklemeyi onaylayan | C118: Kritik Zorunlu | D118: Teknolojik Koşullar | E118: Hayır | F118: =IF(E118="Evet",1.4704,0) -> 0
A119: 11.3. | B119: Yedeklemenin konumu | C119: Seçmeli | D119: Teknolojik Koşullar | E119: Evet | F119: =IF(E119="Evet",0.1428,0) -> 0.1428
A120: 11.4. | B120: Yedekleme referans numarası | C120: Zorunlu | D120: Teknolojik Koşullar | E120: Evet | F120: =IF(E120="Evet",0.2284,0) -> 0.2284
A122: 12. | B122: Arşive devredilecek belgelerle ilgili mevcut üstverilerin dışında onların delil değerini ilgilendirecek aşağıdaki üstverilerden hangilerinin kullanılması düşünülmektedir? | D122: Arşivsel Bağ
A123: 12.1. | B123: Devir zamanı | C123: Zorunlu | D123: Arşivsel Bağ | E123: Hayır | F123: =IF(E123="Evet",0.1356,0) -> 0
A124: 12.2. | B124: Belgelerin özgünlüğünü onaylayan teknikler (iz değeri kontrolü, e-imza sertifikalarının kontrolü, belgedeki kişi ile imzanın uyumu vb.) | C124: Kritik Zorunlu | D124: Arşivsel Bağ | E124: Hayır | F124: =IF(E124="Evet",0.6069,0) -> 0
A125: 12.3. | B125: Belgelerin özgünlüğünü onaylayan kişiler | C125: Kritik Zorunlu | D125: Arşivsel Bağ | E125: Hayır | F125: =IF(E125="Evet",0.6069,0) -> 0
A126: 12.4. | B126: Özgünlük değerlendirme raporu | C126: Seçmeli | D126: Arşivsel Bağ | E126: Hayır | F126: =IF(E126="Evet",0.1108,0) -> 0
A127: 12.5. | B127: Belgenin tanımlama bilgileri | C127: Seçmeli | D127: Arşivsel Bağ | E127: Hayır | F127: =IF(E127="Evet",0.1108,0) -> 0
A129: 13. | B129: Belgelerin özgünlüğünün tasdik edilmesi için aşağıdaki adımlardan hangileri geçerlidir? | D129: Arşivsel Bağ
A130: 13.1. | B130: Belgenin, doğduğu fonksiyonun işlemlerinden en az birini gösterecek nitelikte olması | C130: Zorunlu | D130: Arşivsel Bağ | E130: Evet | F130: =IF(E130="Evet",0.1356,0) -> 0.1356
A131: 13.2. | B131: Türüne göre belgenin, sahip olması gereken kimlik tespiti araçlarını (tasdik yöntemi) barındırması | C131: Zorunlu | D131: Arşivsel Bağ | E131: Evet | F131: =IF(E131="Evet",0.1356,0) -> 0.1356
A132: 13.3. | B132: Belge arşive devredildiğinde, onun özniteliklerinin korunduğunu gösteren bir elektronik kurumsal mührün kullanılması | C132: Seçmeli | D132: Arşivsel Bağ | E132: Hayır | F132: =IF(E132="Evet",0.1108,0) -> 0
A133: 13.4. | B133: Belgenin tanımlama bilgilerinin incelenmesi | C133: Seçmeli | D133: Arşivsel Bağ | E133: Hayır | F133: =IF(E133="Evet",0.1108,0) -> 0
A134: 13.5. | B134: Dosya sistemindeki (file system) belge ile veri tabanında tutulan kayıtların ilişkilendirilmesi ve bu ilişkinin kopmaması için gerekli tedbirlerin alınması | C134: Zorunlu | D134: Arşivsel Bağ | E134: Hayır | F134: =IF(E134="Evet",0.1356,0) -> 0
A135: 13.6. | B135: Belge üzerindeki imzaların geçerliliği bitmeden EYP'nin zaman damgası ile damgalanması | C135: Zorunlu | D135: Arşivsel Bağ | E135: Evet | F135: =IF(E135="Evet",0.1356,0) -> 0.1356
A136: 13.7. | B136: Belgedeki imzaların arşiv imzası tipine dönüştürülmesi | C136: Kritik Zorunlu | D136: Arşivsel Bağ | E136: Evet | F136: =IF(E136="Evet",0.9951,0) -> 0.9951
A137: 13.8. | B137: Bütünlük analizinin düzenli kontrol edilmesi | C137: Kritik Zorunlu | D137: Arşivsel Bağ | E137: Hayır | F137: =IF(E137="Evet",0.9951,0) -> 0
A138: 13.9. | B138: Bütünlük bozulması riskine karşı risk değerlendirmesi ve riskten kaçınma raporunun hazırlanması | C138: Seçmeli | D138: Arşivsel Bağ | E138: Hayır | F138: =IF(E138="Evet",0.1108,0) -> 0
A140: 14. | B140: Belgelerin tasfiyesine ilişkin aşağıdaki adımlardan hangileri geçerlidir? | D140: Arşivsel Bağ
A141: 14.1. | B141: Belgeler oluşmadan önce belgelere bir saklama süresi tayin edilmesi | C141: Zorunlu | D141: Arşivsel Bağ | E141: Evet | F141: =IF(E141="Evet",0.1356,0) -> 0.1356
A142: 14.2. | B142: Belgelerin saklama süreleri tamamlandıktan sonra ait oldukları dosyalarla birlikte arşive devredilmesi | C142: Kritik Zorunlu | D142: Arşivsel Bağ | E142: Hayır | F142: =IF(E142="Evet",0.6102,0) -> 0
A143: 14.3. | B143: Saklama süresi aşımının gerekçesi | C143: Zorunlu | D143: Arşivsel Bağ | E143: Evet | F143: =IF(E143="Evet",0.1356,0) -> 0.1356
A144: 14.4. | B144: Belgenin, belge profili ve üstverileriyle birlikte arşive devredilmesi | C144: Kritik Zorunlu | D144: Arşivsel Bağ | E144: Hayır | F144: =IF(E144="Evet",0.6102,0) -> 0
A145: 14.5. | B145: Belge tasfiye edilirken belge profili ve üstverisinin de tasfiye edilmesi | C145: Zorunlu | D145: Arşivsel Bağ | E145: Hayır | F145: =IF(E145="Evet",0.1356,0) -> 0
A146: 14.6. | B146: Belge, ister arşive devredilsin ister imha edilsin referans numarasının sistemde tutulması ve belgenin akıbeti hakkında bir bilgi notunun bulunması | C146: Kritik Zorunlu | D146: Arşivsel Bağ | E146: Hayır | F146: =IF(E146="Evet",0.6102,0) -> 0
A147: 14.7. | B147: Arşive devredilen belgelerin dosyalarıyla birlikte belge yönetim sisteminden kaldırılıp arşiv yönetim sistemine aktarılması | C147: Zorunlu | D147: Arşivsel Bağ | E147: Hayır | F147: =IF(E147="Evet",0.1356,0) -> 0
A149: 15. | B149: Belge yönetimi kapasitesinin geliştirilmesi için aşağıdakilerden hangileri geçerlidir? | D149: Kurumsal Politika ve Prosedürler
A150: 15.1. | B150: Kurumsal belge yönetimi politikasının oluşturulması | C150: Kritik Zorunlu | D150: Kurumsal Politika ve Prosedürler | E150: Evet | F150: =IF(E150="Evet",2.6822,0) -> 2.6822
A151: 15.2. | B151: Bilgi ve belge yönetimi mezunu kişilerin belge yönetimiyle ilgili birimde istihdam edilmesi | C151: Seçmeli | D151: Kurumsal Politika ve Prosedürler | E151: Hayır | F151: =IF(E151="Evet",0.222,0) -> 0
A152: 15.3. | B152: Belge yönetimiyle ilgilenen personelin eğitim programının bulunması (eğitmen eğitimi) | C152: Seçmeli | D152: Kurumsal Politika ve Prosedürler | E152: Evet | F152: =IF(E152="Evet",0.222,0) -> 0.222
A153: 15.4. | B153: Kurum çalışanlarının belge yönetimi birimi tarafından eğitilmesi | C153: Seçmeli | D153: Kurumsal Politika ve Prosedürler | E153: Evet | F153: =IF(E153="Evet",0.222,0) -> 0.222
A154: 15.5. | B154: TSE 13298 Kurumsal sertifikasyon alınması yönünde girişimler yapılması | C154: Zorunlu | D154: Kurumsal Politika ve Prosedürler | E154: Hayır | F154: =IF(E154="Evet",0.1356,0) -> 0
A156: 16. | B156: Arşivlenen belgelerin tanımlanması için bir standardın kullanılması düşünülmekte midir? Lütfen belirtiniz. | D156: Arşivsel Bağ
A157: 16.1. | B157: Evet/Hayır | C157: Seçmeli | D157: Arşivsel Bağ | E157: Hayır | F157: =IF(E157="Evet",0.277,0) -> 0
A159: 17. | B159: Elektronik belge yönetiminde belgenin delil değerini korumak için aşağıdaki teknolojilerden hangilerinin kullanılması düşünülmektedir? | D159: Teknolojik Koşullar
A160: 17.1. | B160: Blokzincir | C160: Seçmeli | D160: Teknolojik Koşullar | E160: Hayır | F160: =IF(E160="Evet",0.357,0) -> 0
A161: 17.2. | B161: Yapay zekâ | C161: Seçmeli | D161: Teknolojik Koşullar | E161: Hayır | F161: =IF(E161="Evet",0.357,0) -> 0
A162: 17.3. | B162: Derin öğrenme/Makine öğrenmesi | C162: Seçmeli | D162: Teknolojik Koşullar | E162: Hayır | F162: 0
A163: 17.4. | B163: Elektronik delil elde etme (Digital forensics-Öykünme, teknolojik göç) | C163: Seçmeli | D163: Teknolojik Koşullar | E163: Hayır | F163: 0
A165: 18. | B165: Yazılım ve donanımla ilgili aşağıdaki ifadelerden hangileri geçerlidir? | D165: Teknolojik Koşullar
A166: 18.1. | B166: Yazılım algoritması ve kaynak kodlarının kurum tarafından saklanması | C166: Kritik Zorunlu | D166: Teknolojik Koşullar | E166: Hayır | F166: =IF(E166="Evet",1.3134,0) -> 0
A167: 18.2 | B167: Veri tabanının arşivlenebilir bir formatta yapılandırılması | C167: Seçmeli | D167: Teknolojik Koşullar | E167: Evet | F167: =IF(E167="Evet",0.1428,0) -> 0.1428
A168: 18.3 | B168: Belgelerin bir kez yazılabilir ortamlarda saklanması | C168: Seçmeli | D168: Teknolojik Koşullar | E168: Evet | F168: =IF(E168="Evet",0.1428,0) -> 0.1428
A169: 18.4. | B169: Belge bileşenlerinin de belgeyle birlikte bütüncül olarak korunması | C169: Zorunlu | D169: Teknolojik Koşullar | E169: Evet | F169: =IF(E169="Evet",0.2284,0) -> 0.2284
A170: 18.5. | B170: Yazılım değiştirildiğinde de belgelere erişilebilmesi | C170: Kritik Zorunlu | D170: Teknolojik Koşullar | E170: Evet | F170: =IF(E170="Evet",1.3134,0) -> 1.3134
A171: 18.6. | B171: Güncel belgelerle arşivlenen belgelerin saklanma konumları arasında bir ayrım yapılması | C171: Seçmeli | D171: Teknolojik Koşullar | E171: Hayır | F171: =IF(E171="Evet",0.1428,0) -> 0
A172: 18.7. | B172: Donanımların üreticilerin tavsiye ettiği kullanım ömrü dolduktan sonra kullanılmaması | C172: Seçmeli | D172: Teknolojik Koşullar | E172: Evet | F172: =IF(E172="Evet",0.1428,0) -> 0.1428
A173: 18.8. | B173: Belgelerin üretildiği araçlardaki donanım ve yazılım özelliklerinin kayıt altına alınması | C173: Zorunlu | D173: Teknolojik Koşullar | E173: Hayır | F173: =IF(E173="Evet",0.2284,0) -> 0
A174: 18.9. | B174: 27001 Sertifikası alınması yönünde girişimlerin yapılması | C174: Zorunlu | D174: Teknolojik Koşullar | E174: Evet | F174: =IF(E174="Evet",0.2284,0) -> 0.2284
A175: 18.10. | B175: Yazılımın TSE 13298 Sertifikasına uygun olması yönünde girişimlerin yapılması | C175: Zorunlu | D175: Teknolojik Koşullar | E175: Evet | F175: =IF(E175="Evet",0.2284,0) -> 0.2284
A176: 18.11. | B176: Log kayıtlarının zaman damgası ile damgalanması | C176: Kritik Zorunlu | D176: Teknolojik Koşullar | E176: Hayır | F176: =IF(E176="Evet",1.3134,0) -> 0
A178: 19. | B178: Üstveriler için aşağıdakilerden hangileri geçerlidir? | D178: Teknolojik Koşullar
A179: 19.1. | B179: Üstverilerin belgeden ayrı olarak XML ya da JSON olarak saklanması | C179: Zorunlu | D179: Teknolojik Koşullar | E179: Evet | F179: =IF(E179="Evet",0.2284,0) -> 0.2284
A180: 19.2. | B180: Üstveriler, belge ile birlikte hareket etmektedir. (Belgenin konumu değiştirildiğinde üstverilerin de beraberinde taşınması) | C180: Kritik Zorunlu | D180: Teknolojik Koşullar | E180: Evet | F180: =IF(E180="Evet",1.5988,0) -> 1.5988
A181: 19.3. | B181: Yöneticilerin yaptığı değişiklikler sonucunda yeni bir üstveri kaydının oluşması ve daha önceki üstveri kaydının muhafaza edilmesi | C181: Zorunlu | D181: Teknolojik Koşullar | E181: Evet | F181: =IF(E181="Evet",0.2284,0) -> 0.2284
A182: 19.4. | B182: Üstveri dosyasının ait olduğu belgenin referans numarasına sahip olması | C182: Zorunlu | D182: Teknolojik Koşullar | E182: Hayır | F182: =IF(E182="Evet",0.2284,0) -> 0
A184: 20. | B184: Denetim günlükleri için aşağıdakilerden hangileri geçerlidir? | D184: Teknolojik Koşullar
A185: 20.1. | B185: Tüm belgeler için denetim günlüklerinin oluşturulması | C185: Seçmeli | D185: Teknolojik Koşullar | E185: Hayır | F185: =IF(E185="Evet",0.357,0) -> 0
A186: 20.2. | B186: Denetim günlükleri oluşturulmasına karar verilen belgeler için, bunların otomatik olarak oluşması | C186: Zorunlu | D186: Teknolojik Koşullar | E186: Hayır | F186: =IF(E186="Evet",0.571,0) -> 0
A187: 20.3. | B187: Denetim günlüklerinin yapılan işlemlerin tarih ve saatini içermesi | C187: Zorunlu | D187: Teknolojik Koşullar | E187: Hayır | F187: =IF(E187="Evet",0.571,0) -> 0
A188: 20.4. | B188: Denetim günlüklerine erişim sırasında bir sorun yaşanıp yaşanmadığının düzenli aralıklarla otomatik olarak kontrol edilmesi | C188: Zorunlu | D188: Teknolojik Koşullar | E188: Hayır | F188: =IF(E188="Evet",0.571,0) -> 0
A189: 20.5. | B189: Denetim günlüklerinin bir kere yazılması ve üzerinde hiç değişiklik yapılmaması | C189: Zorunlu | D189: Teknolojik Koşullar | E189: Hayır | F189: =IF(E189="Evet",0.571,0) -> 0
A191: 21. | B191: Kurumda üretilen ve dışarıdan gelen belgelerin form özellikleri, formatı ve içeriğinin değiştirilmemesine yönelik aşağıdaki hangi yaklaşımları benimsiyorsunuz? | D191: Arşivsel Bağ
A192: 21.1. | B192: İz değeri kontrolü | C192: Zorunlu | D192: Arşivsel Bağ | E192: Evet | F192: =IF(E192="Evet",0.1356,0) -> 0.1356
A193: 21.2. | B193: Dosya tanımlayıcı kullanımı (JHOVE, DROID gibi) | C193: Kritik Zorunlu | D193: Arşivsel Bağ | E193: Hayır | F193: =IF(E193="Evet",1.0782,0) -> 0
A194: 21.3. | B194: Adli bilişim (Digital forensics) yöntemleri | C194: Seçmeli | D194: Arşivsel Bağ | E194: Hayır | F194: =IF(E194="Evet",0.1108,0) -> 0
A195: 21.4. | B195: Log kayıtlarının kontrolü | C195: Zorunlu | D195: Arşivsel Bağ | E195: Hayır | F195: =IF(E195="Evet",0.1356,0) -> 0
A196: 21.5. | B196: Döngüsel artıklık denetimi (CRC) | C196: Seçmeli | D196: Arşivsel Bağ | E196: Hayır | F196: =IF(E196="Evet",0.1108,0) -> 0
B198: Kullandığınız Kaçıncı EBYS? | E198: 3 (Diğer 2'si EDYS gibiydi) | F198: =SUM(F1:F197) -> 37.1955
B199: Sistemi kendiniz mi geliştirdiniz? | E199: Hayır
B200: Kaç yıldır EBYS kullanıyorsunuz? | E200: 4
B201: Yazılımın TSE uygunluk sertifikası var mı? | E201: Evet
B202: KEP kullanıyor musunuz? | E202: Evet
B203: UETS kullanıyor musunuz? | E203: Evet
B204: EYP kullanıyor musunuz? | E204: Evet
B208: Kısaltmalar
B209: EBYS: Elektronik Belge Yönetim Sistemi
B210: KEP: Kayıtlı Elektronik Posta
B211: TSE: Türk Standartları Enstitüsü
B212: UETS: Ulusal Elektronik Tebligat Sistemi
B213: EYP: Elektronik Yazışma Paketi
B214: XML: Extensible Markup Language
B215: JSON: JavaScript Object Notation
B216: JHOVE: JSTOR/Harvard Object Validation Environment
B217: DROID: Digital Record Object Identification

Sheet 4
B1: Sorular | C1: Kriter | D1: Ait Olduğu Hipotez | E1: Cevap | F1: Puan
A2: 1. | B2: Belge yönetim sistemine geçerken kurum aşağıdaki prosedürlerden hangilerini gerçekleştirmiştir? | D2: Kurumsal Politika ve Prosedürler
A3: 1.1. | B3: Kurumun e-belge yönetimi politikasını belirleme | C3: Kritik Zorunlu | D3: Kurumsal Politika ve Prosedürler | E3: Hayır | F3: =IF(E3="Evet",1.6971,0) -> 0
A4: 1.2. | B4: Kurumun e-arşiv yönetimi politikasını belirleme | C4: Kritik Zorunlu | D4: Kurumsal Politika ve Prosedürler | E4: Hayır | F4: =IF(E4="Evet",1.6971,0) -> 0
A5: 1.3. | B5: Fonksiyonlar ve iş süreçleri tanımlama ve belgelerle ilişkilendirme | C5: Kritik Zorunlu | D5: Kurumsal Politika ve Prosedürler | E5: Hayır | F5: =IF(E5="Evet",1.6971,0) -> 0
A6: 1.4. | B6: İş süreçlerine dair dokümantasyon oluşturma | C6: Seçmeli | D6: Kurumsal Politika ve Prosedürler | E6: Hayır | F6: =IF(E6="Evet",0.222,0) -> 0
A7: 1.5. | B7: Form ve şablon oluşturma | C7: Kritik Zorunlu | D7: Kurumsal Politika ve Prosedürler | E7: Evet | F7: =IF(E7="Evet",1.6971,0) -> 1.6971
A8: 1.6. | B8: Belge türüne göre oluşturulan şablonlar için bir kontrol numarası verme | C8: Seçmeli | D8: Kurumsal Politika ve Prosedürler | E8: Hayır | F8: =IF(E8="Evet",0.222,0) -> 0
A9: 1.7. | B9: Spesifik üstveri şemaları çıkarma | C9: Zorunlu | D9: Kurumsal Politika ve Prosedürler | E9: Hayır | F9: =IF(E9="Evet",0.4208,0) -> 0
A10: 1.8. | B10: Belge profilindeki form özelliklerini (belgedeki kişiler, antet, format, teknolojik özellikler, belgeye işlem safhasında yapılan açıklamalar gibi) tanımlama | C10: Seçmeli | D10: Kurumsal Politika ve Prosedürler | E10: Evet | F10: =IF(E10="Evet",0.222,0) -> 0.222
A11: 1.9. | B11: Belgeler ve dosyalar için dosya tasnif planı ve saklama planı hazırlama | C11: Kritik Zorunlu | D11: Kurumsal Politika ve Prosedürler | E11: Hayır | F11: =IF(E11="Evet",1.6971,0) -> 0
A12: 1.10. | B12: Dosya planına uygun dosyalama sistemi geliştirme | C12: Zorunlu | D12: Kurumsal Politika ve Prosedürler | E12: Evet | F12: =IF(E12="Evet",0.4208,0) -> 0.4208
A13: 1.11. | B13: Kontrollü terminoloji oluşturma | C13: Seçmeli | D13: Kurumsal Politika ve Prosedürler | E13: Hayır | F13: =IF(E13="Evet",0.222,0) -> 0
A14: 1.12. | B14: Felaket kurtarma planı ve yedekleme planı oluşturma | C14: Zorunlu | D14: Kurumsal Politika ve Prosedürler | E14: Hayır | F14: =IF(E14="Evet",0.4208,0) -> 0
A16: 2. | B16: Belgenin aşağıdaki form özelliklerinden hangilerini üstverilerde kullanıyorsunuz? | D16: Arşivsel Bağ
A17: 2.1. | B17: Sorumlu (Belgeyi üreten kurum) | C17: Zorunlu | D17: Arşivsel Bağ | E17: Evet | F17: =IF(E17="Evet",0.339,0) -> 0.339
A18: 2.2. | B18: Düzenleyen (Belgedeki irade beyanının sahibi) | C18: Zorunlu | D18: Arşivsel Bağ | E18: Evet | F18: =IF(E18="Evet",0.339,0) -> 0.339
A19: 2.3. | B19: Muhatap/Alıcı | C19: Zorunlu | D19: Arşivsel Bağ | E19: Evet | F19: 0.339
A20: 2.4. | B20: Konu | C20: Zorunlu | D20: Arşivsel Bağ | E20: Evet | F20: 0.339
A21: 2.5. | B21: Format | C21: Zorunlu | D21: Arşivsel Bağ | E21: Hayır | F21: 0
A22: 2.6. | B22: Üretim tarihi | C22: Zorunlu | D22: Arşivsel Bağ | E22: Evet | F22: 0.339
A23: 2.7. | B23: Gönderim/Alma tarihi (KEP) | C23: Zorunlu | D23: Arşivsel Bağ | E23: Evet | F23: 0.339
A24: 2.8. | B24: Belge tarihi (Son imzalayıcının imza attığı tarih) | C24: Zorunlu | D24: Arşivsel Bağ | E24: Evet | F24: 0.339
A26: 3. | B26: Belge profilinde aşağıdaki üstverilerden hangileri bulunmaktadır? | D26: Arşivsel Bağ
A27: 3.1. | B27: Belgenin dosyasına kaldırıldığı zaman | C27: Zorunlu | D27: Arşivsel Bağ | E27: Evet | F27: =IF(E27="Evet",0.1356,0) -> 0.1356
A28: 3.2. | B28: Belgedeki işlemden sorumlu kişi ve birim | C28: Zorunlu | D28: Arşivsel Bağ | E28: Evet | F28: =IF(E28="Evet",0.1356,0) -> 0.1356
A29: 3.3. | B29: Ait olduğu işlem-dosya-seri-birim | C29: Kritik Zorunlu | D29: Arşivsel Bağ | E29: Hayır | F29: =IF(E29="Evet",1.6826,0) -> 0
A30: 3.4. | B30: Dosya kodu | C30: Zorunlu | D30: Arşivsel Bağ | E30: Evet | F30: =IF(E30="Evet",0.1356,0) -> 0.1356
A31: 3.5. | B31: Belge referans numarası | C31: Zorunlu | D31: Arşivsel Bağ | E31: Evet | F31: =IF(E31="Evet",0.1356,0) -> 0.1356
A32: 3.6. | B32: Belgeye erişmek için asgari gereksinimler | C32: Zorunlu | D32: Arşivsel Bağ | E32: Hayır | F32: =IF(E32="Evet",0.1352,0) -> 0
A33: 3.7. | B33: Belgenin üretildiği EBYS yazılımı ve versiyon numarası | C33: Zorunlu | D33: Arşivsel Bağ | E33: Evet | F33: =IF(E33="Evet",0.1356,0) -> 0.1356
A34: 3.8. | B34: Belge yönetimi için kullanılacak algoritmalar (kullanılan EBYS yazılımı algoritmaları ve belgeyi tekrardan üretmek ya da şifreli belgeleri açabilmek için gerekli olan algoritmalar gibi) | C34: Kritik Zorunlu | D34: Arşivsel Bağ | E34: Hayır | F34: =IF(E34="Evet",1.6826,0) -> 0
A35: 3.9. | B35: Belge bileşenleri (Üstveri, belgenin ekleri, form elemanları, kontekst (bağlam), içerik, belgenin oluşumunu sağlayan veriler, iş akışları gibi) | C35: Zorunlu | D35: Arşivsel Bağ | E35: Evet | F35: =IF(E35="Evet",0.1356,0) -> 0.1356
A36: 3.10. | B36: E-imza ve zaman damgası | C36: Zorunlu | D36: Arşivsel Bağ | E36: Evet | F36: =IF(E36="Evet",0.1356,0) -> 0.1356
A37: 3.11. | B37: Saklama süresi | C37: Zorunlu | D37: Arşivsel Bağ | E37: Hayır | F37: =IF(E37="Evet",0.1356,0) -> 0
A38: 3.12. | B38: Belgeye erişim profilleri | C38: Zorunlu | D38: Arşivsel Bağ | E38: Evet | F38: =IF(E38="Evet",0.1356,0) -> 0.1356
A39: 3.13. | B39: Belgelerin lokasyonu (Directory) | C39: Seçmeli | D39: Arşivsel Bağ | E39: Hayır | F39: =IF(E39="Evet",0.1108,0) -> 0
A40: 3.14. | B40: Belgeye yapılan açıklama notları (İşlem safhasında (ivedilik durumu, iletim zamanı, tarih, yer, ekler gibi), kullanım safhasında (belgenin alındığı tarih, belgeyi kullanan birim, gerçekleştirilen işlem, yapılan muamele gibi ) ve yönetim safhasında (belgenin arşive devir tarihi, versiyon numarası, belge referans numarası, dosya kodu, belgeyi düzenleyen ve oluşturan kişi/birim gibi)) | C40: Zorunlu | D40: Arşivsel Bağ | E40: Evet | F40: =IF(E40="Evet",0.1356,0) -> 0.1356
A41: 3.15. | B41: Teknolojik göç ettirme ile ilgili yapılan işlemler | C41: Kritik Zorunlu | D41: Arşivsel Bağ | E41: Hayır | F41: =IF(E41="Evet",1.6826,0) -> 0
A42: 3.16. | B42: Konu | C42: Zorunlu | D42: Arşivsel Bağ | E42: Evet | F42: =IF(E42="Evet",0.1356,0) -> 0.1356
A43: 3.17. | B43: Belgenin sayısı | C43: Zorunlu | D43: Arşivsel Bağ | E43: Evet | F43: 0.1356
A44: 3.18. | B44: Belgenin gizlilik derecesi (Tasnif dışı, hizmete özel, özel, gizli, çok gizli, kişiye özel gibi) | C44: Zorunlu | D44: Arşivsel Bağ | E44: Evet | F44: 0.1356
A45: 3.19. | B45: Dağıtım listesi | C45: Zorunlu | D45: Arşivsel Bağ | E45: Evet | F45: 0.1356
A46: 3.20. | B46: İlgilerin referans numarası | C46: Zorunlu | D46: Arşivsel Bağ | E46: Hayır | F46: 0
A47: 3.21. | B47: Belgenin özet değeri | C47: Zorunlu | D47: Arşivsel Bağ | E47: Hayır | F47: 0
A48: 3.22. | B48: Şifreleme bilgisi | C48: Zorunlu | D48: Arşivsel Bağ | E48: Hayır | F48: 0
A49: 3.23. | B49: Eklerin referans numaraları | C49: Zorunlu | D49: Arşivsel Bağ | E49: Hayır | F49: 0
A51: 4. | B51: Belge bileşenleriyle ilgili aşağıdaki üstverilerden hangileri kurumunuzda kullanılmaktadır? | D51: Arşivsel Bağ
A52: 4.1. | B52: Referans numarası | C52: Zorunlu | D52: Arşivsel Bağ | E52: Evet | F52: =IF(E52="Evet",0.339,0) -> 0.339
A53: 4.2. | B53: Format | C53: Zorunlu | D53: Arşivsel Bağ | E53: Evet | F53: =IF(E53="Evet",0.339,0) -> 0.339
A54: 4.3. | B54: Bileşeni üreten yazılım ve o yazılımda kullanılan algoritmalar | C54: Seçmeli | D54: Arşivsel Bağ | E54: Hayır | F54: =IF(E54="Evet",0.277,0) -> 0
A55: 4.4. | B55: Bileşene erişmek için asgari gereksinimler | C55: Zorunlu | D55: Arşivsel Bağ | E55: Hayır | F55: =IF(E55="Evet",0.339,0) -> 0
A57: 5. | B57: Log kayıtlarında aşağıdaki bilgilerden hangileri bulunmaktadır? | D57: Teknolojik Koşullar
A58: 5.1. | B58: Dokümanın belgeye dönüşme tarih ve zamanı | C58: Zorunlu | D58: Teknolojik Koşullar | E58: Evet | F58: =IF(E58="Evet",0.571,0) -> 0.571
A59: 5.2. | B59: Belgeye erişim istekleri | C59: Zorunlu | D59: Teknolojik Koşullar | E59: Evet | F59: =IF(E59="Evet",0.571,0) -> 0.571
A60: 5.3. | B60: Belgenin iletim geçmişi | C60: Zorunlu | D60: Teknolojik Koşullar | E60: Evet | F60: 0.571
A61: 5.4. | B61: Belgeye yapılan açıklamalar | C61: Zorunlu | D61: Teknolojik Koşullar | E61: Evet | F61: 0.571
A62: 5.5. | B62: Belgede yapılan işlemler ve bu işlemleri yapan kullanıcılar | C62: Zorunlu | D62: Teknolojik Koşullar | E62: Evet | F62: 0.571
A63: 5.6. | B63: Üstverilerde yapılan değişiklikler | C63: Zorunlu | D63: Teknolojik Koşullar | E63: Hayır | F63: 0
A64: 5.7. | B64: Saklama planı ve saklama sürelerinde yapılan değişiklikler | C64: Zorunlu | D64: Teknolojik Koşullar | E64: Hayır | F64: 0
A65: 5.8. | B65: Belgede yaşanan teknolojik değişimler | C65: Zorunlu | D65: Teknolojik Koşullar | E65: Hayır | F65: 0
A66: 5.9. | B66: Sistem arıza ve bakımları | C66: Zorunlu | D66: Teknolojik Koşullar | E66: Evet | F66: 0.571
A67: 5.10. | B67: Paraf bilgileri ve paraflayanın yaptığı işlemler | C67: Zorunlu | D67: Teknolojik Koşullar | E67: Evet | F67: 0.571
A69: 6. | B69: Dosyalama pratikleriyle ilgili aşağıdakilerden hangileri kurumunuz için geçerlidir? | D69: Arşivsel Bağ
A70: 6.1. | B70: Belgelerin hangi işlem, dosya, seri ve birime ait olduğunu seçme | C70: Kritik Zorunlu | D70: Arşivsel Bağ | E70: Hayır | F70: =IF(E70="Evet",1.1427,0) -> 0
A71: 6.2. | B71: Dosya türü ayrımı yapılması (Konu, Vaka, Gölge dosya, Vaka hazırlık dosyası, melez/hibrit dosya gibi) | C71: Kritik Zorunlu | D71: Arşivsel Bağ | E71: Evet | F71: =IF(E71="Evet",1.1427,0) -> 1.1427
A72: 6.3. | B72: Konu dosyalarının periyodik olarak kapanması | C72: Seçmeli | D72: Arşivsel Bağ | E72: Evet | F72: =IF(E72="Evet",0.1108,0) -> 0.1108
A73: 6.4. | B73: Vaka dosyasına giren bir belgenin aynı zamanda bir konu dosyasıyla da ilişkiliyse çoğaltılmadan çapraz referans yapılması | C73: Seçmeli | D73: Arşivsel Bağ | E73: Evet | F73: =IF(E73="Evet",0.1108,0) -> 0.1108
A74: 6.5. | B74: Belgeler ve dosyalar için dosya konu kodunun yanı sıra gerektiğinde özel kodların kullanılması | C74: Seçmeli | D74: Arşivsel Bağ | E74: Evet | F74: =IF(E74="Evet",0.1108,0) -> 0.1108
A75: 6.6 | B75: Belgeye, birim belge yöneticisi tarafından da dosya kodu verilmesi | C75: Seçmeli | D75: Arşivsel Bağ | E75: Evet | F75: =IF(E75="Evet",0.1108,0) -> 0.1108
A76: 6.7. | B76: Birim belge yöneticisinin belgeyi ait olduğunu düşündüğü dosyaya gönderebilmesi | C76: Seçmeli | D76: Arşivsel Bağ | E76: Evet | F76: =IF(E76="Evet",0.1108,0) -> 0.1108
A77: 6.8. | B77: Dosyaların üstverilerinde ait olduğu seri ve birimin belirtilmesi | C77: Zorunlu | D77: Arşivsel Bağ | E77: Evet | F77: =IF(E77="Evet",0.1356,0) -> 0.1356
A78: 6.9. | B78: Dosyaların, ait oldukları seriden farklı bir seriye taşınabilmesi | C78: Zorunlu | D78: Arşivsel Bağ | E78: Evet | F78: =IF(E78="Evet",0.1356,0) -> 0.1356
A79: 6.10. | B79: Sistemde aynı dosyanın parçası olup kâğıt ortamında saklanan belgelerin yerinin belirtilmesi | C79: Zorunlu | D79: Arşivsel Bağ | E79: Evet | F79: =IF(E79="Evet",0.1356,0) -> 0.1356
A80: 6.11. | B80: Belgenin ve dosyanın dosya kodu değişmiş ise eski ve yeninin birlikte gösterilmesi | C80: Seçmeli | D80: Arşivsel Bağ | E80: Evet | F80: =IF(E80="Evet",0.1108,0) -> 0.1108
A82: 7. | B82: Belge yönetimiyle ilgili kurumsal prosedürler aşağıdakilerden hangilerini içermektedir? | D82: Kurumsal Politika ve Prosedürler
A83: 7.1. | B83: Belgenin üretilme kuralları | C83: Zorunlu | D83: Kurumsal Politika ve Prosedürler | E83: Evet | F83: =IF(E83="Evet",1.052,0) -> 1.052
A84: 7.2. | B84: Belgenin iletilme kuralları | C84: Zorunlu | D84: Kurumsal Politika ve Prosedürler | E84: Evet | F84: 1.052
A85: 7.3. | B85: Dışarıdan gelen belgelerin sisteme kaydedilme kuralları | C85: Zorunlu | D85: Kurumsal Politika ve Prosedürler | E85: Evet | F85: 1.052
A86: 7.4. | B86: Belgeyi dosyasına kaldırma kuralları | C86: Zorunlu | D86: Kurumsal Politika ve Prosedürler | E86: Hayır | F86: 0
A87: 7.5. | B87: Belgenin tanımlanmasına ilişkin kurallar | C87: Zorunlu | D87: Kurumsal Politika ve Prosedürler | E87: Hayır | F87: 0
A88: 7.6. | B88: Belgeyi arşive devretme kuralları | C88: Zorunlu | D88: Kurumsal Politika ve Prosedürler | E88: Hayır | F88: 0
A89: 7.7. | B89: Belgelerin teknolojik göçü ve bu göçün geçerliliğine yönelik tasdik prosedürleri | C89: Zorunlu | D89: Kurumsal Politika ve Prosedürler | E89: Hayır | F89: 0
A90: 7.8. | B90: Log kayıtları | C90: Zorunlu | D90: Kurumsal Politika ve Prosedürler | E90: Hayır | F90: 0
A91: 7.9. | B91: Denetim günlükleri | C91: Seçmeli | D91: Kurumsal Politika ve Prosedürler | E91: Hayır | F91: =IF(E91="Evet",0.555,0) -> 0
A92: 7.10. | B92: Donanımların çalışma şartları (sıcaklık ve nem gibi) | C92: Seçmeli | D92: Kurumsal Politika ve Prosedürler | E92: Hayır | F92: =IF(E92="Evet",0.555,0) -> 0
A93: 7.11. | B93: Bilgi güvenliği | C93: Zorunlu | D93: Kurumsal Politika ve Prosedürler | E93: Hayır | F93: =IF(E93="Evet",1.052,0) -> 0
A95: 8. | B95: Saklama süreli dosya planınız için aşağıdakilerden hangileri geçerlidir? | D95: Arşivsel Bağ
A96: 8.1. | B96: Fonksiyon analizi yapılarak belge hiyerarşisinin oluşturulması | C96: Kritik Zorunlu | D96: Arşivsel Bağ | E96: Hayır | F96: =IF(E96="Evet",0.8748,0) -> 0
A97: 8.2. | B97: Dosya ve seri kodlarının oluşturulması | C97: Zorunlu | D97: Arşivsel Bağ | E97: Evet | F97: =IF(E97="Evet",0.1356,0) -> 0.1356
A98: 8.3. | B98: Saklama süresi sonunda yapılacak tasfiye işlemlerinin kararlaştırılması | C98: Seçmeli | D98: Arşivsel Bağ | E98: Hayır | F98: =IF(E98="Evet",0.1108,0) -> 0
A99: 8.4. | B99: Standart Dosya Planının, herhangi bir kod ekleme/çıkarması yapılarak kullanılması | C99: Seçmeli | D99: Arşivsel Bağ | E99: Evet | F99: =IF(E99="Evet",0.1108,0) -> 0.1108
A101: 9. | B101: Teknolojik göçle ilgili aşağıdakilerden hangileri geçerlidir? | D101: Teknolojik Koşullar
A102: 9.1. | B102: Belgelerin taşıyıcı ortamının değiştirilip değiştirilmemesi hususunda düzenli aralıklarla incelemelerin yapılması | C102: Seçmeli | D102: Teknolojik Koşullar | E102: Hayır | F102: =IF(E102="Evet",0.1428,0) -> 0
A103: 9.2. | B103: Teknolojik göç sonrası belgelerin erişilebilirliği ve okunabilirliğinin kontrol edilmesi | C103: Kritik Zorunlu | D103: Teknolojik Koşullar | E103: Hayır | F103: =IF(E103="Evet",0.8494,0) -> 0
A104: 9.3. | B104: Yeni taşıyıcı ortam ve göçün gerçekleştiği tarihin belge profiline eklenmesi | C104: Kritik Zorunlu | D104: Teknolojik Koşullar | E104: Hayır | F104: =IF(E104="Evet",0.8494,0) -> 0
A105: 9.4. | B105: Risk analizinin yapılması | C105: Zorunlu | D105: Teknolojik Koşullar | E105: Hayır | F105: =IF(E105="Evet",0.2284,0) -> 0
A107: 10. | B107: Yedeklemelerle ilgili aşağıdakilerden hangileri geçerlidir? | D107: Teknolojik Koşullar
A108: 10.1. | B108: Yedeklemelere sadece yetkili personelin erişmesi | C108: Seçmeli | D108: Teknolojik Koşullar | E108: Evet | F108: =IF(E108="Evet",0.1428,0) -> 0.1428
A109: 10.2. | B109: Belgeler, belge profilleri ve üstverilerin düzenli aralıklarla yedeklenmesi | C109: Kritik Zorunlu | D109: Teknolojik Koşullar | E109: Evet | F109: =IF(E109="Evet",1.2349,0) -> 1.2349
A110: 10.3. | B110: Son yedeklemeden bu yana belgelere yapılan açıklamalar ve işlemlerin denetim günlüklerine kaydedilmesi | C110: Zorunlu | D110: Teknolojik Koşullar | E110: Evet | F110: =IF(E110="Evet",0.2284,0) -> 0.2284
A111: 10.4. | B111: Sistem yedeklemesinin yapılması | C111: Kritik Zorunlu | D111: Teknolojik Koşullar | E111: Evet | F111: =IF(E111="Evet",1.2349,0) -> 1.2349
A112: 10.5. | B112: Son üç yedeklemenin kopyalarının muhafaza edilmesi | C112: Seçmeli | D112: Teknolojik Koşullar | E112: Hayır | F112: =IF(E112="Evet",0.1428,0) -> 0
A113: 10.6. | B113: Denetim günlüklerine yedeklemenin başarılı gerçekleşip gerçekleşmediğinin eklenmesi | C113: Seçmeli | D113: Teknolojik Koşullar | E113: Evet | F113: =IF(E113="Evet",0.1428,0) -> 0.1428
A114: 10.7. | B114: Herhangi bir sorun karşısında bir önceki yedeklemenin devreye alınabilmesi | C114: Zorunlu | D114: Teknolojik Koşullar | E114: Hayır | F114: =IF(E114="Evet",0.2284,0) -> 0
A116: 11. | B116: Yedekleme ile ilgili aşağıdaki üstverilerden hangileri sisteminizde mevcuttur? | D116: Teknolojik Koşullar
A117: 11.1. | B117: Yedeklemenin tarihi ve zamanı | C117: Zorunlu | D117: Teknolojik Koşullar | E117: Evet | F117: =IF(E117="Evet",0.2284,0) -> 0.2284
A118: 11.2. | B118: Yedeklemeyi onaylayan | C118: Kritik Zorunlu | D118: Teknolojik Koşullar | E118: Evet | F118: =IF(E118="Evet",1.4704,0) -> 1.4704
A119: 11.3. | B119: Yedeklemenin konumu | C119: Seçmeli | D119: Teknolojik Koşullar | E119: Evet | F119: =IF(E119="Evet",0.1428,0) -> 0.1428
A120: 11.4. | B120: Yedekleme referans numarası | C120: Zorunlu | D120: Teknolojik Koşullar | E120: Evet | F120: =IF(E120="Evet",0.2284,0) -> 0.2284
A122: 12. | B122: Arşive devredilecek belgelerle ilgili mevcut üstverilerin dışında onların delil değerini ilgilendirecek aşağıdaki üstverilerden hangilerinin kullanılması düşünülmektedir? | D122: Arşivsel Bağ
A123: 12.1. | B123: Devir zamanı | C123: Zorunlu | D123: Arşivsel Bağ | E123: Hayır | F123: =IF(E123="Evet",0.1356,0) -> 0
A124: 12.2. | B124: Belgelerin özgünlüğünü onaylayan teknikler (iz değeri kontrolü, e-imza sertifikalarının kontrolü, belgedeki kişi ile imzanın uyumu vb.) | C124: Kritik Zorunlu | D124: Arşivsel Bağ | E124: Hayır | F124: =IF(E124="Evet",0.6069,0) -> 0
A125: 12.3. | B125: Belgelerin özgünlüğünü onaylayan kişiler | C125: Kritik Zorunlu | D125: Arşivsel Bağ | E125: Hayır | F125: =IF(E125="Evet",0.6069,0) -> 0
A126: 12.4. | B126: Özgünlük değerlendirme raporu | C126: Seçmeli | D126: Arşivsel Bağ | E126: Hayır | F126: =IF(E126="Evet",0.1108,0) -> 0
A127: 12.5. | B127: Belgenin tanımlama bilgileri | C127: Seçmeli | D127: Arşivsel Bağ | E127: Hayır | F127: =IF(E127="Evet",0.1108,0) -> 0
A129: 13. | B129: Belgelerin özgünlüğünün tasdik edilmesi için aşağıdaki adımlardan hangileri geçerlidir? | D129: Arşivsel Bağ
A130: 13.1. | B130: Belgenin, doğduğu fonksiyonun işlemlerinden en az birini gösterecek nitelikte olması | C130: Zorunlu | D130: Arşivsel Bağ | E130: Hayır | F130: =IF(E130="Evet",0.1356,0) -> 0
A131: 13.2. | B131: Türüne göre belgenin, sahip olması gereken kimlik tespiti araçlarını (tasdik yöntemi) barındırması | C131: Zorunlu | D131: Arşivsel Bağ | E131: Hayır | F131: =IF(E131="Evet",0.1356,0) -> 0
A132: 13.3. | B132: Belge arşive devredildiğinde, onun özniteliklerinin korunduğunu gösteren bir elektronik kurumsal mührün kullanılması | C132: Seçmeli | D132: Arşivsel Bağ | E132: Hayır | F132: =IF(E132="Evet",0.1108,0) -> 0
A133: 13.4. | B133: Belgenin tanımlama bilgilerinin incelenmesi | C133: Seçmeli | D133: Arşivsel Bağ | E133: Hayır | F133: =IF(E133="Evet",0.1108,0) -> 0
A134: 13.5. | B134: Dosya sistemindeki (file system) belge ile veri tabanında tutulan kayıtların ilişkilendirilmesi ve bu ilişkinin kopmaması için gerekli tedbirlerin alınması | C134: Zorunlu | D134: Arşivsel Bağ | E134: Hayır | F134: =IF(E134="Evet",0.1356,0) -> 0
A135: 13.6. | B135: Belge üzerindeki imzaların geçerliliği bitmeden EYP'nin zaman damgası ile damgalanması | C135: Zorunlu | D135: Arşivsel Bağ | E135: Hayır | F135: =IF(E135="Evet",0.1356,0) -> 0
A136: 13.7. | B136: Belgedeki imzaların arşiv imzası tipine dönüştürülmesi | C136: Kritik Zorunlu | D136: Arşivsel Bağ | E136: Hayır | F136: =IF(E136="Evet",0.9951,0) -> 0
A137: 13.8. | B137: Bütünlük analizinin düzenli kontrol edilmesi | C137: Kritik Zorunlu | D137: Arşivsel Bağ | E137: Hayır | F137: =IF(E137="Evet",0.9951,0) -> 0
A138: 13.9. | B138: Bütünlük bozulması riskine karşı risk değerlendirmesi ve riskten kaçınma raporunun hazırlanması | C138: Seçmeli | D138: Arşivsel Bağ | E138: Hayır | F138: =IF(E138="Evet",0.1108,0) -> 0
A140: 14. | B140: Belgelerin tasfiyesine ilişkin aşağıdaki adımlardan hangileri geçerlidir? | D140: Arşivsel Bağ
A141: 14.1. | B141: Belgeler oluşmadan önce belgelere bir saklama süresi tayin edilmesi | C141: Zorunlu | D141: Arşivsel Bağ | E141: Hayır | F141: =IF(E141="Evet",0.1356,0) -> 0
A142: 14.2. | B142: Belgelerin saklama süreleri tamamlandıktan sonra ait oldukları dosyalarla birlikte arşive devredilmesi | C142: Kritik Zorunlu | D142: Arşivsel Bağ | E142: Hayır | F142: =IF(E142="Evet",0.6102,0) -> 0
A143: 14.3. | B143: Saklama süresi aşımının gerekçesi | C143: Zorunlu | D143: Arşivsel Bağ | E143: Hayır | F143: =IF(E143="Evet",0.1356,0) -> 0
A144: 14.4. | B144: Belgenin, belge profili ve üstverileriyle birlikte arşive devredilmesi | C144: Kritik Zorunlu | D144: Arşivsel Bağ | E144: Hayır | F144: =IF(E144="Evet",0.6102,0) -> 0
A145: 14.5. | B145: Belge tasfiye edilirken belge profili ve üstverisinin de tasfiye edilmesi | C145: Zorunlu | D145: Arşivsel Bağ | E145: Hayır | F145: =IF(E145="Evet",0.1356,0) -> 0
A146: 14.6. | B146: Belge, ister arşive devredilsin ister imha edilsin referans numarasının sistemde tutulması ve belgenin akıbeti hakkında bir bilgi notunun bulunması | C146: Kritik Zorunlu | D146: Arşivsel Bağ | E146: Hayır | F146: =IF(E146="Evet",0.6102,0) -> 0
A147: 14.7. | B147: Arşive devredilen belgelerin dosyalarıyla birlikte belge yönetim sisteminden kaldırılıp arşiv yönetim sistemine aktarılması | C147: Zorunlu | D147: Arşivsel Bağ | E147: Hayır | F147: =IF(E147="Evet",0.1356,0) -> 0
A149: 15. | B149: Belge yönetimi kapasitesinin geliştirilmesi için aşağıdakilerden hangileri geçerlidir? | D149: Kurumsal Politika ve Prosedürler
A150: 15.1. | B150: Kurumsal belge yönetimi politikasının oluşturulması | C150: Kritik Zorunlu | D150: Kurumsal Politika ve Prosedürler | E150: Hayır | F150: =IF(E150="Evet",2.6822,0) -> 0
A151: 15.2. | B151: Bilgi ve belge yönetimi mezunu kişilerin belge yönetimiyle ilgili birimde istihdam edilmesi | C151: Seçmeli | D151: Kurumsal Politika ve Prosedürler | E151: Hayır | F151: =IF(E151="Evet",0.222,0) -> 0
A152: 15.3. | B152: Belge yönetimiyle ilgilenen personelin eğitim programının bulunması (eğitmen eğitimi) | C152: Seçmeli | D152: Kurumsal Politika ve Prosedürler | E152: Hayır | F152: =IF(E152="Evet",0.222,0) -> 0
A153: 15.4. | B153: Kurum çalışanlarının belge yönetimi birimi tarafından eğitilmesi | C153: Seçmeli | D153: Kurumsal Politika ve Prosedürler | E153: Hayır | F153: =IF(E153="Evet",0.222,0) -> 0
A154: 15.5. | B154: TSE 13298 Kurumsal sertifikasyon alınması yönünde girişimler yapılması | C154: Zorunlu | D154: Kurumsal Politika ve Prosedürler | E154: Hayır | F154: =IF(E154="Evet",0.1356,0) -> 0
A156: 16. | B156: Arşivlenen belgelerin tanımlanması için bir standardın kullanılması düşünülmekte midir? Lütfen belirtiniz. | D156: Arşivsel Bağ
A157: 16.1. | B157: Evet/Hayır | C157: Seçmeli | D157: Arşivsel Bağ | E157: Hayır | F157: =IF(E157="Evet",0.277,0) -> 0
A159: 17. | B159: Elektronik belge yönetiminde belgenin delil değerini korumak için aşağıdaki teknolojilerden hangilerinin kullanılması düşünülmektedir? | D159: Teknolojik Koşullar
A160: 17.1. | B160: Blokzincir | C160: Seçmeli | D160: Teknolojik Koşullar | E160: Hayır | F160: =IF(E160="Evet",0.357,0) -> 0
A161: 17.2. | B161: Yapay zekâ | C161: Seçmeli | D161: Teknolojik Koşullar | E161: Hayır | F161: =IF(E161="Evet",0.357,0) -> 0
A162: 17.3. | B162: Derin öğrenme/Makine öğrenmesi | C162: Seçmeli | D162: Teknolojik Koşullar | E162: Hayır | F162: 0
A163: 17.4. | B163: Elektronik delil elde etme (Digital forensics-Öykünme, teknolojik göç) | C163: Seçmeli | D163: Teknolojik Koşullar | E163: Hayır | F163: 0
A165: 18. | B165: Yazılım ve donanımla ilgili aşağıdaki ifadelerden hangileri geçerlidir? | D165: Teknolojik Koşullar
A166: 18.1. | B166: Yazılım algoritması ve kaynak kodlarının kurum tarafından saklanması | C166: Kritik Zorunlu | D166: Teknolojik Koşullar | E166: Hayır | F166: =IF(E166="Evet",1.3134,0) -> 0
A167: 18.2 | B167: Veri tabanının arşivlenebilir bir formatta yapılandırılması | C167: Seçmeli | D167: Teknolojik Koşullar | E167: Hayır | F167: =IF(E167="Evet",0.1428,0) -> 0
A168: 18.3 | B168: Belgelerin bir kez yazılabilir ortamlarda saklanması | C168: Seçmeli | D168: Teknolojik Koşullar | E168: Hayır | F168: =IF(E168="Evet",0.1428,0) -> 0
A169: 18.4. | B169: Belge bileşenlerinin de belgeyle birlikte bütüncül olarak korunması | C169: Zorunlu | D169: Teknolojik Koşullar | E169: Hayır | F169: =IF(E169="Evet",0.2284,0) -> 0
A170: 18.5. | B170: Yazılım değiştirildiğinde de belgelere erişilebilmesi | C170: Kritik Zorunlu | D170: Teknolojik Koşullar | E170: Evet | F170: =IF(E170="Evet",1.3134,0) -> 1.3134
A171: 18.6. | B171: Güncel belgelerle arşivlenen belgelerin saklanma konumları arasında bir ayrım yapılması | C171: Seçmeli | D171: Teknolojik Koşullar | E171: Hayır | F171: =IF(E171="Evet",0.1428,0) -> 0
A172: 18.7. | B172: Donanımların üreticilerin tavsiye ettiği kullanım ömrü dolduktan sonra kullanılmaması | C172: Seçmeli | D172: Teknolojik Koşullar | E172: Evet | F172: =IF(E172="Evet",0.1428,0) -> 0.1428
A173: 18.8. | B173: Belgelerin üretildiği araçlardaki donanım ve yazılım özelliklerinin kayıt altına alınması | C173: Zorunlu | D173: Teknolojik Koşullar | E173: Evet | F173: =IF(E173="Evet",0.2284,0) -> 0.2284
A174: 18.9. | B174: 27001 Sertifikası alınması yönünde girişimlerin yapılması | C174: Zorunlu | D174: Teknolojik Koşullar | E174: Evet | F174: =IF(E174="Evet",0.2284,0) -> 0.2284
A175: 18.10. | B175: Yazılımın TSE 13298 Sertifikasına uygun olması yönünde girişimlerin yapılması | C175: Zorunlu | D175: Teknolojik Koşullar | E175: Evet | F175: =IF(E175="Evet",0.2284,0) -> 0.2284
A176: 18.11. | B176: Log kayıtlarının zaman damgası ile damgalanması | C176: Kritik Zorunlu | D176: Teknolojik Koşullar | E176: Evet | F176: =IF(E176="Evet",1.3134,0) -> 1.3134
A178: 19. | B178: Üstveriler için aşağıdakilerden hangileri geçerlidir? | D178: Teknolojik Koşullar
A179: 19.1. | B179: Üstverilerin belgeden ayrı olarak XML ya da JSON olarak saklanması | C179: Zorunlu | D179: Teknolojik Koşullar | E179: Evet | F179: =IF(E179="Evet",0.2284,0) -> 0.2284
A180: 19.2. | B180: Üstveriler, belge ile birlikte hareket etmektedir. (Belgenin konumu değiştirildiğinde üstverilerin de beraberinde taşınması) | C180: Kritik Zorunlu | D180: Teknolojik Koşullar | E180: Evet | F180: =IF(E180="Evet",1.5988,0) -> 1.5988
A181: 19.3. | B181: Yöneticilerin yaptığı değişiklikler sonucunda yeni bir üstveri kaydının oluşması ve daha önceki üstveri kaydının muhafaza edilmesi | C181: Zorunlu | D181: Teknolojik Koşullar | E181: Evet | F181: =IF(E181="Evet",0.2284,0) -> 0.2284
A182: 19.4. | B182: Üstveri dosyasının ait olduğu belgenin referans numarasına sahip olması | C182: Zorunlu | D182: Teknolojik Koşullar | E182: Hayır | F182: =IF(E182="Evet",0.2284,0) -> 0
A184: 20. | B184: Denetim günlükleri için aşağıdakilerden hangileri geçerlidir? | D184: Teknolojik Koşullar
A185: 20.1. | B185: Tüm belgeler için denetim günlüklerinin oluşturulması | C185: Seçmeli | D185: Teknolojik Koşullar | E185: Hayır | F185: =IF(E185="Evet",0.357,0) -> 0
A186: 20.2. | B186: Denetim günlükleri oluşturulmasına karar verilen belgeler için, bunların otomatik olarak oluşması | C186: Zorunlu | D186: Teknolojik Koşullar | E186: Hayır | F186: =IF(E186="Evet",0.571,0) -> 0
A187: 20.3. | B187: Denetim günlüklerinin yapılan işlemlerin tarih ve saatini içermesi | C187: Zorunlu | D187: Teknolojik Koşullar | E187: Hayır | F187: =IF(E187="Evet",0.571,0) -> 0
A188: 20.4. | B188: Denetim günlüklerine erişim sırasında bir sorun yaşanıp yaşanmadığının düzenli aralıklarla otomatik olarak kontrol edilmesi | C188: Zorunlu | D188: Teknolojik Koşullar | E188: Hayır | F188: =IF(E188="Evet",0.571,0) -> 0
A189: 20.5. | B189: Denetim günlüklerinin bir kere yazılması ve üzerinde hiç değişiklik yapılmaması | C189: Zorunlu | D189: Teknolojik Koşullar | E189: Hayır | F189: =IF(E189="Evet",0.571,0) -> 0
A191: 21. | B191: Kurumda üretilen ve dışarıdan gelen belgelerin form özellikleri, formatı ve içeriğinin değiştirilmemesine yönelik aşağıdaki hangi yaklaşımları benimsiyorsunuz? | D191: Arşivsel Bağ
A192: 21.1. | B192: İz değeri kontrolü | C192: Zorunlu | D192: Arşivsel Bağ | E192: Hayır | F192: =IF(E192="Evet",0.1356,0) -> 0
A193: 21.2. | B193: Dosya tanımlayıcı kullanımı (JHOVE, DROID gibi) | C193: Kritik Zorunlu | D193: Arşivsel Bağ | E193: Hayır | F193: =IF(E193="Evet",1.0782,0) -> 0
A194: 21.3. | B194: Adli bilişim (Digital forensics) yöntemleri | C194: Seçmeli | D194: Arşivsel Bağ | E194: Hayır | F194: =IF(E194="Evet",0.1108,0) -> 0
A195: 21.4. | B195: Log kayıtlarının kontrolü | C195: Zorunlu | D195: Arşivsel Bağ | E195: Evet | F195: =IF(E195="Evet",0.1356,0) -> 0.1356
A196: 21.5. | B196: Döngüsel artıklık denetimi (CRC) | C196: Seçmeli | D196: Arşivsel Bağ | E196: Hayır | F196: =IF(E196="Evet",0.1108,0) -> 0
B198: Kullandığınız Kaçıncı EBYS? | E198: 2 | F198: =SUM(F1:F197) -> 27.4672
B199: Sistemi kendiniz mi geliştirdiniz? | E199: Hayır
B200: Kaç yıldır EBYS kullanıyorsunuz? | E200: 7
B201: Yazılımın TSE uygunluk sertifikası Evet mı? | E201: Evet
B202: KEP kullanıyor musunuz? | E202: Evet
B203: UETS kullanıyor musunuz? | E203: Evet
B204: EYP kullanıyor musunuz? | E204: Evet
B208: Kısaltmalar
B209: EBYS: Elektronik Belge Yönetim Sistemi
B210: KEP: Kayıtlı Elektronik Posta
B211: TSE: Türk Standartları Enstitüsü
B212: UETS: Ulusal Elektronik Tebligat Sistemi
B213: EYP: Elektronik Yazışma Paketi
B214: XML: Extensible Markup Language
B215: JSON: JavaScript Object Notation
B216: JHOVE: JSTOR/HarEvetd Object Validation Environment
B217: DROID: Digital Record Object Identification

Sheet 5
B1: Sorular | C1: Kriter | D1: Ait Olduğu Hipotez | E1: Cevap | F1: Puan
A2: 1. | B2: Belge yönetim sistemine geçerken kurum aşağıdaki prosedürlerden hangilerini gerçekleştirmiştir? | D2: Kurumsal Politika ve Prosedürler
A3: 1.1. | B3: Kurumun e-belge yönetimi politikasını belirleme | C3: Kritik Zorunlu | D3: Kurumsal Politika ve Prosedürler | E3: Hayır | F3: =IF(E3="Evet",1.6971,0) -> 0
A4: 1.2. | B4: Kurumun e-arşiv yönetimi politikasını belirleme | C4: Kritik Zorunlu | D4: Kurumsal Politika ve Prosedürler | E4: Hayır | F4: =IF(E4="Evet",0.16971,0) -> 0
A5: 1.3. | B5: Fonksiyonlar ve iş süreçleri tanımlama ve belgelerle ilişkilendirme | C5: Kritik Zorunlu | D5: Kurumsal Politika ve Prosedürler | E5: Hayır | F5: =IF(E5="Evet",1.6971,0) -> 0
A6: 1.4. | B6: İş süreçlerine dair dokümantasyon oluşturma | C6: Seçmeli | D6: Kurumsal Politika ve Prosedürler | E6: Hayır | F6: =IF(E6="Evet",0.222,0) -> 0
A7: 1.5. | B7: Form ve şablon oluşturma | C7: Kritik Zorunlu | D7: Kurumsal Politika ve Prosedürler | E7: Evet | F7: =IF(E7="Evet",1.6971,0) -> 1.6971
A8: 1.6. | B8: Belge türüne göre oluşturulan şablonlar için bir kontrol numarası verme | C8: Seçmeli | D8: Kurumsal Politika ve Prosedürler | E8: Hayır | F8: =IF(E8="Evet",0.222,0) -> 0
A9: 1.7. | B9: Spesifik üstveri şemaları çıkarma | C9: Zorunlu | D9: Kurumsal Politika ve Prosedürler | E9: Evet | F9: =IF(E9="Evet",0.4208,0) -> 0.4208
A10: 1.8. | B10: Belge profilindeki form özelliklerini (belgedeki kişiler, antet, format, teknolojik özellikler, belgeye işlem safhasında yapılan açıklamalar gibi) tanımlama | C10: Seçmeli | D10: Kurumsal Politika ve Prosedürler | E10: Evet | F10: =IF(E10="Evet",0.222,0) -> 0.222
A11: 1.9. | B11: Belgeler ve dosyalar için dosya tasnif planı ve saklama planı hazırlama | C11: Kritik Zorunlu | D11: Kurumsal Politika ve Prosedürler | E11: Evet | F11: =IF(E11="Evet",1.6971,0) -> 1.6971
A12: 1.10. | B12: Dosya planına uygun dosyalama sistemi geliştirme | C12: Zorunlu | D12: Kurumsal Politika ve Prosedürler | E12: Evet | F12: =IF(E12="Evet",0.4208,0) -> 0.4208
A13: 1.11. | B13: Kontrollü terminoloji oluşturma | C13: Seçmeli | D13: Kurumsal Politika ve Prosedürler | E13: Hayır | F13: =IF(E13="Evet",0.222,0) -> 0
A14: 1.12. | B14: Felaket kurtarma planı ve yedekleme planı oluşturma | C14: Zorunlu | D14: Kurumsal Politika ve Prosedürler | E14: Evet | F14: =IF(E14="Evet",0.4208,0) -> 0.4208
A16: 2. | B16: Belgenin aşağıdaki form özelliklerinden hangilerini üstverilerde kullanıyorsunuz? | D16: Arşivsel Bağ
A17: 2.1. | B17: Sorumlu (Belgeyi üreten kurum) | C17: Zorunlu | D17: Arşivsel Bağ | E17: Evet | F17: =IF(E17="Evet",0.339,0) -> 0.339
A18: 2.2. | B18: Düzenleyen (Belgedeki irade beyanının sahibi) | C18: Zorunlu | D18: Arşivsel Bağ | E18: Evet | F18: =IF(E18="Evet",0.339,0) -> 0.339
A19: 2.3. | B19: Muhatap/Alıcı | C19: Zorunlu | D19: Arşivsel Bağ | E19: Evet | F19: 0.339
A20: 2.4. | B20: Konu | C20: Zorunlu | D20: Arşivsel Bağ | E20: Evet | F20: 0.339
A21: 2.5. | B21: Format | C21: Zorunlu | D21: Arşivsel Bağ | E21: Hayır | F21: 0
A22: 2.6. | B22: Üretim tarihi | C22: Zorunlu | D22: Arşivsel Bağ | E22: Evet | F22: 0.339
A23: 2.7. | B23: Gönderim/Alma tarihi (KEP) | C23: Zorunlu | D23: Arşivsel Bağ | E23: Evet | F23: 0.339
A24: 2.8. | B24: Belge tarihi (Son imzalayıcının imza attığı tarih) | C24: Zorunlu | D24: Arşivsel Bağ | E24: Evet | F24: 0.339
A26: 3. | B26: Belge profilinde aşağıdaki üstverilerden hangileri bulunmaktadır? | D26: Arşivsel Bağ
A27: 3.1. | B27: Belgenin dosyasına kaldırıldığı zaman | C27: Zorunlu | D27: Arşivsel Bağ | E27: Evet | F27: =IF(E27="Evet",0.1356,0) -> 0.1356
A28: 3.2. | B28: Belgedeki işlemden sorumlu kişi ve birim | C28: Zorunlu | D28: Arşivsel Bağ | E28: Evet | F28: =IF(E28="Evet",0.1356,0) -> 0.1356
A29: 3.3. | B29: Ait olduğu işlem-dosya-seri-birim | C29: Kritik Zorunlu | D29: Arşivsel Bağ | E29: Hayır | F29: =IF(E29="Evet",1.6826,0) -> 0
A30: 3.4. | B30: Dosya kodu | C30: Zorunlu | D30: Arşivsel Bağ | E30: Evet | F30: =IF(E30="Evet",0.1356,0) -> 0.1356
A31: 3.5. | B31: Belge referans numarası | C31: Zorunlu | D31: Arşivsel Bağ | E31: Evet | F31: =IF(E31="Evet",0.1356,0) -> 0.1356
A32: 3.6. | B32: Belgeye erişmek için asgari gereksinimler | C32: Zorunlu | D32: Arşivsel Bağ | E32: Hayır | F32: =IF(E32="Evet",0.1352,0) -> 0
A33: 3.7. | B33: Belgenin üretildiği EBYS yazılımı ve versiyon numarası | C33: Zorunlu | D33: Arşivsel Bağ | E33: Evet | F33: =IF(E33="Evet",0.1356,0) -> 0.1356
A34: 3.8. | B34: Belge yönetimi için kullanılacak algoritmalar (kullanılan EBYS yazılımı algoritmaları ve belgeyi tekrardan üretmek ya da şifreli belgeleri açabilmek için gerekli olan algoritmalar gibi) | C34: Kritik Zorunlu | D34: Arşivsel Bağ | E34: Hayır | F34: =IF(E34="Evet",1.6826,0) -> 0
A35: 3.9. | B35: Belge bileşenleri (Üstveri, belgenin ekleri, form elemanları, kontekst (bağlam), içerik, belgenin oluşumunu sağlayan veriler, iş akışları gibi) | C35: Zorunlu | D35: Arşivsel Bağ | E35: Evet | F35: =IF(E35="Evet",0.1356,0) -> 0.1356
A36: 3.10. | B36: E-imza ve zaman damgası | C36: Zorunlu | D36: Arşivsel Bağ | E36: Evet | F36: =IF(E36="Evet",0.1356,0) -> 0.1356
A37: 3.11. | B37: Saklama süresi | C37: Zorunlu | D37: Arşivsel Bağ | E37: Hayır | F37: =IF(E37="Evet",0.1356,0) -> 0
A38: 3.12. | B38: Belgeye erişim profilleri | C38: Zorunlu | D38: Arşivsel Bağ | E38: Evet | F38: =IF(E38="Evet",0.1356,0) -> 0.1356
A39: 3.13. | B39: Belgelerin lokasyonu (Directory) | C39: Seçmeli | D39: Arşivsel Bağ | E39: Hayır | F39: =IF(E39="Evet",0.1108,0) -> 0
A40: 3.14. | B40: Belgeye yapılan açıklama notları (İşlem safhasında (ivedilik durumu, iletim zamanı, tarih, yer, ekler gibi), kullanım safhasında (belgenin alındığı tarih, belgeyi kullanan birim, gerçekleştirilen işlem, yapılan muamele gibi ) ve yönetim safhasında (belgenin arşive devir tarihi, versiyon numarası, belge referans numarası, dosya kodu, belgeyi düzenleyen ve oluşturan kişi/birim gibi)) | C40: Zorunlu | D40: Arşivsel Bağ | E40: Evet | F40: =IF(E40="Evet",0.1356,0) -> 0.1356
A41: 3.15. | B41: Teknolojik göç ettirme ile ilgili yapılan işlemler | C41: Kritik Zorunlu | D41: Arşivsel Bağ | E41: Hayır | F41: =IF(E41="Evet",1.6826,0) -> 0
A42: 3.16. | B42: Konu | C42: Zorunlu | D42: Arşivsel Bağ | E42: Evet | F42: =IF(E42="Evet",0.1356,0) -> 0.1356
A43: 3.17. | B43: Belgenin sayısı | C43: Zorunlu | D43: Arşivsel Bağ | E43: Evet | F43: 0.1356
A44: 3.18. | B44: Belgenin gizlilik derecesi (Tasnif dışı, hizmete özel, özel, gizli, çok gizli, kişiye özel gibi) | C44: Zorunlu | D44: Arşivsel Bağ | E44: Evet | F44: 0.1356
A45: 3.19. | B45: Dağıtım listesi | C45: Zorunlu | D45: Arşivsel Bağ | E45: Evet | F45: 0.1356
A46: 3.20. | B46: İlgilerin referans numarası | C46: Zorunlu | D46: Arşivsel Bağ | E46: Hayır | F46: 0
A47: 3.21. | B47: Belgenin özet değeri | C47: Zorunlu | D47: Arşivsel Bağ | E47: Hayır | F47: 0
A48: 3.22. | B48: Şifreleme bilgisi | C48: Zorunlu | D48: Arşivsel Bağ | E48: Hayır | F48: 0
A49: 3.23. | B49: Eklerin referans numaraları | C49: Zorunlu | D49: Arşivsel Bağ | E49: Hayır | F49: 0
A51: 4. | B51: Belge bileşenleriyle ilgili aşağıdaki üstverilerden hangileri kurumunuzda kullanılmaktadır? | D51: Arşivsel Bağ
A52: 4.1. | B52: Referans numarası | C52: Zorunlu | D52: Arşivsel Bağ | E52: Evet | F52: =IF(E52="Evet",0.339,0) -> 0.339
A53: 4.2. | B53: Format | C53: Zorunlu | D53: Arşivsel Bağ | E53: Evet | F53: =IF(E53="Evet",0.339,0) -> 0.339
A54: 4.3. | B54: Bileşeni üreten yazılım ve o yazılımda kullanılan algoritmalar | C54: Seçmeli | D54: Arşivsel Bağ | E54: Hayır | F54: =IF(E54="Evet",0.277,0) -> 0
A55: 4.4. | B55: Bileşene erişmek için asgari gereksinimler | C55: Zorunlu | D55: Arşivsel Bağ | E55: Hayır | F55: =IF(E55="Evet",0.339,0) -> 0
A57: 5. | B57: Log kayıtlarında aşağıdaki bilgilerden hangileri bulunmaktadır? | D57: Teknolojik Koşullar
A58: 5.1. | B58: Dokümanın belgeye dönüşme tarih ve zamanı | C58: Zorunlu | D58: Teknolojik Koşullar | E58: Evet | F58: =IF(E58="Evet",0.571,0) -> 0.571
A59: 5.2. | B59: Belgeye erişim istekleri | C59: Zorunlu | D59: Teknolojik Koşullar | E59: Evet | F59: =IF(E59="Evet",0.571,0) -> 0.571
A60: 5.3. | B60: Belgenin iletim geçmişi | C60: Zorunlu | D60: Teknolojik Koşullar | E60: Evet | F60: 0.571
A61: 5.4. | B61: Belgeye yapılan açıklamalar | C61: Zorunlu | D61: Teknolojik Koşullar | E61: Hayır | F61: 0
A62: 5.5. | B62: Belgede yapılan işlemler ve bu işlemleri yapan kullanıcılar | C62: Zorunlu | D62: Teknolojik Koşullar | E62: Evet | F62: 0.571
A63: 5.6. | B63: Üstverilerde yapılan değişiklikler | C63: Zorunlu | D63: Teknolojik Koşullar | E63: Hayır | F63: 0
A64: 5.7. | B64: Saklama planı ve saklama sürelerinde yapılan değişiklikler | C64: Zorunlu | D64: Teknolojik Koşullar | E64: Hayır | F64: 0
A65: 5.8. | B65: Belgede yaşanan teknolojik değişimler | C65: Zorunlu | D65: Teknolojik Koşullar | E65: Hayır | F65: 0
A66: 5.9. | B66: Sistem arıza ve bakımları | C66: Zorunlu | D66: Teknolojik Koşullar | E66: Evet | F66: 0.571
A67: 5.10. | B67: Paraf bilgileri ve paraflayanın yaptığı işlemler | C67: Zorunlu | D67: Teknolojik Koşullar | E67: Evet | F67: 0.571
A69: 6. | B69: Dosyalama pratikleriyle ilgili aşağıdakilerden hangileri kurumunuz için geçerlidir? | D69: Arşivsel Bağ
A70: 6.1. | B70: Belgelerin hangi işlem, dosya, seri ve birime ait olduğunu seçme | C70: Kritik Zorunlu | D70: Arşivsel Bağ | E70: Hayır | F70: =IF(E70="Evet",1.1427,0) -> 0
A71: 6.2. | B71: Dosya türü ayrımı yapılması (Konu, Vaka, Gölge dosya, Vaka hazırlık dosyası, melez/hibrit dosya gibi) | C71: Kritik Zorunlu | D71: Arşivsel Bağ | E71: Evet | F71: =IF(E71="Evet",1.1427,0) -> 1.1427
A72: 6.3. | B72: Konu dosyalarının periyodik olarak kapanması | C72: Seçmeli | D72: Arşivsel Bağ | E72: Evet | F72: =IF(E72="Evet",0.1108,0) -> 0.1108
A73: 6.4. | B73: Vaka dosyasına giren bir belgenin aynı zamanda bir konu dosyasıyla da ilişkiliyse çoğaltılmadan çapraz referans yapılması | C73: Seçmeli | D73: Arşivsel Bağ | E73: Evet | F73: =IF(E73="Evet",0.1108,0) -> 0.1108
A74: 6.5. | B74: Belgeler ve dosyalar için dosya konu kodunun yanı sıra gerektiğinde özel kodların kullanılması | C74: Seçmeli | D74: Arşivsel Bağ | E74: Evet | F74: =IF(E74="Evet",0.1108,0) -> 0.1108
A75: 6.6 | B75: Belgeye, birim belge yöneticisi tarafından da dosya kodu verilmesi | C75: Seçmeli | D75: Arşivsel Bağ | E75: Evet | F75: =IF(E75="Evet",0.1108,0) -> 0.1108
A76: 6.7. | B76: Birim belge yöneticisinin belgeyi ait olduğunu düşündüğü dosyaya gönderebilmesi | C76: Seçmeli | D76: Arşivsel Bağ | E76: Evet | F76: =IF(E76="Evet",0.1108,0) -> 0.1108
A77: 6.8. | B77: Dosyaların üstverilerinde ait olduğu seri ve birimin belirtilmesi | C77: Zorunlu | D77: Arşivsel Bağ | E77: Evet | F77: =IF(E77="Evet",0.1356,0) -> 0.1356
A78: 6.9. | B78: Dosyaların, ait oldukları seriden farklı bir seriye taşınabilmesi | C78: Zorunlu | D78: Arşivsel Bağ | E78: Evet | F78: =IF(E78="Evet",0.1356,0) -> 0.1356
A79: 6.10. | B79: Sistemde aynı dosyanın parçası olup kâğıt ortamında saklanan belgelerin yerinin belirtilmesi | C79: Zorunlu | D79: Arşivsel Bağ | E79: Evet | F79: =IF(E79="Evet",0.1356,0) -> 0.1356
A80: 6.11. | B80: Belgenin ve dosyanın dosya kodu değişmiş ise eski ve yeninin birlikte gösterilmesi | C80: Seçmeli | D80: Arşivsel Bağ | E80: Evet | F80: =IF(E80="Evet",0.1108,0) -> 0.1108
A82: 7. | B82: Belge yönetimiyle ilgili kurumsal prosedürler aşağıdakilerden hangilerini içermektedir? | D82: Kurumsal Politika ve Prosedürler
A83: 7.1. | B83: Belgenin üretilme kuralları | C83: Zorunlu | D83: Kurumsal Politika ve Prosedürler | E83: Evet | F83: =IF(E83="Evet",1.052,0) -> 1.052
A84: 7.2. | B84: Belgenin iletilme kuralları | C84: Zorunlu | D84: Kurumsal Politika ve Prosedürler | E84: Evet | F84: 1.052
A85: 7.3. | B85: Dışarıdan gelen belgelerin sisteme kaydedilme kuralları | C85: Zorunlu | D85: Kurumsal Politika ve Prosedürler | E85: Evet | F85: 1.052
A86: 7.4. | B86: Belgeyi dosyasına kaldırma kuralları | C86: Zorunlu | D86: Kurumsal Politika ve Prosedürler | E86: Hayır | F86: 0
A87: 7.5. | B87: Belgenin tanımlanmasına ilişkin kurallar | C87: Zorunlu | D87: Kurumsal Politika ve Prosedürler | E87: Hayır | F87: 0
A88: 7.6. | B88: Belgeyi arşive devretme kuralları | C88: Zorunlu | D88: Kurumsal Politika ve Prosedürler | E88: Hayır | F88: 0
A89: 7.7. | B89: Belgelerin teknolojik göçü ve bu göçün geçerliliğine yönelik tasdik prosedürleri | C89: Zorunlu | D89: Kurumsal Politika ve Prosedürler | E89: Hayır | F89: 0
A90: 7.8. | B90: Log kayıtları | C90: Zorunlu | D90: Kurumsal Politika ve Prosedürler | E90: Hayır | F90: 0
A91: 7.9. | B91: Denetim günlükleri | C91: Seçmeli | D91: Kurumsal Politika ve Prosedürler | E91: Hayır | F91: =IF(E91="Evet",0.555,0) -> 0
A92: 7.10. | B92: Donanımların çalışma şartları (sıcaklık ve nem gibi) | C92: Seçmeli | D92: Kurumsal Politika ve Prosedürler | E92: Hayır | F92: =IF(E92="Evet",0.555,0) -> 0
A93: 7.11. | B93: Bilgi güvenliği | C93: Zorunlu | D93: Kurumsal Politika ve Prosedürler | E93: Hayır | F93: =IF(E93="Evet",1.052,0) -> 0
A95: 8. | B95: Saklama süreli dosya planınız için aşağıdakilerden hangileri geçerlidir? | D95: Arşivsel Bağ
A96: 8.1. | B96: Fonksiyon analizi yapılarak belge hiyerarşisinin oluşturulması | C96: Kritik Zorunlu | D96: Arşivsel Bağ | E96: Hayır | F96: =IF(E96="Evet",0.8748,0) -> 0
A97: 8.2. | B97: Dosya ve seri kodlarının oluşturulması | C97: Zorunlu | D97: Arşivsel Bağ | E97: Hayır | F97: =IF(E97="Evet",0.1356,0) -> 0
A98: 8.3. | B98: Saklama süresi sonunda yapılacak tasfiye işlemlerinin kararlaştırılması | C98: Seçmeli | D98: Arşivsel Bağ | E98: Evet | F98: =IF(E98="Evet",0.1108,0) -> 0.1108
A99: 8.4. | B99: Standart Dosya Planının, herhangi bir kod ekleme/çıkarması yapılarak kullanılması | C99: Seçmeli | D99: Arşivsel Bağ | E99: Evet | F99: =IF(E99="Evet",0.1108,0) -> 0.1108
A101: 9. | B101: Teknolojik göçle ilgili aşağıdakilerden hangileri geçerlidir? | D101: Teknolojik Koşullar
A102: 9.1. | B102: Belgelerin taşıyıcı ortamının değiştirilip değiştirilmemesi hususunda düzenli aralıklarla incelemelerin yapılması | C102: Seçmeli | D102: Teknolojik Koşullar | E102: Evet | F102: =IF(E102="Evet",0.1428,0) -> 0.1428
A103: 9.2. | B103: Teknolojik göç sonrası belgelerin erişilebilirliği ve okunabilirliğinin kontrol edilmesi | C103: Kritik Zorunlu | D103: Teknolojik Koşullar | E103: Hayır | F103: =IF(E103="Evet",0.8494,0) -> 0
A104: 9.3. | B104: Yeni taşıyıcı ortam ve göçün gerçekleştiği tarihin belge profiline eklenmesi | C104: Kritik Zorunlu | D104: Teknolojik Koşullar | E104: Hayır | F104: =IF(E104="Evet",0.8494,0) -> 0
A105: 9.4. | B105: Risk analizinin yapılması | C105: Zorunlu | D105: Teknolojik Koşullar | E105: Hayır | F105: =IF(E105="Evet",0.2284,0) -> 0
A107: 10. | B107: Yedeklemelerle ilgili aşağıdakilerden hangileri geçerlidir? | D107: Teknolojik Koşullar
A108: 10.1. | B108: Yedeklemelere sadece yetkili personelin erişmesi | C108: Seçmeli | D108: Teknolojik Koşullar | E108: Evet | F108: =IF(E108="Evet",0.1428,0) -> 0.1428
A109: 10.2. | B109: Belgeler, belge profilleri ve üstverilerin düzenli aralıklarla yedeklenmesi | C109: Kritik Zorunlu | D109: Teknolojik Koşullar | E109: Evet | F109: =IF(E109="Evet",1.2349,0) -> 1.2349
A110: 10.3. | B110: Son yedeklemeden bu yana belgelere yapılan açıklamalar ve işlemlerin denetim günlüklerine kaydedilmesi | C110: Zorunlu | D110: Teknolojik Koşullar | E110: Evet | F110: =IF(E110="Evet",0.2284,0) -> 0.2284
A111: 10.4. | B111: Sistem yedeklemesinin yapılması | C111: Kritik Zorunlu | D111: Teknolojik Koşullar | E111: Evet | F111: =IF(E111="Evet",1.2349,0) -> 1.2349
A112: 10.5. | B112: Son üç yedeklemenin kopyalarının muhafaza edilmesi | C112: Seçmeli | D112: Teknolojik Koşullar | E112: Evet | F112: =IF(E112="Evet",0.1428,0) -> 0.1428
A113: 10.6. | B113: Denetim günlüklerine yedeklemenin başarılı gerçekleşip gerçekleşmediğinin eklenmesi | C113: Seçmeli | D113: Teknolojik Koşullar | E113: Hayır | F113: =IF(E113="Evet",0.1428,0) -> 0
A114: 10.7. | B114: Herhangi bir sorun karşısında bir önceki yedeklemenin devreye alınabilmesi | C114: Zorunlu | D114: Teknolojik Koşullar | E114: Evet | F114: =IF(E114="Evet",0.2284,0) -> 0.2284
A116: 11. | B116: Yedekleme ile ilgili aşağıdaki üstverilerden hangileri sisteminizde mevcuttur? | D116: Teknolojik Koşullar
A117: 11.1. | B117: Yedeklemenin tarihi ve zamanı | C117: Zorunlu | D117: Teknolojik Koşullar | E117: Hayır | F117: =IF(E117="Evet",0.2284,0) -> 0
A118: 11.2. | B118: Yedeklemeyi onaylayan | C118: Kritik Zorunlu | D118: Teknolojik Koşullar | E118: Hayır | F118: =IF(E118="Evet",1.4704,0) -> 0
A119: 11.3. | B119: Yedeklemenin konumu | C119: Seçmeli | D119: Teknolojik Koşullar | E119: Hayır | F119: =IF(E119="Evet",0.1428,0) -> 0
A120: 11.4. | B120: Yedekleme referans numarası | C120: Zorunlu | D120: Teknolojik Koşullar | E120: Hayır | F120: =IF(E120="Evet",0.2284,0) -> 0
A122: 12. | B122: Arşive devredilecek belgelerle ilgili mevcut üstverilerin dışında onların delil değerini ilgilendirecek aşağıdaki üstverilerden hangilerinin kullanılması düşünülmektedir? | D122: Arşivsel Bağ
A123: 12.1. | B123: Devir zamanı | C123: Zorunlu | D123: Arşivsel Bağ | E123: Hayır | F123: =IF(E123="Evet",0.1356,0) -> 0
A124: 12.2. | B124: Belgelerin özgünlüğünü onaylayan teknikler (iz değeri kontrolü, e-imza sertifikalarının kontrolü, belgedeki kişi ile imzanın uyumu vb.) | C124: Kritik Zorunlu | D124: Arşivsel Bağ | E124: Hayır | F124: =IF(E124="Evet",0.6069,0) -> 0
A125: 12.3. | B125: Belgelerin özgünlüğünü onaylayan kişiler | C125: Kritik Zorunlu | D125: Arşivsel Bağ | E125: Hayır | F125: =IF(E125="Evet",0.6069,0) -> 0
A126: 12.4. | B126: Özgünlük değerlendirme raporu | C126: Seçmeli | D126: Arşivsel Bağ | E126: Hayır | F126: =IF(E126="Evet",0.1108,0) -> 0
A127: 12.5. | B127: Belgenin tanımlama bilgileri | C127: Seçmeli | D127: Arşivsel Bağ | E127: Hayır | F127: =IF(E127="Evet",0.1108,0) -> 0
A129: 13. | B129: Belgelerin özgünlüğünün tasdik edilmesi için aşağıdaki adımlardan hangileri geçerlidir? | D129: Arşivsel Bağ
A130: 13.1. | B130: Belgenin, doğduğu fonksiyonun işlemlerinden en az birini gösterecek nitelikte olması | C130: Zorunlu | D130: Arşivsel Bağ | E130: Hayır | F130: =IF(E130="Evet",0.1356,0) -> 0
A131: 13.2. | B131: Türüne göre belgenin, sahip olması gereken kimlik tespiti araçlarını (tasdik yöntemi) barındırması | C131: Zorunlu | D131: Arşivsel Bağ | E131: Hayır | F131: =IF(E131="Evet",0.1356,0) -> 0
A132: 13.3. | B132: Belge arşive devredildiğinde, onun özniteliklerinin korunduğunu gösteren bir elektronik kurumsal mührün kullanılması | C132: Seçmeli | D132: Arşivsel Bağ | E132: Hayır | F132: =IF(E132="Evet",0.1108,0) -> 0
A133: 13.4. | B133: Belgenin tanımlama bilgilerinin incelenmesi | C133: Seçmeli | D133: Arşivsel Bağ | E133: Hayır | F133: =IF(E133="Evet",0.1108,0) -> 0
A134: 13.5. | B134: Dosya sistemindeki (file system) belge ile veri tabanında tutulan kayıtların ilişkilendirilmesi ve bu ilişkinin kopmaması için gerekli tedbirlerin alınması | C134: Zorunlu | D134: Arşivsel Bağ | E134: Hayır | F134: =IF(E134="Evet",0.1356,0) -> 0
A135: 13.6. | B135: Belge üzerindeki imzaların geçerliliği bitmeden EYP'nin zaman damgası ile damgalanması | C135: Zorunlu | D135: Arşivsel Bağ | E135: Hayır | F135: =IF(E135="Evet",0.1356,0) -> 0
A136: 13.7. | B136: Belgedeki imzaların arşiv imzası tipine dönüştürülmesi | C136: Kritik Zorunlu | D136: Arşivsel Bağ | E136: Hayır | F136: =IF(E136="Evet",0.9951,0) -> 0
A137: 13.8. | B137: Bütünlük analizinin düzenli kontrol edilmesi | C137: Kritik Zorunlu | D137: Arşivsel Bağ | E137: Hayır | F137: =IF(E137="Evet",0.9951,0) -> 0
A138: 13.9. | B138: Bütünlük bozulması riskine karşı risk değerlendirmesi ve riskten kaçınma raporunun hazırlanması | C138: Seçmeli | D138: Arşivsel Bağ | E138: Hayır | F138: =IF(E138="Evet",0.1108,0) -> 0
A140: 14. | B140: Belgelerin tasfiyesine ilişkin aşağıdaki adımlardan hangileri geçerlidir? | D140: Arşivsel Bağ
A141: 14.1. | B141: Belgeler oluşmadan önce belgelere bir saklama süresi tayin edilmesi | C141: Zorunlu | D141: Arşivsel Bağ | E141: Evet | F141: =IF(E141="Evet",0.1356,0) -> 0.1356
A142: 14.2. | B142: Belgelerin saklama süreleri tamamlandıktan sonra ait oldukları dosyalarla birlikte arşive devredilmesi | C142: Kritik Zorunlu | D142: Arşivsel Bağ | E142: Hayır | F142: =IF(E142="Evet",0.6102,0) -> 0
A143: 14.3. | B143: Saklama süresi aşımının gerekçesi | C143: Zorunlu | D143: Arşivsel Bağ | E143: Evet | F143: =IF(E143="Evet",0.1356,0) -> 0.1356
A144: 14.4. | B144: Belgenin, belge profili ve üstverileriyle birlikte arşive devredilmesi | C144: Kritik Zorunlu | D144: Arşivsel Bağ | E144: Hayır | F144: =IF(E144="Evet",0.6102,0) -> 0
A145: 14.5. | B145: Belge tasfiye edilirken belge profili ve üstverisinin de tasfiye edilmesi | C145: Zorunlu | D145: Arşivsel Bağ | E145: Hayır | F145: =IF(E145="Evet",0.1356,0) -> 0
A146: 14.6. | B146: Belge, ister arşive devredilsin ister imha edilsin referans numarasının sistemde tutulması ve belgenin akıbeti hakkında bir bilgi notunun bulunması | C146: Kritik Zorunlu | D146: Arşivsel Bağ | E146: Hayır | F146: =IF(E146="Evet",0.6102,0) -> 0
A147: 14.7. | B147: Arşive devredilen belgelerin dosyalarıyla birlikte belge yönetim sisteminden kaldırılıp arşiv yönetim sistemine aktarılması | C147: Zorunlu | D147: Arşivsel Bağ | E147: Hayır | F147: =IF(E147="Evet",0.1356,0) -> 0
A149: 15. | B149: Belge yönetimi kapasitesinin geliştirilmesi için aşağıdakilerden hangileri geçerlidir? | D149: Kurumsal Politika ve Prosedürler
A150: 15.1. | B150: Kurumsal belge yönetimi politikasının oluşturulması | C150: Kritik Zorunlu | D150: Kurumsal Politika ve Prosedürler | E150: Hayır | F150: =IF(E150="Evet",2.6822,0) -> 0
A151: 15.2. | B151: Bilgi ve belge yönetimi mezunu kişilerin belge yönetimiyle ilgili birimde istihdam edilmesi | C151: Seçmeli | D151: Kurumsal Politika ve Prosedürler | E151: Hayır | F151: =IF(E151="Evet",0.222,0) -> 0
A152: 15.3. | B152: Belge yönetimiyle ilgilenen personelin eğitim programının bulunması (eğitmen eğitimi) | C152: Seçmeli | D152: Kurumsal Politika ve Prosedürler | E152: Evet | F152: =IF(E152="Evet",0.222,0) -> 0.222
A153: 15.4. | B153: Kurum çalışanlarının belge yönetimi birimi tarafından eğitilmesi | C153: Seçmeli | D153: Kurumsal Politika ve Prosedürler | E153: Evet | F153: =IF(E153="Evet",0.222,0) -> 0.222
A154: 15.5. | B154: TSE 13298 Kurumsal sertifikasyon alınması yönünde girişimler yapılması | C154: Zorunlu | D154: Kurumsal Politika ve Prosedürler | E154: Hayır | F154: =IF(E154="Evet",0.1356,0) -> 0
A156: 16. | B156: Arşivlenen belgelerin tanımlanması için bir standardın kullanılması düşünülmekte midir? Lütfen belirtiniz. | D156: Arşivsel Bağ
A157: 16.1. | B157: Evet/Hayır | C157: Seçmeli | D157: Arşivsel Bağ | E157: Hayır | F157: =IF(E157="Evet",0.277,0) -> 0
A159: 17. | B159: Elektronik belge yönetiminde belgenin delil değerini korumak için aşağıdaki teknolojilerden hangilerinin kullanılması düşünülmektedir? | D159: Teknolojik Koşullar
A160: 17.1. | B160: Blokzincir | C160: Seçmeli | D160: Teknolojik Koşullar | E160: Hayır | F160: =IF(E160="Evet",0.357,0) -> 0
A161: 17.2. | B161: Yapay zekâ | C161: Seçmeli | D161: Teknolojik Koşullar | E161: Hayır | F161: =IF(E161="Evet",0.357,0) -> 0
A162: 17.3. | B162: Derin öğrenme/Makine öğrenmesi | C162: Seçmeli | D162: Teknolojik Koşullar | E162: Hayır | F162: 0
A163: 17.4. | B163: Elektronik delil elde etme (Digital forensics-Öykünme, teknolojik göç) | C163: Seçmeli | D163: Teknolojik Koşullar | E163: Hayır | F163: 0
A165: 18. | B165: Yazılım ve donanımla ilgili aşağıdaki ifadelerden hangileri geçerlidir? | D165: Teknolojik Koşullar
A166: 18.1. | B166: Yazılım algoritması ve kaynak kodlarının kurum tarafından saklanması | C166: Kritik Zorunlu | D166: Teknolojik Koşullar | E166: Hayır | F166: =IF(E166="Evet",1.3134,0) -> 0
A167: 18.2 | B167: Veri tabanının arşivlenebilir bir formatta yapılandırılması | C167: Seçmeli | D167: Teknolojik Koşullar | E167: Hayır | F167: =IF(E167="Evet",0.1428,0) -> 0
A168: 18.3 | B168: Belgelerin bir kez yazılabilir ortamlarda saklanması | C168: Seçmeli | D168: Teknolojik Koşullar | E168: Hayır | F168: =IF(E168="Evet",0.1428,0) -> 0
A169: 18.4. | B169: Belge bileşenlerinin de belgeyle birlikte bütüncül olarak korunması | C169: Zorunlu | D169: Teknolojik Koşullar | E169: Evet | F169: =IF(E169="Evet",0.2284,0) -> 0.2284
A170: 18.5. | B170: Yazılım değiştirildiğinde de belgelere erişilebilmesi | C170: Kritik Zorunlu | D170: Teknolojik Koşullar | E170: Evet | F170: =IF(E170="Evet",1.3134,0) -> 1.3134
A171: 18.6. | B171: Güncel belgelerle arşivlenen belgelerin saklanma konumları arasında bir ayrım yapılması | C171: Seçmeli | D171: Teknolojik Koşullar | E171: Evet | F171: =IF(E171="Evet",0.1428,0) -> 0.1428
A172: 18.7. | B172: Donanımların üreticilerin tavsiye ettiği kullanım ömrü dolduktan sonra kullanılmaması | C172: Seçmeli | D172: Teknolojik Koşullar | E172: Evet | F172: =IF(E172="Evet",0.1428,0) -> 0.1428
A173: 18.8. | B173: Belgelerin üretildiği araçlardaki donanım ve yazılım özelliklerinin kayıt altına alınması | C173: Zorunlu | D173: Teknolojik Koşullar | E173: Hayır | F173: =IF(E173="Evet",0.2284,0) -> 0
A174: 18.9. | B174: 27001 Sertifikası alınması yönünde girişimlerin yapılması | C174: Zorunlu | D174: Teknolojik Koşullar | E174: Evet | F174: =IF(E174="Evet",0.2284,0) -> 0.2284
A175: 18.10. | B175: Yazılımın TSE 13298 Sertifikasına uygun olması yönünde girişimlerin yapılması | C175: Zorunlu | D175: Teknolojik Koşullar | E175: Evet | F175: =IF(E175="Evet",0.2284,0) -> 0.2284
A176: 18.11. | B176: Log kayıtlarının zaman damgası ile damgalanması | C176: Kritik Zorunlu | D176: Teknolojik Koşullar | E176: Evet | F176: =IF(E176="Evet",1.3134,0) -> 1.3134
A178: 19. | B178: Üstveriler için aşağıdakilerden hangileri geçerlidir? | D178: Teknolojik Koşullar
A179: 19.1. | B179: Üstverilerin belgeden ayrı olarak XML ya da JSON olarak saklanması | C179: Zorunlu | D179: Teknolojik Koşullar | E179: Evet | F179: =IF(E179="Evet",0.2284,0) -> 0.2284
A180: 19.2. | B180: Üstveriler, belge ile birlikte hareket etmektedir. (Belgenin konumu değiştirildiğinde üstverilerin de beraberinde taşınması) | C180: Kritik Zorunlu | D180: Teknolojik Koşullar | E180: Evet | F180: =IF(E180="Evet",1.5988,0) -> 1.5988
A181: 19.3. | B181: Yöneticilerin yaptığı değişiklikler sonucunda yeni bir üstveri kaydının oluşması ve daha önceki üstveri kaydının muhafaza edilmesi | C181: Zorunlu | D181: Teknolojik Koşullar | E181: Evet | F181: =IF(E181="Evet",0.2284,0) -> 0.2284
A182: 19.4. | B182: Üstveri dosyasının ait olduğu belgenin referans numarasına sahip olması | C182: Zorunlu | D182: Teknolojik Koşullar | E182: Hayır | F182: =IF(E182="Evet",0.2284,0) -> 0
A184: 20. | B184: Denetim günlükleri için aşağıdakilerden hangileri geçerlidir? | D184: Teknolojik Koşullar
A185: 20.1. | B185: Tüm belgeler için denetim günlüklerinin oluşturulması | C185: Seçmeli | D185: Teknolojik Koşullar | E185: Hayır | F185: =IF(E185="Evet",0.357,0) -> 0
A186: 20.2. | B186: Denetim günlükleri oluşturulmasına karar verilen belgeler için, bunların otomatik olarak oluşması | C186: Zorunlu | D186: Teknolojik Koşullar | E186: Hayır | F186: =IF(E186="Evet",0.571,0) -> 0
A187: 20.3. | B187: Denetim günlüklerinin yapılan işlemlerin tarih ve saatini içermesi | C187: Zorunlu | D187: Teknolojik Koşullar | E187: Hayır | F187: =IF(E187="Evet",0.571,0) -> 0
A188: 20.4. | B188: Denetim günlüklerine erişim sırasında bir sorun yaşanıp yaşanmadığının düzenli aralıklarla otomatik olarak kontrol edilmesi | C188: Zorunlu | D188: Teknolojik Koşullar | E188: Hayır | F188: =IF(E188="Evet",0.571,0) -> 0
A189: 20.5. | B189: Denetim günlüklerinin bir kere yazılması ve üzerinde hiç değişiklik yapılmaması | C189: Zorunlu | D189: Teknolojik Koşullar | E189: Hayır | F189: =IF(E189="Evet",0.571,0) -> 0
A191: 21. | B191: Kurumda üretilen ve dışarıdan gelen belgelerin form özellikleri, formatı ve içeriğinin değiştirilmemesine yönelik aşağıdaki hangi yaklaşımları benimsiyorsunuz? | D191: Arşivsel Bağ
A192: 21.1. | B192: İz değeri kontrolü | C192: Zorunlu | D192: Arşivsel Bağ | E192: Evet | F192: =IF(E192="Evet",0.1356,0) -> 0.1356
A193: 21.2. | B193: Dosya tanımlayıcı kullanımı (JHOVE, DROID gibi) | C193: Kritik Zorunlu | D193: Arşivsel Bağ | E193: Hayır | F193: =IF(E193="Evet",1.0782,0) -> 0
A194: 21.3. | B194: Adli bilişim (Digital forensics) yöntemleri | C194: Seçmeli | D194: Arşivsel Bağ | E194: Hayır | F194: =IF(E194="Evet",0.1108,0) -> 0
A195: 21.4. | B195: Log kayıtlarının kontrolü | C195: Zorunlu | D195: Arşivsel Bağ | E195: Evet | F195: =IF(E195="Evet",0.1356,0) -> 0.1356
A196: 21.5. | B196: Döngüsel artıklık denetimi (CRC) | C196: Seçmeli | D196: Arşivsel Bağ | E196: Hayır | F196: =IF(E196="Evet",0.1108,0) -> 0
B198: Kullandığınız Kaçıncı EBYS? | E198: 2 | F198: =SUM(F1:F197) -> 28.7049
B199: Sistemi kendiniz mi geliştirdiniz? | E199: Hayır
B200: Kaç yıldır EBYS kullanıyorsunuz? | E200: 8
B201: Yazılımın TSE uygunluk sertifikası var mı? | E201: Evet
B202: KEP kullanıyor musunuz? | E202: Evet
B203: UETS kullanıyor musunuz? | E203: Evet
B204: EYP kullanıyor musunuz? | E204: Evet
B208: Kısaltmalar
B209: EBYS: Elektronik Belge Yönetim Sistemi
B210: KEP: Kayıtlı Elektronik Posta
B211: TSE: Türk Standartları Enstitüsü
B212: UETS: Ulusal Elektronik Tebligat Sistemi
B213: EYP: Elektronik Yazışma Paketi
B214: XML: Extensible Markup Language
B215: JSON: JavaScript Object Notation
B216: JHOVE: JSTOR/Harvard Object Validation Environment
B217: DROID: Digital Record Object Identification

Sheet 6
B1: Sorular | C1: Kriter | D1: Ait Olduğu Hipotez | E1: Cevap | F1: Puan
A2: 1. | B2: Belge yönetim sistemine geçerken kurum aşağıdaki prosedürlerden hangilerini gerçekleştirmiştir? | D2: Kurumsal Politika ve Prosedürler
A3: 1.1. | B3: Kurumun e-belge yönetimi politikasını belirleme | C3: Kritik Zorunlu | D3: Kurumsal Politika ve Prosedürler | E3: Hayır | F3: =IF(E3="Evet",1.6971,0) -> 0
A4: 1.2. | B4: Kurumun e-arşiv yönetimi politikasını belirleme | C4: Kritik Zorunlu | D4: Kurumsal Politika ve Prosedürler | E4: Hayır | F4: =IF(E4="Evet",1.6971,0) -> 0
A5: 1.3. | B5: Fonksiyonlar ve iş süreçleri tanımlama ve belgelerle ilişkilendirme | C5: Kritik Zorunlu | D5: Kurumsal Politika ve Prosedürler | E5: Hayır | F5: =IF(E5="Evet",1.6971,0) -> 0
A6: 1.4. | B6: İş süreçlerine dair dokümantasyon oluşturma | C6: Seçmeli | D6: Kurumsal Politika ve Prosedürler | E6: Hayır | F6: =IF(E6="Evet",0.222,0) -> 0
A7: 1.5. | B7: Form ve şablon oluşturma | C7: Kritik Zorunlu | D7: Kurumsal Politika ve Prosedürler | E7: Evet | F7: =IF(E7="Evet",1.6971,0) -> 1.6971
A8: 1.6. | B8: Belge türüne göre oluşturulan şablonlar için bir kontrol numarası verme | C8: Seçmeli | D8: Kurumsal Politika ve Prosedürler | E8: Hayır | F8: =IF(E8="Evet",0.222,0) -> 0
A9: 1.7. | B9: Spesifik üstveri şemaları çıkarma | C9: Zorunlu | D9: Kurumsal Politika ve Prosedürler | E9: Hayır | F9: =IF(E9="Evet",0.4208,0) -> 0
A10: 1.8. | B10: Belge profilindeki form özelliklerini (belgedeki kişiler, antet, format, teknolojik özellikler, belgeye işlem safhasında yapılan açıklamalar gibi) tanımlama | C10: Seçmeli | D10: Kurumsal Politika ve Prosedürler | E10: Hayır | F10: =IF(E10="Evet",0.222,0) -> 0
A11: 1.9. | B11: Belgeler ve dosyalar için dosya tasnif planı ve saklama planı hazırlama | C11: Kritik Zorunlu | D11: Kurumsal Politika ve Prosedürler | E11: Evet | F11: =IF(E11="Evet",1.6971,0) -> 1.6971
A12: 1.10. | B12: Dosya planına uygun dosyalama sistemi geliştirme | C12: Zorunlu | D12: Kurumsal Politika ve Prosedürler | E12: Evet | F12: =IF(E12="Evet",0.4208,0) -> 0.4208
A13: 1.11. | B13: Kontrollü terminoloji oluşturma | C13: Seçmeli | D13: Kurumsal Politika ve Prosedürler | E13: Hayır | F13: =IF(E13="Evet",0.222,0) -> 0
A14: 1.12. | B14: Felaket kurtarma planı ve yedekleme planı oluşturma | C14: Zorunlu | D14: Kurumsal Politika ve Prosedürler | E14: Evet | F14: =IF(E14="Evet",0.4208,0) -> 0.4208
A16: 2. | B16: Belgenin aşağıdaki form özelliklerinden hangilerini üstverilerde kullanıyorsunuz? | D16: Arşivsel Bağ
A17: 2.1. | B17: Sorumlu (Belgeyi üreten kurum) | C17: Zorunlu | D17: Arşivsel Bağ | E17: Evet | F17: =IF(E17="Evet",0.339,0) -> 0.339
A18: 2.2. | B18: Düzenleyen (Belgedeki irade beyanının sahibi) | C18: Zorunlu | D18: Arşivsel Bağ | E18: Evet | F18: =IF(E18="Evet",0.339,0) -> 0.339
A19: 2.3. | B19: Muhatap/Alıcı | C19: Zorunlu | D19: Arşivsel Bağ | E19: Evet | F19: 0.339
A20: 2.4. | B20: Konu | C20: Zorunlu | D20: Arşivsel Bağ | E20: Evet | F20: 0.339
A21: 2.5. | B21: Format | C21: Zorunlu | D21: Arşivsel Bağ | E21: Hayır | F21: 0
A22: 2.6. | B22: Üretim tarihi | C22: Zorunlu | D22: Arşivsel Bağ | E22: Evet | F22: 0.339
A23: 2.7. | B23: Gönderim/Alma tarihi (KEP) | C23: Zorunlu | D23: Arşivsel Bağ | E23: Evet | F23: 0.339
A24: 2.8. | B24: Belge tarihi (Son imzalayıcının imza attığı tarih) | C24: Zorunlu | D24: Arşivsel Bağ | E24: Evet | F24: 0.339
A26: 3. | B26: Belge profilinde aşağıdaki üstverilerden hangileri bulunmaktadır? | D26: Arşivsel Bağ
A27: 3.1. | B27: Belgenin dosyasına kaldırıldığı zaman | C27: Zorunlu | D27: Arşivsel Bağ | E27: Evet | F27: =IF(E27="Evet",0.1356,0) -> 0.1356
A28: 3.2. | B28: Belgedeki işlemden sorumlu kişi ve birim | C28: Zorunlu | D28: Arşivsel Bağ | E28: Evet | F28: =IF(E28="Evet",0.1356,0) -> 0.1356
A29: 3.3. | B29: Ait olduğu işlem-dosya-seri-birim | C29: Kritik Zorunlu | D29: Arşivsel Bağ | E29: Hayır | F29: =IF(E29="Evet",1.6826,0) -> 0
A30: 3.4. | B30: Dosya kodu | C30: Zorunlu | D30: Arşivsel Bağ | E30: Evet | F30: =IF(E30="Evet",0.1356,0) -> 0.1356
A31: 3.5. | B31: Belge referans numarası | C31: Zorunlu | D31: Arşivsel Bağ | E31: Evet | F31: =IF(E31="Evet",0.1356,0) -> 0.1356
A32: 3.6. | B32: Belgeye erişmek için asgari gereksinimler | C32: Zorunlu | D32: Arşivsel Bağ | E32: Hayır | F32: =IF(E32="Evet",0.1352,0) -> 0
A33: 3.7. | B33: Belgenin üretildiği EBYS yazılımı ve versiyon numarası | C33: Zorunlu | D33: Arşivsel Bağ | E33: Evet | F33: =IF(E33="Evet",0.1356,0) -> 0.1356
A34: 3.8. | B34: Belge yönetimi için kullanılacak algoritmalar (kullanılan EBYS yazılımı algoritmaları ve belgeyi tekrardan üretmek ya da şifreli belgeleri açabilmek için gerekli olan algoritmalar gibi) | C34: Kritik Zorunlu | D34: Arşivsel Bağ | E34: Hayır | F34: =IF(E34="Evet",1.6826,0) -> 0
A35: 3.9. | B35: Belge bileşenleri (Üstveri, belgenin ekleri, form elemanları, kontekst (bağlam), içerik, belgenin oluşumunu sağlayan veriler, iş akışları gibi) | C35: Zorunlu | D35: Arşivsel Bağ | E35: Evet | F35: =IF(E35="Evet",0.1356,0) -> 0.1356
A36: 3.10. | B36: E-imza ve zaman damgası | C36: Zorunlu | D36: Arşivsel Bağ | E36: Evet | F36: =IF(E36="Evet",0.1356,0) -> 0.1356
A37: 3.11. | B37: Saklama süresi | C37: Zorunlu | D37: Arşivsel Bağ | E37: Hayır | F37: =IF(E37="Evet",0.1356,0) -> 0
A38: 3.12. | B38: Belgeye erişim profilleri | C38: Zorunlu | D38: Arşivsel Bağ | E38: Evet | F38: =IF(E38="Evet",0.1356,0) -> 0.1356
A39: 3.13. | B39: Belgelerin lokasyonu (Directory) | C39: Seçmeli | D39: Arşivsel Bağ | E39: Hayır | F39: =IF(E39="Evet",0.1108,0) -> 0
A40: 3.14. | B40: Belgeye yapılan açıklama notları (İşlem safhasında (ivedilik durumu, iletim zamanı, tarih, yer, ekler gibi), kullanım safhasında (belgenin alındığı tarih, belgeyi kullanan birim, gerçekleştirilen işlem, yapılan muamele gibi ) ve yönetim safhasında (belgenin arşive devir tarihi, versiyon numarası, belge referans numarası, dosya kodu, belgeyi düzenleyen ve oluşturan kişi/birim gibi)) | C40: Zorunlu | D40: Arşivsel Bağ | E40: Evet | F40: =IF(E40="Evet",0.1356,0) -> 0.1356
A41: 3.15. | B41: Teknolojik göç ettirme ile ilgili yapılan işlemler | C41: Kritik Zorunlu | D41: Arşivsel Bağ | E41: Hayır | F41: =IF(E41="Evet",1.6826,0) -> 0
A42: 3.16. | B42: Konu | C42: Zorunlu | D42: Arşivsel Bağ | E42: Evet | F42: =IF(E42="Evet",0.1356,0) -> 0.1356
A43: 3.17. | B43: Belgenin sayısı | C43: Zorunlu | D43: Arşivsel Bağ | E43: Evet | F43: 0.1356
A44: 3.18. | B44: Belgenin gizlilik derecesi (Tasnif dışı, hizmete özel, özel, gizli, çok gizli, kişiye özel gibi) | C44: Zorunlu | D44: Arşivsel Bağ | E44: Evet | F44: 0.1356
A45: 3.19. | B45: Dağıtım listesi | C45: Zorunlu | D45: Arşivsel Bağ | E45: Evet | F45: 0.1356
A46: 3.20. | B46: İlgilerin referans numarası | C46: Zorunlu | D46: Arşivsel Bağ | E46: Hayır | F46: 0
A47: 3.21. | B47: Belgenin özet değeri | C47: Zorunlu | D47: Arşivsel Bağ | E47: Hayır | F47: 0
A48: 3.22. | B48: Şifreleme bilgisi | C48: Zorunlu | D48: Arşivsel Bağ | E48: Hayır | F48: 0
A49: 3.23. | B49: Eklerin referans numaraları | C49: Zorunlu | D49: Arşivsel Bağ | E49: Hayır | F49: 0
A51: 4. | B51: Belge bileşenleriyle ilgili aşağıdaki üstverilerden hangileri kurumunuzda kullanılmaktadır? | D51: Arşivsel Bağ
A52: 4.1. | B52: Referans numarası | C52: Zorunlu | D52: Arşivsel Bağ | E52: Evet | F52: =IF(E52="Evet",0.339,0) -> 0.339
A53: 4.2. | B53: Format | C53: Zorunlu | D53: Arşivsel Bağ | E53: Evet | F53: =IF(E53="Evet",0.339,0) -> 0.339
A54: 4.3. | B54: Bileşeni üreten yazılım ve o yazılımda kullanılan algoritmalar | C54: Seçmeli | D54: Arşivsel Bağ | E54: Hayır | F54: =IF(E54="Evet",0.277,0) -> 0
A55: 4.4. | B55: Bileşene erişmek için asgari gereksinimler | C55: Zorunlu | D55: Arşivsel Bağ | E55: Hayır | F55: =IF(E55="Evet",0.339,0) -> 0
A57: 5. | B57: Log kayıtlarında aşağıdaki bilgilerden hangileri bulunmaktadır? | D57: Teknolojik Koşullar
A58: 5.1. | B58: Dokümanın belgeye dönüşme tarih ve zamanı | C58: Zorunlu | D58: Teknolojik Koşullar | E58: Evet | F58: =IF(E58="Evet",0.571,0) -> 0.571
A59: 5.2. | B59: Belgeye erişim istekleri | C59: Zorunlu | D59: Teknolojik Koşullar | E59: Evet | F59: =IF(E59="Evet",0.571,0) -> 0.571
A60: 5.3. | B60: Belgenin iletim geçmişi | C60: Zorunlu | D60: Teknolojik Koşullar | E60: Evet | F60: 0.571
A61: 5.4. | B61: Belgeye yapılan açıklamalar | C61: Zorunlu | D61: Teknolojik Koşullar | E61: Hayır | F61: 0
A62: 5.5. | B62: Belgede yapılan işlemler ve bu işlemleri yapan kullanıcılar | C62: Zorunlu | D62: Teknolojik Koşullar | E62: Hayır | F62: 0
A63: 5.6. | B63: Üstverilerde yapılan değişiklikler | C63: Zorunlu | D63: Teknolojik Koşullar | E63: Hayır | F63: 0
A64: 5.7. | B64: Saklama planı ve saklama sürelerinde yapılan değişiklikler | C64: Zorunlu | D64: Teknolojik Koşullar | E64: Hayır | F64: 0
A65: 5.8. | B65: Belgede yaşanan teknolojik değişimler | C65: Zorunlu | D65: Teknolojik Koşullar | E65: Hayır | F65: 0
A66: 5.9. | B66: Sistem arıza ve bakımları | C66: Zorunlu | D66: Teknolojik Koşullar | E66: Evet | F66: 0.571
A67: 5.10. | B67: Paraf bilgileri ve paraflayanın yaptığı işlemler | C67: Zorunlu | D67: Teknolojik Koşullar | E67: Evet | F67: 0.571
A69: 6. | B69: Dosyalama pratikleriyle ilgili aşağıdakilerden hangileri kurumunuz için geçerlidir? | D69: Arşivsel Bağ
A70: 6.1. | B70: Belgelerin hangi işlem, dosya, seri ve birime ait olduğunu seçme | C70: Kritik Zorunlu | D70: Arşivsel Bağ | E70: Hayır | F70: =IF(E70="Evet",1.1427,0) -> 0
A71: 6.2. | B71: Dosya türü ayrımı yapılması (Konu, Vaka, Gölge dosya, Vaka hazırlık dosyası, melez/hibrit dosya gibi) | C71: Kritik Zorunlu | D71: Arşivsel Bağ | E71: Evet | F71: =IF(E71="Evet",1.1427,0) -> 1.1427
A72: 6.3. | B72: Konu dosyalarının periyodik olarak kapanması | C72: Seçmeli | D72: Arşivsel Bağ | E72: Evet | F72: =IF(E72="Evet",0.1108,0) -> 0.1108
A73: 6.4. | B73: Vaka dosyasına giren bir belgenin aynı zamanda bir konu dosyasıyla da ilişkiliyse çoğaltılmadan çapraz referans yapılması | C73: Seçmeli | D73: Arşivsel Bağ | E73: Evet | F73: =IF(E73="Evet",0.1108,0) -> 0.1108
A74: 6.5. | B74: Belgeler ve dosyalar için dosya konu kodunun yanı sıra gerektiğinde özel kodların kullanılması | C74: Seçmeli | D74: Arşivsel Bağ | E74: Evet | F74: =IF(E74="Evet",0.1108,0) -> 0.1108
A75: 6.6 | B75: Belgeye, birim belge yöneticisi tarafından da dosya kodu verilmesi | C75: Seçmeli | D75: Arşivsel Bağ | E75: Evet | F75: =IF(E75="Evet",0.1108,0) -> 0.1108
A76: 6.7. | B76: Birim belge yöneticisinin belgeyi ait olduğunu düşündüğü dosyaya gönderebilmesi | C76: Seçmeli | D76: Arşivsel Bağ | E76: Evet | F76: =IF(E76="Evet",0.1108,0) -> 0.1108
A77: 6.8. | B77: Dosyaların üstverilerinde ait olduğu seri ve birimin belirtilmesi | C77: Zorunlu | D77: Arşivsel Bağ | E77: Evet | F77: =IF(E77="Evet",0.1356,0) -> 0.1356
A78: 6.9. | B78: Dosyaların, ait oldukları seriden farklı bir seriye taşınabilmesi | C78: Zorunlu | D78: Arşivsel Bağ | E78: Evet | F78: =IF(E78="Evet",0.1356,0) -> 0.1356
A79: 6.10. | B79: Sistemde aynı dosyanın parçası olup kâğıt ortamında saklanan belgelerin yerinin belirtilmesi | C79: Zorunlu | D79: Arşivsel Bağ | E79: Evet | F79: =IF(E79="Evet",0.1356,0) -> 0.1356
A80: 6.11. | B80: Belgenin ve dosyanın dosya kodu değişmiş ise eski ve yeninin birlikte gösterilmesi | C80: Seçmeli | D80: Arşivsel Bağ | E80: Evet | F80: =IF(E80="Evet",0.1108,0) -> 0.1108
A82: 7. | B82: Belge yönetimiyle ilgili kurumsal prosedürler aşağıdakilerden hangilerini içermektedir? | D82: Kurumsal Politika ve Prosedürler
A83: 7.1. | B83: Belgenin üretilme kuralları | C83: Zorunlu | D83: Kurumsal Politika ve Prosedürler | E83: Hayır | F83: =IF(E83="Evet",1.052,0) -> 0
A84: 7.2. | B84: Belgenin iletilme kuralları | C84: Zorunlu | D84: Kurumsal Politika ve Prosedürler | E84: Hayır | F84: 0
A85: 7.3. | B85: Dışarıdan gelen belgelerin sisteme kaydedilme kuralları | C85: Zorunlu | D85: Kurumsal Politika ve Prosedürler | E85: Hayır | F85: 0
A86: 7.4. | B86: Belgeyi dosyasına kaldırma kuralları | C86: Zorunlu | D86: Kurumsal Politika ve Prosedürler | E86: Hayır | F86: 0
A87: 7.5. | B87: Belgenin tanımlanmasına ilişkin kurallar | C87: Zorunlu | D87: Kurumsal Politika ve Prosedürler | E87: Hayır | F87: 0
A88: 7.6. | B88: Belgeyi arşive devretme kuralları | C88: Zorunlu | D88: Kurumsal Politika ve Prosedürler | E88: Hayır | F88: 0
A89: 7.7. | B89: Belgelerin teknolojik göçü ve bu göçün geçerliliğine yönelik tasdik prosedürleri | C89: Zorunlu | D89: Kurumsal Politika ve Prosedürler | E89: Hayır | F89: 0
A90: 7.8. | B90: Log kayıtları | C90: Zorunlu | D90: Kurumsal Politika ve Prosedürler | E90: Hayır | F90: 0
A91: 7.9. | B91: Denetim günlükleri | C91: Seçmeli | D91: Kurumsal Politika ve Prosedürler | E91: Hayır | F91: =IF(E91="Evet",0.555,0) -> 0
A92: 7.10. | B92: Donanımların çalışma şartları (sıcaklık ve nem gibi) | C92: Seçmeli | D92: Kurumsal Politika ve Prosedürler | E92: Hayır | F92: =IF(E92="Evet",0.555,0) -> 0
A93: 7.11. | B93: Bilgi güvenliği | C93: Zorunlu | D93: Kurumsal Politika ve Prosedürler | E93: Hayır | F93: =IF(E93="Evet",1.052,0) -> 0
A95: 8. | B95: Saklama süreli dosya planınız için aşağıdakilerden hangileri geçerlidir? | D95: Arşivsel Bağ
A96: 8.1. | B96: Fonksiyon analizi yapılarak belge hiyerarşisinin oluşturulması | C96: Kritik Zorunlu | D96: Arşivsel Bağ | E96: Hayır | F96: =IF(E96="Evet",0.8748,0) -> 0
A97: 8.2. | B97: Dosya ve seri kodlarının oluşturulması | C97: Zorunlu | D97: Arşivsel Bağ | E97: Hayır | F97: =IF(E97="Evet",0.1356,0) -> 0
A98: 8.3. | B98: Saklama süresi sonunda yapılacak tasfiye işlemlerinin kararlaştırılması | C98: Seçmeli | D98: Arşivsel Bağ | E98: Evet | F98: =IF(E98="Evet",0.1108,0) -> 0.1108
A99: 8.4. | B99: Standart Dosya Planının, herhangi bir kod ekleme/çıkarması yapılarak kullanılması | C99: Seçmeli | D99: Arşivsel Bağ | E99: Evet | F99: =IF(E99="Evet",0.1108,0) -> 0.1108
A101: 9. | B101: Teknolojik göçle ilgili aşağıdakilerden hangileri geçerlidir? | D101: Teknolojik Koşullar
A102: 9.1. | B102: Belgelerin taşıyıcı ortamının değiştirilip değiştirilmemesi hususunda düzenli aralıklarla incelemelerin yapılması | C102: Seçmeli | D102: Teknolojik Koşullar | E102: Hayır | F102: =IF(E102="Evet",0.1428,0) -> 0
A103: 9.2. | B103: Teknolojik göç sonrası belgelerin erişilebilirliği ve okunabilirliğinin kontrol edilmesi | C103: Kritik Zorunlu | D103: Teknolojik Koşullar | E103: Hayır | F103: =IF(E103="Evet",0.8494,0) -> 0
A104: 9.3. | B104: Yeni taşıyıcı ortam ve göçün gerçekleştiği tarihin belge profiline eklenmesi | C104: Kritik Zorunlu | D104: Teknolojik Koşullar | E104: Evet | F104: =IF(E104="Evet",0.8494,0) -> 0.8494
A105: 9.4. | B105: Risk analizinin yapılması | C105: Zorunlu | D105: Teknolojik Koşullar | E105: Hayır | F105: =IF(E105="Evet",0.2284,0) -> 0
A107: 10. | B107: Yedeklemelerle ilgili aşağıdakilerden hangileri geçerlidir? | D107: Teknolojik Koşullar
A108: 10.1. | B108: Yedeklemelere sadece yetkili personelin erişmesi | C108: Seçmeli | D108: Teknolojik Koşullar | E108: Evet | F108: =IF(E108="Evet",0.1428,0) -> 0.1428
A109: 10.2. | B109: Belgeler, belge profilleri ve üstverilerin düzenli aralıklarla yedeklenmesi | C109: Kritik Zorunlu | D109: Teknolojik Koşullar | E109: Evet | F109: =IF(E109="Evet",1.2349,0) -> 1.2349
A110: 10.3. | B110: Son yedeklemeden bu yana belgelere yapılan açıklamalar ve işlemlerin denetim günlüklerine kaydedilmesi | C110: Zorunlu | D110: Teknolojik Koşullar | E110: Hayır | F110: =IF(E110="Evet",0.2284,0) -> 0
A111: 10.4. | B111: Sistem yedeklemesinin yapılması | C111: Kritik Zorunlu | D111: Teknolojik Koşullar | E111: Evet | F111: =IF(E111="Evet",1.2349,0) -> 1.2349
A112: 10.5. | B112: Son üç yedeklemenin kopyalarının muhafaza edilmesi | C112: Seçmeli | D112: Teknolojik Koşullar | E112: Hayır | F112: =IF(E112="Evet",0.1428,0) -> 0
A113: 10.6. | B113: Denetim günlüklerine yedeklemenin başarılı gerçekleşip gerçekleşmediğinin eklenmesi | C113: Seçmeli | D113: Teknolojik Koşullar | E113: Hayır | F113: =IF(E113="Evet",0.1428,0) -> 0
A114: 10.7. | B114: Herhangi bir sorun karşısında bir önceki yedeklemenin devreye alınabilmesi | C114: Zorunlu | D114: Teknolojik Koşullar | E114: Evet | F114: =IF(E114="Evet",0.2284,0) -> 0.2284
A116: 11. | B116: Yedekleme ile ilgili aşağıdaki üstverilerden hangileri sisteminizde mevcuttur? | D116: Teknolojik Koşullar
A117: 11.1. | B117: Yedeklemenin tarihi ve zamanı | C117: Zorunlu | D117: Teknolojik Koşullar | E117: Evet | F117: =IF(E117="Evet",0.2284,0) -> 0.2284
A118: 11.2. | B118: Yedeklemeyi onaylayan | C118: Kritik Zorunlu | D118: Teknolojik Koşullar | E118: Hayır | F118: =IF(E118="Evet",1.4704,0) -> 0
A119: 11.3. | B119: Yedeklemenin konumu | C119: Seçmeli | D119: Teknolojik Koşullar | E119: Evet | F119: =IF(E119="Evet",0.1428,0) -> 0.1428
A120: 11.4. | B120: Yedekleme referans numarası | C120: Zorunlu | D120: Teknolojik Koşullar | E120: Hayır | F120: =IF(E120="Evet",0.2284,0) -> 0
A122: 12. | B122: Arşive devredilecek belgelerle ilgili mevcut üstverilerin dışında onların delil değerini ilgilendirecek aşağıdaki üstverilerden hangilerinin kullanılması düşünülmektedir? | D122: Arşivsel Bağ
A123: 12.1. | B123: Devir zamanı | C123: Zorunlu | D123: Arşivsel Bağ | E123: Hayır | F123: =IF(E123="Evet",0.1356,0) -> 0
A124: 12.2. | B124: Belgelerin özgünlüğünü onaylayan teknikler (iz değeri kontrolü, e-imza sertifikalarının kontrolü, belgedeki kişi ile imzanın uyumu vb.) | C124: Kritik Zorunlu | D124: Arşivsel Bağ | E124: Hayır | F124: =IF(E124="Evet",0.6069,0) -> 0
A125: 12.3. | B125: Belgelerin özgünlüğünü onaylayan kişiler | C125: Kritik Zorunlu | D125: Arşivsel Bağ | E125: Hayır | F125: =IF(E125="Evet",0.6069,0) -> 0
A126: 12.4. | B126: Özgünlük değerlendirme raporu | C126: Seçmeli | D126: Arşivsel Bağ | E126: Hayır | F126: =IF(E126="Evet",0.1108,0) -> 0
A127: 12.5. | B127: Belgenin tanımlama bilgileri | C127: Seçmeli | D127: Arşivsel Bağ | E127: Hayır | F127: =IF(E127="Evet",0.1108,0) -> 0
A129: 13. | B129: Belgelerin özgünlüğünün tasdik edilmesi için aşağıdaki adımlardan hangileri geçerlidir? | D129: Arşivsel Bağ
A130: 13.1. | B130: Belgenin, doğduğu fonksiyonun işlemlerinden en az birini gösterecek nitelikte olması | C130: Zorunlu | D130: Arşivsel Bağ | E130: Hayır | F130: =IF(E130="Evet",0.1356,0) -> 0
A131: 13.2. | B131: Türüne göre belgenin, sahip olması gereken kimlik tespiti araçlarını (tasdik yöntemi) barındırması | C131: Zorunlu | D131: Arşivsel Bağ | E131: Hayır | F131: =IF(E131="Evet",0.1356,0) -> 0
A132: 13.3. | B132: Belge arşive devredildiğinde, onun özniteliklerinin korunduğunu gösteren bir elektronik kurumsal mührün kullanılması | C132: Seçmeli | D132: Arşivsel Bağ | E132: Hayır | F132: =IF(E132="Evet",0.1108,0) -> 0
A133: 13.4. | B133: Belgenin tanımlama bilgilerinin incelenmesi | C133: Seçmeli | D133: Arşivsel Bağ | E133: Hayır | F133: =IF(E133="Evet",0.1108,0) -> 0
A134: 13.5. | B134: Dosya sistemindeki (file system) belge ile veri tabanında tutulan kayıtların ilişkilendirilmesi ve bu ilişkinin kopmaması için gerekli tedbirlerin alınması | C134: Zorunlu | D134: Arşivsel Bağ | E134: Hayır | F134: =IF(E134="Evet",0.1356,0) -> 0
A135: 13.6. | B135: Belge üzerindeki imzaların geçerliliği bitmeden EYP'nin zaman damgası ile damgalanması | C135: Zorunlu | D135: Arşivsel Bağ | E135: Hayır | F135: =IF(E135="Evet",0.1356,0) -> 0
A136: 13.7. | B136: Belgedeki imzaların arşiv imzası tipine dönüştürülmesi | C136: Kritik Zorunlu | D136: Arşivsel Bağ | E136: Hayır | F136: =IF(E136="Evet",0.9951,0) -> 0
A137: 13.8. | B137: Bütünlük analizinin düzenli kontrol edilmesi | C137: Kritik Zorunlu | D137: Arşivsel Bağ | E137: Hayır | F137: =IF(E137="Evet",0.9951,0) -> 0
A138: 13.9. | B138: Bütünlük bozulması riskine karşı risk değerlendirmesi ve riskten kaçınma raporunun hazırlanması | C138: Seçmeli | D138: Arşivsel Bağ | E138: Hayır | F138: =IF(E138="Evet",0.1108,0) -> 0
A140: 14. | B140: Belgelerin tasfiyesine ilişkin aşağıdaki adımlardan hangileri geçerlidir? | D140: Arşivsel Bağ
A141: 14.1. | B141: Belgeler oluşmadan önce belgelere bir saklama süresi tayin edilmesi | C141: Zorunlu | D141: Arşivsel Bağ | E141: Evet | F141: =IF(E141="Evet",0.1356,0) -> 0.1356
A142: 14.2. | B142: Belgelerin saklama süreleri tamamlandıktan sonra ait oldukları dosyalarla birlikte arşive devredilmesi | C142: Kritik Zorunlu | D142: Arşivsel Bağ | E142: Evet | F142: =IF(E142="Evet",0.6102,0) -> 0.6102
A143: 14.3. | B143: Saklama süresi aşımının gerekçesi | C143: Zorunlu | D143: Arşivsel Bağ | E143: Evet | F143: =IF(E143="Evet",0.1356,0) -> 0.1356
A144: 14.4. | B144: Belgenin, belge profili ve üstverileriyle birlikte arşive devredilmesi | C144: Kritik Zorunlu | D144: Arşivsel Bağ | E144: Evet | F144: =IF(E144="Evet",0.6102,0) -> 0.6102
A145: 14.5. | B145: Belge tasfiye edilirken belge profili ve üstverisinin de tasfiye edilmesi | C145: Zorunlu | D145: Arşivsel Bağ | E145: Evet | F145: =IF(E145="Evet",0.1356,0) -> 0.1356
A146: 14.6. | B146: Belge, ister arşive devredilsin ister imha edilsin referans numarasının sistemde tutulması ve belgenin akıbeti hakkında bir bilgi notunun bulunması | C146: Kritik Zorunlu | D146: Arşivsel Bağ | E146: Hayır | F146: =IF(E146="Evet",0.6102,0) -> 0
A147: 14.7. | B147: Arşive devredilen belgelerin dosyalarıyla birlikte belge yönetim sisteminden kaldırılıp arşiv yönetim sistemine aktarılması | C147: Zorunlu | D147: Arşivsel Bağ | E147: Hayır | F147: =IF(E147="Evet",0.1356,0) -> 0
A149: 15. | B149: Belge yönetimi kapasitesinin geliştirilmesi için aşağıdakilerden hangileri geçerlidir? | D149: Kurumsal Politika ve Prosedürler
A150: 15.1. | B150: Kurumsal belge yönetimi politikasının oluşturulması | C150: Kritik Zorunlu | D150: Kurumsal Politika ve Prosedürler | E150: Hayır | F150: =IF(E150="Evet",2.6822,0) -> 0
A151: 15.2. | B151: Bilgi ve belge yönetimi mezunu kişilerin belge yönetimiyle ilgili birimde istihdam edilmesi | C151: Seçmeli | D151: Kurumsal Politika ve Prosedürler | E151: Hayır | F151: =IF(E151="Evet",0.222,0) -> 0
A152: 15.3. | B152: Belge yönetimiyle ilgilenen personelin eğitim programının bulunması (eğitmen eğitimi) | C152: Seçmeli | D152: Kurumsal Politika ve Prosedürler | E152: Hayır | F152: =IF(E152="Evet",0.222,0) -> 0
A153: 15.4. | B153: Kurum çalışanlarının belge yönetimi birimi tarafından eğitilmesi | C153: Seçmeli | D153: Kurumsal Politika ve Prosedürler | E153: Evet | F153: =IF(E153="Evet",0.222,0) -> 0.222
A154: 15.5. | B154: TSE 13298 Kurumsal sertifikasyon alınması yönünde girişimler yapılması | C154: Zorunlu | D154: Kurumsal Politika ve Prosedürler | E154: Hayır | F154: =IF(E154="Evet",0.1356,0) -> 0
A156: 16. | B156: Arşivlenen belgelerin tanımlanması için bir standardın kullanılması düşünülmekte midir? Lütfen belirtiniz. | D156: Arşivsel Bağ
A157: 16.1. | B157: Evet/Hayır | C157: Seçmeli | D157: Arşivsel Bağ | E157: Hayır | F157: =IF(E157="Evet",0.277,0) -> 0
A159: 17. | B159: Elektronik belge yönetiminde belgenin delil değerini korumak için aşağıdaki teknolojilerden hangilerinin kullanılması düşünülmektedir? | D159: Teknolojik Koşullar
A160: 17.1. | B160: Blokzincir | C160: Seçmeli | D160: Teknolojik Koşullar | E160: Hayır | F160: =IF(E160="Evet",0.357,0) -> 0
A161: 17.2. | B161: Yapay zekâ | C161: Seçmeli | D161: Teknolojik Koşullar | E161: Hayır | F161: =IF(E161="Evet",0.357,0) -> 0
A162: 17.3. | B162: Derin öğrenme/Makine öğrenmesi | C162: Seçmeli | D162: Teknolojik Koşullar | E162: Hayır | F162: 0
A163: 17.4. | B163: Elektronik delil elde etme (Digital forensics-Öykünme, teknolojik göç) | C163: Seçmeli | D163: Teknolojik Koşullar | E163: Hayır | F163: 0
A165: 18. | B165: Yazılım ve donanımla ilgili aşağıdaki ifadelerden hangileri geçerlidir? | D165: Teknolojik Koşullar
A166: 18.1. | B166: Yazılım algoritması ve kaynak kodlarının kurum tarafından saklanması | C166: Kritik Zorunlu | D166: Teknolojik Koşullar | E166: Hayır | F166: =IF(E166="Evet",1.3134,0) -> 0
A167: 18.2 | B167: Veri tabanının arşivlenebilir bir formatta yapılandırılması | C167: Seçmeli | D167: Teknolojik Koşullar | E167: Hayır | F167: =IF(E167="Evet",0.1428,0) -> 0
A168: 18.3 | B168: Belgelerin bir kez yazılabilir ortamlarda saklanması | C168: Seçmeli | D168: Teknolojik Koşullar | E168: Hayır | F168: =IF(E168="Evet",0.1428,0) -> 0
A169: 18.4. | B169: Belge bileşenlerinin de belgeyle birlikte bütüncül olarak korunması | C169: Zorunlu | D169: Teknolojik Koşullar | E169: Evet | F169: =IF(E169="Evet",0.2284,0) -> 0.2284
A170: 18.5. | B170: Yazılım değiştirildiğinde de belgelere erişilebilmesi | C170: Kritik Zorunlu | D170: Teknolojik Koşullar | E170: Evet | F170: =IF(E170="Evet",1.3134,0) -> 1.3134
A171: 18.6. | B171: Güncel belgelerle arşivlenen belgelerin saklanma konumları arasında bir ayrım yapılması | C171: Seçmeli | D171: Teknolojik Koşullar | E171: Hayır | F171: =IF(E171="Evet",0.1428,0) -> 0
A172: 18.7. | B172: Donanımların üreticilerin tavsiye ettiği kullanım ömrü dolduktan sonra kullanılmaması | C172: Seçmeli | D172: Teknolojik Koşullar | E172: Evet | F172: =IF(E172="Evet",0.1428,0) -> 0.1428
A173: 18.8. | B173: Belgelerin üretildiği araçlardaki donanım ve yazılım özelliklerinin kayıt altına alınması | C173: Zorunlu | D173: Teknolojik Koşullar | E173: Hayır | F173: =IF(E173="Evet",0.2284,0) -> 0
A174: 18.9. | B174: 27001 Sertifikası alınması yönünde girişimlerin yapılması | C174: Zorunlu | D174: Teknolojik Koşullar | E174: Evet | F174: =IF(E174="Evet",0.2284,0) -> 0.2284
A175: 18.10. | B175: Yazılımın TSE 13298 Sertifikasına uygun olması yönünde girişimlerin yapılması | C175: Zorunlu | D175: Teknolojik Koşullar | E175: Evet | F175: =IF(E175="Evet",0.2284,0) -> 0.2284
A176: 18.11. | B176: Log kayıtlarının zaman damgası ile damgalanması | C176: Kritik Zorunlu | D176: Teknolojik Koşullar | E176: Evet | F176: =IF(E176="Evet",1.3134,0) -> 1.3134
A178: 19. | B178: Üstveriler için aşağıdakilerden hangileri geçerlidir? | D178: Teknolojik Koşullar
A179: 19.1. | B179: Üstverilerin belgeden ayrı olarak XML ya da JSON olarak saklanması | C179: Zorunlu | D179: Teknolojik Koşullar | E179: Evet | F179: =IF(E179="Evet",0.2284,0) -> 0.2284
A180: 19.2. | B180: Üstveriler, belge ile birlikte hareket etmektedir. (Belgenin konumu değiştirildiğinde üstverilerin de beraberinde taşınması) | C180: Kritik Zorunlu | D180: Teknolojik Koşullar | E180: Evet | F180: =IF(E180="Evet",1.5988,0) -> 1.5988
A181: 19.3. | B181: Yöneticilerin yaptığı değişiklikler sonucunda yeni bir üstveri kaydının oluşması ve daha önceki üstveri kaydının muhafaza edilmesi | C181: Zorunlu | D181: Teknolojik Koşullar | E181: Evet | F181: =IF(E181="Evet",0.2284,0) -> 0.2284
A182: 19.4. | B182: Üstveri dosyasının ait olduğu belgenin referans numarasına sahip olması | C182: Zorunlu | D182: Teknolojik Koşullar | E182: Hayır | F182: =IF(E182="Evet",0.2284,0) -> 0
A184: 20. | B184: Denetim günlükleri için aşağıdakilerden hangileri geçerlidir? | D184: Teknolojik Koşullar
A185: 20.1. | B185: Tüm belgeler için denetim günlüklerinin oluşturulması | C185: Seçmeli | D185: Teknolojik Koşullar | E185: Hayır | F185: =IF(E185="Evet",0.357,0) -> 0
A186: 20.2. | B186: Denetim günlükleri oluşturulmasına karar verilen belgeler için, bunların otomatik olarak oluşması | C186: Zorunlu | D186: Teknolojik Koşullar | E186: Hayır | F186: =IF(E186="Evet",0.571,0) -> 0
A187: 20.3. | B187: Denetim günlüklerinin yapılan işlemlerin tarih ve saatini içermesi | C187: Zorunlu | D187: Teknolojik Koşullar | E187: Hayır | F187: =IF(E187="Evet",0.571,0) -> 0
A188: 20.4. | B188: Denetim günlüklerine erişim sırasında bir sorun yaşanıp yaşanmadığının düzenli aralıklarla otomatik olarak kontrol edilmesi | C188: Zorunlu | D188: Teknolojik Koşullar | E188: Hayır | F188: =IF(E188="Evet",0.571,0) -> 0
A189: 20.5. | B189: Denetim günlüklerinin bir kere yazılması ve üzerinde hiç değişiklik yapılmaması | C189: Zorunlu | D189: Teknolojik Koşullar | E189: Hayır | F189: =IF(E189="Evet",0.571,0) -> 0
A191: 21. | B191: Kurumda üretilen ve dışarıdan gelen belgelerin form özellikleri, formatı ve içeriğinin değiştirilmemesine yönelik aşağıdaki hangi yaklaşımları benimsiyorsunuz? | D191: Arşivsel Bağ
A192: 21.1. | B192: İz değeri kontrolü | C192: Zorunlu | D192: Arşivsel Bağ | E192: Hayır | F192: =IF(E192="Evet",0.1356,0) -> 0
A193: 21.2. | B193: Dosya tanımlayıcı kullanımı (JHOVE, DROID gibi) | C193: Kritik Zorunlu | D193: Arşivsel Bağ | E193: Hayır | F193: =IF(E193="Evet",1.0782,0) -> 0
A194: 21.3. | B194: Adli bilişim (Digital forensics) yöntemleri | C194: Seçmeli | D194: Arşivsel Bağ | E194: Hayır | F194: =IF(E194="Evet",0.1108,0) -> 0
A195: 21.4. | B195: Log kayıtlarının kontrolü | C195: Zorunlu | D195: Arşivsel Bağ | E195: Evet | F195: =IF(E195="Evet",0.1356,0) -> 0.1356
A196: 21.5. | B196: Döngüsel artıklık denetimi (CRC) | C196: Seçmeli | D196: Arşivsel Bağ | E196: Hayır | F196: =IF(E196="Evet",0.1108,0) -> 0
B198: Kullandığınız Kaçıncı EBYS? | E198: 2 | F198: =SUM(F1:F197) -> 25.8973
B199: Sistemi kendiniz mi geliştirdiniz? | E199: Hayır
B200: Kaç yıldır EBYS kullanıyorsunuz? | E200: 11
B201: Yazılımın TSE uygunluk sertifikası var mı? | E201: Evet
B202: KEP kullanıyor musunuz? | E202: Evet
B203: UETS kullanıyor musunuz? | E203: Evet
B204: EYP kullanıyor musunuz? | E204: Evet
B208: Kısaltmalar
B209: EBYS: Elektronik Belge Yönetim Sistemi
B210: KEP: Kayıtlı Elektronik Posta
B211: TSE: Türk Standartları Enstitüsü
B212: UETS: Ulusal Elektronik Tebligat Sistemi
B213: EYP: Elektronik Yazışma Paketi
B214: XML: Extensible Markup Language
B215: JSON: JavaScript Object Notation
B216: JHOVE: JSTOR/Harvard Object Validation Environment
B217: DROID: Digital Record Object Identification

Sheet Toplu Cevaplar
E1: Kurum 1 | G1: Kurum 2 | I1: Kurum 3 | K1: Kurum 4 | M1: Kurum 5 | O1: Kurum 6
B2: Sorular | C2: Kriter | D2: Ait Olduğu Hipotez | E2: Cevap | F2: Puan | G2: Cevap | H2: Puan | I2: Cevap | J2: Puan | K2: Cevap | L2: Puan | M2: Cevap | N2: Puan | O2: Cevap | P2: Puan
A3: 1. | B3: Belge yönetim sistemine geçerken kurum aşağıdaki prosedürlerden hangilerini gerçekleştirmiştir? | D3: Kurumsal Politika ve Prosedürler
A4: 1.1. | B4: Kurumun e-belge yönetimi politikasını belirleme | C4: Kritik Zorunlu | D4: Kurumsal Politika ve Prosedürler | E4: Hayır | F4: =IF(E4="Evet",1.6971,0) -> 0 | G4: Evet | H4: =IF(G4="Evet",1.6971,0) -> 1.6971 | I4: Evet | J4: =IF(I4="Evet",1.6971,0) -> 1.6971 | K4: Hayır | L4: =IF(K4="Evet",1.6971,0) -> 0 | M4: Hayır | N4: =IF(M4="Evet",1.6971,0) -> 0 | O4: Hayır | P4: =IF(O4="Evet",1.6971,0) -> 0
A5: 1.2. | B5: Kurumun e-arşiv yönetimi politikasını belirleme | C5: Kritik Zorunlu | D5: Kurumsal Politika ve Prosedürler | E5: Hayır | F5: =IF(E5="Evet",1.6971,0) -> 0 | G5: Hayır | H5: =IF(G5="Evet",1.6971,0) -> 0 | I5: Hayır | J5: =IF(I5="Evet",1.6971,0) -> 0 | K5: Hayır | L5: =IF(K5="Evet",1.6971,0) -> 0 | M5: Hayır | N5: =IF(M5="Evet",1.6971,0) -> 0 | O5: Hayır | P5: =IF(O5="Evet",1.6971,0) -> 0
A6: 1.3. | B6: Fonksiyonlar ve iş süreçleri tanımlama ve belgelerle ilişkilendirme | C6: Kritik Zorunlu | D6: Kurumsal Politika ve Prosedürler | E6: Evet | F6: =IF(E6="Evet",1.6971,0) -> 1.6971 | G6: Hayır | H6: =IF(G6="Evet",1.6971,0) -> 0 | I6: Hayır | J6: =IF(I6="Evet",1.6971,0) -> 0 | K6: Hayır | L6: =IF(K6="Evet",1.6971,0) -> 0 | M6: Hayır | N6: =IF(M6="Evet",1.6971,0) -> 0 | O6: Hayır | P6: =IF(O6="Evet",1.6971,0) -> 0
A7: 1.4. | B7: İş süreçlerine dair dokümantasyon oluşturma | C7: Seçmeli | D7: Kurumsal Politika ve Prosedürler | E7: Evet | F7: =IF(E7="Evet",0.222,0) -> 0.222 | G7: Hayır | H7: =IF(G7="Evet",0.222,0) -> 0 | I7: Hayır | J7: =IF(I7="Evet",0.222,0) -> 0 | K7: Hayır | L7: =IF(K7="Evet",0.222,0) -> 0 | M7: Hayır | N7: =IF(M7="Evet",0.222,0) -> 0 | O7: Hayır | P7: =IF(O7="Evet",0.222,0) -> 0
A8: 1.5. | B8: Form ve şablon oluşturma | C8: Kritik Zorunlu | D8: Kurumsal Politika ve Prosedürler | E8: Evet | F8: =IF(E8="Evet",1.6971,0) -> 1.6971 | G8: Evet | H8: =IF(G8="Evet",1.6971,0) -> 1.6971 | I8: Evet | J8: =IF(I8="Evet",1.6971,0) -> 1.6971 | K8: Evet | L8: =IF(K8="Evet",1.6971,0) -> 1.6971 | M8: Evet | N8: =IF(M8="Evet",1.6971,0) -> 1.6971 | O8: Evet | P8: =IF(O8="Evet",1.6971,0) -> 1.6971
A9: 1.6. | B9: Belge türüne göre oluşturulan şablonlar için bir kontrol numarası verme | C9: Seçmeli | D9: Kurumsal Politika ve Prosedürler | E9: Hayır | F9: =IF(E9="Evet",0.222,0) -> 0 | G9: Evet | H9: =IF(G9="Evet",0.222,0) -> 0.222 | I9: Evet | J9: =IF(I9="Evet",0.222,0) -> 0.222 | K9: Hayır | L9: =IF(K9="Evet",0.222,0) -> 0 | M9: Hayır | N9: =IF(M9="Evet",0.222,0) -> 0 | O9: Hayır | P9: =IF(O9="Evet",0.222,0) -> 0
A10: 1.7. | B10: Spesifik üstveri şemaları çıkarma | C10: Zorunlu | D10: Kurumsal Politika ve Prosedürler | E10: Evet | F10: =IF(E10="Evet",0.4208,0) -> 0.4208 | G10: Hayır | H10: =IF(G10="Evet",0.4208,0) -> 0 | I10: Evet | J10: =IF(I10="Evet",0.4208,0) -> 0.4208 | K10: Hayır | L10: =IF(K10="Evet",0.4208,0) -> 0 | M10: Evet | N10: =IF(M10="Evet",0.4208,0) -> 0.4208 | O10: Hayır | P10: =IF(O10="Evet",0.4208,0) -> 0
A11: 1.8. | B11: Belge profilindeki form özelliklerini (belgedeki kişiler, antet, format, teknolojik özellikler, belgeye işlem safhasında yapılan açıklamalar gibi) tanımlama | C11: Seçmeli | D11: Kurumsal Politika ve Prosedürler | E11: Evet | F11: =IF(E11="Evet",0.222,0) -> 0.222 | G11: Evet | H11: =IF(G11="Evet",0.222,0) -> 0.222 | I11: Evet | J11: =IF(I11="Evet",0.222,0) -> 0.222 | K11: Evet | L11: =IF(K11="Evet",0.222,0) -> 0.222 | M11: Evet | N11: =IF(M11="Evet",0.222,0) -> 0.222 | O11: Hayır | P11: =IF(O11="Evet",0.222,0) -> 0
A12: 1.9. | B12: Belgeler ve dosyalar için dosya tasnif planı ve saklama planı hazırlama | C12: Kritik Zorunlu | D12: Kurumsal Politika ve Prosedürler | E12: Evet | F12: =IF(E12="Evet",1.6971,0) -> 1.6971 | G12: Evet | H12: =IF(G12="Evet",1.6971,0) -> 1.6971 | I12: Evet | J12: =IF(I12="Evet",1.6971,0) -> 1.6971 | K12: Hayır | L12: =IF(K12="Evet",1.6971,0) -> 0 | M12: Evet | N12: =IF(M12="Evet",1.6971,0) -> 1.6971 | O12: Evet | P12: =IF(O12="Evet",1.6971,0) -> 1.6971
A13: 1.10. | B13: Dosya planına uygun dosyalama sistemi geliştirme | C13: Zorunlu | D13: Kurumsal Politika ve Prosedürler | E13: Evet | F13: =IF(E13="Evet",0.4208,0) -> 0.4208 | G13: Hayır | H13: =IF(G13="Evet",0.4208,0) -> 0 | I13: Evet | J13: =IF(I13="Evet",0.4208,0) -> 0.4208 | K13: Evet | L13: =IF(K13="Evet",0.4208,0) -> 0.4208 | M13: Evet | N13: =IF(M13="Evet",0.4208,0) -> 0.4208 | O13: Evet | P13: =IF(O13="Evet",0.4208,0) -> 0.4208
A14: 1.11. | B14: Kontrollü terminoloji oluşturma | C14: Seçmeli | D14: Kurumsal Politika ve Prosedürler | E14: Hayır | F14: =IF(E14="Evet",0.222,0) -> 0 | G14: Hayır | H14: =IF(G14="Evet",0.222,0) -> 0 | I14: Evet | J14: =IF(I14="Evet",0.222,0) -> 0.222 | K14: Hayır | L14: =IF(K14="Evet",0.222,0) -> 0 | M14: Hayır | N14: =IF(M14="Evet",0.222,0) -> 0 | O14: Hayır | P14: =IF(O14="Evet",0.222,0) -> 0
A15: 1.12. | B15: Felaket kurtarma planı ve yedekleme planı oluşturma | C15: Zorunlu | D15: Kurumsal Politika ve Prosedürler | E15: Evet | F15: =IF(E15="Evet",0.4208,0) -> 0.4208 | G15: Evet | H15: =IF(G15="Evet",0.4208,0) -> 0.4208 | I15: Evet | J15: =IF(I15="Evet",0.4208,0) -> 0.4208 | K15: Hayır | L15: =IF(K15="Evet",0.4208,0) -> 0 | M15: Evet | N15: =IF(M15="Evet",0.4208,0) -> 0.4208 | O15: Evet | P15: =IF(O15="Evet",0.4208,0) -> 0.4208
A17: 2. | B17: Belgenin aşağıdaki form özelliklerinden hangilerini üstverilerde kullanıyorsunuz? | D17: Arşivsel Bağ
A18: 2.1. | B18: Sorumlu (Belgeyi üreten kurum) | C18: Zorunlu | D18: Arşivsel Bağ | E18: Evet | F18: =IF(E18="Evet",0.339,0) -> 0.339 | G18: Evet | H18: =IF(G18="Evet",0.339,0) -> 0.339 | I18: Evet | J18: =IF(I18="Evet",0.339,0) -> 0.339 | K18: Evet | L18: =IF(K18="Evet",0.339,0) -> 0.339 | M18: Evet | N18: =IF(M18="Evet",0.339,0) -> 0.339 | O18: Evet | P18: =IF(O18="Evet",0.339,0) -> 0.339
A19: 2.2. | B19: Düzenleyen (Belgedeki irade beyanının sahibi) | C19: Zorunlu | D19: Arşivsel Bağ | E19: Evet | F19: =IF(E19="Evet",0.339,0) -> 0.339 | G19: Evet | H19: =IF(G19="Evet",0.339,0) -> 0.339 | I19: Evet | J19: =IF(I19="Evet",0.339,0) -> 0.339 | K19: Evet | L19: =IF(K19="Evet",0.339,0) -> 0.339 | M19: Evet | N19: =IF(M19="Evet",0.339,0) -> 0.339 | O19: Evet | P19: =IF(O19="Evet",0.339,0) -> 0.339
A20: 2.3. | B20: Muhatap/Alıcı | C20: Zorunlu | D20: Arşivsel Bağ | E20: Evet | F20: 0.339 | G20: Evet | H20: 0.339 | I20: Evet | J20: 0.339 | K20: Evet | L20: 0.339 | M20: Evet | N20: 0.339 | O20: Evet | P20: 0.339
A21: 2.4. | B21: Konu | C21: Zorunlu | D21: Arşivsel Bağ | E21: Evet | F21: 0.339 | G21: Evet | H21: 0.339 | I21: Evet | J21: 0.339 | K21: Evet | L21: 0.339 | M21: Evet | N21: 0.339 | O21: Evet | P21: 0.339
A22: 2.5. | B22: Format | C22: Zorunlu | D22: Arşivsel Bağ | E22: Hayır | F22: 0 | G22: Hayır | H22: 0 | I22: Hayır | J22: 0 | K22: Hayır | L22: 0 | M22: Hayır | N22: 0 | O22: Hayır | P22: 0
A23: 2.6. | B23: Üretim tarihi | C23: Zorunlu | D23: Arşivsel Bağ | E23: Evet | F23: 0.339 | G23: Evet | H23: 0.339 | I23: Evet | J23: 0.339 | K23: Evet | L23: 0.339 | M23: Evet | N23: 0.339 | O23: Evet | P23: 0.339
A24: 2.7. | B24: Gönderim/Alma tarihi (KEP) | C24: Zorunlu | D24: Arşivsel Bağ | E24: Evet | F24: 0.339 | G24: Evet | H24: 0.339 | I24: Evet | J24: 0.339 | K24: Evet | L24: 0.339 | M24: Evet | N24: 0.339 | O24: Evet | P24: 0.339
A25: 2.8. | B25: Belge tarihi (Son imzalayıcının imza attığı tarih) | C25: Zorunlu | D25: Arşivsel Bağ | E25: Evet | F25: 0.339 | G25: Evet | H25: 0.339 | I25: Evet | J25: 0.339 | K25: Evet | L25: 0.339 | M25: Evet | N25: 0.339 | O25: Evet | P25: 0.339
A27: 3. | B27: Belge profilinde aşağıdaki üstverilerden hangileri bulunmaktadır? | D27: Arşivsel Bağ
A28: 3.1. | B28: Belgenin dosyasına kaldırıldığı zaman | C28: Zorunlu | D28: Arşivsel Bağ | E28: Evet | F28: =IF(E28="Evet",0.1356,0) -> 0.1356 | G28: Evet | H28: =IF(G28="Evet",0.1356,0) -> 0.1356 | I28: Evet | J28: =IF(I28="Evet",0.1356,0) -> 0.1356 | K28: Evet | L28: =IF(K28="Evet",0.1356,0) -> 0.1356 | M28: Evet | N28: =IF(M28="Evet",0.1356,0) -> 0.1356 | O28: Evet | P28: =IF(O28="Evet",0.1356,0) -> 0.1356
A29: 3.2. | B29: Belgedeki işlemden sorumlu kişi ve birim | C29: Zorunlu | D29: Arşivsel Bağ | E29: Evet | F29: =IF(E29="Evet",0.1356,0) -> 0.1356 | G29: Evet | H29: =IF(G29="Evet",0.1356,0) -> 0.1356 | I29: Evet | J29: =IF(I29="Evet",0.1356,0) -> 0.1356 | K29: Evet | L29: =IF(K29="Evet",0.1356,0) -> 0.1356 | M29: Evet | N29: =IF(M29="Evet",0.1356,0) -> 0.1356 | O29: Evet | P29: =IF(O29="Evet",0.1356,0) -> 0.1356
A30: 3.3. | B30: Ait olduğu işlem-dosya-seri-birim | C30: Kritik Zorunlu | D30: Arşivsel Bağ | E30: Hayır | F30: =IF(E30="Evet",1.6826,0) -> 0 | G30: Hayır | H30: =IF(G30="Evet",1.6826,0) -> 0 | I30: Hayır | J30: =IF(I30="Evet",1.6826,0) -> 0 | K30: Hayır | L30: =IF(K30="Evet",1.6826,0) -> 0 | M30: Hayır | N30: =IF(M30="Evet",1.6826,0) -> 0 | O30: Hayır | P30: =IF(O30="Evet",1.6826,0) -> 0
A31: 3.4. | B31: Dosya kodu | C31: Zorunlu | D31: Arşivsel Bağ | E31: Evet | F31: =IF(E31="Evet",0.1356,0) -> 0.1356 | G31: Evet | H31: =IF(G31="Evet",0.1356,0) -> 0.1356 | I31: Evet | J31: =IF(I31="Evet",0.1356,0) -> 0.1356 | K31: Evet | L31: =IF(K31="Evet",0.1356,0) -> 0.1356 | M31: Evet | N31: =IF(M31="Evet",0.1356,0) -> 0.1356 | O31: Evet | P31: =IF(O31="Evet",0.1356,0) -> 0.1356
A32: 3.5. | B32: Belge referans numarası | C32: Zorunlu | D32: Arşivsel Bağ | E32: Evet | F32: =IF(E32="Evet",0.1356,0) -> 0.1356 | G32: Evet | H32: =IF(G32="Evet",0.1356,0) -> 0.1356 | I32: Evet | J32: =IF(I32="Evet",0.1356,0) -> 0.1356 | K32: Evet | L32: =IF(K32="Evet",0.1356,0) -> 0.1356 | M32: Evet | N32: =IF(M32="Evet",0.1356,0) -> 0.1356 | O32: Evet | P32: =IF(O32="Evet",0.1356,0) -> 0.1356
A33: 3.6. | B33: Belgeye erişmek için asgari gereksinimler | C33: Zorunlu | D33: Arşivsel Bağ | E33: Hayır | F33: =IF(E33="Evet",0.1352,0) -> 0 | G33: Hayır | H33: =IF(G33="Evet",0.1352,0) -> 0 | I33: Hayır | J33: =IF(I33="Evet",0.1352,0) -> 0 | K33: Hayır | L33: =IF(K33="Evet",0.1352,0) -> 0 | M33: Hayır | N33: =IF(M33="Evet",0.1352,0) -> 0 | O33: Hayır | P33: =IF(O33="Evet",0.1352,0) -> 0
A34: 3.7. | B34: Belgenin üretildiği EBYS yazılımı ve versiyon numarası | C34: Zorunlu | D34: Arşivsel Bağ | E34: Evet | F34: =IF(E34="Evet",0.1356,0) -> 0.1356 | G34: Evet | H34: =IF(G34="Evet",0.1356,0) -> 0.1356 | I34: Evet | J34: =IF(I34="Evet",0.1356,0) -> 0.1356 | K34: Evet | L34: =IF(K34="Evet",0.1356,0) -> 0.1356 | M34: Evet | N34: =IF(M34="Evet",0.1356,0) -> 0.1356 | O34: Evet | P34: =IF(O34="Evet",0.1356,0) -> 0.1356
A35: 3.8. | B35: Belge yönetimi için kullanılacak algoritmalar (kullanılan EBYS yazılımı algoritmaları ve belgeyi tekrardan üretmek ya da şifreli belgeleri açabilmek için gerekli olan algoritmalar gibi) | C35: Kritik Zorunlu | D35: Arşivsel Bağ | E35: Hayır | F35: =IF(E35="Evet",1.6826,0) -> 0 | G35: Hayır | H35: =IF(G35="Evet",1.6826,0) -> 0 | I35: Hayır | J35: =IF(I35="Evet",1.6826,0) -> 0 | K35: Hayır | L35: =IF(K35="Evet",1.6826,0) -> 0 | M35: Hayır | N35: =IF(M35="Evet",1.6826,0) -> 0 | O35: Hayır | P35: =IF(O35="Evet",1.6826,0) -> 0
A36: 3.9. | B36: Belge bileşenleri (Üstveri, belgenin ekleri, form elemanları, kontekst (bağlam), içerik, belgenin oluşumunu sağlayan veriler, iş akışları gibi) | C36: Zorunlu | D36: Arşivsel Bağ | E36: Evet | F36: =IF(E36="Evet",0.1356,0) -> 0.1356 | G36: Evet | H36: =IF(G36="Evet",0.1356,0) -> 0.1356 | I36: Evet | J36: =IF(I36="Evet",0.1356,0) -> 0.1356 | K36: Evet | L36: =IF(K36="Evet",0.1356,0) -> 0.1356 | M36: Evet | N36: =IF(M36="Evet",0.1356,0) -> 0.1356 | O36: Evet | P36: =IF(O36="Evet",0.1356,0) -> 0.1356
A37: 3.10. | B37: E-imza ve zaman damgası | C37: Zorunlu | D37: Arşivsel Bağ | E37: Evet | F37: =IF(E37="Evet",0.1356,0) -> 0.1356 | G37: Evet | H37: =IF(G37="Evet",0.1356,0) -> 0.1356 | I37: Evet | J37: =IF(I37="Evet",0.1356,0) -> 0.1356 | K37: Evet | L37: =IF(K37="Evet",0.1356,0) -> 0.1356 | M37: Evet | N37: =IF(M37="Evet",0.1356,0) -> 0.1356 | O37: Evet | P37: =IF(O37="Evet",0.1356,0) -> 0.1356
A38: 3.11. | B38: Saklama süresi | C38: Zorunlu | D38: Arşivsel Bağ | E38: Hayır | F38: =IF(E38="Evet",0.1356,0) -> 0 | G38: Hayır | H38: =IF(G38="Evet",0.1356,0) -> 0 | I38: Hayır | J38: =IF(I38="Evet",0.1356,0) -> 0 | K38: Hayır | L38: =IF(K38="Evet",0.1356,0) -> 0 | M38: Hayır | N38: =IF(M38="Evet",0.1356,0) -> 0 | O38: Hayır | P38: =IF(O38="Evet",0.1356,0) -> 0
A39: 3.12. | B39: Belgeye erişim profilleri | C39: Zorunlu | D39: Arşivsel Bağ | E39: Evet | F39: =IF(E39="Evet",0.1356,0) -> 0.1356 | G39: Evet | H39: =IF(G39="Evet",0.1356,0) -> 0.1356 | I39: Evet | J39: =IF(I39="Evet",0.1356,0) -> 0.1356 | K39: Evet | L39: =IF(K39="Evet",0.1356,0) -> 0.1356 | M39: Evet | N39: =IF(M39="Evet",0.1356,0) -> 0.1356 | O39: Evet | P39: =IF(O39="Evet",0.1356,0) -> 0.1356
A40: 3.13. | B40: Belgelerin lokasyonu (Directory) | C40: Seçmeli | D40: Arşivsel Bağ | E40: Hayır | F40: =IF(E40="Evet",0.1108,0) -> 0 | G40: Hayır | H40: =IF(G40="Evet",0.1108,0) -> 0 | I40: Hayır | J40: =IF(I40="Evet",0.1108,0) -> 0 | K40: Hayır | L40: =IF(K40="Evet",0.1108,0) -> 0 | M40: Hayır | N40: =IF(M40="Evet",0.1108,0) -> 0 | O40: Hayır | P40: =IF(O40="Evet",0.1108,0) -> 0
A41: 3.14. | B41: Belgeye yapılan açıklama notları (İşlem safhasında (ivedilik durumu, iletim zamanı, tarih, yer, ekler gibi), kullanım safhasında (belgenin alındığı tarih, belgeyi kullanan birim, gerçekleştirilen işlem, yapılan muamele gibi ) ve yönetim safhasında (belgenin arşive devir tarihi, versiyon numarası, belge referans numarası, dosya kodu, belgeyi düzenleyen ve oluşturan kişi/birim gibi)) | C41: Zorunlu | D41: Arşivsel Bağ | E41: Evet | F41: =IF(E41="Evet",0.1356,0) -> 0.1356 | G41: Evet | H41: =IF(G41="Evet",0.1356,0) -> 0.1356 | I41: Evet | J41: =IF(I41="Evet",0.1356,0) -> 0.1356 | K41: Evet | L41: =IF(K41="Evet",0.1356,0) -> 0.1356 | M41: Evet | N41: =IF(M41="Evet",0.1356,0) -> 0.1356 | O41: Evet | P41: =IF(O41="Evet",0.1356,0) -> 0.1356
A42: 3.15. | B42: Teknolojik göç ettirme ile ilgili yapılan işlemler | C42: Kritik Zorunlu | D42: Arşivsel Bağ | E42: Hayır | F42: =IF(E42="Evet",1.6826,0) -> 0 | G42: Hayır | H42: =IF(G42="Evet",1.6826,0) -> 0 | I42: Hayır | J42: =IF(I42="Evet",1.6826,0) -> 0 | K42: Hayır | L42: =IF(K42="Evet",1.6826,0) -> 0 | M42: Hayır | N42: =IF(M42="Evet",1.6826,0) -> 0 | O42: Hayır | P42: =IF(O42="Evet",1.6826,0) -> 0
A43: 3.16. | B43: Konu | C43: Zorunlu | D43: Arşivsel Bağ | E43: Evet | F43: =IF(E43="Evet",0.1356,0) -> 0.1356 | G43: Evet | H43: =IF(G43="Evet",0.1356,0) -> 0.1356 | I43: Evet | J43: =IF(I43="Evet",0.1356,0) -> 0.1356 | K43: Evet | L43: =IF(K43="Evet",0.1356,0) -> 0.1356 | M43: Evet | N43: =IF(M43="Evet",0.1356,0) -> 0.1356 | O43: Evet | P43: =IF(O43="Evet",0.1356,0) -> 0.1356
A44: 3.17. | B44: Belgenin sayısı | C44: Zorunlu | D44: Arşivsel Bağ | E44: Evet | F44: 0.1356 | G44: Evet | H44: 0.1356 | I44: Evet | J44: 0.1356 | K44: Evet | L44: 0.1356 | M44: Evet | N44: 0.1356 | O44: Evet | P44: 0.1356
A45: 3.18. | B45: Belgenin gizlilik derecesi (Tasnif dışı, hizmete özel, özel, gizli, çok gizli, kişiye özel gibi) | C45: Zorunlu | D45: Arşivsel Bağ | E45: Evet | F45: 0.1356 | G45: Evet | H45: 0.1356 | I45: Evet | J45: 0.1356 | K45: Evet | L45: 0.1356 | M45: Evet | N45: 0.1356 | O45: Evet | P45: 0.1356
A46: 3.19. | B46: Dağıtım listesi | C46: Zorunlu | D46: Arşivsel Bağ | E46: Evet | F46: 0.1356 | G46: Evet | H46: 0.1356 | I46: Evet | J46: 0.1356 | K46: Evet | L46: 0.1356 | M46: Evet | N46: 0.1356 | O46: Evet | P46: 0.1356
A47: 3.20. | B47: İlgilerin referans numarası | C47: Zorunlu | D47: Arşivsel Bağ | E47: Hayır | F47: 0 | G47: Hayır | H47: 0 | I47: Hayır | J47: 0 | K47: Hayır | L47: 0 | M47: Hayır | N47: 0 | O47: Hayır | P47: 0
A48: 3.21. | B48: Belgenin özet değeri | C48: Zorunlu | D48: Arşivsel Bağ | E48: Hayır | F48: 0 | G48: Hayır | H48: 0 | I48: Hayır | J48: 0 | K48: Hayır | L48: 0 | M48: Hayır | N48: 0 | O48: Hayır | P48: 0
A49: 3.22. | B49: Şifreleme bilgisi | C49: Zorunlu | D49: Arşivsel Bağ | E49: Hayır | F49: 0 | G49: Hayır | H49: 0 | I49: Hayır | J49: 0 | K49: Hayır | L49: 0 | M49: Hayır | N49: 0 | O49: Hayır | P49: 0
A50: 3.23. | B50: Eklerin referans numaraları | C50: Zorunlu | D50: Arşivsel Bağ | E50: Hayır | F50: 0 | G50: Hayır | H50: 0 | I50: Hayır | J50: 0 | K50: Hayır | L50: 0 | M50: Hayır | N50: 0 | O50: Hayır | P50: 0
A52: 4. | B52: Belge bileşenleriyle ilgili aşağıdaki üstverilerden hangileri kurumunuzda kullanılmaktadır? | D52: Arşivsel Bağ
A53: 4.1. | B53: Referans numarası | C53: Zorunlu | D53: Arşivsel Bağ | E53: Evet | F53: =IF(E53="Evet",0.339,0) -> 0.339 | G53: Evet | H53: =IF(G53="Evet",0.339,0) -> 0.339 | I53: Evet | J53: =IF(I53="Evet",0.339,0) -> 0.339 | K53: Evet | L53: =IF(K53="Evet",0.339,0) -> 0.339 | M53: Evet | N53: =IF(M53="Evet",0.339,0) -> 0.339 | O53: Evet | P53: =IF(O53="Evet",0.339,0) -> 0.339
A54: 4.2. | B54: Format | C54: Zorunlu | D54: Arşivsel Bağ | E54: Evet | F54: =IF(E54="Evet",0.339,0) -> 0.339 | G54: Evet | H54: =IF(G54="Evet",0.339,0) -> 0.339 | I54: Evet | J54: =IF(I54="Evet",0.339,0) -> 0.339 | K54: Evet | L54: =IF(K54="Evet",0.339,0) -> 0.339 | M54: Evet | N54: =IF(M54="Evet",0.339,0) -> 0.339 | O54: Evet | P54: =IF(O54="Evet",0.339,0) -> 0.339
A55: 4.3. | B55: Bileşeni üreten yazılım ve o yazılımda kullanılan algoritmalar | C55: Seçmeli | D55: Arşivsel Bağ | E55: Hayır | F55: =IF(E55="Evet",0.277,0) -> 0 | G55: Hayır | H55: =IF(G55="Evet",0.277,0) -> 0 | I55: Hayır | J55: =IF(I55="Evet",0.277,0) -> 0 | K55: Hayır | L55: =IF(K55="Evet",0.277,0) -> 0 | M55: Hayır | N55: =IF(M55="Evet",0.277,0) -> 0 | O55: Hayır | P55: =IF(O55="Evet",0.277,0) -> 0
A56: 4.4. | B56: Bileşene erişmek için asgari gereksinimler | C56: Zorunlu | D56: Arşivsel Bağ | E56: Hayır | F56: =IF(E56="Evet",0.339,0) -> 0 | G56: Hayır | H56: =IF(G56="Evet",0.339,0) -> 0 | I56: Hayır | J56: =IF(I56="Evet",0.339,0) -> 0 | K56: Hayır | L56: =IF(K56="Evet",0.339,0) -> 0 | M56: Hayır | N56: =IF(M56="Evet",0.339,0) -> 0 | O56: Hayır | P56: =IF(O56="Evet",0.339,0) -> 0
A58: 5. | B58: Log kayıtlarında aşağıdaki bilgilerden hangileri bulunmaktadır? | D58: Teknolojik Koşullar
A59: 5.1. | B59: Dokümanın belgeye dönüşme tarih ve zamanı | C59: Zorunlu | D59: Teknolojik Koşullar | E59: Evet | F59: =IF(E59="Evet",0.571,0) -> 0.571 | G59: Evet | H59: =IF(G59="Evet",0.571,0) -> 0.571 | I59: Evet | J59: =IF(I59="Evet",0.571,0) -> 0.571 | K59: Evet | L59: =IF(K59="Evet",0.571,0) -> 0.571 | M59: Evet | N59: =IF(M59="Evet",0.571,0) -> 0.571 | O59: Evet | P59: =IF(O59="Evet",0.571,0) -> 0.571
A60: 5.2. | B60: Belgeye erişim istekleri | C60: Zorunlu | D60: Teknolojik Koşullar | E60: Evet | F60: =IF(E60="Evet",0.571,0) -> 0.571 | G60: Evet | H60: =IF(G60="Evet",0.571,0) -> 0.571 | I60: Evet | J60: =IF(I60="Evet",0.571,0) -> 0.571 | K60: Evet | L60: =IF(K60="Evet",0.571,0) -> 0.571 | M60: Evet | N60: =IF(M60="Evet",0.571,0) -> 0.571 | O60: Evet | P60: =IF(O60="Evet",0.571,0) -> 0.571
A61: 5.3. | B61: Belgenin iletim geçmişi | C61: Zorunlu | D61: Teknolojik Koşullar | E61: Evet | F61: 0.571 | G61: Evet | H61: 0.571 | I61: Evet | J61: 0.571 | K61: Evet | L61: 0.571 | M61: Evet | N61: 0.571 | O61: Evet | P61: 0.571
A62: 5.4. | B62: Belgeye yapılan açıklamalar | C62: Zorunlu | D62: Teknolojik Koşullar | E62: Evet | F62: 0.571 | G62: Evet | H62: 0.571 | I62: Hayır | J62: 0 | K62: Evet | L62: 0.571 | M62: Hayır | N62: 0 | O62: Hayır | P62: 0
A63: 5.5. | B63: Belgede yapılan işlemler ve bu işlemleri yapan kullanıcılar | C63: Zorunlu | D63: Teknolojik Koşullar | E63: Evet | F63: 0.571 | G63: Evet | H63: 0.571 | I63: Evet | J63: 0.571 | K63: Evet | L63: 0.571 | M63: Evet | N63: 0.571 | O63: Hayır | P63: 0
A64: 5.6. | B64: Üstverilerde yapılan değişiklikler | C64: Zorunlu | D64: Teknolojik Koşullar | E64: Evet | F64: 0.571 | G64: Evet | H64: 0.571 | I64: Hayır | J64: 0 | K64: Hayır | L64: 0 | M64: Hayır | N64: 0 | O64: Hayır | P64: 0
A65: 5.7. | B65: Saklama planı ve saklama sürelerinde yapılan değişiklikler | C65: Zorunlu | D65: Teknolojik Koşullar | E65: Evet | F65: 0.571 | G65: Evet | H65: 0.571 | I65: Hayır | J65: 0 | K65: Hayır | L65: 0 | M65: Hayır | N65: 0 | O65: Hayır | P65: 0
A66: 5.8. | B66: Belgede yaşanan teknolojik değişimler | C66: Zorunlu | D66: Teknolojik Koşullar | E66: Hayır | F66: 0 | G66: Hayır | H66: 0 | I66: Hayır | J66: 0 | K66: Hayır | L66: 0 | M66: Hayır | N66: 0 | O66: Hayır | P66: 0
A67: 5.9. | B67: Sistem arıza ve bakımları | C67: Zorunlu | D67: Teknolojik Koşullar | E67: Evet | F67: 0.571 | G67: Evet | H67: 0.571 | I67: Evet | J67: 0.571 | K67: Evet | L67: 0.571 | M67: Evet | N67: 0.571 | O67: Evet | P67: 0.571
A68: 5.10. | B68: Paraf bilgileri ve paraflayanın yaptığı işlemler | C68: Zorunlu | D68: Teknolojik Koşullar | E68: Evet | F68: 0.571 | G68: Evet | H68: 0.571 | I68: Evet | J68: 0.571 | K68: Evet | L68: 0.571 | M68: Evet | N68: 0.571 | O68: Evet | P68: 0.571
A70: 6. | B70: Dosyalama pratikleriyle ilgili aşağıdakilerden hangileri kurumunuz için geçerlidir? | D70: Arşivsel Bağ
A71: 6.1. | B71: Belgelerin hangi işlem, dosya, seri ve birime ait olduğunu seçme | C71: Kritik Zorunlu | D71: Arşivsel Bağ | E71: Hayır | F71: =IF(E71="Evet",1.1427,0) -> 0 | G71: Hayır | H71: =IF(G71="Evet",1.1427,0) -> 0 | I71: Hayır | J71: =IF(I71="Evet",1.1427,0) -> 0 | K71: Hayır | L71: =IF(K71="Evet",1.1427,0) -> 0 | M71: Hayır | N71: =IF(M71="Evet",1.1427,0) -> 0 | O71: Hayır | P71: =IF(O71="Evet",1.1427,0) -> 0
A72: 6.2. | B72: Dosya türü ayrımı yapılması (Konu, Vaka, Gölge dosya, Vaka hazırlık dosyası, melez/hibrit dosya gibi) | C72: Kritik Zorunlu | D72: Arşivsel Bağ | E72: Evet | F72: =IF(E72="Evet",1.1427,0) -> 1.1427 | G72: Evet | H72: =IF(G72="Evet",1.1427,0) -> 1.1427 | I72: Evet | J72: =IF(I72="Evet",1.1427,0) -> 1.1427 | K72: Evet | L72: =IF(K72="Evet",1.1427,0) -> 1.1427 | M72: Evet | N72: =IF(M72="Evet",1.1427,0) -> 1.1427 | O72: Evet | P72: =IF(O72="Evet",1.1427,0) -> 1.1427
A73: 6.3. | B73: Konu dosyalarının periyodik olarak kapanması | C73: Seçmeli | D73: Arşivsel Bağ | E73: Evet | F73: =IF(E73="Evet",0.1108,0) -> 0.1108 | G73: Evet | H73: =IF(G73="Evet",0.1108,0) -> 0.1108 | I73: Evet | J73: =IF(I73="Evet",0.1108,0) -> 0.1108 | K73: Evet | L73: =IF(K73="Evet",0.1108,0) -> 0.1108 | M73: Evet | N73: =IF(M73="Evet",0.1108,0) -> 0.1108 | O73: Evet | P73: =IF(O73="Evet",0.1108,0) -> 0.1108
A74: 6.4. | B74: Vaka dosyasına giren bir belgenin aynı zamanda bir konu dosyasıyla da ilişkiliyse çoğaltılmadan çapraz referans yapılması | C74: Seçmeli | D74: Arşivsel Bağ | E74: Evet | F74: =IF(E74="Evet",0.1108,0) -> 0.1108 | G74: Evet | H74: =IF(G74="Evet",0.1108,0) -> 0.1108 | I74: Evet | J74: =IF(I74="Evet",0.1108,0) -> 0.1108 | K74: Evet | L74: =IF(K74="Evet",0.1108,0) -> 0.1108 | M74: Evet | N74: =IF(M74="Evet",0.1108,0) -> 0.1108 | O74: Evet | P74: =IF(O74="Evet",0.1108,0) -> 0.1108
A75: 6.5. | B75: Belgeler ve dosyalar için dosya konu kodunun yanı sıra gerektiğinde özel kodların kullanılması | C75: Seçmeli | D75: Arşivsel Bağ | E75: Evet | F75: =IF(E75="Evet",0.1108,0) -> 0.1108 | G75: Evet | H75: =IF(G75="Evet",0.1108,0) -> 0.1108 | I75: Evet | J75: =IF(I75="Evet",0.1108,0) -> 0.1108 | K75: Evet | L75: =IF(K75="Evet",0.1108,0) -> 0.1108 | M75: Evet | N75: =IF(M75="Evet",0.1108,0) -> 0.1108 | O75: Evet | P75: =IF(O75="Evet",0.1108,0) -> 0.1108
A76: 6.6 | B76: Belgeye, birim belge yöneticisi tarafından da dosya kodu verilmesi | C76: Seçmeli | D76: Arşivsel Bağ | E76: Evet | F76: =IF(E76="Evet",0.1108,0) -> 0.1108 | G76: Evet | H76: =IF(G76="Evet",0.1108,0) -> 0.1108 | I76: Evet | J76: =IF(I76="Evet",0.1108,0) -> 0.1108 | K76: Evet | L76: =IF(K76="Evet",0.1108,0) -> 0.1108 | M76: Evet | N76: =IF(M76="Evet",0.1108,0) -> 0.1108 | O76: Evet | P76: =IF(O76="Evet",0.1108,0) -> 0.1108
A77: 6.7. | B77: Birim belge yöneticisinin belgeyi ait olduğunu düşündüğü dosyaya gönderebilmesi | C77: Seçmeli | D77: Arşivsel Bağ | E77: Evet | F77: =IF(E77="Evet",0.1108,0) -> 0.1108 | G77: Evet | H77: =IF(G77="Evet",0.1108,0) -> 0.1108 | I77: Evet | J77: =IF(I77="Evet",0.1108,0) -> 0.1108 | K77: Evet | L77: =IF(K77="Evet",0.1108,0) -> 0.1108 | M77: Evet | N77: =IF(M77="Evet",0.1108,0) -> 0.1108 | O77: Evet | P77: =IF(O77="Evet",0.1108,0) -> 0.1108
A78: 6.8. | B78: Dosyaların üstverilerinde ait olduğu seri ve birimin belirtilmesi | C78: Zorunlu | D78: Arşivsel Bağ | E78: Evet | F78: =IF(E78="Evet",0.1356,0) -> 0.1356 | G78: Evet | H78: =IF(G78="Evet",0.1356,0) -> 0.1356 | I78: Evet | J78: =IF(I78="Evet",0.1356,0) -> 0.1356 | K78: Evet | L78: =IF(K78="Evet",0.1356,0) -> 0.1356 | M78: Evet | N78: =IF(M78="Evet",0.1356,0) -> 0.1356 | O78: Evet | P78: =IF(O78="Evet",0.1356,0) -> 0.1356
A79: 6.9. | B79: Dosyaların, ait oldukları seriden farklı bir seriye taşınabilmesi | C79: Zorunlu | D79: Arşivsel Bağ | E79: Evet | F79: =IF(E79="Evet",0.1356,0) -> 0.1356 | G79: Evet | H79: =IF(G79="Evet",0.1356,0) -> 0.1356 | I79: Evet | J79: =IF(I79="Evet",0.1356,0) -> 0.1356 | K79: Evet | L79: =IF(K79="Evet",0.1356,0) -> 0.1356 | M79: Evet | N79: =IF(M79="Evet",0.1356,0) -> 0.1356 | O79: Evet | P79: =IF(O79="Evet",0.1356,0) -> 0.1356
A80: 6.10. | B80: Sistemde aynı dosyanın parçası olup kâğıt ortamında saklanan belgelerin yerinin belirtilmesi | C80: Zorunlu | D80: Arşivsel Bağ | E80: Evet | F80: =IF(E80="Evet",0.1356,0) -> 0.1356 | G80: Evet | H80: =IF(G80="Evet",0.1356,0) -> 0.1356 | I80: Evet | J80: =IF(I80="Evet",0.1356,0) -> 0.1356 | K80: Evet | L80: =IF(K80="Evet",0.1356,0) -> 0.1356 | M80: Evet | N80: =IF(M80="Evet",0.1356,0) -> 0.1356 | O80: Evet | P80: =IF(O80="Evet",0.1356,0) -> 0.1356
A81: 6.11. | B81: Belgenin ve dosyanın dosya kodu değişmiş ise eski ve yeninin birlikte gösterilmesi | C81: Seçmeli | D81: Arşivsel Bağ | E81: Evet | F81: =IF(E81="Evet",0.1108,0) -> 0.1108 | G81: Evet | H81: =IF(G81="Evet",0.1108,0) -> 0.1108 | I81: Evet | J81: =IF(I81="Evet",0.1108,0) -> 0.1108 | K81: Evet | L81: =IF(K81="Evet",0.1108,0) -> 0.1108 | M81: Evet | N81: =IF(M81="Evet",0.1108,0) -> 0.1108 | O81: Evet | P81: =IF(O81="Evet",0.1108,0) -> 0.1108
A83: 7. | B83: Belge yönetimiyle ilgili kurumsal prosedürler aşağıdakilerden hangilerini içermektedir? | D83: Kurumsal Politika ve Prosedürler
A84: 7.1. | B84: Belgenin üretilme kuralları | C84: Zorunlu | D84: Kurumsal Politika ve Prosedürler | E84: Evet | F84: =IF(E84="Evet",1.052,0) -> 1.052 | G84: Evet | H84: =IF(G84="Evet",1.052,0) -> 1.052 | I84: Evet | J84: =IF(I84="Evet",1.052,0) -> 1.052 | K84: Evet | L84: =IF(K84="Evet",1.052,0) -> 1.052 | M84: Evet | N84: =IF(M84="Evet",1.052,0) -> 1.052 | O84: Hayır | P84: =IF(O84="Evet",1.052,0) -> 0
A85: 7.2. | B85: Belgenin iletilme kuralları | C85: Zorunlu | D85: Kurumsal Politika ve Prosedürler | E85: Evet | F85: 1.052 | G85: Evet | H85: 1.052 | I85: Evet | J85: 1.052 | K85: Evet | L85: 1.052 | M85: Evet | N85: 1.052 | O85: Hayır | P85: 0
A86: 7.3. | B86: Dışarıdan gelen belgelerin sisteme kaydedilme kuralları | C86: Zorunlu | D86: Kurumsal Politika ve Prosedürler | E86: Evet | F86: 1.052 | G86: Evet | H86: 1.052 | I86: Evet | J86: 1.052 | K86: Evet | L86: 1.052 | M86: Evet | N86: 1.052 | O86: Hayır | P86: 0
A87: 7.4. | B87: Belgeyi dosyasına kaldırma kuralları | C87: Zorunlu | D87: Kurumsal Politika ve Prosedürler | E87: Evet | F87: 1.052 | G87: Evet | H87: 1.052 | I87: Hayır | J87: 0 | K87: Hayır | L87: 0 | M87: Hayır | N87: 0 | O87: Hayır | P87: 0
A88: 7.5. | B88: Belgenin tanımlanmasına ilişkin kurallar | C88: Zorunlu | D88: Kurumsal Politika ve Prosedürler | E88: Hayır | F88: 0 | G88: Hayır | H88: 0 | I88: Hayır | J88: 0 | K88: Hayır | L88: 0 | M88: Hayır | N88: 0 | O88: Hayır | P88: 0
A89: 7.6. | B89: Belgeyi arşive devretme kuralları | C89: Zorunlu | D89: Kurumsal Politika ve Prosedürler | E89: Evet | F89: 1.052 | G89: Hayır | H89: 0 | I89: Hayır | J89: 0 | K89: Hayır | L89: 0 | M89: Hayır | N89: 0 | O89: Hayır | P89: 0
A90: 7.7. | B90: Belgelerin teknolojik göçü ve bu göçün geçerliliğine yönelik tasdik prosedürleri | C90: Zorunlu | D90: Kurumsal Politika ve Prosedürler | E90: Hayır | F90: 0 | G90: Hayır | H90: 0 | I90: Hayır | J90: 0 | K90: Hayır | L90: 0 | M90: Hayır | N90: 0 | O90: Hayır | P90: 0
A91: 7.8. | B91: Log kayıtları | C91: Zorunlu | D91: Kurumsal Politika ve Prosedürler | E91: Evet | F91: 1.052 | G91: Evet | H91: 1.052 | I91: Hayır | J91: 0 | K91: Hayır | L91: 0 | M91: Hayır | N91: 0 | O91: Hayır | P91: 0
A92: 7.9. | B92: Denetim günlükleri | C92: Seçmeli | D92: Kurumsal Politika ve Prosedürler | E92: Evet | F92: =IF(E92="Evet",0.555,0) -> 0.555 | G92: Evet | H92: =IF(G92="Evet",0.555,0) -> 0.555 | I92: Hayır | J92: =IF(I92="Evet",0.555,0) -> 0 | K92: Hayır | L92: =IF(K92="Evet",0.555,0) -> 0 | M92: Hayır | N92: =IF(M92="Evet",0.555,0) -> 0 | O92: Hayır | P92: =IF(O92="Evet",0.555,0) -> 0
A93: 7.10. | B93: Donanımların çalışma şartları (sıcaklık ve nem gibi) | C93: Seçmeli | D93: Kurumsal Politika ve Prosedürler | E93: Evet | F93: =IF(E93="Evet",0.555,0) -> 0.555 | G93: Hayır | H93: =IF(G93="Evet",0.555,0) -> 0 | I93: Hayır | J93: =IF(I93="Evet",0.555,0) -> 0 | K93: Hayır | L93: =IF(K93="Evet",0.555,0) -> 0 | M93: Hayır | N93: =IF(M93="Evet",0.555,0) -> 0 | O93: Hayır | P93: =IF(O93="Evet",0.555,0) -> 0
A94: 7.11. | B94: Bilgi güvenliği | C94: Zorunlu | D94: Kurumsal Politika ve Prosedürler | E94: Evet | F94: =IF(E94="Evet",1.052,0) -> 1.052 | G94: Evet | H94: =IF(G94="Evet",1.052,0) -> 1.052 | I94: Evet | J94: =IF(I94="Evet",1.052,0) -> 1.052 | K94: Hayır | L94: =IF(K94="Evet",1.052,0) -> 0 | M94: Hayır | N94: =IF(M94="Evet",1.052,0) -> 0 | O94: Hayır | P94: =IF(O94="Evet",1.052,0) -> 0
A96: 8. | B96: Saklama süreli dosya planınız için aşağıdakilerden hangileri geçerlidir? | D96: Arşivsel Bağ
A97: 8.1. | B97: Fonksiyon analizi yapılarak belge hiyerarşisinin oluşturulması | C97: Kritik Zorunlu | D97: Arşivsel Bağ | E97: Evet | F97: =IF(E97="Evet",0.8748,0) -> 0.8748 | G97: Hayır | H97: =IF(G97="Evet",0.8748,0) -> 0 | I97: Hayır | J97: =IF(I97="Evet",0.8748,0) -> 0 | K97: Hayır | L97: =IF(K97="Evet",0.8748,0) -> 0 | M97: Hayır | N97: =IF(M97="Evet",0.8748,0) -> 0 | O97: Hayır | P97: =IF(O97="Evet",0.8748,0) -> 0
A98: 8.2. | B98: Dosya ve seri kodlarının oluşturulması | C98: Zorunlu | D98: Arşivsel Bağ | E98: Evet | F98: =IF(E98="Evet",0.1356,0) -> 0.1356 | G98: Evet | H98: =IF(G98="Evet",0.1356,0) -> 0.1356 | I98: Evet | J98: =IF(I98="Evet",0.1356,0) -> 0.1356 | K98: Evet | L98: =IF(K98="Evet",0.1356,0) -> 0.1356 | M98: Hayır | N98: =IF(M98="Evet",0.1356,0) -> 0 | O98: Hayır | P98: =IF(O98="Evet",0.1356,0) -> 0
A99: 8.3. | B99: Saklama süresi sonunda yapılacak tasfiye işlemlerinin kararlaştırılması | C99: Seçmeli | D99: Arşivsel Bağ | E99: Evet | F99: =IF(E99="Evet",0.1108,0) -> 0.1108 | G99: Evet | H99: =IF(G99="Evet",0.1108,0) -> 0.1108 | I99: Evet | J99: =IF(I99="Evet",0.1108,0) -> 0.1108 | K99: Hayır | L99: =IF(K99="Evet",0.1108,0) -> 0 | M99: Evet | N99: =IF(M99="Evet",0.1108,0) -> 0.1108 | O99: Evet | P99: =IF(O99="Evet",0.1108,0) -> 0.1108
A100: 8.4. | B100: Standart Dosya Planının, herhangi bir kod ekleme/çıkarması yapılarak kullanılması | C100: Seçmeli | D100: Arşivsel Bağ | E100: Evet | F100: =IF(E100="Evet",0.1108,0) -> 0.1108 | G100: Evet | H100: =IF(G100="Evet",0.1108,0) -> 0.1108 | I100: Evet | J100: =IF(I100="Evet",0.1108,0) -> 0.1108 | K100: Evet | L100: =IF(K100="Evet",0.1108,0) -> 0.1108 | M100: Evet | N100: =IF(M100="Evet",0.1108,0) -> 0.1108 | O100: Evet | P100: =IF(O100="Evet",0.1108,0) -> 0.1108
A102: 9. | B102: Teknolojik göçle ilgili aşağıdakilerden hangileri geçerlidir? | D102: Teknolojik Koşullar
A103: 9.1. | B103: Belgelerin taşıyıcı ortamının değiştirilip değiştirilmemesi hususunda düzenli aralıklarla incelemelerin yapılması | C103: Seçmeli | D103: Teknolojik Koşullar | E103: Hayır | F103: =IF(E103="Evet",0.1428,0) -> 0 | G103: Hayır | H103: =IF(G103="Evet",0.1428,0) -> 0 | I103: Hayır | J103: =IF(I103="Evet",0.1428,0) -> 0 | K103: Hayır | L103: =IF(K103="Evet",0.1428,0) -> 0 | M103: Evet | N103: =IF(M103="Evet",0.1428,0) -> 0.1428 | O103: Hayır | P103: =IF(O103="Evet",0.1428,0) -> 0
A104: 9.2. | B104: Teknolojik göç sonrası belgelerin erişilebilirliği ve okunabilirliğinin kontrol edilmesi | C104: Kritik Zorunlu | D104: Teknolojik Koşullar | E104: Hayır | F104: =IF(E104="Evet",0.8494,0) -> 0 | G104: Hayır | H104: =IF(G104="Evet",0.8494,0) -> 0 | I104: Evet | J104: =IF(I104="Evet",0.8494,0) -> 0.8494 | K104: Hayır | L104: =IF(K104="Evet",0.8494,0) -> 0 | M104: Hayır | N104: =IF(M104="Evet",0.8494,0) -> 0 | O104: Hayır | P104: =IF(O104="Evet",0.8494,0) -> 0
A105: 9.3. | B105: Yeni taşıyıcı ortam ve göçün gerçekleştiği tarihin belge profiline eklenmesi | C105: Kritik Zorunlu | D105: Teknolojik Koşullar | E105: Hayır | F105: =IF(E105="Evet",0.8494,0) -> 0 | G105: Hayır | H105: =IF(G105="Evet",0.8494,0) -> 0 | I105: Evet | J105: =IF(I105="Evet",0.8494,0) -> 0.8494 | K105: Hayır | L105: =IF(K105="Evet",0.8494,0) -> 0 | M105: Hayır | N105: =IF(M105="Evet",0.8494,0) -> 0 | O105: Evet | P105: =IF(O105="Evet",0.8494,0) -> 0.8494
A106: 9.4. | B106: Risk analizinin yapılması | C106: Zorunlu | D106: Teknolojik Koşullar | E106: Hayır | F106: =IF(E106="Evet",0.2284,0) -> 0 | G106: Hayır | H106: =IF(G106="Evet",0.2284,0) -> 0 | I106: Evet | J106: =IF(I106="Evet",0.2284,0) -> 0.2284 | K106: Hayır | L106: =IF(K106="Evet",0.2284,0) -> 0 | M106: Hayır | N106: =IF(M106="Evet",0.2284,0) -> 0 | O106: Hayır | P106: =IF(O106="Evet",0.2284,0) -> 0
A108: 10. | B108: Yedeklemelerle ilgili aşağıdakilerden hangileri geçerlidir? | D108: Teknolojik Koşullar
A109: 10.1. | B109: Yedeklemelere sadece yetkili personelin erişmesi | C109: Seçmeli | D109: Teknolojik Koşullar | E109: Evet | F109: =IF(E109="Evet",0.1428,0) -> 0.1428 | G109: Evet | H109: =IF(G109="Evet",0.1428,0) -> 0.1428 | I109: Evet | J109: =IF(I109="Evet",0.1428,0) -> 0.1428 | K109: Evet | L109: =IF(K109="Evet",0.1428,0) -> 0.1428 | M109: Evet | N109: =IF(M109="Evet",0.1428,0) -> 0.1428 | O109: Evet | P109: =IF(O109="Evet",0.1428,0) -> 0.1428
A110: 10.2. | B110: Belgeler, belge profilleri ve üstverilerin düzenli aralıklarla yedeklenmesi | C110: Kritik Zorunlu | D110: Teknolojik Koşullar | E110: Evet | F110: =IF(E110="Evet",1.2349,0) -> 1.2349 | G110: Evet | H110: =IF(G110="Evet",1.2349,0) -> 1.2349 | I110: Evet | J110: =IF(I110="Evet",1.2349,0) -> 1.2349 | K110: Evet | L110: =IF(K110="Evet",1.2349,0) -> 1.2349 | M110: Evet | N110: =IF(M110="Evet",1.2349,0) -> 1.2349 | O110: Evet | P110: =IF(O110="Evet",1.2349,0) -> 1.2349
A111: 10.3. | B111: Son yedeklemeden bu yana belgelere yapılan açıklamalar ve işlemlerin denetim günlüklerine kaydedilmesi | C111: Zorunlu | D111: Teknolojik Koşullar | E111: Evet | F111: =IF(E111="Evet",0.2284,0) -> 0.2284 | G111: Evet | H111: =IF(G111="Evet",0.2284,0) -> 0.2284 | I111: Evet | J111: =IF(I111="Evet",0.2284,0) -> 0.2284 | K111: Evet | L111: =IF(K111="Evet",0.2284,0) -> 0.2284 | M111: Evet | N111: =IF(M111="Evet",0.2284,0) -> 0.2284 | O111: Hayır | P111: =IF(O111="Evet",0.2284,0) -> 0
A112: 10.4. | B112: Sistem yedeklemesinin yapılması | C112: Kritik Zorunlu | D112: Teknolojik Koşullar | E112: Evet | F112: =IF(E112="Evet",1.2349,0) -> 1.2349 | G112: Evet | H112: =IF(G112="Evet",1.2349,0) -> 1.2349 | I112: Evet | J112: =IF(I112="Evet",1.2349,0) -> 1.2349 | K112: Evet | L112: =IF(K112="Evet",1.2349,0) -> 1.2349 | M112: Evet | N112: =IF(M112="Evet",1.2349,0) -> 1.2349 | O112: Evet | P112: =IF(O112="Evet",1.2349,0) -> 1.2349
A113: 10.5. | B113: Son üç yedeklemenin kopyalarının muhafaza edilmesi | C113: Seçmeli | D113: Teknolojik Koşullar | E113: Evet | F113: =IF(E113="Evet",0.1428,0) -> 0.1428 | G113: Hayır | H113: =IF(G113="Evet",0.1428,0) -> 0 | I113: Evet | J113: =IF(I113="Evet",0.1428,0) -> 0.1428 | K113: Hayır | L113: =IF(K113="Evet",0.1428,0) -> 0 | M113: Evet | N113: =IF(M113="Evet",0.1428,0) -> 0.1428 | O113: Hayır | P113: =IF(O113="Evet",0.1428,0) -> 0
A114: 10.6. | B114: Denetim günlüklerine yedeklemenin başarılı gerçekleşip gerçekleşmediğinin eklenmesi | C114: Seçmeli | D114: Teknolojik Koşullar | E114: Evet | F114: =IF(E114="Evet",0.1428,0) -> 0.1428 | G114: Hayır | H114: =IF(G114="Evet",0.1428,0) -> 0 | I114: Hayır | J114: =IF(I114="Evet",0.1428,0) -> 0 | K114: Evet | L114: =IF(K114="Evet",0.1428,0) -> 0.1428 | M114: Hayır | N114: =IF(M114="Evet",0.1428,0) -> 0 | O114: Hayır | P114: =IF(O114="Evet",0.1428,0) -> 0
A115: 10.7. | B115: Herhangi bir sorun karşısında bir önceki yedeklemenin devreye alınabilmesi | C115: Zorunlu | D115: Teknolojik Koşullar | E115: Evet | F115: =IF(E115="Evet",0.2284,0) -> 0.2284 | G115: Evet | H115: =IF(G115="Evet",0.2284,0) -> 0.2284 | I115: Evet | J115: =IF(I115="Evet",0.2284,0) -> 0.2284 | K115: Hayır | L115: =IF(K115="Evet",0.2284,0) -> 0 | M115: Evet | N115: =IF(M115="Evet",0.2284,0) -> 0.2284 | O115: Evet | P115: =IF(O115="Evet",0.2284,0) -> 0.2284
A117: 11. | B117: Yedekleme ile ilgili aşağıdaki üstverilerden hangileri sisteminizde mevcuttur? | D117: Teknolojik Koşullar
A118: 11.1. | B118: Yedeklemenin tarihi ve zamanı | C118: Zorunlu | D118: Teknolojik Koşullar | E118: Evet | F118: =IF(E118="Evet",0.2284,0) -> 0.2284 | G118: Evet | H118: =IF(G118="Evet",0.2284,0) -> 0.2284 | I118: Evet | J118: =IF(I118="Evet",0.2284,0) -> 0.2284 | K118: Evet | L118: =IF(K118="Evet",0.2284,0) -> 0.2284 | M118: Hayır | N118: =IF(M118="Evet",0.2284,0) -> 0 | O118: Evet | P118: =IF(O118="Evet",0.2284,0) -> 0.2284
A119: 11.2. | B119: Yedeklemeyi onaylayan | C119: Kritik Zorunlu | D119: Teknolojik Koşullar | E119: Evet | F119: =IF(E119="Evet",1.4704,0) -> 1.4704 | G119: Hayır | H119: =IF(G119="Evet",1.4704,0) -> 0 | I119: Hayır | J119: =IF(I119="Evet",1.4704,0) -> 0 | K119: Evet | L119: =IF(K119="Evet",1.4704,0) -> 1.4704 | M119: Hayır | N119: =IF(M119="Evet",1.4704,0) -> 0 | O119: Hayır | P119: =IF(O119="Evet",1.4704,0) -> 0
A120: 11.3. | B120: Yedeklemenin konumu | C120: Seçmeli | D120: Teknolojik Koşullar | E120: Evet | F120: =IF(E120="Evet",0.1428,0) -> 0.1428 | G120: Evet | H120: =IF(G120="Evet",0.1428,0) -> 0.1428 | I120: Evet | J120: =IF(I120="Evet",0.1428,0) -> 0.1428 | K120: Evet | L120: =IF(K120="Evet",0.1428,0) -> 0.1428 | M120: Hayır | N120: =IF(M120="Evet",0.1428,0) -> 0 | O120: Evet | P120: =IF(O120="Evet",0.1428,0) -> 0.1428
A121: 11.4. | B121: Yedekleme referans numarası | C121: Zorunlu | D121: Teknolojik Koşullar | E121: Evet | F121: =IF(E121="Evet",0.2284,0) -> 0.2284 | G121: Evet | H121: =IF(G121="Evet",0.2284,0) -> 0.2284 | I121: Evet | J121: =IF(I121="Evet",0.2284,0) -> 0.2284 | K121: Evet | L121: =IF(K121="Evet",0.2284,0) -> 0.2284 | M121: Hayır | N121: =IF(M121="Evet",0.2284,0) -> 0 | O121: Hayır | P121: =IF(O121="Evet",0.2284,0) -> 0
A123: 12. | B123: Arşive devredilecek belgelerle ilgili mevcut üstverilerin dışında onların delil değerini ilgilendirecek aşağıdaki üstverilerden hangilerinin kullanılması düşünülmektedir? | D123: Arşivsel Bağ
A124: 12.1. | B124: Devir zamanı | C124: Zorunlu | D124: Arşivsel Bağ | E124: Hayır | F124: =IF(E124="Evet",0.1356,0) -> 0 | G124: Hayır | H124: =IF(G124="Evet",0.1356,0) -> 0 | I124: Hayır | J124: =IF(I124="Evet",0.1356,0) -> 0 | K124: Hayır | L124: =IF(K124="Evet",0.1356,0) -> 0 | M124: Hayır | N124: =IF(M124="Evet",0.1356,0) -> 0 | O124: Hayır | P124: =IF(O124="Evet",0.1356,0) -> 0
A125: 12.2. | B125: Belgelerin özgünlüğünü onaylayan teknikler (iz değeri kontrolü, e-imza sertifikalarının kontrolü, belgedeki kişi ile imzanın uyumu vb.) | C125: Kritik Zorunlu | D125: Arşivsel Bağ | E125: Hayır | F125: =IF(E125="Evet",0.6069,0) -> 0 | G125: Hayır | H125: =IF(G125="Evet",0.6069,0) -> 0 | I125: Hayır | J125: =IF(I125="Evet",0.6069,0) -> 0 | K125: Hayır | L125: =IF(K125="Evet",0.6069,0) -> 0 | M125: Hayır | N125: =IF(M125="Evet",0.6069,0) -> 0 | O125: Hayır | P125: =IF(O125="Evet",0.6069,0) -> 0
A126: 12.3. | B126: Belgelerin özgünlüğünü onaylayan kişiler | C126: Kritik Zorunlu | D126: Arşivsel Bağ | E126: Hayır | F126: =IF(E126="Evet",0.6069,0) -> 0 | G126: Hayır | H126: =IF(G126="Evet",0.6069,0) -> 0 | I126: Hayır | J126: =IF(I126="Evet",0.6069,0) -> 0 | K126: Hayır | L126: =IF(K126="Evet",0.6069,0) -> 0 | M126: Hayır | N126: =IF(M126="Evet",0.6069,0) -> 0 | O126: Hayır | P126: =IF(O126="Evet",0.6069,0) -> 0
A127: 12.4. | B127: Özgünlük değerlendirme raporu | C127: Seçmeli | D127: Arşivsel Bağ | E127: Hayır | F127: =IF(E127="Evet",0.1108,0) -> 0 | G127: Hayır | H127: =IF(G127="Evet",0.1108,0) -> 0 | I127: Hayır | J127: =IF(I127="Evet",0.1108,0) -> 0 | K127: Hayır | L127: =IF(K127="Evet",0.1108,0) -> 0 | M127: Hayır | N127: =IF(M127="Evet",0.1108,0) -> 0 | O127: Hayır | P127: =IF(O127="Evet",0.1108,0) -> 0
A128: 12.5. | B128: Belgenin tanımlama bilgileri | C128: Seçmeli | D128: Arşivsel Bağ | E128: Hayır | F128: =IF(E128="Evet",0.1108,0) -> 0 | G128: Hayır | H128: =IF(G128="Evet",0.1108,0) -> 0 | I128: Hayır | J128: =IF(I128="Evet",0.1108,0) -> 0 | K128: Hayır | L128: =IF(K128="Evet",0.1108,0) -> 0 | M128: Hayır | N128: =IF(M128="Evet",0.1108,0) -> 0 | O128: Hayır | P128: =IF(O128="Evet",0.1108,0) -> 0
A130: 13. | B130: Belgelerin özgünlüğünün tasdik edilmesi için aşağıdaki adımlardan hangileri geçerlidir? | D130: Arşivsel Bağ
A131: 13.1. | B131: Belgenin, doğduğu fonksiyonun işlemlerinden en az birini gösterecek nitelikte olması | C131: Zorunlu | D131: Arşivsel Bağ | E131: Hayır | F131: =IF(E131="Evet",0.1356,0) -> 0 | G131: Evet | H131: =IF(G131="Evet",0.1356,0) -> 0.1356 | I131: Evet | J131: =IF(I131="Evet",0.1356,0) -> 0.1356 | K131: Hayır | L131: =IF(K131="Evet",0.1356,0) -> 0 | M131: Hayır | N131: =IF(M131="Evet",0.1356,0) -> 0 | O131: Hayır | P131: =IF(O131="Evet",0.1356,0) -> 0
A132: 13.2. | B132: Türüne göre belgenin, sahip olması gereken kimlik tespiti araçlarını (tasdik yöntemi) barındırması | C132: Zorunlu | D132: Arşivsel Bağ | E132: Hayır | F132: =IF(E132="Evet",0.1356,0) -> 0 | G132: Evet | H132: =IF(G132="Evet",0.1356,0) -> 0.1356 | I132: Evet | J132: =IF(I132="Evet",0.1356,0) -> 0.1356 | K132: Hayır | L132: =IF(K132="Evet",0.1356,0) -> 0 | M132: Hayır | N132: =IF(M132="Evet",0.1356,0) -> 0 | O132: Hayır | P132: =IF(O132="Evet",0.1356,0) -> 0
A133: 13.3. | B133: Belge arşive devredildiğinde, onun özniteliklerinin korunduğunu gösteren bir elektronik kurumsal mührün kullanılması | C133: Seçmeli | D133: Arşivsel Bağ | E133: Hayır | F133: =IF(E133="Evet",0.1108,0) -> 0 | G133: Hayır | H133: =IF(G133="Evet",0.1108,0) -> 0 | I133: Hayır | J133: =IF(I133="Evet",0.1108,0) -> 0 | K133: Hayır | L133: =IF(K133="Evet",0.1108,0) -> 0 | M133: Hayır | N133: =IF(M133="Evet",0.1108,0) -> 0 | O133: Hayır | P133: =IF(O133="Evet",0.1108,0) -> 0
A134: 13.4. | B134: Belgenin tanımlama bilgilerinin incelenmesi | C134: Seçmeli | D134: Arşivsel Bağ | E134: Hayır | F134: =IF(E134="Evet",0.1108,0) -> 0 | G134: Evet | H134: =IF(G134="Evet",0.1108,0) -> 0.1108 | I134: Hayır | J134: =IF(I134="Evet",0.1108,0) -> 0 | K134: Hayır | L134: =IF(K134="Evet",0.1108,0) -> 0 | M134: Hayır | N134: =IF(M134="Evet",0.1108,0) -> 0 | O134: Hayır | P134: =IF(O134="Evet",0.1108,0) -> 0
A135: 13.5. | B135: Dosya sistemindeki (file system) belge ile veri tabanında tutulan kayıtların ilişkilendirilmesi ve bu ilişkinin kopmaması için gerekli tedbirlerin alınması | C135: Zorunlu | D135: Arşivsel Bağ | E135: Evet | F135: =IF(E135="Evet",0.1356,0) -> 0.1356 | G135: Hayır | H135: =IF(G135="Evet",0.1356,0) -> 0 | I135: Hayır | J135: =IF(I135="Evet",0.1356,0) -> 0 | K135: Hayır | L135: =IF(K135="Evet",0.1356,0) -> 0 | M135: Hayır | N135: =IF(M135="Evet",0.1356,0) -> 0 | O135: Hayır | P135: =IF(O135="Evet",0.1356,0) -> 0
A136: 13.6. | B136: Belge üzerindeki imzaların geçerliliği bitmeden EYP'nin zaman damgası ile damgalanması | C136: Zorunlu | D136: Arşivsel Bağ | E136: Evet | F136: =IF(E136="Evet",0.1356,0) -> 0.1356 | G136: Hayır | H136: =IF(G136="Evet",0.1356,0) -> 0 | I136: Evet | J136: =IF(I136="Evet",0.1356,0) -> 0.1356 | K136: Hayır | L136: =IF(K136="Evet",0.1356,0) -> 0 | M136: Hayır | N136: =IF(M136="Evet",0.1356,0) -> 0 | O136: Hayır | P136: =IF(O136="Evet",0.1356,0) -> 0
A137: 13.7. | B137: Belgedeki imzaların arşiv imzası tipine dönüştürülmesi | C137: Kritik Zorunlu | D137: Arşivsel Bağ | E137: Evet | F137: =IF(E137="Evet",0.9951,0) -> 0.9951 | G137: Hayır | H137: =IF(G137="Evet",0.9951,0) -> 0 | I137: Evet | J137: =IF(I137="Evet",0.9951,0) -> 0.9951 | K137: Hayır | L137: =IF(K137="Evet",0.9951,0) -> 0 | M137: Hayır | N137: =IF(M137="Evet",0.9951,0) -> 0 | O137: Hayır | P137: =IF(O137="Evet",0.9951,0) -> 0
A138: 13.8. | B138: Bütünlük analizinin düzenli kontrol edilmesi | C138: Kritik Zorunlu | D138: Arşivsel Bağ | E138: Hayır | F138: =IF(E138="Evet",0.9951,0) -> 0 | G138: Hayır | H138: =IF(G138="Evet",0.9951,0) -> 0 | I138: Hayır | J138: =IF(I138="Evet",0.9951,0) -> 0 | K138: Hayır | L138: =IF(K138="Evet",0.9951,0) -> 0 | M138: Hayır | N138: =IF(M138="Evet",0.9951,0) -> 0 | O138: Hayır | P138: =IF(O138="Evet",0.9951,0) -> 0
A139: 13.9. | B139: Bütünlük bozulması riskine karşı risk değerlendirmesi ve riskten kaçınma raporunun hazırlanması | C139: Seçmeli | D139: Arşivsel Bağ | E139: Hayır | F139: =IF(E139="Evet",0.1108,0) -> 0 | G139: Hayır | H139: =IF(G139="Evet",0.1108,0) -> 0 | I139: Hayır | J139: =IF(I139="Evet",0.1108,0) -> 0 | K139: Hayır | L139: =IF(K139="Evet",0.1108,0) -> 0 | M139: Hayır | N139: =IF(M139="Evet",0.1108,0) -> 0 | O139: Hayır | P139: =IF(O139="Evet",0.1108,0) -> 0
A141: 14. | B141: Belgelerin tasfiyesine ilişkin aşağıdaki adımlardan hangileri geçerlidir? | D141: Arşivsel Bağ
A142: 14.1. | B142: Belgeler oluşmadan önce belgelere bir saklama süresi tayin edilmesi | C142: Zorunlu | D142: Arşivsel Bağ | E142: Evet | F142: =IF(E142="Evet",0.1356,0) -> 0.1356 | G142: Evet | H142: =IF(G142="Evet",0.1356,0) -> 0.1356 | I142: Evet | J142: =IF(I142="Evet",0.1356,0) -> 0.1356 | K142: Hayır | L142: =IF(K142="Evet",0.1356,0) -> 0 | M142: Evet | N142: =IF(M142="Evet",0.1356,0) -> 0.1356 | O142: Evet | P142: =IF(O142="Evet",0.1356,0) -> 0.1356
A143: 14.2. | B143: Belgelerin saklama süreleri tamamlandıktan sonra ait oldukları dosyalarla birlikte arşive devredilmesi | C143: Kritik Zorunlu | D143: Arşivsel Bağ | E143: Hayır | F143: =IF(E143="Evet",0.6102,0) -> 0 | G143: Hayır | H143: =IF(G143="Evet",0.6102,0) -> 0 | I143: Hayır | J143: =IF(I143="Evet",0.6102,0) -> 0 | K143: Hayır | L143: =IF(K143="Evet",0.6102,0) -> 0 | M143: Hayır | N143: =IF(M143="Evet",0.6102,0) -> 0 | O143: Evet | P143: =IF(O143="Evet",0.6102,0) -> 0.6102
A144: 14.3. | B144: Saklama süresi aşımının gerekçesi | C144: Zorunlu | D144: Arşivsel Bağ | E144: Evet | F144: =IF(E144="Evet",0.1356,0) -> 0.1356 | G144: Hayır | H144: =IF(G144="Evet",0.1356,0) -> 0 | I144: Evet | J144: =IF(I144="Evet",0.1356,0) -> 0.1356 | K144: Hayır | L144: =IF(K144="Evet",0.1356,0) -> 0 | M144: Evet | N144: =IF(M144="Evet",0.1356,0) -> 0.1356 | O144: Evet | P144: =IF(O144="Evet",0.1356,0) -> 0.1356
A145: 14.4. | B145: Belgenin, belge profili ve üstverileriyle birlikte arşive devredilmesi | C145: Kritik Zorunlu | D145: Arşivsel Bağ | E145: Evet | F145: =IF(E145="Evet",0.6102,0) -> 0.6102 | G145: Evet | H145: =IF(G145="Evet",0.6102,0) -> 0.6102 | I145: Hayır | J145: =IF(I145="Evet",0.6102,0) -> 0 | K145: Hayır | L145: =IF(K145="Evet",0.6102,0) -> 0 | M145: Hayır | N145: =IF(M145="Evet",0.6102,0) -> 0 | O145: Evet | P145: =IF(O145="Evet",0.6102,0) -> 0.6102
A146: 14.5. | B146: Belge tasfiye edilirken belge profili ve üstverisinin de tasfiye edilmesi | C146: Zorunlu | D146: Arşivsel Bağ | E146: Evet | F146: =IF(E146="Evet",0.1356,0) -> 0.1356 | G146: Evet | H146: =IF(G146="Evet",0.1356,0) -> 0.1356 | I146: Hayır | J146: =IF(I146="Evet",0.1356,0) -> 0 | K146: Hayır | L146: =IF(K146="Evet",0.1356,0) -> 0 | M146: Hayır | N146: =IF(M146="Evet",0.1356,0) -> 0 | O146: Evet | P146: =IF(O146="Evet",0.1356,0) -> 0.1356
A147: 14.6. | B147: Belge, ister arşive devredilsin ister imha edilsin referans numarasının sistemde tutulması ve belgenin akıbeti hakkında bir bilgi notunun bulunması | C147: Kritik Zorunlu | D147: Arşivsel Bağ | E147: Evet | F147: =IF(E147="Evet",0.6102,0) -> 0.6102 | G147: Hayır | H147: =IF(G147="Evet",0.6102,0) -> 0 | I147: Hayır | J147: =IF(I147="Evet",0.6102,0) -> 0 | K147: Hayır | L147: =IF(K147="Evet",0.6102,0) -> 0 | M147: Hayır | N147: =IF(M147="Evet",0.6102,0) -> 0 | O147: Hayır | P147: =IF(O147="Evet",0.6102,0) -> 0
A148: 14.7. | B148: Arşive devredilen belgelerin dosyalarıyla birlikte belge yönetim sisteminden kaldırılıp arşiv yönetim sistemine aktarılması | C148: Zorunlu | D148: Arşivsel Bağ | E148: Evet | F148: =IF(E148="Evet",0.1356,0) -> 0.1356 | G148: Evet | H148: =IF(G148="Evet",0.1356,0) -> 0.1356 | I148: Hayır | J148: =IF(I148="Evet",0.1356,0) -> 0 | K148: Hayır | L148: =IF(K148="Evet",0.1356,0) -> 0 | M148: Hayır | N148: =IF(M148="Evet",0.1356,0) -> 0 | O148: Hayır | P148: =IF(O148="Evet",0.1356,0) -> 0
A150: 15. | B150: Belge yönetimi kapasitesinin geliştirilmesi için aşağıdakilerden hangileri geçerlidir? | D150: Kurumsal Politika ve Prosedürler
A151: 15.1. | B151: Kurumsal belge yönetimi politikasının oluşturulması | C151: Kritik Zorunlu | D151: Kurumsal Politika ve Prosedürler | E151: Evet | F151: =IF(E151="Evet",2.6822,0) -> 2.6822 | G151: Evet | H151: =IF(G151="Evet",2.6822,0) -> 2.6822 | I151: Evet | J151: =IF(I151="Evet",2.6822,0) -> 2.6822 | K151: Hayır | L151: =IF(K151="Evet",2.6822,0) -> 0 | M151: Hayır | N151: =IF(M151="Evet",2.6822,0) -> 0 | O151: Hayır | P151: =IF(O151="Evet",2.6822,0) -> 0
A152: 15.2. | B152: Bilgi ve belge yönetimi mezunu kişilerin belge yönetimiyle ilgili birimde istihdam edilmesi | C152: Seçmeli | D152: Kurumsal Politika ve Prosedürler | E152: Evet | F152: =IF(E152="Evet",0.222,0) -> 0.222 | G152: Hayır | H152: =IF(G152="Evet",0.222,0) -> 0 | I152: Hayır | J152: =IF(I152="Evet",0.222,0) -> 0 | K152: Hayır | L152: =IF(K152="Evet",0.222,0) -> 0 | M152: Hayır | N152: =IF(M152="Evet",0.222,0) -> 0 | O152: Hayır | P152: =IF(O152="Evet",0.222,0) -> 0
A153: 15.3. | B153: Belge yönetimiyle ilgilenen personelin eğitim programının bulunması (eğitmen eğitimi) | C153: Seçmeli | D153: Kurumsal Politika ve Prosedürler | E153: Evet | F153: =IF(E153="Evet",0.222,0) -> 0.222 | G153: Evet | H153: =IF(G153="Evet",0.222,0) -> 0.222 | I153: Evet | J153: =IF(I153="Evet",0.222,0) -> 0.222 | K153: Hayır | L153: =IF(K153="Evet",0.222,0) -> 0 | M153: Evet | N153: =IF(M153="Evet",0.222,0) -> 0.222 | O153: Hayır | P153: =IF(O153="Evet",0.222,0) -> 0
A154: 15.4. | B154: Kurum çalışanlarının belge yönetimi birimi tarafından eğitilmesi | C154: Seçmeli | D154: Kurumsal Politika ve Prosedürler | E154: Evet | F154: =IF(E154="Evet",0.222,0) -> 0.222 | G154: Evet | H154: =IF(G154="Evet",0.222,0) -> 0.222 | I154: Evet | J154: =IF(I154="Evet",0.222,0) -> 0.222 | K154: Hayır | L154: =IF(K154="Evet",0.222,0) -> 0 | M154: Evet | N154: =IF(M154="Evet",0.222,0) -> 0.222 | O154: Evet | P154: =IF(O154="Evet",0.222,0) -> 0.222
A155: 15.5. | B155: TSE 13298 Kurumsal sertifikasyon alınması yönünde girişimler yapılması | C155: Zorunlu | D155: Kurumsal Politika ve Prosedürler | E155: Hayır | F155: =IF(E155="Evet",0.1356,0) -> 0 | G155: Hayır | H155: =IF(G155="Evet",0.1356,0) -> 0 | I155: Hayır | J155: =IF(I155="Evet",0.1356,0) -> 0 | K155: Hayır | L155: =IF(K155="Evet",0.1356,0) -> 0 | M155: Hayır | N155: =IF(M155="Evet",0.1356,0) -> 0 | O155: Hayır | P155: =IF(O155="Evet",0.1356,0) -> 0
A157: 16. | B157: Arşivlenen belgelerin tanımlanması için bir standardın kullanılması düşünülmekte midir? Lütfen belirtiniz. | D157: Arşivsel Bağ
A158: 16.1. | B158: Evet/Hayır | C158: Seçmeli | D158: Arşivsel Bağ | E158: Hayır | F158: =IF(E158="Evet",0.277,0) -> 0 | G158: Hayır | H158: =IF(G158="Evet",0.277,0) -> 0 | I158: Hayır | J158: =IF(I158="Evet",0.277,0) -> 0 | K158: Hayır | L158: =IF(K158="Evet",0.277,0) -> 0 | M158: Hayır | N158: =IF(M158="Evet",0.277,0) -> 0 | O158: Hayır | P158: =IF(O158="Evet",0.277,0) -> 0
A160: 17. | B160: Elektronik belge yönetiminde belgenin delil değerini korumak için aşağıdaki teknolojilerden hangilerinin kullanılması düşünülmektedir? | D160: Teknolojik Koşullar
A161: 17.1. | B161: Blokzincir | C161: Seçmeli | D161: Teknolojik Koşullar | E161: Hayır | F161: =IF(E161="Evet",0.357,0) -> 0 | G161: Hayır | H161: =IF(G161="Evet",0.357,0) -> 0 | I161: Hayır | J161: =IF(I161="Evet",0.357,0) -> 0 | K161: Hayır | L161: =IF(K161="Evet",0.357,0) -> 0 | M161: Hayır | N161: =IF(M161="Evet",0.357,0) -> 0 | O161: Hayır | P161: =IF(O161="Evet",0.357,0) -> 0
A162: 17.2. | B162: Yapay zekâ | C162: Seçmeli | D162: Teknolojik Koşullar | E162: Hayır | F162: =IF(E162="Evet",0.357,0) -> 0 | G162: Hayır | H162: =IF(G162="Evet",0.357,0) -> 0 | I162: Hayır | J162: =IF(I162="Evet",0.357,0) -> 0 | K162: Hayır | L162: =IF(K162="Evet",0.357,0) -> 0 | M162: Hayır | N162: =IF(M162="Evet",0.357,0) -> 0 | O162: Hayır | P162: =IF(O162="Evet",0.357,0) -> 0
A163: 17.3. | B163: Derin öğrenme/Makine öğrenmesi | C163: Seçmeli | D163: Teknolojik Koşullar | E163: Hayır | F163: 0 | G163: Hayır | H163: 0 | I163: Hayır | J163: 0 | K163: Hayır | L163: 0 | M163: Hayır | N163: 0 | O163: Hayır | P163: 0
A164: 17.4. | B164: Elektronik delil elde etme (Digital forensics-Öykünme, teknolojik göç) | C164: Seçmeli | D164: Teknolojik Koşullar | E164: Hayır | F164: 0 | G164: Hayır | H164: 0 | I164: Hayır | J164: 0 | K164: Hayır | L164: 0 | M164: Hayır | N164: 0 | O164: Hayır | P164: 0
A166: 18. | B166: Yazılım ve donanımla ilgili aşağıdaki ifadelerden hangileri geçerlidir? | D166: Teknolojik Koşullar
A167: 18.1. | B167: Yazılım algoritması ve kaynak kodlarının kurum tarafından saklanması | C167: Kritik Zorunlu | D167: Teknolojik Koşullar | E167: Hayır | F167: =IF(E167="Evet",1.3134,0) -> 0 | G167: Hayır | H167: =IF(G167="Evet",1.3134,0) -> 0 | I167: Hayır | J167: =IF(I167="Evet",1.3134,0) -> 0 | K167: Hayır | L167: =IF(K167="Evet",1.3134,0) -> 0 | M167: Hayır | N167: =IF(M167="Evet",1.3134,0) -> 0 | O167: Hayır | P167: =IF(O167="Evet",1.3134,0) -> 0
A168: 18.2 | B168: Veri tabanının arşivlenebilir bir formatta yapılandırılması | C168: Seçmeli | D168: Teknolojik Koşullar | E168: Evet | F168: =IF(E168="Evet",0.1428,0) -> 0.1428 | G168: Evet | H168: =IF(G168="Evet",0.1428,0) -> 0.1428 | I168: Evet | J168: =IF(I168="Evet",0.1428,0) -> 0.1428 | K168: Hayır | L168: =IF(K168="Evet",0.1428,0) -> 0 | M168: Hayır | N168: =IF(M168="Evet",0.1428,0) -> 0 | O168: Hayır | P168: =IF(O168="Evet",0.1428,0) -> 0
A169: 18.3 | B169: Belgelerin bir kez yazılabilir ortamlarda saklanması | C169: Seçmeli | D169: Teknolojik Koşullar | E169: Hayır | F169: =IF(E169="Evet",0.1428,0) -> 0 | G169: Hayır | H169: =IF(G169="Evet",0.1428,0) -> 0 | I169: Evet | J169: =IF(I169="Evet",0.1428,0) -> 0.1428 | K169: Hayır | L169: =IF(K169="Evet",0.1428,0) -> 0 | M169: Hayır | N169: =IF(M169="Evet",0.1428,0) -> 0 | O169: Hayır | P169: =IF(O169="Evet",0.1428,0) -> 0
A170: 18.4. | B170: Belge bileşenlerinin de belgeyle birlikte bütüncül olarak korunması | C170: Zorunlu | D170: Teknolojik Koşullar | E170: Evet | F170: =IF(E170="Evet",0.2284,0) -> 0.2284 | G170: Evet | H170: =IF(G170="Evet",0.2284,0) -> 0.2284 | I170: Evet | J170: =IF(I170="Evet",0.2284,0) -> 0.2284 | K170: Hayır | L170: =IF(K170="Evet",0.2284,0) -> 0 | M170: Evet | N170: =IF(M170="Evet",0.2284,0) -> 0.2284 | O170: Evet | P170: =IF(O170="Evet",0.2284,0) -> 0.2284
A171: 18.5. | B171: Yazılım değiştirildiğinde de belgelere erişilebilmesi | C171: Kritik Zorunlu | D171: Teknolojik Koşullar | E171: Evet | F171: =IF(E171="Evet",1.3134,0) -> 1.3134 | G171: Evet | H171: =IF(G171="Evet",1.3134,0) -> 1.3134 | I171: Evet | J171: =IF(I171="Evet",1.3134,0) -> 1.3134 | K171: Evet | L171: =IF(K171="Evet",1.3134,0) -> 1.3134 | M171: Evet | N171: =IF(M171="Evet",1.3134,0) -> 1.3134 | O171: Evet | P171: =IF(O171="Evet",1.3134,0) -> 1.3134
A172: 18.6. | B172: Güncel belgelerle arşivlenen belgelerin saklanma konumları arasında bir ayrım yapılması | C172: Seçmeli | D172: Teknolojik Koşullar | E172: Hayır | F172: =IF(E172="Evet",0.1428,0) -> 0 | G172: Hayır | H172: =IF(G172="Evet",0.1428,0) -> 0 | I172: Hayır | J172: =IF(I172="Evet",0.1428,0) -> 0 | K172: Hayır | L172: =IF(K172="Evet",0.1428,0) -> 0 | M172: Evet | N172: =IF(M172="Evet",0.1428,0) -> 0.1428 | O172: Hayır | P172: =IF(O172="Evet",0.1428,0) -> 0
A173: 18.7. | B173: Donanımların üreticilerin tavsiye ettiği kullanım ömrü dolduktan sonra kullanılmaması | C173: Seçmeli | D173: Teknolojik Koşullar | E173: Evet | F173: =IF(E173="Evet",0.1428,0) -> 0.1428 | G173: Hayır | H173: =IF(G173="Evet",0.1428,0) -> 0 | I173: Evet | J173: =IF(I173="Evet",0.1428,0) -> 0.1428 | K173: Evet | L173: =IF(K173="Evet",0.1428,0) -> 0.1428 | M173: Evet | N173: =IF(M173="Evet",0.1428,0) -> 0.1428 | O173: Evet | P173: =IF(O173="Evet",0.1428,0) -> 0.1428
A174: 18.8. | B174: Belgelerin üretildiği araçlardaki donanım ve yazılım özelliklerinin kayıt altına alınması | C174: Zorunlu | D174: Teknolojik Koşullar | E174: Evet | F174: =IF(E174="Evet",0.2284,0) -> 0.2284 | G174: Evet | H174: =IF(G174="Evet",0.2284,0) -> 0.2284 | I174: Hayır | J174: =IF(I174="Evet",0.2284,0) -> 0 | K174: Evet | L174: =IF(K174="Evet",0.2284,0) -> 0.2284 | M174: Hayır | N174: =IF(M174="Evet",0.2284,0) -> 0 | O174: Hayır | P174: =IF(O174="Evet",0.2284,0) -> 0
A175: 18.9. | B175: 27001 Sertifikası alınması yönünde girişimlerin yapılması | C175: Zorunlu | D175: Teknolojik Koşullar | E175: Hayır | F175: =IF(E175="Evet",0.2284,0) -> 0 | G175: Evet | H175: =IF(G175="Evet",0.2284,0) -> 0.2284 | I175: Evet | J175: =IF(I175="Evet",0.2284,0) -> 0.2284 | K175: Evet | L175: =IF(K175="Evet",0.2284,0) -> 0.2284 | M175: Evet | N175: =IF(M175="Evet",0.2284,0) -> 0.2284 | O175: Evet | P175: =IF(O175="Evet",0.2284,0) -> 0.2284
A176: 18.10. | B176: Yazılımın TSE 13298 Sertifikasına uygun olması yönünde girişimlerin yapılması | C176: Zorunlu | D176: Teknolojik Koşullar | E176: Evet | F176: =IF(E176="Evet",0.2284,0) -> 0.2284 | G176: Evet | H176: =IF(G176="Evet",0.2284,0) -> 0.2284 | I176: Evet | J176: =IF(I176="Evet",0.2284,0) -> 0.2284 | K176: Evet | L176: =IF(K176="Evet",0.2284,0) -> 0.2284 | M176: Evet | N176: =IF(M176="Evet",0.2284,0) -> 0.2284 | O176: Evet | P176: =IF(O176="Evet",0.2284,0) -> 0.2284
A177: 18.11. | B177: Log kayıtlarının zaman damgası ile damgalanması | C177: Kritik Zorunlu | D177: Teknolojik Koşullar | E177: Evet | F177: =IF(E177="Evet",1.3134,0) -> 1.3134 | G177: Hayır | H177: =IF(G177="Evet",1.3134,0) -> 0 | I177: Hayır | J177: =IF(I177="Evet",1.3134,0) -> 0 | K177: Evet | L177: =IF(K177="Evet",1.3134,0) -> 1.3134 | M177: Evet | N177: =IF(M177="Evet",1.3134,0) -> 1.3134 | O177: Evet | P177: =IF(O177="Evet",1.3134,0) -> 1.3134
A179: 19. | B179: Üstveriler için aşağıdakilerden hangileri geçerlidir? | D179: Teknolojik Koşullar
A180: 19.1. | B180: Üstverilerin belgeden ayrı olarak XML ya da JSON olarak saklanması | C180: Zorunlu | D180: Teknolojik Koşullar | E180: Evet | F180: =IF(E180="Evet",0.2284,0) -> 0.2284 | G180: Evet | H180: =IF(G180="Evet",0.2284,0) -> 0.2284 | I180: Evet | J180: =IF(I180="Evet",0.2284,0) -> 0.2284 | K180: Evet | L180: =IF(K180="Evet",0.2284,0) -> 0.2284 | M180: Evet | N180: =IF(M180="Evet",0.2284,0) -> 0.2284 | O180: Evet | P180: =IF(O180="Evet",0.2284,0) -> 0.2284
A181: 19.2. | B181: Üstveriler, belge ile birlikte hareket etmektedir. (Belgenin konumu değiştirildiğinde üstverilerin de beraberinde taşınması) | C181: Kritik Zorunlu | D181: Teknolojik Koşullar | E181: Evet | F181: =IF(E181="Evet",1.5988,0) -> 1.5988 | G181: Evet | H181: =IF(G181="Evet",1.5988,0) -> 1.5988 | I181: Evet | J181: =IF(I181="Evet",1.5988,0) -> 1.5988 | K181: Evet | L181: =IF(K181="Evet",1.5988,0) -> 1.5988 | M181: Evet | N181: =IF(M181="Evet",1.5988,0) -> 1.5988 | O181: Evet | P181: =IF(O181="Evet",1.5988,0) -> 1.5988
A182: 19.3. | B182: Yöneticilerin yaptığı değişiklikler sonucunda yeni bir üstveri kaydının oluşması ve daha önceki üstveri kaydının muhafaza edilmesi | C182: Zorunlu | D182: Teknolojik Koşullar | E182: Evet | F182: =IF(E182="Evet",0.2284,0) -> 0.2284 | G182: Hayır | H182: =IF(G182="Evet",0.2284,0) -> 0 | I182: Evet | J182: =IF(I182="Evet",0.2284,0) -> 0.2284 | K182: Evet | L182: =IF(K182="Evet",0.2284,0) -> 0.2284 | M182: Evet | N182: =IF(M182="Evet",0.2284,0) -> 0.2284 | O182: Evet | P182: =IF(O182="Evet",0.2284,0) -> 0.2284
A183: 19.4. | B183: Üstveri dosyasının ait olduğu belgenin referans numarasına sahip olması | C183: Zorunlu | D183: Teknolojik Koşullar | E183: Hayır | F183: =IF(E183="Evet",0.2284,0) -> 0 | G183: Hayır | H183: =IF(G183="Evet",0.2284,0) -> 0 | I183: Hayır | J183: =IF(I183="Evet",0.2284,0) -> 0 | K183: Hayır | L183: =IF(K183="Evet",0.2284,0) -> 0 | M183: Hayır | N183: =IF(M183="Evet",0.2284,0) -> 0 | O183: Hayır | P183: =IF(O183="Evet",0.2284,0) -> 0
A185: 20. | B185: Denetim günlükleri için aşağıdakilerden hangileri geçerlidir? | D185: Teknolojik Koşullar
A186: 20.1. | B186: Tüm belgeler için denetim günlüklerinin oluşturulması | C186: Seçmeli | D186: Teknolojik Koşullar | E186: Evet | F186: =IF(E186="Evet",0.357,0) -> 0.357 | G186: Hayır | H186: =IF(G186="Evet",0.357,0) -> 0 | I186: Hayır | J186: =IF(I186="Evet",0.357,0) -> 0 | K186: Hayır | L186: =IF(K186="Evet",0.357,0) -> 0 | M186: Hayır | N186: =IF(M186="Evet",0.357,0) -> 0 | O186: Hayır | P186: =IF(O186="Evet",0.357,0) -> 0
A187: 20.2. | B187: Denetim günlükleri oluşturulmasına karar verilen belgeler için, bunların otomatik olarak oluşması | C187: Zorunlu | D187: Teknolojik Koşullar | E187: Evet | F187: =IF(E187="Evet",0.571,0) -> 0.571 | G187: Evet | H187: =IF(G187="Evet",0.571,0) -> 0.571 | I187: Hayır | J187: =IF(I187="Evet",0.571,0) -> 0 | K187: Hayır | L187: =IF(K187="Evet",0.571,0) -> 0 | M187: Hayır | N187: =IF(M187="Evet",0.571,0) -> 0 | O187: Hayır | P187: =IF(O187="Evet",0.571,0) -> 0
A188: 20.3. | B188: Denetim günlüklerinin yapılan işlemlerin tarih ve saatini içermesi | C188: Zorunlu | D188: Teknolojik Koşullar | E188: Evet | F188: =IF(E188="Evet",0.571,0) -> 0.571 | G188: Evet | H188: =IF(G188="Evet",0.571,0) -> 0.571 | I188: Hayır | J188: =IF(I188="Evet",0.571,0) -> 0 | K188: Hayır | L188: =IF(K188="Evet",0.571,0) -> 0 | M188: Hayır | N188: =IF(M188="Evet",0.571,0) -> 0 | O188: Hayır | P188: =IF(O188="Evet",0.571,0) -> 0
A189: 20.4. | B189: Denetim günlüklerine erişim sırasında bir sorun yaşanıp yaşanmadığının düzenli aralıklarla otomatik olarak kontrol edilmesi | C189: Zorunlu | D189: Teknolojik Koşullar | E189: Hayır | F189: =IF(E189="Evet",0.571,0) -> 0 | G189: Hayır | H189: =IF(G189="Evet",0.571,0) -> 0 | I189: Hayır | J189: =IF(I189="Evet",0.571,0) -> 0 | K189: Hayır | L189: =IF(K189="Evet",0.571,0) -> 0 | M189: Hayır | N189: =IF(M189="Evet",0.571,0) -> 0 | O189: Hayır | P189: =IF(O189="Evet",0.571,0) -> 0
A190: 20.5. | B190: Denetim günlüklerinin bir kere yazılması ve üzerinde hiç değişiklik yapılmaması | C190: Zorunlu | D190: Teknolojik Koşullar | E190: Evet | F190: =IF(E190="Evet",0.571,0) -> 0.571 | G190: Evet | H190: =IF(G190="Evet",0.571,0) -> 0.571 | I190: Hayır | J190: =IF(I190="Evet",0.571,0) -> 0 | K190: Hayır | L190: =IF(K190="Evet",0.571,0) -> 0 | M190: Hayır | N190: =IF(M190="Evet",0.571,0) -> 0 | O190: Hayır | P190: =IF(O190="Evet",0.571,0) -> 0
A192: 21. | B192: Kurumda üretilen ve dışarıdan gelen belgelerin form özellikleri, formatı ve içeriğinin değiştirilmemesine yönelik aşağıdaki hangi yaklaşımları benimsiyorsunuz? | D192: Arşivsel Bağ
A193: 21.1. | B193: İz değeri kontrolü | C193: Zorunlu | D193: Arşivsel Bağ | E193: Evet | F193: =IF(E193="Evet",0.1356,0) -> 0.1356 | G193: Hayır | H193: =IF(G193="Evet",0.1356,0) -> 0 | I193: Evet | J193: =IF(I193="Evet",0.1356,0) -> 0.1356 | K193: Hayır | L193: =IF(K193="Evet",0.1356,0) -> 0 | M193: Evet | N193: =IF(M193="Evet",0.1356,0) -> 0.1356 | O193: Hayır | P193: =IF(O193="Evet",0.1356,0) -> 0
A194: 21.2. | B194: Dosya tanımlayıcı kullanımı (JHOVE, DROID gibi) | C194: Kritik Zorunlu | D194: Arşivsel Bağ | E194: Hayır | F194: =IF(E194="Evet",1.0782,0) -> 0 | G194: Hayır | H194: =IF(G194="Evet",1.0782,0) -> 0 | I194: Hayır | J194: =IF(I194="Evet",1.0782,0) -> 0 | K194: Hayır | L194: =IF(K194="Evet",1.0782,0) -> 0 | M194: Hayır | N194: =IF(M194="Evet",1.0782,0) -> 0 | O194: Hayır | P194: =IF(O194="Evet",1.0782,0) -> 0
A195: 21.3. | B195: Adli bilişim (Digital forensics) yöntemleri | C195: Seçmeli | D195: Arşivsel Bağ | E195: Hayır | F195: =IF(E195="Evet",0.1108,0) -> 0 | G195: Hayır | H195: =IF(G195="Evet",0.1108,0) -> 0 | I195: Hayır | J195: =IF(I195="Evet",0.1108,0) -> 0 | K195: Hayır | L195: =IF(K195="Evet",0.1108,0) -> 0 | M195: Hayır | N195: =IF(M195="Evet",0.1108,0) -> 0 | O195: Hayır | P195: =IF(O195="Evet",0.1108,0) -> 0
A196: 21.4. | B196: Log kayıtlarının kontrolü | C196: Zorunlu | D196: Arşivsel Bağ | E196: Evet | F196: =IF(E196="Evet",0.1356,0) -> 0.1356 | G196: Hayır | H196: =IF(G196="Evet",0.1356,0) -> 0 | I196: Hayır | J196: =IF(I196="Evet",0.1356,0) -> 0 | K196: Evet | L196: =IF(K196="Evet",0.1356,0) -> 0.1356 | M196: Evet | N196: =IF(M196="Evet",0.1356,0) -> 0.1356 | O196: Evet | P196: =IF(O196="Evet",0.1356,0) -> 0.1356
A197: 21.5. | B197: Döngüsel artıklık denetimi (CRC) | C197: Seçmeli | D197: Arşivsel Bağ | E197: Hayır | F197: =IF(E197="Evet",0.1108,0) -> 0 | G197: Hayır | H197: =IF(G197="Evet",0.1108,0) -> 0 | I197: Hayır | J197: =IF(I197="Evet",0.1108,0) -> 0 | K197: Hayır | L197: =IF(K197="Evet",0.1108,0) -> 0 | M197: Hayır | N197: =IF(M197="Evet",0.1108,0) -> 0 | O197: Hayır | P197: =IF(O197="Evet",0.1108,0) -> 0
B199: Elde Edilen Ham Puan: | F199: =SUM(F1:F197) -> 48.4675 | H199: =SUM(H1:H197) -> 39.4516 | J199: =SUM(J2:J198) -> 37.1955 | L199: =SUM(L2:L198) -> 27.4672 | N199: =SUM(N2:N198) -> 28.7049 | P199: =SUM(P2:P198) -> 25.8973
B200: Toplam Puan: | F200: =25+F199 -> 73.4675 | H200: =25+H199 -> 64.4516 | J200: =25+J199 -> 62.1955 | L200: =25+L199 -> 52.4672 | N200: =25+N199 -> 53.7049 | P200: =25+P199 -> 50.8973
B202: Kullandığınız Kaçıncı EBYS? | E202: 2 | G202: 2 | I202: 3 | K202: 2 | M202: 2 | O202: 11
B203: Sistemi kendiniz mi geliştirdiniz? | E203: Hayır | G203: Hayır | I203: Hayır | K203: Hayır | M203: Hayır | O203: Evet
B204: Kaç yıldır EBYS kullanıyorsunuz? | E204: 4 | G204: 8 | I204: 4 | K204: 7 | M204: 8 | O204: Evet
B205: Yazılımın TSE uygunluk sertifikası var mı? | E205: Var | G205: Evet | I205: Evet | K205: Evet | M205: Evet | O205: Evet
B206: KEP kullanıyor musunuz? | E206: Var | G206: Evet | I206: Evet | K206: Evet | M206: Evet | O206: Evet
B207: UETS kullanıyor musunuz? | E207: Var | G207: Evet | I207: Evet | K207: Evet | M207: Evet | O207: Evet
B208: EYP kullanıyor musunuz? | E208: Var | G208: Evet | I208: Evet | K208: Evet | M208: Evet | O208: Evet
